Workbook

Sheet Inputs
B1: Inputs
B4: Cell to be manually changed:
A6: 1 | B6: Timing
B9: Financial close date | C9: Date | D9: 2013-07-01
B10: Model start date | C10: Date | D10: 2011-12-31
B12: Time delay between Full Operation and Investment | D12: 1
C14: Semi-annually | D14: Semi-annually | E14: 2 | F14: periods / year
C15: Investment | D15: Operations
B16: Start date | C16: =Model_Start+1 -> 2012-01-01 | D16: =EOMONTH(Model_Start+1,Months_Yr*D12-1) -> 2012-12-31
B17: Duration | C17: 4.5 | D17: 15
B18: End date | C18: =EOMONTH(C16,C17*Months_Yr-1) -> 2016-06-30 | D18: =EOMONTH(D16,D17*Months_Yr) -> 2027-12-31
A20: =A6+1 -> 2 | B20: TAX Hypotheses
B22: VAT / gasoil | C22: =+VAT -> 0 | D22: unique VAT rate in Senegal = 18%
B23: VAT / electricity | C23: =+VAT -> 0
B24: VAT / lease | C24: =+VAT -> 0
B25: VAT / Capex | C25: =+Scenarios!C18 -> 0
B26: VAT / fixed & variable costs | C26: =+Scenarios!C17 -> 0 | D26: (fertilizers, seeds and herbicids are exempted)
B29: Customs duties and Community tax | C29: 0.029
B30: Withholding tax on dividends | C30: 0.1
B31: Income tax - export company | C31: 0.15
B32: Income tax - local sales company | C32: 0.25
A34: =A20+1 -> 3 | B34: Financial hypotheses
B36: WACC | C36: =SUM(C37:C39) -> 0.12 | D36: > do not modified (linked to sensitivity tables)
B37: Bond at 10 years issued by the state (French OAT, no risk) | C37: 0.036
B38: Market risk | C38: 0.034
B39: Country risk | C39: 0.05
B40: Infinite growth rate | C40: =4% -> 0.04 | D40: > do not modify (linked to sensitivity tables)
B41: EBITDA multiple | C41: 7
A44: =A34+1 -> 4 | B44: Economic hypotheses:
B46: FX Euros/F Cfa | C46: 655.957
B47: FX Euros/USD | C47: =+Scenarios!C16 -> 1.32
B48: inflation / charges (%) | C48: =+Scenarios!C13 -> 0.03
B49: inflation / charges in USD (%) | C49: =+inflation_ch -> 0.03
B50: inflation / cereals prices (%) | C50: =+Scenarios!C14 -> 0.04
B51: CASL markup (%)
B52: TP markup (%)
B53: short term interest rate (%) | C53: 0.1
B54: Social Sec. & pension costs for expatriates (% salary) | C54: 0.46 | D54: see salaries below
B55: Social Sec. & pension costs local employees (% salary) | C55: 0.21
A58: =A44+1 -> 5 | B58: Contingencies for simulation
B61: productivity 1st year/goal (%) | C61: =+Scenarios!C10 -> 0.9
B62: productivity 2nd year/goal (%) | C62: =1+(product_an1-1)/2 -> 0.95
B63: provision for risks on crop/harvest/sales (en % du CA) | C63: =+Scenarios!C9 -> 0.025
B64: contingency on farm/civil eng. Capex | C64: =+Scenarios!C11 -> 0.05
B65: contingency on Opex | C65: =+Scenarios!C12 -> 0
B66: €1m cash reserve for contingencies | C66: =+Scenarios!C15 -> 1000000
A69: =A58+1 -> 6 | B69: Crop & Milling hypotheses
B71: Paddy rice yield (classical) | C71: 7
B72: Paddy rice yield (SRI/SD) | C72: 8
B73: Paddy rice yield (trading) | C73: 6
B74: Milling rate | C74: 0.66
B75: Flour rate | C75: 0.14
B76: Transport costs to Dakar (Fcfa/t) | C76: 12000
A78: =A69+1 -> 7 | B78: Land reservation
C80: Euros / ha | D80: F Cfa / ha | G80: Sources
B81: Land award fee | C81: =D81/parité -> 38.11225431 | D81: 25000 | G81: to be negociated with "communauté rurale"
B82: Boundary, topographic mapping | C82: =D82/parité -> 15.24490172 | D82: 10000
B83: Land clearing tax | C83: =D83/parité -> 12.19592138 | D83: =8000 -> 8000 | G83: to be negociated with "Inspection Eaux & Forêt" - Basis: 1 ordinary tree per ha, trunk > 30 cm
B84: Local farmers land development | C84: =D84/parité -> 3048.980345 | D84: 2000000 | G84: fixed amount
B85: Estate tax | C85: =D85/parité -> 18.29388207 | D85: =bail*0.012*30 -> 12000 | G85: Option Conseil - 1 to 2 % of annual lease x 30 years
A89: =A78+1 -> 8 | B89: Cereals and seeds prices: | H89: Cereals market price fluctuation (+/- %)
G90: 0.04 | H90: importer margin
G91: 0.03 | H91: wholesaler margin
D92: no VAT (investment code)
C93: Euros | D93: F Cfa / kg | E93: 2010 | G93: € / t | H93: F Cfa / kg
B94: ordinary rice market price export FAS Dakar | C94: =G94*(1+$G$89) -> 416 | D94: =C94*parité/1000 -> 272.878112 | E94: 240 | G94: 416
B95: ordinary rice local market price - importers | C95: =G95*(1+$G$89) -> 416 | D95: =C95*parité/1000 -> 272.878112 | E95: 240 | G95: 416
B96: ordinary rice local market price - wholesalers | C96: =+ordinary_rice_local*(1+G90) -> 432.64 | D96: =C96*parité/1000 -> 283.7932365
B97: ordinary rice local market price - retailers | C97: =+ordinary_rice_local*(1+G90+G91) -> 445.12 | D97: =C97*parité/1000 -> 291.9795798
B98: rice by-product market price | C98: =D98*1000/parité -> 106.7143121 | D98: =H98*(1+$G$89) -> 70 | E98: 30 | H98: 70
B99: paddy rice seeds | C99: =D99*1000/parité -> 442.10215 | D99: =H99*(1+$G$89) -> 290 | E99: 255 | H99: 290
B100: Maise local market price | C100: =D100*1000/parité -> 227.1490357 | D100: =H100*(1+$G$89) -> 149 | E100: 140 | H100: 149
B101: Sorghum local market price | C101: =D101*1000/parité -> 231.7225062 | D101: =H101*(1+$G$89) -> 152 | E101: 140 | H101: 152
B102: Maise seeds market price | C102: =G102*(1+$G$89) -> 691 | D102: =C102*parité/1000 -> 453.266287 | E102: 426 | G102: 691
B103: Market price paddy bord champ | C103: =G103*(1+$G$89) -> 190.8396947 | D103: =C103*parité/1000 -> 125.1826336 | E103: 110 | G103: =125000/655 -> 190.8396947
B104: Fragant rice export price FAS Dakar | C104: =G104*(1+$G$89) -> 505 | D104: =C104*parité/1000 -> 331.258285 | E104: 290.588951 | G104: 505
B105: Fragant rice local market price | C105: =G105*(1+$G$89) -> 505 | D105: =C105*parité/1000 -> 331.258285 | E105: 290.588951 | G105: 505
A107: =A89+1 -> 9 | B107: Fertilisers prices : | D107: no VAT (investment code)
C109: Euros/t | D109: F Cfa / kg | E109: 2010
B110: urea fertiliser | C110: =D110*1000/parité -> 442.10215 | D110: 290 | E110: 220
B111: Fertiliser DAP | C111: =D111*1000/parité -> 626.5654608 | D111: 411 | E111: 300
B112: zinc sulphate | C112: =D112*1000/parité -> 3048.980345 | D112: 2000 | E112: 2000
B113: Complete fertiliser 15-15-15 | C113: =D113*1000/parité -> 608.2715788 | D113: =+E113*1.33 -> 399 | E113: 300
B114: potassium chloride fertiliser | C114: =D114*1000/parité -> 679.2365963 | D114: =+E114*1.33 -> 445.55 | E114: 335
B115: Rate of subsidies on fertilisers (%)
A117: =A107+1 -> 10 | B117: Herbicids prices: | D117: no VAT (investment code)
C119: Euros/t | D119: F Cfa / kg | E119: 2010
B120: Glyphosate 380 g/l | C120: =D120*1000/parité -> 4268.572483 | D120: 2800 | E120: 3750
B121: Propanil 360 g/l | C121: =D121*1000/parité -> 4344.796991 | D121: 2850
B122: Rical 345 EC | C122: =D122*1000/parité -> 5488.164621 | D122: 3600 | E122: 5000
B123: 2.4.D 720 g/l | C123: =D123*1000/parité -> 3811.225431 | D123: 2500 | E123: 10000
B124: (Samory) Bensulfuron 100 g/kg | C124: =D124*1000/parité -> 12195.92138 | D124: 8000 | E124: 20000
A126: =A117+1 -> 11 | B126: Energy, water and lease prices:
C128: Euro | D128: F Cfa | E128: 2010 | G128: F Cfa | H128: F Cfa with VAT 18% | J128: References
B129: Gasoil price H.T. (euros/l) | C129: =D129/parité -> 1.030968778 | D129: =G129*(1+TVA_gasoil) -> 676.2711864 | E129: 472 | G129: =+H129/1.18 -> 676.2711864 | H129: 798 | J129: ANSD - décembre 11 à février 12 | M129: Lease for occupacy of the State private domain is based
B130: Electricity price H.T. (euros/kWh) | C130: =D130/parité -> 0.161492603 | D130: =G130*(1+TVA_elec) -> 105.9322034 | E130: 103 | G130: =+H130/1.18 -> 105.9322034 | H130: 125 | J130: CRSE - prix moyen 2010 MT 117 F+2x3% | M130: on one third of the lands market value.
B131: Annual land lease (euros/an/ha) | C131: =D131/parité -> 50.81633908 | D131: =G131/3*0.02*10000 -> 33333.33333 | E131: 20000 | G131: 500 | H131: Value/m² | J131: Décret n° 2010-400 du 23 mars 2010 | M131: Lease rate on this basis is 2%
B132: water royalties, 1 harvest (euros/year/ha) | C132: =D132/parité -> 18.29388207 | D132: =G132 -> 12000 | E132: 10000 | G132: 12000 | H132: Value/ha | J132: SCL 2010 + 20%
A134: =A126+1 -> 12 | B134: Annual wages : Cost to company | C134: (including taxes, healthcare, transport and local bonus)
C135: Monthy salary x 13 | J135: currency
C136: Euros | D136: F Cfa
B138: CIVIL ENGINEERING EXPATRIATE MANAGERS
B139: Technical Director | C139: =9000*13*(1+Ch_salaires_expat)+500000*13/parité -> 180729.1861 | D139: =C139*parité -> 118550574.7 | J139: EUR
B140: Deputy Technical Director | C140: =4000*13*(1+Ch_salaires_expat)+340000*13/parité -> 82658.24656 | D140: =C140*parité -> 54220255.44 | J140: EUR
B141: Construction site manager | C141: =3500*13*(1+Ch_salaires_expat)+310000*13/parité -> 72573.69539 | D141: =C141*parité -> 47605223.51 | J141: EUR
B142: Civil engineering machines driver | C142: =3000*13*(1+Ch_salaires_expat)+280000*13/parité -> 62489.14423 | D142: =C142*parité -> 40990191.58 | J142: EUR
B144: FARM EXPATRIATE MANAGERS
B145: Farm Director | C145: =5000*13*(1+Ch_salaires_expat)+390000*13/parité -> 102629.1652 | D145: =C145*parité -> 67320319.3 | J145: EUR
B146: Crop Manager | C146: =3500*13*(1+Ch_salaires_expat)+310000*13/parité -> 72573.69539 | D146: =C146*parité -> 47605223.51 | J146: EUR
B147: Chief Mechanic | C147: =3500*13*(1+Ch_salaires_expat)+310000*13/parité -> 72573.69539 | D147: =C147*parité -> 47605223.51 | J147: EUR
B148: Driver of agricultural machinery | C148: =2500*13*(1+Ch_salaires_expat)+250000*13/parité -> 52404.59306 | D148: =C148*parité -> 34375159.65 | J148: EUR
B149: FARM & CIVIL ENGINEERING LOCAL STAFF
B150: civil engineer topographer | C150: =D150/parité -> 7927.348896 | D150: =330578.512396694*13*(1+Ch_salaires_local) -> 5200000 | J150: FCFA
B151: Deputy Crop Managers | C151: 6540.062839 | D151: =272727.272727273*13*(1+Ch_salaires_local) -> 4290000 | J151: FCFA
B152: Deputies chief mechanic, irrigation | C152: 6540.062839 | D152: =272727.272727273*13*(1+Ch_salaires_local) -> 4290000 | J152: FCFA
B153: Mechanic, Civil engineering machines Drivers | C153: 3963.674448 | D153: =165289.256198347*13*(1+Ch_salaires_local) -> 2600000 | J153: FCFA
B154: Farm machines drivers | C154: 3369.123281 | D154: =140495.867768595*13*(1+Ch_salaires_local) -> 2210000 | J154: FCFA
B155: Irrigation technicians, team managers, drivers | C155: 2576.388391 | D155: =107438.016528926*13*(1+Ch_salaires_local) -> 1690000 | J155: FCFA
B156: skilled farm and civil engineering workers | C156: 2298.93118 | D156: =95867.7685950413*13*(1+Ch_salaires_local) -> 1508000 | J156: FCFA
B157: Labourers | C157: 1829.235758 | D157: =76280.9917355372*13*(1+Ch_salaires_local) -> 1199900 | J157: FCFA
C158: 0
B159: LOCAL ADMINISTRATIVE MANAGERS & STAFF | C159: 0
B160: Public affair Director | C160: 71940.69123 | D160: =3000000*13*(1+Ch_salaires_local) -> 47190000 | J160: FCFA
B161: Finance Director - Dakar | C161: 47960.46082 | D161: =2000000*13*(1+Ch_salaires_local) -> 31460000 | J161: FCFA
B162: Junior Agronomist | C162: =3000*13*(1+Ch_salaires_expat)+280000*13/parité -> 62489.14423 | D162: =C162*parité -> 40990191.58 | J162: FCFA
B163: Technical Director | C163: =3000*13*(1+Ch_salaires_expat)+280000*13/parité -> 62489.14423 | D163: =C163*parité -> 40990191.58 | J163: FCFA
B164: Sales Manager | C164: =3000*13*(1+Ch_salaires_expat)+280000*13/parité -> 62489.14423 | D164: =C164*parité -> 40990191.58 | J164: FCFA
J165: FCFA
B166: Administrative manager | C166: =D166/parité -> 7927.348896 | D166: =330578.512396694*13*(1+Ch_salaires_local) -> 5200000 | J166: FCFA
B167: Administrative manager junior | C167: =D167/parité -> 6540.062839 | D167: =272727.272727273*13*(1+Ch_salaires_local) -> 4290000 | J167: FCFA
B168: Accountant, silos manager | C168: =D168/parité -> 6540.062839 | D168: =272727.272727273*13*(1+Ch_salaires_local) -> 4290000 | J168: FCFA
B169: Couriers, warehouseman | C169: =D169/parité -> 2972.755836 | D169: =123966.94214876*13*(1+Ch_salaires_local) -> 1950000 | J169: FCFA
B171: SENIOR MANAGEMENT
B172: CEO | C172: =12500*13*(1+Ch_salaires_expat) -> 237250 | D172: =C172*parité -> 155625798.2 | J172: EUR
B173: General Manager | C173: =11000*13*(1+Ch_salaires_expat)+800000*13/parité -> 224634.6978 | D173: =C173*parité -> 147350702.5 | J173: EUR
B174: Secretary General | C174: =11000*13*(1+Ch_salaires_expat) -> 208780 | D174: =C174*parité -> 136950702.5 | J174: EUR
B175: CFO | C175: =11000*13*(1+Ch_salaires_expat) -> 208780 | D175: =C175*parité -> 136950702.5 | J175: EUR
B177: Executives' PA | C177: =3000*13*(1+Ch_salaires_expat) -> 56940 | D177: =C177*parité -> 37350191.58 | J177: EUR
A180: =A134+1 -> 13 | B180: Investments | C180: Contingency provision included | G180: Before contingency provision | J180: currency
C182: Euros | D182: F Cfa | E182: USD | G182: Euros | H182: F Cfa | I182: USD
B183: Core civil engineering equipment
B184: TRACTOR Case IH Steiger 500 cv option scraper | C184: =G184*(1+conting_capex) -> 215009.55 | D184: 141037019.4 | G184: =199000*(1+TVA_invest)*(1+Custom_duty)*1 -> 204771 | H184: =G184*parité -> 134320970.8 | J184: EUR
B185: Scrapers tandem CAT TS 225 18 m3 | C185: 229677.4773 | D185: 150658549 | E185: =I185*(1+conting_capex) -> 303174.27 | G185: =+I185/exch_USD -> 218740.4545 | H185: 143484332.3 | I185: =280600*(1+TVA_invest)*1*(1+Custom_duty) -> 288737.4 | J185: USD
B186: Hydraulic excavator 30 T | C186: 139148.8636 | D186: 91275671.14 | E186: =I186*(1+conting_capex) -> 183676.5 | G186: =+I186/exch_USD -> 132522.7273 | H186: 86929210.61 | I186: =170000*(1+TVA_invest)*1*(1+Custom_duty) -> 174930 | J186: USD
B187: Rolling compactor CAT CS76 XT | C187: 116148.375 | D187: 76188339.62 | E187: =I187*(1+conting_capex) -> 153315.855 | G187: =+I187/exch_USD -> 110617.5 | H187: 72560323.45 | I187: =141900*(1+TVA_invest)*1*(1+Custom_duty) -> 146015.1 | J187: USD
B188: levelling blade CAT 140 K | C188: 250386.1023 | D188: 164242516.5 | E188: =I188*(1+conting_capex) -> 330509.655 | G188: =+I188/exch_USD -> 238462.9545 | H188: 156421444.3 | I188: =305900*(1+TVA_invest)*1*(1+Custom_duty) -> 314771.1 | J188: USD
B189: Monocoque dump Trans-KTP 22/50, 22 t | C189: 43218 | D189: 28349149.63 | G189: =40000*(1+TVA_invest)*1*(1+Custom_duty) -> 41160 | H189: 26999190.12 | J189: EUR
B190: Track type tractor CAT D6 R XL | C190: 245147.5568 | D190: 160806255.9 | E190: =I190*(1+conting_capex) -> 323594.775 | G190: =+I190/exch_USD -> 233473.8636 | H190: 153148815.2 | I190: =299500*(1+TVA_invest)*1*(1+Custom_duty) -> 308185.5 | J190: USD
B191: Tank trunk (second hand) | C191: 97240.5 | D191: 63785586.66 | G191: =(80000+10000)*(1+TVA_invest)*1*(1+Custom_duty) -> 92610 | H191: 60748177.77 | J191: EUR
B193: Other civil engineering equipment
B194: Pumping stations 50 cv | C194: =G194*(1+conting_capex) -> 17850 | D194: =H194*(1+conting_capex) -> 11708832.45 | G194: =(15000+2000)*(1+TVA_invest)*1 -> 17000 | H194: =G194*parité -> 11151269 | J194: EUR
B195: Pipe alu 5" (km) | C195: 16275 | D195: 10675700.18 | G195: =(12500+3000)*(1+TVA_invest)*1 -> 15500 | H195: 10167333.5 | J195: EUR
B196: Rain gun 55 m3/h 110 m x 560 m | C196: 32025 | D196: 21007022.93 | G196: =(26500+4000)*(1+TVA_invest)*1 -> 30500 | H196: 20006688.5 | J196: EUR
B197: Pipe 270 m de sprinkler 18 x 18 m | C197: 5250 | D197: 3443774.25 | G197: =5000*(1+TVA_invest)*1 -> 5000 | H197: 3279785 | J197: EUR
B198: Tank trunk (second hand) | C198: 21000 | D198: 13775097 | G198: =20000*(1+TVA_invest)*1 -> 20000 | H198: 13119140 | J198: EUR
B199: Topographic equipment Trimble | C199: 153568.275 | D199: 100734185 | G199: =(129500*(1+Custom_duty)+13000)*(1+TVA_invest)*1 -> 146255.5 | H199: 95937319.01 | J199: EUR
B200: Other machines and options | C200: 26250 | D200: 17218871.25 | G200: =25000*(1+TVA_invest)*1 -> 25000 | H200: 16398925 | J200: EUR
B201: Gasoil tank | C201: 21000 | D201: 13775097 | G201: =20000*(1+TVA_invest)*1 -> 20000 | H201: 13119140 | J201: EUR | AA201: =F201*(1+inflation_ch)^7 -> 0
B202: Mechanical tillage | C202: 10500 | D202: 6887548.5 | G202: =10000*(1+TVA_invest)*1 -> 10000 | H202: 6559570 | J202: EUR | AJ202: =F202*(1+inflation_ch)^10 -> 0
B204: LIGHT VEHICLES (Senegal)
B205: Vehicles 4x4 - Senegal | C205: =G205*(1+conting_capex) -> 26250 | D205: 17218871.25 | G205: =25000*(1+TVA_invest)*1 -> 25000 | H205: =G205*parité -> 16398925 | J205: EUR
B206: Vehicles - Senegal | C206: 15750 | D206: 10331322.75 | G206: =15000*(1+TVA_invest)*1 -> 15000 | H206: =G206*parité -> 9839355 | J206: EUR
B207: Motorcycles Senegal | C207: 3150 | D207: 2066264.55 | G207: =3000*(1+TVA_invest)*1 -> 3000 | H207: =G207*parité -> 1967871 | J207: EUR
B208: OFFICE AND OTHER EQUIPMENT (France)
B209: Office equipment | C209: =G209*(1+conting_capex) -> 5250 | D209: 3443774.25 | G209: =5000*(1+TVA_invest)*1 -> 5000 | H209: =G209*parité -> 3279785 | J209: EUR
B210: Softwares & IT (France) | C210: 1050 | D210: 688754.85 | G210: =1000*(1+TVA_invest)*1 -> 1000 | H210: =G210*parité -> 655957 | J210: EUR
B211: House equipment (Senegal) | C211: 6300 | D211: 4132529.1 | G211: =6000*(1+TVA_invest)*1 -> 6000 | H211: =G211*parité -> 3935742 | J211: EUR
B212: OTHER PADDY-FIELDS DEVELOPMENTS
B213: Land award fee | C213: =G213*(1+conting_capex) -> 17.60786149 | D213: =H213*(1+conting_capex) -> 11550 | G213: =+H213/parité -> 16.7693919 | H213: =11000*(1+TVA_invest)*1 -> 11000 | J213: FCFA
B214: Boundary, topographic mapping | C214: 16.00714681 | D214: 10500 | G214: 15.24490172 | H214: =10000*(1+TVA_invest)*1 -> 10000 | J214: FCFA
B215: Land clearing tax | C215: 12.80571745 | D215: 8400 | G215: 12.19592138 | H215: =8000*(1+TVA_invest)*1 -> 8000 | J215: FCFA
B216: Local farmers land development | C216: 3201.429362 | D216: 2100000 | G216: 3048.980345 | H216: =2000000*(1+TVA_invest)*1 -> 2000000 | J216: FCFA
B217: Estate tax | C217: 7.694635472 | D217: 5047.35 | G217: 7.328224259 | H217: =4807*(1+TVA_invest)*1 -> 4807 | J217: FCFA
B218: Lease incorporation tax | C218: 120.0536011 | D218: 78750 | G218: 114.3367629 | H218: =75000*(1+TVA_invest)*1 -> 75000 | J218: FCFA
B219: Clearing finishing (shrub removal…) | C219: 10500 | D219: 6887548.5 | G219: 10000 | H219: =6559570*(1+TVA_invest)*1 -> 6559570 | J219: FCFA | AA219: =F219*(1+inflation_ch)^7 -> 0 | AD219: =F219*(1+inflation_ch)^8 -> 0
B220: Power Line LV | C220: 19208.57617 | D220: 12600000 | G220: =H220/parité -> 18293.88207 | H220: =12000000*(1+TVA_invest)*1 -> 12000000 | J220: FCFA | AA220: =F220*(1+inflation_ch)^7 -> 0
B221: Electrical appliances - 500 Kva | C221: 47250 | D221: 30993968.25 | G221: =H221/parité -> 45000 | H221: =29518065*(1+TVA_invest)*1 -> 29518065 | J221: FCFA | AJ221: =F221*(1+inflation_ch)^10 -> 0
B222: Pumping infrastructure | C222: 56025.01383 | D222: 36750000 | G222: =H222/parité -> 53357.15603 | H222: =35000000*(1+TVA_invest)*1 -> 35000000 | J222: FCFA
B223: Box type culvert + water control gate | C223: 72032.16064 | D223: 47250000 | G223: =H223/parité -> 68602.05776 | H223: =45000000*(1+TVA_invest)*1 -> 45000000 | J223: FCFA
B225: LAND DEVELOPMENT INPUTS
B226: Fence | C226: =G226*(1+conting_capex) -> 3.36150083 | D226: 2205 | G226: =H226/parité -> 3.201429362 | H226: =2100*(1+TVA_invest)*1 -> 2100 | J226: FCFA
B227: Sprinkler outlets | C227: 72.282105 | D227: 47413.95275 | G227: =66900/1000*(1+Custom_duty)*(1+TVA_invest)*1 -> 68.8401 | H227: =G227*parité -> 45156.14548 | J227: EUR
B228: Pipes and valves traps | C228: 79.9533 | D228: 52445.92681 | G228: =74000/1000*(1+Custom_duty)*(1+TVA_invest)*1 -> 76.146 | H228: =G228*parité -> 49948.50172 | J228: EUR
B229: Concrete | C229: 142.275 | D229: 93326.28218 | G229: =H229/parité -> 135.5 | H229: =88882173.5/1000*(1+TVA_invest)*1 -> 88882.1735 | J229: FCFA
B230: Spare parts, engine oil | C230: 1.05 | D230: 688.75485 | G230: =H230/parité -> 1 | H230: =655.957*(1+TVA_invest)*1 -> 655.957 | J230: FCFA
B232: BUILDINGS
B233: Agricultural Hangar, metalic structure, 42 m x 22 m, h= 5 m, appentis | C233: =G233*(1+conting_capex) -> 145.375 | D233: 95359.74888 | G233: =H233/parité -> 138.452381 | H233: =90818.808452381*(1+TVA_invest)*1 -> 90818.80845 | I233: /m² | J233: FCFA
B234: Industrial hangar metalic structure rice mill, 60 x 45 m, h = 15 m | C234: 169.785 | D234: 111371.6592 | G234: 161.7 | H234: =106068.2469*(1+TVA_invest)*1 -> 106068.2469 | I234: /m² | J234: FCFA
B235: Addition to agricultural hangar 3 storey | C235: 98280 | D235: 64467453.96 | G235: 93600 | H235: =61397575.2*(1+TVA_invest)*1 -> 61397575.2 | J235: FCFA
B236: Industrial hangar metalic structure rice mill, 40 x 25 m, h = 23 m | C236: 446.985 | D236: 293202.9396 | G236: 425.7 | H236: =279240.8949*(1+TVA_invest)*1 -> 279240.8949 | I236: /m² | J236: FCFA
B237: Office building, metalic structure | C237: 169.785 | D237: 111371.6592 | G237: 161.7 | H237: =106068.2469*(1+TVA_invest)*1 -> 106068.2469 | I237: /m² | J237: FCFA
B238: Concrete platform | C238: 46.2 | D238: 30305.2134 | G238: 44 | H238: =28862.108*(1+TVA_invest)*1 -> 28862.108 | I238: /m² | J238: FCFA
B239: Water tower & drinking water pumping | C239: 52500 | D239: 34437742.5 | G239: 50000 | H239: =32797850*(1+TVA_invest)*1 -> 32797850 | J239: FCFA
B240: Graveled farmyards | C240: 78750 | D240: 51656613.75 | G240: 75000 | H240: =49196775*(1+TVA_invest)*1 -> 49196775 | J240: FCFA
B241: FARM EQUIPMENT
B242: Electrical pumping station + transfo MT/BT 14 000 m3/h | C242: =G242*(1+conting_capex) -> 541774.6895 | D242: =H242*(1+conting_capex) -> 355380900 | G242: =H242/parité -> 515975.8948 | H242: =338458000*(1+TVA_invest)*1 -> 338458000 | J242: FCFA
B243: Power generator pumping & rice mill - 500 Kva | C243: 126000 | D243: 82650582 | G243: =120000*(1+TVA_invest)*1 -> 120000 | H243: =G243*parité -> 78714840 | J243: EUR
B244: Power generator farm - 300 Kva | C244: 90021.44043 | D244: 59050194 | G244: =(30000000/parité+40000)*(1+TVA_invest)*1 -> 85734.70517 | H244: 56238280 | J244: EUR
B245: Tractor Case IH Steiger, 500 cv | C245: 215009.55 | D245: 141037019.4 | E245: =I245*(1+conting_capex) -> 283812.606 | G245: =+I245/exch_USD -> 204771 | H245: 134320970.8 | I245: =262680*(1+Custom_duty)*(1+TVA_invest)*1 -> 270297.72 | J245: FCFA
B246: Tractor Case IH Magnum, 260 cv | C246: 129005.73 | D246: 84622211.63 | E246: =I246*(1+conting_capex) -> 170287.5636 | G246: =+I246/exch_USD -> 122862.6 | H246: 80592582.51 | I246: =157608*(1+Custom_duty)*(1+TVA_invest)*1 -> 162178.632 | J246: FCFA
... 220 more rows

Sheet Summary
B3: Key Metrics
B4: Uses (Million EUR)
B5: =Funding!C24 -> Physical CapEx | C5: =(Funding!I24+Funding!I25)/Million -> 24.7119611 | D5: =C5/C$23 -> 0.3753785544
B6: =Funding!C26 -> Physical Contingency Provision | C6: =Funding!I26/Million -> 1.235598055 | D6: =C6/C$23 -> 0.01876892772
B7: =Funding!C27 -> Provision for Inflation | C7: =Funding!I27/Million -> 0 | D7: 0
B8: =Funding!C28 -> Operating costs
B9: =Funding!C33 -> Variable Operating Costs | C9: =Funding!I33/Million -> 9.635211444 | D9: 0.1463603689
B10: =Funding!C29 -> Land development operating costs | C10: =(Funding!I29+Funding!I30+Funding!I31)/Million -> 5.784841693 | D10: 0.08787265017
B11: =Funding!C34 -> Wages | C11: =Funding!I34/Million -> 8.487929879 | D11: 0.1289329825
B12: =Funding!C35 -> Fixed costs | C12: =Funding!I35/Million -> 5.094195531 | D12: 0.07738162693
B13: =Funding!C37 -> Working Capital Requirment | C13: =Funding!I37/Million -> 2.885514517 | D13: 0.04383141686
B15: =Funding!C39 -> Cash contingency reserve | C15: =Funding!I39/Million -> 1 | D15: 0.01519015642
B16: =Funding!C40 -> Previous development costs | C16: =Funding!I40/Million -> 0 | D16: 0
B17: =Funding!C41 -> Lenders Advisory fees | C17: =Funding!I41/Million -> 0.5 | D17: 0.007595078208
B18: =Funding!C42 -> Commitment fee | C18: =Funding!I42/Million -> 0.415955645 | D18: 0.00631843131
B19: =Funding!C43 -> Front-end-fee | C19: =Funding!I43/Million -> 0.3775218925 | D19: 0.005734616597
B20: =Funding!C44 -> Funded interest | C20: =Funding!I44/Million -> 3.076415699 | D20: 0.04673123567
B21: =Funding!C45 -> DSRA initial financing | C21: =Funding!I45/Million -> 2.62696138 | D21: 0.03990395426
B23: =Funding!C47 -> Total | C23: =SUM(C5:C22) -> 65.83210683 | D23: 1
B25: Sources (Million EUR)
B26: =Funding!C51 -> Sales during investment periods | C26: =Funding!I51/Million -> 20.07187744 | D26: =C26/$C$31 -> 0.3048949579
B27: =Funding!C54 -> Upfront Equity | C27: =Funding!I54/Million -> 20.59210323 | D27: =C27/$C$31 -> 0.3127972689 | E27: =C27/(C27+C28) -> 0.45
B28: =Funding!C57 -> Senior Debt | C28: =Funding!I57/Million -> 25.16812616 | D28: =C28/$C$31 -> 0.3823077732 | E28: =C28/(C28+C27) -> 0.55
B29: Funding shortfall | C29: =Funding!I62/Million -> -9.502077268e-16 | D29: =C29/C31 -> -1.4433804e-17
B31: Total | C31: =SUM(C26:C28) -> 65.83210683 | D31: =SUM(D26:D28,D29) -> 1
B33: Annual Debt Ratios
C34: Min | D34: Min Date | E34: Average
B35: Senior DSCR | C35: =Returns!E53 -> 1.407081365 | D35: =Returns!E54 -> 2017 | E35: =Returns!E52 -> 2.567312278
B37: Returns
D38: Real IRR | E38: Nominal IRR
B39: Equity | D39: =Returns!G19 -> 0.3261880338 | E39: =Returns!G17 -> 0.3631303608
B40: Project (Post Tax) | D40: =Returns!G14 -> 0.2395093262 | E40: =Returns!G12 -> 0.2740275323
B43: Debt to Equity ratio@ COD | D43: =Funding!I57/(Funding!I54+Funding!I57) -> 0.55

Sheet Scenarios
E2: Scenarios manager
C6: Scenario
B7: Scroll: | C7: Base Case | E7: Base Case | F7: Best case | G7: Sales down | H7: Crop Yield down | I7: Capex up | J7: Opex up | K7: Inflation/ costs up | L7: Inflation /sales down | M7: No Cash Reserve | N7: USD up | O7: VAT / Opex | P7: VAT/ Opex & Capex
A9: Decrease in crops/harvests/sales | B9: N *(1- X%) | C9: =+HLOOKUP($C$7,$E$7:$P$18,3,FALSE) -> 0.025 | E9: 0.025 | F9: 0 | G9: 0.05 | H9: =+$E$9 -> 0.025 | I9: =+$E$9 -> 0.025 | J9: 0.025 | K9: 0.025 | L9: 0.025 | M9: 0.025 | N9: 0.025 | O9: 0.025 | P9: 0.025
A10: Yield 1st and 2nd year (new fields) | B10: N * X% | C10: =+HLOOKUP($C$7,$E$7:$P$18,4,FALSE) -> 0.9 | E10: 0.9 | F10: 1 | G10: =+$E$10 -> 0.9 | H10: 0.8 | I10: =+$E$10 -> 0.9 | J10: =+$E$10 -> 0.9 | K10: 0.9 | L10: 0.9 | M10: 0.9 | N10: 0.9 | O10: 0.9 | P10: 0.9
A11: Contingencies on Capex | B11: Y*(1+X%) | C11: =+HLOOKUP($C$7,$E$7:$P$18,5,FALSE) -> 0.05 | E11: 0.05 | F11: 0 | G11: =+$E$11 -> 0.05 | H11: =+$E$11 -> 0.05 | I11: 0.1 | J11: =+$E$11 -> 0.05 | K11: =+$E$11 -> 0.05 | L11: 0.05 | M11: 0.05 | N11: 0.05 | O11: 0.05 | P11: 0.05
A12: Contingencies on Opex | B12: Y*(1+X%) | C12: =+HLOOKUP($C$7,$E$7:$P$18,6,FALSE) -> 0 | E12: 0 | F12: 0 | G12: =+$E$12 -> 0 | H12: =+$E$12 -> 0 | I12: =+$E$12 -> 0 | J12: 0.05 | K12: =+$E$12 -> 0 | L12: 0 | M12: 0 | N12: 0 | O12: 0 | P12: 0
A13: Domestic inflation on costs | B13: Y + % | C13: =+HLOOKUP($C$7,$E$7:$P$18,7,FALSE) -> 0.03 | E13: 0.03 | F13: 0.03 | G13: =+$E$13 -> 0.03 | H13: =+$E$13 -> 0.03 | I13: =+$E$13 -> 0.03 | J13: =+$E$13 -> 0.03 | K13: 0.07 | L13: =+$E$13 -> 0.03 | M13: =+$E$13 -> 0.03 | N13: =+$E$13 -> 0.03 | O13: =+$E$13 -> 0.03 | P13: =+$E$13 -> 0.03
A14: Domestic inflation on cereals | B14: Y + % | C14: =+HLOOKUP($C$7,$E$7:$P$18,8,FALSE) -> 0.04 | E14: 0.04 | F14: 0.06 | G14: =+$E$14 -> 0.04 | H14: =+$E$14 -> 0.04 | I14: =+$E$14 -> 0.04 | J14: =+$E$14 -> 0.04 | K14: =+$E$14 -> 0.04 | L14: 0.03 | M14: =+$E$14 -> 0.04 | N14: =+$E$14 -> 0.04 | O14: =+$E$14 -> 0.04 | P14: =+$E$14 -> 0.04
A15: €1m cash reserve for contingencies | B15: Y +X | C15: =+HLOOKUP($C$7,$E$7:$P$18,9,FALSE) -> 1000000 | E15: 1000000 | F15: 0 | G15: =+$E$15 -> 1000000 | H15: =+$E$15 -> 1000000 | I15: 1000000 | J15: 1000000 | K15: 1000000 | L15: 1000000 | M15: 0 | N15: 1000000 | O15: 1000000 | P15: =+$E$15 -> 1000000
A16: FX Euros/USD | B16: N * X | C16: =+HLOOKUP($C$7,$E$7:$P$18,10,FALSE) -> 1.32 | E16: 1.32 | F16: 1.5 | G16: =+$E$16 -> 1.32 | H16: 1.32 | I16: 1.32 | J16: 1.32 | K16: 1.32 | L16: 1.32 | M16: 1.32 | N16: 1 | O16: =+$E$16 -> 1.32 | P16: =+$E$16 -> 1.32
A17: non reimbursed VAT on Opex | B17: Y*(1+X%) | C17: =+HLOOKUP($C$7,$E$7:$P$18,11,FALSE) -> 0 | E17: 0 | F17: =+$E$17 -> 0 | G17: 0 | H17: 0 | I17: 0 | J17: 0 | K17: 0 | L17: 0 | M17: 0 | N17: 0 | O17: 0.18 | P17: 0.18
A18: non reimbursed VAT on Capex | B18: Y*(1+X%) | C18: =+HLOOKUP($C$7,$E$7:$P$18,12,FALSE) -> 0 | E18: 0 | F18: =+$E$18 -> 0 | G18: 0 | H18: 0 | I18: 0 | J18: 0 | K18: 0 | L18: 0 | M18: 0 | N18: 0 | O18: 0 | P18: 0.18
E20: =IF(Summary!B3="","",Summary!B3) -> Key Metrics | H20: =IF(Summary!C3="","",Summary!C3) ->  | I20: =IF(Summary!D3="","",Summary!D3) ->  | J20: =IF(Summary!E3="","",Summary!E3) -> 
E21: =IF(Summary!B4="","",Summary!B4) -> Uses (Million EUR) | H21: =IF(Summary!C4="","",Summary!C4) ->  | I21: =IF(Summary!D4="","",Summary!D4) ->  | J21: =IF(Summary!E4="","",Summary!E4) -> 
E22: =IF(Summary!B5="","",Summary!B5) -> Physical CapEx | H22: =IF(Summary!C5="","",Summary!C5) -> 24.7119611 | I22: =IF(Summary!D5="","",Summary!D5) -> 0.3753785544 | J22: =IF(Summary!E5="","",Summary!E5) -> 
E23: =IF(Summary!B6="","",Summary!B6) -> Physical Contingency Provision | H23: =IF(Summary!C6="","",Summary!C6) -> 1.235598055 | I23: =IF(Summary!D6="","",Summary!D6) -> 0.01876892772 | J23: =IF(Summary!E6="","",Summary!E6) -> 
E24: =IF(Summary!B7="","",Summary!B7) -> Provision for Inflation | H24: =IF(Summary!C7="","",Summary!C7) -> 0 | I24: =IF(Summary!D7="","",Summary!D7) -> 0 | J24: =IF(Summary!E7="","",Summary!E7) -> 
E25: =IF(Summary!B8="","",Summary!B8) -> Operating costs | H25: =IF(Summary!C8="","",Summary!C8) ->  | I25: =IF(Summary!D8="","",Summary!D8) ->  | J25: =IF(Summary!E8="","",Summary!E8) -> 
E26: =IF(Summary!B9="","",Summary!B9) -> Variable Operating Costs | H26: =IF(Summary!C9="","",Summary!C9) -> 9.635211444 | I26: =IF(Summary!D9="","",Summary!D9) -> 0.1463603689 | J26: =IF(Summary!E9="","",Summary!E9) -> 
E27: =IF(Summary!B10="","",Summary!B10) -> Land development operating costs | H27: =IF(Summary!C10="","",Summary!C10) -> 5.784841693 | I27: =IF(Summary!D10="","",Summary!D10) -> 0.08787265017 | J27: =IF(Summary!E10="","",Summary!E10) -> 
E28: =IF(Summary!B11="","",Summary!B11) -> Wages | H28: =IF(Summary!C11="","",Summary!C11) -> 8.487929879 | I28: =IF(Summary!D11="","",Summary!D11) -> 0.1289329825 | J28: =IF(Summary!E11="","",Summary!E11) -> 
E29: =IF(Summary!B12="","",Summary!B12) -> Fixed costs | H29: =IF(Summary!C12="","",Summary!C12) -> 5.094195531 | I29: =IF(Summary!D12="","",Summary!D12) -> 0.07738162693 | J29: =IF(Summary!E12="","",Summary!E12) -> 
E30: =IF(Summary!B13="","",Summary!B13) -> Working Capital Requirment | H30: =IF(Summary!C13="","",Summary!C13) -> 2.885514517 | I30: =IF(Summary!D13="","",Summary!D13) -> 0.04383141686 | J30: =IF(Summary!E13="","",Summary!E13) -> 
E31: =IF(Summary!B14="","",Summary!B14) ->  | H31: =IF(Summary!C14="","",Summary!C14) ->  | I31: =IF(Summary!D14="","",Summary!D14) ->  | J31: =IF(Summary!E14="","",Summary!E14) -> 
E32: =IF(Summary!B15="","",Summary!B15) -> Cash contingency reserve | H32: =IF(Summary!C15="","",Summary!C15) -> 1 | I32: =IF(Summary!D15="","",Summary!D15) -> 0.01519015642 | J32: =IF(Summary!E15="","",Summary!E15) -> 
E33: =IF(Summary!B16="","",Summary!B16) -> Previous development costs | H33: =IF(Summary!C16="","",Summary!C16) -> 0 | I33: =IF(Summary!D16="","",Summary!D16) -> 0 | J33: =IF(Summary!E16="","",Summary!E16) -> 
E34: =IF(Summary!B17="","",Summary!B17) -> Lenders Advisory fees | H34: =IF(Summary!C17="","",Summary!C17) -> 0.5 | I34: =IF(Summary!D17="","",Summary!D17) -> 0.007595078208 | J34: =IF(Summary!E17="","",Summary!E17) -> 
E35: =IF(Summary!B18="","",Summary!B18) -> Commitment fee | H35: =IF(Summary!C18="","",Summary!C18) -> 0.415955645 | I35: =IF(Summary!D18="","",Summary!D18) -> 0.00631843131 | J35: =IF(Summary!E18="","",Summary!E18) -> 
E36: =IF(Summary!B19="","",Summary!B19) -> Front-end-fee | H36: =IF(Summary!C19="","",Summary!C19) -> 0.3775218925 | I36: =IF(Summary!D19="","",Summary!D19) -> 0.005734616597 | J36: =IF(Summary!E19="","",Summary!E19) -> 
E37: =IF(Summary!B20="","",Summary!B20) -> Funded interest | H37: =IF(Summary!C20="","",Summary!C20) -> 3.076415699 | I37: =IF(Summary!D20="","",Summary!D20) -> 0.04673123567 | J37: =IF(Summary!E20="","",Summary!E20) -> 
E38: =IF(Summary!B21="","",Summary!B21) -> DSRA initial financing | H38: =IF(Summary!C21="","",Summary!C21) -> 2.62696138 | I38: =IF(Summary!D21="","",Summary!D21) -> 0.03990395426 | J38: =IF(Summary!E21="","",Summary!E21) -> 
E39: =IF(Summary!B22="","",Summary!B22) ->  | H39: =IF(Summary!C22="","",Summary!C22) ->  | I39: =IF(Summary!D22="","",Summary!D22) ->  | J39: =IF(Summary!E22="","",Summary!E22) -> 
E40: =IF(Summary!B23="","",Summary!B23) -> Total | H40: =IF(Summary!C23="","",Summary!C23) -> 65.83210683 | I40: =IF(Summary!D23="","",Summary!D23) -> 1 | J40: =IF(Summary!E23="","",Summary!E23) -> 
E41: =IF(Summary!B24="","",Summary!B24) ->  | H41: =IF(Summary!C24="","",Summary!C24) ->  | I41: =IF(Summary!D24="","",Summary!D24) ->  | J41: =IF(Summary!E24="","",Summary!E24) -> 
E42: =IF(Summary!B25="","",Summary!B25) -> Sources (Million EUR) | H42: =IF(Summary!C25="","",Summary!C25) ->  | I42: =IF(Summary!D25="","",Summary!D25) ->  | J42: =IF(Summary!E25="","",Summary!E25) -> 
E43: =IF(Summary!B26="","",Summary!B26) -> Sales during investment periods | H43: =IF(Summary!C26="","",Summary!C26) -> 20.07187744 | I43: =IF(Summary!D26="","",Summary!D26) -> 0.3048949579 | J43: =IF(Summary!E26="","",Summary!E26) -> 
E44: =IF(Summary!B27="","",Summary!B27) -> Upfront Equity | H44: =IF(Summary!C27="","",Summary!C27) -> 20.59210323 | I44: =IF(Summary!D27="","",Summary!D27) -> 0.3127972689 | J44: =IF(Summary!E27="","",Summary!E27) -> 0.45
E45: =IF(Summary!B28="","",Summary!B28) -> Senior Debt | H45: =IF(Summary!C28="","",Summary!C28) -> 25.16812616 | I45: =IF(Summary!D28="","",Summary!D28) -> 0.3823077732 | J45: =IF(Summary!E28="","",Summary!E28) -> 0.55
E46: =IF(Summary!B29="","",Summary!B29) -> Funding shortfall | H46: =IF(Summary!C29="","",Summary!C29) -> -9.502077268e-16 | I46: =IF(Summary!D29="","",Summary!D29) -> -1.4433804e-17 | J46: =IF(Summary!E29="","",Summary!E29) -> 
E47: =IF(Summary!B30="","",Summary!B30) ->  | H47: =IF(Summary!C30="","",Summary!C30) ->  | I47: =IF(Summary!D30="","",Summary!D30) ->  | J47: =IF(Summary!E30="","",Summary!E30) -> 
E48: =IF(Summary!B31="","",Summary!B31) -> Total | H48: =IF(Summary!C31="","",Summary!C31) -> 65.83210683 | I48: =IF(Summary!D31="","",Summary!D31) -> 1 | J48: =IF(Summary!E31="","",Summary!E31) -> 
E49: =IF(Summary!B32="","",Summary!B32) ->  | H49: =IF(Summary!C32="","",Summary!C32) ->  | I49: =IF(Summary!D32="","",Summary!D32) ->  | J49: =IF(Summary!E32="","",Summary!E32) -> 
E50: =IF(Summary!B33="","",Summary!B33) -> Annual Debt Ratios | H50: =IF(Summary!C33="","",Summary!C33) ->  | I50: =IF(Summary!D33="","",Summary!D33) ->  | J50: =IF(Summary!E33="","",Summary!E33) -> 
E51: =IF(Summary!B34="","",Summary!B34) ->  | H51: =IF(Summary!C34="","",Summary!C34) -> Min | I51: =IF(Summary!D34="","",Summary!D34) -> Min Date | J51: =IF(Summary!E34="","",Summary!E34) -> Average
E52: =IF(Summary!B35="","",Summary!B35) -> Senior DSCR | H52: =IF(Summary!C35="","",Summary!C35) -> 1.407081365 | I52: =IF(Summary!D35="","",Summary!D35) -> 1905-07-09 | J52: =IF(Summary!E35="","",Summary!E35) -> 2.567312278
E53: =IF(Summary!B36="","",Summary!B36) ->  | H53: =IF(Summary!C36="","",Summary!C36) ->  | I53: =IF(Summary!D36="","",Summary!D36) ->  | J53: =IF(Summary!E36="","",Summary!E36) -> 
E54: =IF(Summary!B37="","",Summary!B37) -> Returns | H54: =IF(Summary!C37="","",Summary!C37) ->  | I54: =IF(Summary!D37="","",Summary!D37) ->  | J54: =IF(Summary!E37="","",Summary!E37) -> 
E55: =IF(Summary!B38="","",Summary!B38) ->  | H55: =IF(Summary!C38="","",Summary!C38) ->  | I55: =IF(Summary!D38="","",Summary!D38) -> Real IRR | J55: =IF(Summary!E38="","",Summary!E38) -> Nominal IRR
E56: =IF(Summary!B39="","",Summary!B39) -> Equity | H56: =IF(Summary!C39="","",Summary!C39) ->  | I56: =IF(Summary!D39="","",Summary!D39) -> 0.3261880338 | J56: =IF(Summary!E39="","",Summary!E39) -> 0.3631303608
E57: =IF(Summary!B40="","",Summary!B40) -> Project (Post Tax) | H57: =IF(Summary!C40="","",Summary!C40) ->  | I57: =IF(Summary!D40="","",Summary!D40) -> 0.2395093262 | J57: =IF(Summary!E40="","",Summary!E40) -> 0.2740275323
E58: =IF(Summary!B41="","",Summary!B41) ->  | H58: =IF(Summary!C41="","",Summary!C41) ->  | I58: =IF(Summary!D41="","",Summary!D41) ->  | J58: =IF(Summary!E41="","",Summary!E41) -> 
E59: =IF(Summary!B42="","",Summary!B42) ->  | H59: =IF(Summary!C42="","",Summary!C42) ->  | I59: =IF(Summary!D42="","",Summary!D42) ->  | J59: =IF(Summary!E42="","",Summary!E42) -> 
E60: =IF(Summary!B43="","",Summary!B43) -> Debt to Equity ratio@ COD | H60: =IF(Summary!C43="","",Summary!C43) ->  | I60: =IF(Summary!D43="","",Summary!D43) -> 0.55 | J60: =IF(Summary!E43="","",Summary!E43) -> 
E61: =IF(Summary!B44="","",Summary!B44) ->  | F61: =IF(Summary!C44="","",Summary!C44) ->  | G61: =IF(Summary!D44="","",Summary!D44) ->  | H61: =IF(Summary!E44="","",Summary!E44) ->  | I61: =IF(Summary!F44="","",Summary!F44) ->  | J61: =IF(Summary!G44="","",Summary!G44) -> 

Sheet Alt 1
L1: N | N1: N+1 | P1: N+2 | R1: N+3 | T1: N+4 | V1: N+5 | X1: N+6 | Z1: N+7 | AB1: N+8 | AD1: N+9 | AF1: N+10 | AH1: N+11 | AJ1: N+12 | AL1: N+13 | AN1: N+14 | AP1: N+15
C2: WORK IN PROGRESS: Last modified: July 17 2012 | J2: -1 | K2: =+J2+1 -> 0 | L2: 1 | M2: 2 | N2: 3 | O2: 4 | P2: 5 | Q2: 6 | R2: 7 | S2: 8 | T2: 9 | U2: 10 | V2: 11 | W2: 12 | X2: 13 | Y2: 14 | Z2: 15 | AA2: 16 | AB2: 17 | AC2: 18 | AD2: 19 | AE2: 20 | AF2: 21 | AG2: 22 | AH2: =+AG2+1 -> 23 | AI2: =+AH2+1 -> 24 | AJ2: =+AI2+1 -> 25 | AK2: =+AJ2+1 -> 26 | AL2: =+AK2+1 -> 27 | AM2: =+AL2+1 -> 28 | AN2: =+AM2+1 -> 29 | AO2: =+AN2+1 -> 30 | AP2: =+AO2+1 -> 31 | AQ2: =+AP2+1 -> 32
C3: Farm 1 : Ndiayène - Ordinary rice | J3: =I4+1 -> 2012-01-01 | K3: 2012-07-01 | L3: 2013-01-01 | M3: 2013-07-01 | N3: 2014-01-01 | O3: 2014-07-01 | P3: 2015-01-01 | Q3: 2015-07-01 | R3: 2016-01-01 | S3: 2016-07-01 | T3: 2017-01-01 | U3: 2017-07-01 | V3: 2018-01-01 | W3: 2018-07-01 | X3: 2019-01-01 | Y3: 2019-07-01 | Z3: 2020-01-01 | AA3: 2020-07-01 | AB3: 2021-01-01 | AC3: 2021-07-01 | AD3: 2022-01-01 | AE3: 2022-07-01 | AF3: 2023-01-01 | AG3: 2023-07-01 | AH3: 2024-01-01 | AI3: 2024-07-01 | AJ3: 2025-01-01 | AK3: 2025-07-01 | AL3: 2026-01-01 | AM3: 2026-07-01 | AN3: 2027-01-01 | AO3: 2027-07-01 | AP3: =AO4+1 -> 2028-01-01 | AQ3: 2028-07-01 | AR3: 2029-01-01 | AS3: 2029-07-01 | AT3: 2030-01-01 | AU3: 2030-07-01 | AV3: 2031-01-01 | AW3: 2031-07-01 | AX3: 2032-01-01 | AY3: 2032-07-01 | AZ3: 2033-01-01 | BA3: 2033-07-01 | BB3: 2034-01-01 | BC3: 2034-07-01 | BD3: 2035-01-01 | BE3: 2035-07-01 | BF3: 2036-01-01 | BG3: 2036-07-01 | BH3: 2037-01-01 | BI3: 2037-07-01 | BJ3: 2038-01-01 | BK3: 2038-07-01 | BL3: 2039-01-01 | BM3: 2039-07-01 | BN3: 2040-01-01 | BO3: 2040-07-01 | BP3: 2041-01-01 | BQ3: 2041-07-01 | BR3: 2042-01-01 | BS3: 2042-07-01 | BT3: 2043-01-01 | BU3: 2043-07-01 | BV3: =BU4+1 -> 2044-01-01 | BW3: 2044-07-01 | BX3: 2045-01-01 | BY3: 2045-07-01 | BZ3: 2046-01-01 | CA3: 2046-07-01 | CB3: 2047-01-01 | CC3: 2047-07-01 | CD3: 2048-01-01 | CE3: 2048-07-01 | CF3: 2049-01-01 | CG3: 2049-07-01 | CH3: 2050-01-01 | CI3: 2050-07-01 | CJ3: 2051-01-01 | CK3: 2051-07-01 | CL3: 2052-01-01 | CM3: 2052-07-01 | CN3: 2053-01-01 | CO3: 2053-07-01 | CP3: 2054-01-01
I4: =Model_Start -> 2011-12-31 | J4: =EOMONTH(J3,Months_Yr/2-1) -> 2012-06-30 | K4: 2012-12-31 | L4: 2013-06-30 | M4: 2013-12-31 | N4: 2014-06-30 | O4: 2014-12-31 | P4: 2015-06-30 | Q4: 2015-12-31 | R4: 2016-06-30 | S4: 2016-12-31 | T4: 2017-06-30 | U4: 2017-12-31 | V4: 2018-06-30 | W4: 2018-12-31 | X4: 2019-06-30 | Y4: 2019-12-31 | Z4: 2020-06-30 | AA4: 2020-12-31 | AB4: 2021-06-30 | AC4: 2021-12-31 | AD4: 2022-06-30 | AE4: 2022-12-31 | AF4: 2023-06-30 | AG4: 2023-12-31 | AH4: 2024-06-30 | AI4: 2024-12-31 | AJ4: 2025-06-30 | AK4: 2025-12-31 | AL4: 2026-06-30 | AM4: 2026-12-31 | AN4: 2027-06-30 | AO4: 2027-12-31 | AP4: =EOMONTH(AP3,Months_Yr/2-1) -> 2028-06-30 | AQ4: 2028-12-31 | AR4: 2029-06-30 | AS4: 2029-12-31 | AT4: 2030-06-30 | AU4: 2030-12-31 | AV4: 2031-06-30 | AW4: 2031-12-31 | AX4: 2032-06-30 | AY4: 2032-12-31 | AZ4: 2033-06-30 | BA4: 2033-12-31 | BB4: 2034-06-30 | BC4: 2034-12-31 | BD4: 2035-06-30 | BE4: 2035-12-31 | BF4: 2036-06-30 | BG4: 2036-12-31 | BH4: 2037-06-30 | BI4: 2037-12-31 | BJ4: 2038-06-30 | BK4: 2038-12-31 | BL4: 2039-06-30 | BM4: 2039-12-31 | BN4: 2040-06-30 | BO4: 2040-12-31 | BP4: 2041-06-30 | BQ4: 2041-12-31 | BR4: 2042-06-30 | BS4: 2042-12-31 | BT4: 2043-06-30 | BU4: 2043-12-31 | BV4: =EOMONTH(BV3,Months_Yr/2-1) -> 2044-06-30 | BW4: 2044-12-31 | BX4: 2045-06-30 | BY4: 2045-12-31 | BZ4: 2046-06-30 | CA4: 2046-12-31 | CB4: 2047-06-30 | CC4: 2047-12-31 | CD4: 2048-06-30 | CE4: 2048-12-31 | CF4: 2049-06-30 | CG4: 2049-12-31 | CH4: 2050-06-30 | CI4: 2050-12-31 | CJ4: 2051-06-30 | CK4: 2051-12-31 | CL4: 2052-06-30 | CM4: 2052-12-31 | CN4: 2053-06-30 | CO4: 2053-12-31 | CP4: 2054-06-30
C6: Planning period | J6: =IF(J$4<=Con_End,1,0) -> 1 | K6: 1 | L6: 1 | M6: 1 | N6: 1 | O6: 1 | P6: 1 | Q6: 1 | R6: 1 | S6: 0 | T6: 0 | U6: 0 | V6: 0 | W6: 0 | X6: 0 | Y6: 0 | Z6: 0 | AA6: 0 | AB6: 0 | AC6: 0 | AD6: 0 | AE6: 0 | AF6: 0 | AG6: 0 | AH6: 0 | AI6: 0 | AJ6: 0 | AK6: 0 | AL6: 0 | AM6: 0 | AN6: 0 | AO6: 0 | AP6: =IF(AP$4<=Con_End,1,0) -> 0 | AQ6: 0 | AR6: 0 | AS6: 0 | AT6: 0 | AU6: 0 | AV6: 0 | AW6: 0 | AX6: 0 | AY6: 0 | AZ6: 0 | BA6: 0 | BB6: 0 | BC6: 0 | BD6: 0 | BE6: 0 | BF6: 0 | BG6: 0 | BH6: 0 | BI6: 0 | BJ6: 0 | BK6: 0 | BL6: 0 | BM6: 0 | BN6: 0 | BO6: 0 | BP6: 0 | BQ6: 0 | BR6: 0 | BS6: 0 | BT6: 0 | BU6: 0 | BV6: =IF(BV$4<=Con_End,1,0) -> 0 | BW6: 0 | BX6: 0 | BY6: 0 | BZ6: 0 | CA6: 0 | CB6: 0 | CC6: 0 | CD6: 0 | CE6: 0 | CF6: 0 | CG6: 0 | CH6: 0 | CI6: 0 | CJ6: 0 | CK6: 0 | CL6: 0 | CM6: 0 | CN6: 0 | CO6: 0 | CP6: 0
C7: Full Operations | I7: =SUM(J7:CP7) -> 30 | J7: =IF(AND(J$3>=Ops_Start,J$4<=Ops_End),1,0) -> 0 | K7: 0 | L7: 1 | M7: 1 | N7: 1 | O7: 1 | P7: 1 | Q7: 1 | R7: 1 | S7: 1 | T7: 1 | U7: 1 | V7: 1 | W7: 1 | X7: 1 | Y7: 1 | Z7: 1 | AA7: 1 | AB7: 1 | AC7: 1 | AD7: 1 | AE7: 1 | AF7: 1 | AG7: 1 | AH7: 1 | AI7: 1 | AJ7: 1 | AK7: 1 | AL7: 1 | AM7: 1 | AN7: 1 | AO7: 1 | AP7: =IF(AND(AP$3>=Ops_Start,AP$4<=Ops_End),1,0) -> 0 | AQ7: 0 | AR7: 0 | AS7: 0 | AT7: 0 | AU7: 0 | AV7: 0 | AW7: 0 | AX7: 0 | AY7: 0 | AZ7: 0 | BA7: 0 | BB7: 0 | BC7: 0 | BD7: 0 | BE7: 0 | BF7: 0 | BG7: 0 | BH7: 0 | BI7: 0 | BJ7: 0 | BK7: 0 | BL7: 0 | BM7: 0 | BN7: 0 | BO7: 0 | BP7: 0 | BQ7: 0 | BR7: 0 | BS7: 0 | BT7: 0 | BU7: 0 | BV7: =IF(AND(BV$3>=Ops_Start,BV$4<=Ops_End),1,0) -> 0 | BW7: 0 | BX7: 0 | BY7: 0 | BZ7: 0 | CA7: 0 | CB7: 0 | CC7: 0 | CD7: 0 | CE7: 0 | CF7: 0 | CG7: 0 | CH7: 0 | CI7: 0 | CJ7: 0 | CK7: 0 | CL7: 0 | CM7: 0 | CN7: 0 | CO7: 0 | CP7: 0
C9: Flags & Counters
C10: Days in Period | D10: Num# | J10: =J4-J3+1 -> 182 | K10: 184 | L10: 181 | M10: 184 | N10: 181 | O10: 184 | P10: 181 | Q10: 184 | R10: 182 | S10: 184 | T10: 181 | U10: 184 | V10: 181 | W10: 184 | X10: 181 | Y10: 184 | Z10: 182 | AA10: 184 | AB10: 181 | AC10: 184 | AD10: 181 | AE10: 184 | AF10: 181 | AG10: 184 | AH10: 182 | AI10: 184 | AJ10: 181 | AK10: 184 | AL10: 181 | AM10: 184 | AN10: 181 | AO10: 184 | AP10: =AP4-AP3+1 -> 182 | AQ10: 184 | AR10: 181 | AS10: 184 | AT10: 181 | AU10: 184 | AV10: 181 | AW10: 184 | AX10: 182 | AY10: 184 | AZ10: 181 | BA10: 184 | BB10: 181 | BC10: 184 | BD10: 181 | BE10: 184 | BF10: 182 | BG10: 184 | BH10: 181 | BI10: 184 | BJ10: 181 | BK10: 184 | BL10: 181 | BM10: 184 | BN10: 182 | BO10: 184 | BP10: 181 | BQ10: 184 | BR10: 181 | BS10: 184 | BT10: 181 | BU10: 184 | BV10: =BV4-BV3+1 -> 182 | BW10: 184 | BX10: 181 | BY10: 184 | BZ10: 181 | CA10: 184 | CB10: 181 | CC10: 184 | CD10: 182 | CE10: 184 | CF10: 181 | CG10: 184 | CH10: 181 | CI10: 184 | CJ10: 181 | CK10: 184 | CL10: 182 | CM10: 184 | CN10: 181 | CO10: 184 | CP10: 181
C11: Planning | D11: Num# | J11: =SUM($J6:J6)*J6 -> 1 | K11: =SUM($J6:K6)*K6 -> 2 | L11: =SUM($J6:L6)*L6 -> 3 | M11: =SUM($J6:M6)*M6 -> 4 | N11: =SUM($J6:N6)*N6 -> 5 | O11: =SUM($J6:O6)*O6 -> 6 | P11: =SUM($J6:P6)*P6 -> 7 | Q11: =SUM($J6:Q6)*Q6 -> 8 | R11: =SUM($J6:R6)*R6 -> 9 | S11: =SUM($J6:S6)*S6 -> 0 | T11: =SUM($J6:T6)*T6 -> 0 | U11: =SUM($J6:U6)*U6 -> 0 | V11: =SUM($J6:V6)*V6 -> 0 | W11: =SUM($J6:W6)*W6 -> 0 | X11: =SUM($J6:X6)*X6 -> 0 | Y11: =SUM($J6:Y6)*Y6 -> 0 | Z11: =SUM($J6:Z6)*Z6 -> 0 | AA11: =SUM($J6:AA6)*AA6 -> 0 | AB11: =SUM($J6:AB6)*AB6 -> 0 | AC11: =SUM($J6:AC6)*AC6 -> 0 | AD11: =SUM($J6:AD6)*AD6 -> 0 | AE11: =SUM($J6:AE6)*AE6 -> 0 | AF11: =SUM($J6:AF6)*AF6 -> 0 | AG11: =SUM($J6:AG6)*AG6 -> 0 | AH11: =SUM($J6:AH6)*AH6 -> 0 | AI11: =SUM($J6:AI6)*AI6 -> 0 | AJ11: =SUM($J6:AJ6)*AJ6 -> 0 | AK11: =SUM($J6:AK6)*AK6 -> 0 | AL11: =SUM($J6:AL6)*AL6 -> 0 | AM11: =SUM($J6:AM6)*AM6 -> 0 | AN11: =SUM($J6:AN6)*AN6 -> 0 | AO11: =SUM($J6:AO6)*AO6 -> 0 | AP11: =SUM($J6:AP6)*AP6 -> 0 | AQ11: =SUM($J6:AQ6)*AQ6 -> 0 | AR11: =SUM($J6:AR6)*AR6 -> 0 | AS11: =SUM($J6:AS6)*AS6 -> 0 | AT11: =SUM($J6:AT6)*AT6 -> 0 | AU11: =SUM($J6:AU6)*AU6 -> 0 | AV11: =SUM($J6:AV6)*AV6 -> 0 | AW11: =SUM($J6:AW6)*AW6 -> 0 | AX11: =SUM($J6:AX6)*AX6 -> 0 | AY11: =SUM($J6:AY6)*AY6 -> 0 | AZ11: =SUM($J6:AZ6)*AZ6 -> 0 | BA11: =SUM($J6:BA6)*BA6 -> 0 | BB11: =SUM($J6:BB6)*BB6 -> 0 | BC11: =SUM($J6:BC6)*BC6 -> 0 | BD11: =SUM($J6:BD6)*BD6 -> 0 | BE11: =SUM($J6:BE6)*BE6 -> 0 | BF11: =SUM($J6:BF6)*BF6 -> 0 | BG11: =SUM($J6:BG6)*BG6 -> 0 | BH11: =SUM($J6:BH6)*BH6 -> 0 | BI11: =SUM($J6:BI6)*BI6 -> 0 | BJ11: =SUM($J6:BJ6)*BJ6 -> 0 | BK11: =SUM($J6:BK6)*BK6 -> 0 | BL11: =SUM($J6:BL6)*BL6 -> 0 | BM11: =SUM($J6:BM6)*BM6 -> 0 | BN11: =SUM($J6:BN6)*BN6 -> 0 | BO11: =SUM($J6:BO6)*BO6 -> 0 | BP11: =SUM($J6:BP6)*BP6 -> 0 | BQ11: =SUM($J6:BQ6)*BQ6 -> 0 | BR11: =SUM($J6:BR6)*BR6 -> 0 | BS11: =SUM($J6:BS6)*BS6 -> 0 | BT11: =SUM($J6:BT6)*BT6 -> 0 | BU11: =SUM($J6:BU6)*BU6 -> 0 | BV11: =SUM($J6:BV6)*BV6 -> 0 | BW11: =SUM($J6:BW6)*BW6 -> 0 | BX11: =SUM($J6:BX6)*BX6 -> 0 | BY11: =SUM($J6:BY6)*BY6 -> 0 | BZ11: =SUM($J6:BZ6)*BZ6 -> 0 | CA11: =SUM($J6:CA6)*CA6 -> 0 | CB11: =SUM($J6:CB6)*CB6 -> 0 | CC11: =SUM($J6:CC6)*CC6 -> 0 | CD11: =SUM($J6:CD6)*CD6 -> 0 | CE11: =SUM($J6:CE6)*CE6 -> 0 | CF11: =SUM($J6:CF6)*CF6 -> 0 | CG11: =SUM($J6:CG6)*CG6 -> 0 | CH11: =SUM($J6:CH6)*CH6 -> 0 | CI11: =SUM($J6:CI6)*CI6 -> 0 | CJ11: =SUM($J6:CJ6)*CJ6 -> 0 | CK11: =SUM($J6:CK6)*CK6 -> 0 | CL11: =SUM($J6:CL6)*CL6 -> 0 | CM11: =SUM($J6:CM6)*CM6 -> 0 | CN11: =SUM($J6:CN6)*CN6 -> 0 | CO11: =SUM($J6:CO6)*CO6 -> 0 | CP11: =SUM($J6:CP6)*CP6 -> 0
C12: Year: Calendar | D12: Year | J12: =YEAR(J4) -> 2012 | K12: 2012 | L12: 2013 | M12: 2013 | N12: 2014 | O12: 2014 | P12: 2015 | Q12: 2015 | R12: 2016 | S12: 2016 | T12: 2017 | U12: 2017 | V12: 2018 | W12: 2018 | X12: 2019 | Y12: 2019 | Z12: 2020 | AA12: 2020 | AB12: 2021 | AC12: 2021 | AD12: 2022 | AE12: 2022 | AF12: 2023 | AG12: 2023 | AH12: 2024 | AI12: 2024 | AJ12: 2025 | AK12: 2025 | AL12: 2026 | AM12: 2026 | AN12: 2027 | AO12: 2027 | AP12: =YEAR(AP4) -> 2028 | AQ12: 2028 | AR12: 2029 | AS12: 2029 | AT12: 2030 | AU12: 2030 | AV12: 2031 | AW12: 2031 | AX12: 2032 | AY12: 2032 | AZ12: 2033 | BA12: 2033 | BB12: 2034 | BC12: 2034 | BD12: 2035 | BE12: 2035 | BF12: 2036 | BG12: 2036 | BH12: 2037 | BI12: 2037 | BJ12: 2038 | BK12: 2038 | BL12: 2039 | BM12: 2039 | BN12: 2040 | BO12: 2040 | BP12: 2041 | BQ12: 2041 | BR12: 2042 | BS12: 2042 | BT12: 2043 | BU12: 2043 | BV12: =YEAR(BV4) -> 2044 | BW12: 2044 | BX12: 2045 | BY12: 2045 | BZ12: 2046 | CA12: 2046 | CB12: 2047 | CC12: 2047 | CD12: 2048 | CE12: 2048 | CF12: 2049 | CG12: 2049 | CH12: 2050 | CI12: 2050 | CJ12: 2051 | CK12: 2051 | CL12: 2052 | CM12: 2052 | CN12: 2053 | CO12: 2053 | CP12: 2054
C13: Semester: Operational | D13: Num# | J13: =SUM($J7:J7)*J7 -> 0 | K13: =SUM($J7:K7)*K7 -> 0 | L13: =SUM($J7:L7)*L7 -> 1 | M13: =SUM($J7:M7)*M7 -> 2 | N13: =SUM($J7:N7)*N7 -> 3 | O13: =SUM($J7:O7)*O7 -> 4 | P13: =SUM($J7:P7)*P7 -> 5 | Q13: =SUM($J7:Q7)*Q7 -> 6 | R13: =SUM($J7:R7)*R7 -> 7 | S13: =SUM($J7:S7)*S7 -> 8 | T13: =SUM($J7:T7)*T7 -> 9 | U13: =SUM($J7:U7)*U7 -> 10 | V13: =SUM($J7:V7)*V7 -> 11 | W13: =SUM($J7:W7)*W7 -> 12 | X13: =SUM($J7:X7)*X7 -> 13 | Y13: =SUM($J7:Y7)*Y7 -> 14 | Z13: =SUM($J7:Z7)*Z7 -> 15 | AA13: =SUM($J7:AA7)*AA7 -> 16 | AB13: =SUM($J7:AB7)*AB7 -> 17 | AC13: =SUM($J7:AC7)*AC7 -> 18 | AD13: =SUM($J7:AD7)*AD7 -> 19 | AE13: =SUM($J7:AE7)*AE7 -> 20 | AF13: =SUM($J7:AF7)*AF7 -> 21 | AG13: =SUM($J7:AG7)*AG7 -> 22 | AH13: =SUM($J7:AH7)*AH7 -> 23 | AI13: =SUM($J7:AI7)*AI7 -> 24 | AJ13: =SUM($J7:AJ7)*AJ7 -> 25 | AK13: =SUM($J7:AK7)*AK7 -> 26 | AL13: =SUM($J7:AL7)*AL7 -> 27 | AM13: =SUM($J7:AM7)*AM7 -> 28 | AN13: =SUM($J7:AN7)*AN7 -> 29 | AO13: =SUM($J7:AO7)*AO7 -> 30 | AP13: =SUM($J7:AP7)*AP7 -> 0 | AQ13: =SUM($J7:AQ7)*AQ7 -> 0 | AR13: =SUM($J7:AR7)*AR7 -> 0 | AS13: =SUM($J7:AS7)*AS7 -> 0 | AT13: =SUM($J7:AT7)*AT7 -> 0 | AU13: =SUM($J7:AU7)*AU7 -> 0 | AV13: =SUM($J7:AV7)*AV7 -> 0 | AW13: =SUM($J7:AW7)*AW7 -> 0 | AX13: =SUM($J7:AX7)*AX7 -> 0 | AY13: =SUM($J7:AY7)*AY7 -> 0 | AZ13: =SUM($J7:AZ7)*AZ7 -> 0 | BA13: =SUM($J7:BA7)*BA7 -> 0 | BB13: =SUM($J7:BB7)*BB7 -> 0 | BC13: =SUM($J7:BC7)*BC7 -> 0 | BD13: =SUM($J7:BD7)*BD7 -> 0 | BE13: =SUM($J7:BE7)*BE7 -> 0 | BF13: =SUM($J7:BF7)*BF7 -> 0 | BG13: =SUM($J7:BG7)*BG7 -> 0 | BH13: =SUM($J7:BH7)*BH7 -> 0 | BI13: =SUM($J7:BI7)*BI7 -> 0 | BJ13: =SUM($J7:BJ7)*BJ7 -> 0 | BK13: =SUM($J7:BK7)*BK7 -> 0 | BL13: =SUM($J7:BL7)*BL7 -> 0 | BM13: =SUM($J7:BM7)*BM7 -> 0 | BN13: =SUM($J7:BN7)*BN7 -> 0 | BO13: =SUM($J7:BO7)*BO7 -> 0 | BP13: =SUM($J7:BP7)*BP7 -> 0 | BQ13: =SUM($J7:BQ7)*BQ7 -> 0 | BR13: =SUM($J7:BR7)*BR7 -> 0 | BS13: =SUM($J7:BS7)*BS7 -> 0 | BT13: =SUM($J7:BT7)*BT7 -> 0 | BU13: =SUM($J7:BU7)*BU7 -> 0 | BV13: =SUM($J7:BV7)*BV7 -> 0 | BW13: =SUM($J7:BW7)*BW7 -> 0 | BX13: =SUM($J7:BX7)*BX7 -> 0 | BY13: =SUM($J7:BY7)*BY7 -> 0 | BZ13: =SUM($J7:BZ7)*BZ7 -> 0 | CA13: =SUM($J7:CA7)*CA7 -> 0 | CB13: =SUM($J7:CB7)*CB7 -> 0 | CC13: =SUM($J7:CC7)*CC7 -> 0 | CD13: =SUM($J7:CD7)*CD7 -> 0 | CE13: =SUM($J7:CE7)*CE7 -> 0 | CF13: =SUM($J7:CF7)*CF7 -> 0 | CG13: =SUM($J7:CG7)*CG7 -> 0 | CH13: =SUM($J7:CH7)*CH7 -> 0 | CI13: =SUM($J7:CI7)*CI7 -> 0 | CJ13: =SUM($J7:CJ7)*CJ7 -> 0 | CK13: =SUM($J7:CK7)*CK7 -> 0 | CL13: =SUM($J7:CL7)*CL7 -> 0 | CM13: =SUM($J7:CM7)*CM7 -> 0 | CN13: =SUM($J7:CN7)*CN7 -> 0 | CO13: =SUM($J7:CO7)*CO7 -> 0 | CP13: =SUM($J7:CP7)*CP7 -> 0
C14: Year: Operational | D14: Num# | J14: =IF(J13>0,SUM($J15:J15)+1,0) -> 0 | K14: =IF(K13>0,SUM($J15:K15)+1,0) -> 0 | L14: =IF(L13>0,SUM($J15:L15)+1,0) -> 1 | M14: =IF(M13>0,SUM($J15:M15)+1,0) -> 1 | N14: =IF(N13>0,SUM($J15:N15)+1,0) -> 2 | O14: =IF(O13>0,SUM($J15:O15)+1,0) -> 2 | P14: =IF(P13>0,SUM($J15:P15)+1,0) -> 3 | Q14: =IF(Q13>0,SUM($J15:Q15)+1,0) -> 3 | R14: =IF(R13>0,SUM($J15:R15)+1,0) -> 4 | S14: =IF(S13>0,SUM($J15:S15)+1,0) -> 4 | T14: =IF(T13>0,SUM($J15:T15)+1,0) -> 5 | U14: =IF(U13>0,SUM($J15:U15)+1,0) -> 5 | V14: =IF(V13>0,SUM($J15:V15)+1,0) -> 6 | W14: =IF(W13>0,SUM($J15:W15)+1,0) -> 6 | X14: =IF(X13>0,SUM($J15:X15)+1,0) -> 7 | Y14: =IF(Y13>0,SUM($J15:Y15)+1,0) -> 7 | Z14: =IF(Z13>0,SUM($J15:Z15)+1,0) -> 8 | AA14: =IF(AA13>0,SUM($J15:AA15)+1,0) -> 8 | AB14: =IF(AB13>0,SUM($J15:AB15)+1,0) -> 9 | AC14: =IF(AC13>0,SUM($J15:AC15)+1,0) -> 9 | AD14: =IF(AD13>0,SUM($J15:AD15)+1,0) -> 10 | AE14: =IF(AE13>0,SUM($J15:AE15)+1,0) -> 10 | AF14: =IF(AF13>0,SUM($J15:AF15)+1,0) -> 11 | AG14: =IF(AG13>0,SUM($J15:AG15)+1,0) -> 11 | AH14: =IF(AH13>0,SUM($J15:AH15)+1,0) -> 12 | AI14: =IF(AI13>0,SUM($J15:AI15)+1,0) -> 12 | AJ14: =IF(AJ13>0,SUM($J15:AJ15)+1,0) -> 13 | AK14: =IF(AK13>0,SUM($J15:AK15)+1,0) -> 13 | AL14: =IF(AL13>0,SUM($J15:AL15)+1,0) -> 14 | AM14: =IF(AM13>0,SUM($J15:AM15)+1,0) -> 14 | AN14: =IF(AN13>0,SUM($J15:AN15)+1,0) -> 15 | AO14: =IF(AO13>0,SUM($J15:AO15)+1,0) -> 15 | AP14: =IF(AP13>0,SUM($J15:AP15)+1,0) -> 0 | AQ14: =IF(AQ13>0,SUM($J15:AQ15)+1,0) -> 0 | AR14: =IF(AR13>0,SUM($J15:AR15)+1,0) -> 0 | AS14: =IF(AS13>0,SUM($J15:AS15)+1,0) -> 0 | AT14: =IF(AT13>0,SUM($J15:AT15)+1,0) -> 0 | AU14: =IF(AU13>0,SUM($J15:AU15)+1,0) -> 0 | AV14: =IF(AV13>0,SUM($J15:AV15)+1,0) -> 0 | AW14: =IF(AW13>0,SUM($J15:AW15)+1,0) -> 0 | AX14: =IF(AX13>0,SUM($J15:AX15)+1,0) -> 0 | AY14: =IF(AY13>0,SUM($J15:AY15)+1,0) -> 0 | AZ14: =IF(AZ13>0,SUM($J15:AZ15)+1,0) -> 0 | BA14: =IF(BA13>0,SUM($J15:BA15)+1,0) -> 0 | BB14: =IF(BB13>0,SUM($J15:BB15)+1,0) -> 0 | BC14: =IF(BC13>0,SUM($J15:BC15)+1,0) -> 0 | BD14: =IF(BD13>0,SUM($J15:BD15)+1,0) -> 0 | BE14: =IF(BE13>0,SUM($J15:BE15)+1,0) -> 0 | BF14: =IF(BF13>0,SUM($J15:BF15)+1,0) -> 0 | BG14: =IF(BG13>0,SUM($J15:BG15)+1,0) -> 0 | BH14: =IF(BH13>0,SUM($J15:BH15)+1,0) -> 0 | BI14: =IF(BI13>0,SUM($J15:BI15)+1,0) -> 0 | BJ14: =IF(BJ13>0,SUM($J15:BJ15)+1,0) -> 0 | BK14: =IF(BK13>0,SUM($J15:BK15)+1,0) -> 0 | BL14: =IF(BL13>0,SUM($J15:BL15)+1,0) -> 0 | BM14: =IF(BM13>0,SUM($J15:BM15)+1,0) -> 0 | BN14: =IF(BN13>0,SUM($J15:BN15)+1,0) -> 0 | BO14: =IF(BO13>0,SUM($J15:BO15)+1,0) -> 0 | BP14: =IF(BP13>0,SUM($J15:BP15)+1,0) -> 0 | BQ14: =IF(BQ13>0,SUM($J15:BQ15)+1,0) -> 0 | BR14: =IF(BR13>0,SUM($J15:BR15)+1,0) -> 0 | BS14: =IF(BS13>0,SUM($J15:BS15)+1,0) -> 0 | BT14: =IF(BT13>0,SUM($J15:BT15)+1,0) -> 0 | BU14: =IF(BU13>0,SUM($J15:BU15)+1,0) -> 0 | BV14: =IF(BV13>0,SUM($J15:BV15)+1,0) -> 0 | BW14: =IF(BW13>0,SUM($J15:BW15)+1,0) -> 0 | BX14: =IF(BX13>0,SUM($J15:BX15)+1,0) -> 0 | BY14: =IF(BY13>0,SUM($J15:BY15)+1,0) -> 0 | BZ14: =IF(BZ13>0,SUM($J15:BZ15)+1,0) -> 0 | CA14: =IF(CA13>0,SUM($J15:CA15)+1,0) -> 0 | CB14: =IF(CB13>0,SUM($J15:CB15)+1,0) -> 0 | CC14: =IF(CC13>0,SUM($J15:CC15)+1,0) -> 0 | CD14: =IF(CD13>0,SUM($J15:CD15)+1,0) -> 0 | CE14: =IF(CE13>0,SUM($J15:CE15)+1,0) -> 0 | CF14: =IF(CF13>0,SUM($J15:CF15)+1,0) -> 0 | CG14: =IF(CG13>0,SUM($J15:CG15)+1,0) -> 0 | CH14: =IF(CH13>0,SUM($J15:CH15)+1,0) -> 0 | CI14: =IF(CI13>0,SUM($J15:CI15)+1,0) -> 0 | CJ14: =IF(CJ13>0,SUM($J15:CJ15)+1,0) -> 0 | CK14: =IF(CK13>0,SUM($J15:CK15)+1,0) -> 0 | CL14: =IF(CL13>0,SUM($J15:CL15)+1,0) -> 0 | CM14: =IF(CM13>0,SUM($J15:CM15)+1,0) -> 0 | CN14: =IF(CN13>0,SUM($J15:CN15)+1,0) -> 0 | CO14: =IF(CO13>0,SUM($J15:CO15)+1,0) -> 0 | CP14: =IF(CP13>0,SUM($J15:CP15)+1,0) -> 0
C15: Start of Year Flag | D15: [1,0] | J15: =IF(J13>1,IF((MONTH(J3)=1),1,0)*J7,0) -> 0 | K15: =IF(K13>1,IF((MONTH(K3)=1),1,0)*K7,0) -> 0 | L15: =IF(L13>1,IF((MONTH(L3)=1),1,0)*L7,0) -> 0 | M15: =IF(M13>1,IF((MONTH(M3)=1),1,0)*M7,0) -> 0 | N15: 1 | O15: 0 | P15: 1 | Q15: 0 | R15: 1 | S15: 0 | T15: 1 | U15: 0 | V15: 1 | W15: 0 | X15: 1 | Y15: 0 | Z15: 1 | AA15: 0 | AB15: 1 | AC15: 0 | AD15: 1 | AE15: 0 | AF15: 1 | AG15: 0 | AH15: 1 | AI15: 0 | AJ15: 1 | AK15: 0 | AL15: 1 | AM15: 0 | AN15: 1 | AO15: 0 | AP15: 0 | AQ15: 0 | AR15: 0 | AS15: 0 | AT15: 0 | AU15: 0 | AV15: 0 | AW15: 0 | AX15: 0 | AY15: 0 | AZ15: 0 | BA15: 0 | BB15: 0 | BC15: 0 | BD15: 0 | BE15: 0 | BF15: 0 | BG15: 0 | BH15: 0 | BI15: 0 | BJ15: 0 | BK15: 0 | BL15: 0 | BM15: 0 | BN15: 0 | BO15: 0 | BP15: 0 | BQ15: 0 | BR15: 0 | BS15: 0 | BT15: 0 | BU15: 0 | BV15: 0 | BW15: 0 | BX15: 0 | BY15: =IF(BY13>1,IF((MONTH(BY3)=1),1,0)*BY7,0) -> 0 | BZ15: 0 | CA15: 0 | CB15: 0 | CC15: 0 | CD15: 0 | CE15: 0 | CF15: 0 | CG15: 0 | CH15: 0 | CI15: 0 | CJ15: 0 | CK15: 0 | CL15: 0 | CM15: 0 | CN15: 0 | CO15: 0 | CP15: 0
C16: Start of semester Flag | D16: [1,0] | J16: =IF(OR(MONTH(J4)=12, MONTH(J4)=6),1,0) -> 1 | K16: 1 | L16: 1 | M16: 1 | N16: 1 | O16: 1 | P16: 1 | Q16: 1 | R16: 1 | S16: 1 | T16: 1 | U16: 1 | V16: 1 | W16: 1 | X16: 1 | Y16: 1 | Z16: 1 | AA16: 1 | AB16: 1 | AC16: 1 | AD16: 1 | AE16: 1 | AF16: 1 | AG16: 1 | AH16: 1 | AI16: 1 | AJ16: 1 | AK16: 1 | AL16: 1 | AM16: 1 | AN16: 1 | AO16: 1 | AP16: =IF(OR(MONTH(AP4)=12, MONTH(AP4)=6),1,0) -> 1 | AQ16: 1 | AR16: 1 | AS16: 1 | AT16: 1 | AU16: 1 | AV16: 1 | AW16: 1 | AX16: 1 | AY16: 1 | AZ16: 1 | BA16: 1 | BB16: 1 | BC16: 1 | BD16: 1 | BE16: 1 | BF16: 1 | BG16: 1 | BH16: 1 | BI16: 1 | BJ16: 1 | BK16: 1 | BL16: 1 | BM16: 1 | BN16: 1 | BO16: 1 | BP16: 1 | BQ16: 1 | BR16: 1 | BS16: 1 | BT16: 1 | BU16: 1 | BV16: =IF(OR(MONTH(BV4)=12, MONTH(BV4)=6),1,0) -> 1 | BW16: 1 | BX16: 1 | BY16: 1 | BZ16: 1 | CA16: 1 | CB16: 1 | CC16: 1 | CD16: 1 | CE16: 1 | CF16: 1 | CG16: 1 | CH16: 1 | CI16: 1 | CJ16: 1 | CK16: 1 | CL16: 1 | CM16: 1 | CN16: 1 | CO16: 1 | CP16: 1
C18: Inflation, Exchange Rate and Price Indices
C19: FCFA Inflation
C20: FCFA Inflation rate | D20: % p.a. | E20: =inflation_ch -> 0.03 | J20: =((1+$E$20)^(Days_Yr/Days_Yr)-1)*J15 -> 0 | K20: 0 | L20: 0 | M20: 0 | N20: 0.03 | O20: 0 | P20: 0.03 | Q20: 0 | R20: 0.03 | S20: 0 | T20: 0.03 | U20: 0 | V20: 0.03 | W20: 0 | X20: 0.03 | Y20: 0 | Z20: 0.03 | AA20: 0 | AB20: 0.03 | AC20: 0 | AD20: 0.03 | AE20: 0 | AF20: 0.03 | AG20: 0 | AH20: 0.03 | AI20: 0 | AJ20: 0.03 | AK20: 0 | AL20: 0.03 | AM20: 0 | AN20: 0.03 | AO20: 0 | AP20: =((1+$E$20)^(Days_Yr/Days_Yr)-1)*AP15 -> 0 | AQ20: 0 | AR20: 0 | AS20: 0 | AT20: 0 | AU20: 0 | AV20: 0 | AW20: 0 | AX20: 0 | AY20: 0 | AZ20: 0 | BA20: 0 | BB20: 0 | BC20: 0 | BD20: 0 | BE20: 0 | BF20: 0 | BG20: 0 | BH20: 0 | BI20: 0 | BJ20: 0 | BK20: 0 | BL20: 0 | BM20: 0 | BN20: 0 | BO20: 0 | BP20: 0 | BQ20: 0 | BR20: 0 | BS20: 0 | BT20: 0 | BU20: 0 | BV20: =((1+$E$20)^(Days_Yr/Days_Yr)-1)*BV15 -> 0 | BW20: 0 | BX20: 0 | BY20: 0 | BZ20: 0 | CA20: 0 | CB20: 0 | CC20: 0 | CD20: 0 | CE20: 0 | CF20: 0 | CG20: 0 | CH20: 0 | CI20: 0 | CJ20: 0 | CK20: 0 | CL20: 0 | CM20: 0 | CN20: 0 | CO20: 0 | CP20: 0
C21: Index | D21: Num# | J21: =IF(J$3=$I$4+1,1,I21*(1+J20))*OR(J6=1,J7=1) -> 1 | K21: =IF(K$3=$I$4+1,1,J21*(1+K20))*OR(K6=1,K7=1) -> 1 | L21: 1 | M21: 1 | N21: 1.03 | O21: 1.03 | P21: 1.0609 | Q21: 1.0609 | R21: 1.092727 | S21: 1.092727 | T21: 1.12550881 | U21: 1.12550881 | V21: 1.159274074 | W21: 1.159274074 | X21: 1.194052297 | Y21: 1.194052297 | Z21: 1.229873865 | AA21: 1.229873865 | AB21: 1.266770081 | AC21: 1.266770081 | AD21: 1.304773184 | AE21: 1.304773184 | AF21: 1.343916379 | AG21: 1.343916379 | AH21: 1.384233871 | AI21: 1.384233871 | AJ21: 1.425760887 | AK21: 1.425760887 | AL21: 1.468533713 | AM21: 1.468533713 | AN21: 1.512589725 | AO21: 1.512589725 | AP21: 0 | AQ21: 0 | AR21: 0 | AS21: 0 | AT21: 0 | AU21: 0 | AV21: 0 | AW21: 0 | AX21: 0 | AY21: 0 | AZ21: 0 | BA21: 0 | BB21: 0 | BC21: 0 | BD21: 0 | BE21: 0 | BF21: 0 | BG21: 0 | BH21: 0 | BI21: 0 | BJ21: 0 | BK21: 0 | BL21: 0 | BM21: 0 | BN21: 0 | BO21: 0 | BP21: 0 | BQ21: 0 | BR21: 0 | BS21: 0 | BT21: 0 | BU21: 0 | BV21: 0 | BW21: =IF(BW$3=$I$4+1,1,BV21*(1+BW20))*OR(BW6=1,BW7=1) -> 0 | BX21: 0 | BY21: 0 | BZ21: 0 | CA21: 0 | CB21: 0 | CC21: 0 | CD21: 0 | CE21: 0 | CF21: 0 | CG21: 0 | CH21: 0 | CI21: 0 | CJ21: 0 | CK21: 0 | CL21: 0 | CM21: 0 | CN21: 0 | CO21: 0 | CP21: 0
C22: Euro Inflation
C23: Euro Inflation rate | D23: % p.a. | E23: =inflation_ch -> 0.03 | J23: =((1+$E$23)^(Days_Yr/Days_Yr)-1)*J$15 -> 0 | K23: 0 | L23: 0 | M23: 0 | N23: 0.03 | O23: 0 | P23: 0.03 | Q23: 0 | R23: 0.03 | S23: 0 | T23: 0.03 | U23: 0 | V23: 0.03 | W23: 0 | X23: 0.03 | Y23: 0 | Z23: 0.03 | AA23: 0 | AB23: 0.03 | AC23: 0 | AD23: 0.03 | AE23: 0 | AF23: 0.03 | AG23: 0 | AH23: 0.03 | AI23: 0 | AJ23: 0.03 | AK23: 0 | AL23: 0.03 | AM23: 0 | AN23: 0.03 | AO23: 0 | AP23: =((1+$E$23)^(Days_Yr/Days_Yr)-1)*AP$15 -> 0 | AQ23: 0 | AR23: 0 | AS23: 0 | AT23: 0 | AU23: 0 | AV23: 0 | AW23: 0 | AX23: 0 | AY23: 0 | AZ23: 0 | BA23: 0 | BB23: 0 | BC23: 0 | BD23: 0 | BE23: 0 | BF23: 0 | BG23: 0 | BH23: 0 | BI23: 0 | BJ23: 0 | BK23: 0 | BL23: 0 | BM23: 0 | BN23: 0 | BO23: 0 | BP23: 0 | BQ23: 0 | BR23: 0 | BS23: 0 | BT23: 0 | BU23: 0 | BV23: =((1+$E$23)^(Days_Yr/Days_Yr)-1)*BV$15 -> 0 | BW23: 0 | BX23: 0 | BY23: 0 | BZ23: 0 | CA23: 0 | CB23: 0 | CC23: 0 | CD23: 0 | CE23: 0 | CF23: 0 | CG23: 0 | CH23: 0 | CI23: 0 | CJ23: 0 | CK23: 0 | CL23: 0 | CM23: 0 | CN23: 0 | CO23: 0 | CP23: 0
C24: Index | D24: Num# | J24: =IF(J$3=$I$4+1,1,I24*(1+J23))*OR(J6=1,J7=1) -> 1 | K24: =IF(K$3=$I$4+1,1,J24*(1+K23))*OR(K6=1,K7=1) -> 1 | L24: 1 | M24: 1 | N24: 1.03 | O24: 1.03 | P24: 1.0609 | Q24: 1.0609 | R24: 1.092727 | S24: 1.092727 | T24: 1.12550881 | U24: 1.12550881 | V24: 1.159274074 | W24: 1.159274074 | X24: 1.194052297 | Y24: 1.194052297 | Z24: 1.229873865 | AA24: 1.229873865 | AB24: 1.266770081 | AC24: 1.266770081 | AD24: 1.304773184 | AE24: 1.304773184 | AF24: 1.343916379 | AG24: 1.343916379 | AH24: 1.384233871 | AI24: 1.384233871 | AJ24: 1.425760887 | AK24: 1.425760887 | AL24: 1.468533713 | AM24: 1.468533713 | AN24: 1.512589725 | AO24: 1.512589725 | AP24: 0 | AQ24: 0 | AR24: 0 | AS24: 0 | AT24: 0 | AU24: 0 | AV24: 0 | AW24: 0 | AX24: 0 | AY24: 0 | AZ24: 0 | BA24: 0 | BB24: 0 | BC24: 0 | BD24: 0 | BE24: 0 | BF24: 0 | BG24: 0 | BH24: 0 | BI24: 0 | BJ24: 0 | BK24: 0 | BL24: 0 | BM24: 0 | BN24: 0 | BO24: 0 | BP24: 0 | BQ24: 0 | BR24: 0 | BS24: 0 | BT24: 0 | BU24: 0 | BV24: 0 | BW24: =IF(BW$3=$I$4+1,1,BV24*(1+BW23))*OR(BW6=1,BW7=1) -> 0 | BX24: 0 | BY24: 0 | BZ24: 0 | CA24: 0 | CB24: 0 | CC24: 0 | CD24: 0 | CE24: 0 | CF24: 0 | CG24: 0 | CH24: 0 | CI24: 0 | CJ24: 0 | CK24: 0 | CL24: 0 | CM24: 0 | CN24: 0 | CO24: 0 | CP24: 0
C25: US Inflation
C26: Euro Inflation rate | D26: % p.a. | J26: =((1+inflation_USD)^(Days_Yr/Days_Yr)-1)*J$15 -> 0 | K26: 0 | L26: 0 | M26: 0 | N26: 0.03 | O26: 0 | P26: 0.03 | Q26: 0 | R26: 0.03 | S26: 0 | T26: 0.03 | U26: 0 | V26: 0.03 | W26: 0 | X26: 0.03 | Y26: 0 | Z26: 0.03 | AA26: 0 | AB26: 0.03 | AC26: 0 | AD26: 0.03 | AE26: 0 | AF26: 0.03 | AG26: 0 | AH26: 0.03 | AI26: 0 | AJ26: 0.03 | AK26: 0 | AL26: 0.03 | AM26: 0 | AN26: 0.03 | AO26: 0 | AP26: =((1+inflation_USD)^(Days_Yr/Days_Yr)-1)*AP$15 -> 0 | AQ26: 0 | AR26: 0 | AS26: 0 | AT26: 0 | AU26: 0 | AV26: 0 | AW26: 0 | AX26: 0 | AY26: 0 | AZ26: 0 | BA26: 0 | BB26: 0 | BC26: 0 | BD26: 0 | BE26: 0 | BF26: 0 | BG26: 0 | BH26: 0 | BI26: 0 | BJ26: 0 | BK26: 0 | BL26: 0 | BM26: 0 | BN26: 0 | BO26: 0 | BP26: 0 | BQ26: 0 | BR26: 0 | BS26: 0 | BT26: 0 | BU26: 0 | BV26: =((1+inflation_USD)^(Days_Yr/Days_Yr)-1)*BV$15 -> 0 | BW26: 0 | BX26: 0 | BY26: 0 | BZ26: 0 | CA26: 0 | CB26: 0 | CC26: 0 | CD26: 0 | CE26: 0 | CF26: 0 | CG26: 0 | CH26: 0 | CI26: 0 | CJ26: 0 | CK26: 0 | CL26: 0 | CM26: 0 | CN26: 0 | CO26: 0 | CP26: 0
C27: Index | D27: Num# | J27: =IF(J$3=$I$4+1,1,I27*(1+J26)) -> 1 | K27: =IF(K$2=$I$3+1,1,J27*(1+K26)) -> 1 | L27: 1 | M27: 1 | N27: 1.03 | O27: 1.03 | P27: 1.0609 | Q27: 1.0609 | R27: 1.092727 | S27: 1.092727 | T27: 1.12550881 | U27: 1.12550881 | V27: 1.159274074 | W27: 1.159274074 | X27: 1.194052297 | Y27: 1.194052297 | Z27: 1.229873865 | AA27: 1.229873865 | AB27: 1.266770081 | AC27: 1.266770081 | AD27: 1.304773184 | AE27: 1.304773184 | AF27: 1.343916379 | AG27: 1.343916379 | AH27: 1.384233871 | AI27: 1.384233871 | AJ27: 1.425760887 | AK27: 1.425760887 | AL27: 1.468533713 | AM27: 1.468533713 | AN27: 1.512589725 | AO27: 1.512589725 | AP27: 1.512589725 | AQ27: =IF(AQ$2=$I$3+1,1,AP27*(1+AQ26)) -> 1.512589725 | AR27: 1.512589725 | AS27: 1.512589725 | AT27: 1.512589725 | AU27: 1.512589725 | AV27: 1.512589725 | AW27: 1.512589725 | AX27: 1.512589725 | AY27: 1.512589725 | AZ27: 1.512589725 | BA27: 1.512589725 | BB27: 1.512589725 | BC27: 1.512589725 | BD27: 1.512589725 | BE27: 1.512589725 | BF27: 1.512589725 | BG27: 1.512589725 | BH27: 1.512589725 | BI27: 1.512589725 | BJ27: 1.512589725 | BK27: 1.512589725 | BL27: 1.512589725 | BM27: 1.512589725 | BN27: 1.512589725 | BO27: 1.512589725 | BP27: 1.512589725 | BQ27: 1.512589725 | BR27: 1.512589725 | BS27: 1.512589725 | BT27: 1.512589725 | BU27: 1.512589725 | BV27: 1.512589725 | BW27: =IF(BW$2=$I$3+1,1,BV27*(1+BW26)) -> 1.512589725 | BX27: 1.512589725 | BY27: 1.512589725 | BZ27: 1.512589725 | CA27: 1.512589725 | CB27: 1.512589725 | CC27: 1.512589725 | CD27: 1.512589725 | CE27: 1.512589725 | CF27: 1.512589725 | CG27: 1.512589725 | CH27: 1.512589725 | CI27: 1.512589725 | CJ27: 1.512589725 | CK27: 1.512589725 | CL27: 1.512589725 | CM27: 1.512589725 | CN27: 1.512589725 | CO27: 1.512589725 | CP27: 1.512589725
C29: Relative price index (XAF/EUR) | D29: Num# | J29: =J21/J24 -> 1 | K29: 1 | L29: 1 | M29: 1 | N29: 1 | O29: 1 | P29: 1 | Q29: 1 | R29: 1 | S29: 1 | T29: 1 | U29: 1 | V29: 1 | W29: 1 | X29: 1 | Y29: 1 | Z29: 1 | AA29: 1 | AB29: 1 | AC29: 1 | AD29: 1 | AE29: 1 | AF29: 1 | AG29: 1 | AH29: 1 | AI29: 1 | AJ29: 1 | AK29: 1 | AL29: 1 | AM29: 1 | AN29: 1 | AO29: 1 | AP29: =AP21/AP24 ->  | BV29: =BV21/BV24 -> 
C30: Relative price index (USD/EUR) | D30: Num# | J30: =J21/J27 -> 1 | K30: 1 | L30: 1 | M30: 1 | N30: 1 | O30: 1 | P30: 1 | Q30: 1 | R30: 1 | S30: 1 | T30: 1 | U30: 1 | V30: 1 | W30: 1 | X30: 1 | Y30: 1 | Z30: 1 | AA30: 1 | AB30: 1 | AC30: 1 | AD30: 1 | AE30: 1 | AF30: 1 | AG30: 1 | AH30: 1 | AI30: 1 | AJ30: 1 | AK30: 1 | AL30: 1 | AM30: 1 | AN30: 1 | AO30: 1 | AP30: =AP21/AP27 -> 0 | AQ30: 0 | AR30: 0 | AS30: 0 | AT30: 0 | AU30: 0 | AV30: 0 | AW30: 0 | AX30: 0 | AY30: 0 | AZ30: 0 | BA30: 0 | BB30: 0 | BC30: 0 | BD30: 0 | BE30: 0 | BF30: 0 | BG30: 0 | BH30: 0 | BI30: 0 | BJ30: 0 | BK30: 0 | BL30: 0 | BM30: 0 | BN30: 0 | BO30: 0 | BP30: 0 | BQ30: 0 | BR30: 0 | BS30: 0 | BT30: 0 | BU30: 0 | BV30: =BV21/BV27 -> 0 | BW30: 0 | BX30: 0 | BY30: 0 | BZ30: 0 | CA30: 0 | CB30: 0 | CC30: 0 | CD30: 0 | CE30: 0 | CF30: 0 | CG30: 0 | CH30: 0 | CI30: 0 | CJ30: 0 | CK30: 0 | CL30: 0 | CM30: 0 | CN30: 0 | CO30: 0 | CP30: 0
C32: FCFA Exchange Rates
C33: Nominal exchange rate | D33: XAF/EUR | E33: =parité -> 655.957 | J33: =$E$33 -> 655.957 | K33: 655.957 | L33: 655.957 | M33: 655.957 | N33: 655.957 | O33: 655.957 | P33: 655.957 | Q33: 655.957 | R33: 655.957 | S33: 655.957 | T33: 655.957 | U33: 655.957 | V33: 655.957 | W33: 655.957 | X33: 655.957 | Y33: 655.957 | Z33: 655.957 | AA33: 655.957 | AB33: 655.957 | AC33: 655.957 | AD33: 655.957 | AE33: 655.957 | AF33: 655.957 | AG33: 655.957 | AH33: 655.957 | AI33: 655.957 | AJ33: 655.957 | AK33: 655.957 | AL33: 655.957 | AM33: 655.957 | AN33: 655.957 | AO33: 655.957 | AP33: =$E$33 -> 655.957 | AQ33: 655.957 | AR33: 655.957 | AS33: 655.957 | AT33: 655.957 | AU33: 655.957 | AV33: 655.957 | AW33: 655.957 | AX33: 655.957 | AY33: 655.957 | AZ33: 655.957 | BA33: 655.957 | BB33: 655.957 | BC33: 655.957 | BD33: 655.957 | BE33: 655.957 | BF33: 655.957 | BG33: 655.957 | BH33: 655.957 | BI33: 655.957 | BJ33: 655.957 | BK33: 655.957 | BL33: 655.957 | BM33: 655.957 | BN33: 655.957 | BO33: 655.957 | BP33: 655.957 | BQ33: 655.957 | BR33: 655.957 | BS33: 655.957 | BT33: 655.957 | BU33: 655.957 | BV33: =$E$33 -> 655.957 | BW33: 655.957 | BX33: 655.957 | BY33: 655.957 | BZ33: 655.957 | CA33: 655.957 | CB33: 655.957 | CC33: 655.957 | CD33: 655.957 | CE33: 655.957 | CF33: 655.957 | CG33: 655.957 | CH33: 655.957 | CI33: 655.957 | CJ33: 655.957 | CK33: 655.957 | CL33: 655.957 | CM33: 655.957 | CN33: 655.957 | CO33: 655.957 | CP33: 655.957
C34: Real exchange rate | D34: XAF/EUR | J34: =J33/J29 -> 655.957 | K34: 655.957 | L34: 655.957 | M34: 655.957 | N34: 655.957 | O34: 655.957 | P34: 655.957 | Q34: 655.957 | R34: 655.957 | S34: 655.957 | T34: 655.957 | U34: 655.957 | V34: 655.957 | W34: 655.957 | X34: 655.957 | Y34: 655.957 | Z34: 655.957 | AA34: 655.957 | AB34: 655.957 | AC34: 655.957 | AD34: 655.957 | AE34: 655.957 | AF34: 655.957 | AG34: 655.957 | AH34: 655.957 | AI34: 655.957 | AJ34: 655.957 | AK34: 655.957 | AL34: 655.957 | AM34: 655.957 | AN34: 655.957 | AO34: 655.957 | AP34: =AP33/AP29 ->  | BV34: =BV33/BV29 -> 
C36: USD Exchange Rates
C37: Real exchange rate | D37: USD/EUR | E37: =exch_USD -> 1.32 | J37: =+$E$37 -> 1.32 | K37: 1.32 | L37: 1.32 | M37: 1.32 | N37: 1.32 | O37: 1.32 | P37: 1.32 | Q37: 1.32 | R37: 1.32 | S37: 1.32 | T37: 1.32 | U37: 1.32 | V37: 1.32 | W37: 1.32 | X37: 1.32 | Y37: 1.32 | Z37: 1.32 | AA37: 1.32 | AB37: 1.32 | AC37: 1.32 | AD37: 1.32 | AE37: 1.32 | AF37: 1.32 | AG37: 1.32 | AH37: 1.32 | AI37: 1.32 | AJ37: 1.32 | AK37: 1.32 | AL37: 1.32 | AM37: 1.32 | AN37: 1.32 | AO37: 1.32 | AP37: =+$E$37 -> 1.32 | AQ37: 1.32 | AR37: 1.32 | AS37: 1.32 | AT37: 1.32 | AU37: 1.32 | AV37: 1.32 | AW37: 1.32 | AX37: 1.32 | AY37: 1.32 | AZ37: 1.32 | BA37: 1.32 | BB37: 1.32 | BC37: 1.32 | BD37: 1.32 | BE37: 1.32 | BF37: 1.32 | BG37: 1.32 | BH37: 1.32 | BI37: 1.32 | BJ37: 1.32 | BK37: 1.32 | BL37: 1.32 | BM37: 1.32 | BN37: 1.32 | BO37: 1.32 | BP37: 1.32 | BQ37: 1.32 | BR37: 1.32 | BS37: 1.32 | BT37: 1.32 | BU37: 1.32 | BV37: =+$E$37 -> 1.32 | BW37: 1.32 | BX37: 1.32 | BY37: 1.32 | BZ37: 1.32 | CA37: 1.32 | CB37: 1.32 | CC37: 1.32 | CD37: 1.32 | CE37: 1.32 | CF37: 1.32 | CG37: 1.32 | CH37: 1.32 | CI37: 1.32 | CJ37: 1.32 | CK37: 1.32 | CL37: 1.32 | CM37: 1.32 | CN37: 1.32 | CO37: 1.32 | CP37: 1.32
C38: Nominal exchange rate | D38: USD/EUR | J38: =J37/J30 -> 1.32 | K38: 1.32 | L38: 1.32 | M38: 1.32 | N38: 1.32 | O38: 1.32 | P38: 1.32 | Q38: 1.32 | R38: 1.32 | S38: 1.32 | T38: 1.32 | U38: 1.32 | V38: 1.32 | W38: 1.32 | X38: 1.32 | Y38: 1.32 | Z38: 1.32 | AA38: 1.32 | AB38: 1.32 | AC38: 1.32 | AD38: 1.32 | AE38: 1.32 | AF38: 1.32 | AG38: 1.32 | AH38: 1.32 | AI38: 1.32 | AJ38: 1.32 | AK38: 1.32 | AL38: 1.32 | AM38: 1.32 | AN38: 1.32 | AO38: 1.32 | AP38: =AP37/AP30 ->  | BV38: =BV37/BV30 -> 
C40: Sales
C41: Farm 1 Commercialised volumes | J41: =J3 -> 2012-01-01 | K41: 2012-07-01 | L41: 2013-01-01 | M41: 2013-07-01 | N41: 2014-01-01 | O41: 2014-07-01 | P41: 2015-01-01 | Q41: 2015-07-01 | R41: 2016-01-01 | S41: 2016-07-01 | T41: 2017-01-01 | U41: 2017-07-01 | V41: 2018-01-01 | W41: 2018-07-01 | X41: 2019-01-01 | Y41: 2019-07-01 | Z41: 2020-01-01 | AA41: 2020-07-01 | AB41: 2021-01-01 | AC41: 2021-07-01 | AD41: 2022-01-01 | AE41: 2022-07-01 | AF41: 2023-01-01 | AG41: 2023-07-01 | AH41: 2024-01-01 | AI41: 2024-07-01 | AJ41: 2025-01-01 | AK41: 2025-07-01 | AL41: 2026-01-01 | AM41: 2026-07-01 | AN41: 2027-01-01 | AO41: 2027-07-01 | AP41: 2028-01-01 | AQ41: 2028-07-01
C42: Semi-annual milled quantity | D42: Tons | J42: =LOOKUP(J$41,'Farm 1'!$AF$18:$BM$18,'Farm 1'!$AF21:$BM21)*J7 -> 0 | K42: =LOOKUP(K$41,'Farm 1'!$AF$18:$BM$18,'Farm 1'!$AF21:$BM21)*K7 -> 0 | L42: =LOOKUP(L$41,'Farm 1'!$AF$18:$BM$18,'Farm 1'!$AF21:$BM21)*L7 -> 0 | M42: =LOOKUP(M$41,'Farm 1'!$AF$18:$BM$18,'Farm 1'!$AF21:$BM21)*M7 -> 0 | N42: =LOOKUP(N$41,'Farm 1'!$AF$18:$BM$18,'Farm 1'!$AF21:$BM21)*N7 -> 1575 | O42: =LOOKUP(O$41,'Farm 1'!$AF$18:$BM$18,'Farm 1'!$AF21:$BM21)*O7 -> 8859.375 | P42: =LOOKUP(P$41,'Farm 1'!$AF$18:$BM$18,'Farm 1'!$AF21:$BM21)*P7 -> 11046.875 | Q42: =LOOKUP(Q$41,'Farm 1'!$AF$18:$BM$18,'Farm 1'!$AF21:$BM21)*Q7 -> 20573.4375 | R42: =LOOKUP(R$41,'Farm 1'!$AF$18:$BM$18,'Farm 1'!$AF21:$BM21)*R7 -> 20507.8125 | S42: =LOOKUP(S$41,'Farm 1'!$AF$18:$BM$18,'Farm 1'!$AF21:$BM21)*S7 -> 31500 | T42: =LOOKUP(T$41,'Farm 1'!$AF$18:$BM$18,'Farm 1'!$AF21:$BM21)*T7 -> 25000 | U42: =LOOKUP(U$41,'Farm 1'!$AF$18:$BM$18,'Farm 1'!$AF21:$BM21)*U7 -> 33750 | V42: =LOOKUP(V$41,'Farm 1'!$AF$18:$BM$18,'Farm 1'!$AF21:$BM21)*V7 -> 26750 | W42: =LOOKUP(W$41,'Farm 1'!$AF$18:$BM$18,'Farm 1'!$AF21:$BM21)*W7 -> 36000 | X42: =LOOKUP(X$41,'Farm 1'!$AF$18:$BM$18,'Farm 1'!$AF21:$BM21)*X7 -> 28000 | Y42: =LOOKUP(Y$41,'Farm 1'!$AF$18:$BM$18,'Farm 1'!$AF21:$BM21)*Y7 -> 36000 | Z42: =LOOKUP(Z$41,'Farm 1'!$AF$18:$BM$18,'Farm 1'!$AF21:$BM21)*Z7 -> 28000 | AA42: =LOOKUP(AA$41,'Farm 1'!$AF$18:$BM$18,'Farm 1'!$AF21:$BM21)*AA7 -> 36000 | AB42: =LOOKUP(AB$41,'Farm 1'!$AF$18:$BM$18,'Farm 1'!$AF21:$BM21)*AB7 -> 28000 | AC42: =LOOKUP(AC$41,'Farm 1'!$AF$18:$BM$18,'Farm 1'!$AF21:$BM21)*AC7 -> 36000 | AD42: =LOOKUP(AD$41,'Farm 1'!$AF$18:$BM$18,'Farm 1'!$AF21:$BM21)*AD7 -> 28000 | AE42: =LOOKUP(AE$41,'Farm 1'!$AF$18:$BM$18,'Farm 1'!$AF21:$BM21)*AE7 -> 36000 | AF42: =LOOKUP(AF$41,'Farm 1'!$AF$18:$BM$18,'Farm 1'!$AF21:$BM21)*AF7 -> 28000 | AG42: =LOOKUP(AG$41,'Farm 1'!$AF$18:$BM$18,'Farm 1'!$AF21:$BM21)*AG7 -> 36000 | AH42: =LOOKUP(AH$41,'Farm 1'!$AF$18:$BM$18,'Farm 1'!$AF21:$BM21)*AH7 -> 28000 | AI42: =LOOKUP(AI$41,'Farm 1'!$AF$18:$BM$18,'Farm 1'!$AF21:$BM21)*AI7 -> 36000 | AJ42: =LOOKUP(AJ$41,'Farm 1'!$AF$18:$BM$18,'Farm 1'!$AF21:$BM21)*AJ7 -> 28000 | AK42: =LOOKUP(AK$41,'Farm 1'!$AF$18:$BM$18,'Farm 1'!$AF21:$BM21)*AK7 -> 36000 | AL42: =LOOKUP(AL$41,'Farm 1'!$AF$18:$BM$18,'Farm 1'!$AF21:$BM21)*AL7 -> 28000 | AM42: =LOOKUP(AM$41,'Farm 1'!$AF$18:$BM$18,'Farm 1'!$AF21:$BM21)*AM7 -> 36000 | AN42: =LOOKUP(AN$41,'Farm 1'!$AF$18:$BM$18,'Farm 1'!$AF21:$BM21)*AN7 -> 28000 | AO42: =LOOKUP(AO$41,'Farm 1'!$AF$18:$BM$18,'Farm 1'!$AF21:$BM21)*AO7 -> 36000 | AP42: =LOOKUP(AP$41,'Farm 1'!$AF$18:$BM$18,'Farm 1'!$AF21:$BM21)*AP7 -> 0 | AQ42: =LOOKUP(AQ$41,'Farm 1'!$AF$18:$BM$18,'Farm 1'!$AF21:$BM21)*AQ7 -> 0
C43: Total Volume of ordinary rice | D43: Tons | E43: =tx_usinage -> 0.66 | J43: =J$42*$E$43 -> 0 | K43: =K42*$E$43 -> 0 | L43: 0 | M43: 0 | N43: 1039.5 | O43: 5847.1875 | P43: 7290.9375 | Q43: 13578.46875 | R43: 13535.15625 | S43: 20790 | T43: 16500 | U43: 22275 | V43: 17655 | W43: 23760 | X43: 18480 | Y43: 23760 | Z43: 18480 | AA43: 23760 | AB43: 18480 | AC43: 23760 | AD43: 18480 | AE43: 23760 | AF43: 18480 | AG43: 23760 | AH43: 18480 | AI43: 23760 | AJ43: 18480 | AK43: 23760 | AL43: 18480 | AM43: 23760 | AN43: 18480 | AO43: 23760 | AP43: 0 | AQ43: 0
C44: Total Volume of by product | D44: Tons | E44: =Flour_rate -> 0.14 | J44: =J$42*$E$44 -> 0 | K44: 0 | L44: 0 | M44: 0 | N44: 220.5 | O44: 1240.3125 | P44: 1546.5625 | Q44: 2880.28125 | R44: 2871.09375 | S44: 4410 | T44: 3500 | U44: 4725 | V44: 3745 | W44: 5040 | X44: 3920 | Y44: 5040 | Z44: 3920 | AA44: 5040 | AB44: 3920 | AC44: 5040 | AD44: 3920 | AE44: 5040 | AF44: 3920 | AG44: 5040 | AH44: 3920 | AI44: 5040 | AJ44: 3920 | AK44: 5040 | AL44: 3920 | AM44: 5040 | AN44: 3920 | AO44: 5040 | AP44: 0 | AQ44: 0
C46: Sales to Local Market - importers
C47: Price
C48: Growth in importers cereals prices | D48: % p.a. | E48: =inflation_céréales -> 0.04 | J48: =$E$48*J$15*J7 -> 0 | K48: =$E$48*K15 -> 0 | L48: 0 | M48: 0 | N48: 0.04 | O48: 0 | P48: 0.04 | Q48: 0 | R48: 0.04 | S48: 0 | T48: 0.04 | U48: 0 | V48: 0.04 | W48: 0 | X48: 0.04 | Y48: 0 | Z48: 0.04 | AA48: 0 | AB48: 0.04 | AC48: 0 | AD48: 0.04 | AE48: 0 | AF48: 0.04 | AG48: 0 | AH48: 0.04 | AI48: 0 | AJ48: 0.04 | AK48: 0 | AL48: 0.04 | AM48: 0 | AN48: 0.04 | AO48: 0 | AP48: 0 | AQ48: =$E$48*AQ15 -> 0 | AR48: 0 | AS48: 0 | AT48: 0 | AU48: 0 | AV48: 0 | AW48: 0 | AX48: 0 | AY48: 0 | AZ48: 0 | BA48: 0 | BB48: 0 | BC48: 0 | BD48: 0 | BE48: 0 | BF48: 0 | BG48: 0 | BH48: 0 | BI48: 0 | BJ48: 0 | BK48: 0 | BL48: 0 | BM48: 0 | BN48: 0 | BO48: 0 | BP48: 0 | BQ48: 0 | BR48: 0 | BS48: 0 | BT48: 0 | BU48: 0 | BV48: 0 | BW48: =$E$48*BW15 -> 0 | BX48: 0 | BY48: 0 | BZ48: 0 | CA48: 0 | CB48: 0 | CC48: 0 | CD48: 0 | CE48: 0 | CF48: 0 | CG48: 0 | CH48: 0 | CI48: 0 | CJ48: 0 | CK48: 0 | CL48: 0 | CM48: 0 | CN48: 0 | CO48: 0 | CP48: 0
C49: Price growth sales to wholesalers (5th/6th year) | D49: % p.a. | E49: 0.04 | J49: =IF(OR(J13=9,J13=11),$E$49/2,0) -> 0 | K49: =IF(OR(K13=9,K13=11),$E$49/2,0) -> 0 | L49: 0 | M49: 0 | N49: 0 | O49: 0 | P49: 0 | Q49: 0 | R49: 0 | S49: 0 | T49: 0.02 | U49: 0 | V49: 0.02 | W49: 0 | X49: 0 | Y49: 0 | Z49: 0 | AA49: 0 | AB49: 0 | AC49: 0 | AD49: 0 | AE49: 0 | AF49: 0 | AG49: 0 | AH49: 0 | AI49: 0 | AJ49: 0 | AK49: 0 | AL49: 0 | AM49: 0 | AN49: 0 | AO49: 0 | AP49: 0 | AQ49: 0 | AR49: 0 | AS49: 0 | AT49: 0 | AU49: 0 | AV49: 0 | AW49: 0 | AX49: 0 | AY49: 0 | AZ49: 0 | BA49: 0 | BB49: 0 | BC49: 0 | BD49: 0 | BE49: 0 | BF49: 0 | BG49: 0 | BH49: 0 | BI49: 0 | BJ49: 0 | BK49: 0 | BL49: 0 | BM49: 0 | BN49: 0 | BO49: 0 | BP49: 0 | BQ49: 0 | BR49: 0 | BS49: 0 | BT49: 0 | BU49: 0 | BV49: 0 | BW49: =IF(OR(BW13=9,BW13=11),$E$49/2,0) -> 0 | BX49: 0 | BY49: 0 | BZ49: 0 | CA49: 0 | CB49: 0 | CC49: 0 | CD49: 0 | CE49: 0 | CF49: 0 | CG49: 0 | CH49: 0 | CI49: 0 | CJ49: 0 | CK49: 0 | CL49: 0 | CM49: 0 | CN49: 0 | CO49: 0 | CP49: 0
C50: Price growth sales to retailers (7th/8th year) | D50: % p.a. | E50: 0.03 | J50: =IF(OR(J13=13,J13=15),$E$50/2,0) -> 0 | K50: =IF(OR(K13=13,K13=15),$E$50/2,0) -> 0 | L50: 0 | M50: 0 | N50: 0 | O50: 0 | P50: 0 | Q50: 0 | R50: 0 | S50: 0 | T50: 0 | U50: 0 | V50: 0 | W50: 0 | X50: 0.015 | Y50: 0 | Z50: 0.015 | AA50: 0 | AB50: 0 | AC50: 0 | AD50: 0 | AE50: 0 | AF50: 0 | AG50: 0 | AH50: 0 | AI50: 0 | AJ50: 0 | AK50: 0 | AL50: 0 | AM50: 0 | AN50: 0 | AO50: 0 | AP50: 0 | AQ50: 0 | AR50: 0 | AS50: 0 | AT50: 0 | AU50: 0 | AV50: 0 | AW50: 0 | AX50: 0 | AY50: 0 | AZ50: 0 | BA50: 0 | BB50: 0 | BC50: 0 | BD50: 0 | BE50: 0 | BF50: 0 | BG50: 0 | BH50: 0 | BI50: 0 | BJ50: 0 | BK50: 0 | BL50: 0 | BM50: 0 | BN50: 0 | BO50: 0 | BP50: 0 | BQ50: 0 | BR50: 0 | BS50: 0 | BT50: 0 | BU50: 0 | BV50: 0 | BW50: =IF(OR(BW13=13,BW13=15),$E$50/2,0) -> 0 | BX50: 0 | BY50: 0 | BZ50: 0 | CA50: 0 | CB50: 0 | CC50: 0 | CD50: 0 | CE50: 0 | CF50: 0 | CG50: 0 | CH50: 0 | CI50: 0 | CJ50: 0 | CK50: 0 | CL50: 0 | CM50: 0 | CN50: 0 | CO50: 0 | CP50: 0
C52: cereals price Index | J52: =IF(J$3=$I$4+1,1,I52*(1+J48)) -> 1 | K52: =IF(K$3=$I$4+1,1,J52*(1+K48)) -> 1 | L52: 1 | M52: 1 | N52: 1.04 | O52: 1.04 | P52: 1.0816 | Q52: 1.0816 | R52: 1.124864 | S52: 1.124864 | T52: 1.16985856 | U52: 1.16985856 | V52: 1.216652902 | W52: 1.216652902 | X52: 1.265319018 | Y52: 1.265319018 | Z52: 1.315931779 | AA52: 1.315931779 | AB52: 1.36856905 | AC52: 1.36856905 | AD52: 1.423311812 | AE52: 1.423311812 | AF52: 1.480244285 | AG52: 1.480244285 | AH52: 1.539454056 | AI52: 1.539454056 | AJ52: 1.601032219 | AK52: 1.601032219 | AL52: 1.665073507 | AM52: 1.665073507 | AN52: 1.731676448 | AO52: 1.731676448 | AP52: 1.731676448 | AQ52: 1.731676448 | AR52: 1.731676448 | AS52: 1.731676448 | AT52: 1.731676448 | AU52: 1.731676448 | AV52: 1.731676448 | AW52: 1.731676448 | AX52: 1.731676448 | AY52: 1.731676448 | AZ52: 1.731676448 | BA52: 1.731676448 | BB52: 1.731676448 | BC52: 1.731676448 | BD52: 1.731676448 | BE52: 1.731676448 | BF52: 1.731676448 | BG52: 1.731676448 | BH52: 1.731676448 | BI52: 1.731676448 | BJ52: 1.731676448 | BK52: 1.731676448 | BL52: 1.731676448 | BM52: 1.731676448 | BN52: 1.731676448 | BO52: 1.731676448 | BP52: 1.731676448 | BQ52: 1.731676448 | BR52: 1.731676448 | BS52: 1.731676448 | BT52: 1.731676448 | BU52: 1.731676448 | BV52: 1.731676448 | BW52: =IF(BW$3=$I$4+1,1,BV52*(1+BW48)) -> 1.731676448 | BX52: 1.731676448 | BY52: 1.731676448 | BZ52: 1.731676448 | CA52: 1.731676448 | CB52: 1.731676448 | CC52: 1.731676448 | CD52: 1.731676448 | CE52: 1.731676448 | CF52: 1.731676448 | CG52: 1.731676448 | CH52: 1.731676448 | CI52: 1.731676448 | CJ52: 1.731676448 | CK52: 1.731676448 | CL52: 1.731676448 | CM52: 1.731676448 | CN52: 1.731676448 | CO52: 1.731676448 | CP52: 1.731676448
C53: ordinary rice local sales price | D53: FCFA/Kg | E53: =ordinary_rice_local*parité/1000 -> 272.878112 | J53: =$E$53*J52*J$7 -> 0 | K53: =$E$53*K52*K7 -> 0 | L53: 272.878112 | M53: 272.878112 | N53: 283.7932365 | O53: 283.7932365 | P53: 295.1449659 | Q53: 295.1449659 | R53: 306.9507646 | S53: 306.9507646 | T53: 319.2287952 | U53: 319.2287952 | V53: 331.997947 | W53: 331.997947 | X53: 345.2778648 | Y53: 345.2778648 | Z53: 359.0889794 | AA53: 359.0889794 | AB53: 373.4525386 | AC53: 373.4525386 | AD53: 388.3906402 | AE53: 388.3906402 | AF53: 403.9262658 | AG53: 403.9262658 | AH53: 420.0833164 | AI53: 420.0833164 | AJ53: 436.8866491 | AK53: 436.8866491 | AL53: 454.362115 | AM53: 454.362115 | AN53: 472.5365996 | AO53: 472.5365996 | AP53: 0 | AQ53: =$E$53*AQ52*AQ7 -> 0 | AR53: 0 | AS53: 0 | AT53: 0 | AU53: 0 | AV53: 0 | AW53: 0 | AX53: 0 | AY53: 0 | AZ53: 0 | BA53: 0 | BB53: 0 | BC53: 0 | BD53: 0 | BE53: 0 | BF53: 0 | BG53: 0 | BH53: 0 | BI53: 0 | BJ53: 0 | BK53: 0 | BL53: 0 | BM53: 0 | BN53: 0 | BO53: 0 | BP53: 0 | BQ53: 0 | BR53: 0 | BS53: 0 | BT53: 0 | BU53: 0 | BV53: 0 | BW53: =$E$53*BW52*BW7 -> 0 | BX53: 0 | BY53: 0 | BZ53: 0 | CA53: 0 | CB53: 0 | CC53: 0 | CD53: 0 | CE53: 0 | CF53: 0 | CG53: 0 | CH53: 0 | CI53: 0 | CJ53: 0 | CK53: 0 | CL53: 0 | CM53: 0 | CN53: 0 | CO53: 0 | CP53: 0
C55: Growth in local Flour prices | D55: % p.a. | E55: =inflation_céréales -> 0.04 | J55: =$E$55*J$15 -> 0 | K55: 0 | L55: 0 | M55: 0 | N55: 0.04 | O55: 0 | P55: 0.04 | Q55: 0 | R55: 0.04 | S55: 0 | T55: 0.04 | U55: 0 | V55: 0.04 | W55: 0 | X55: 0.04 | Y55: 0 | Z55: 0.04 | AA55: 0 | AB55: 0.04 | AC55: 0 | AD55: 0.04 | AE55: 0 | AF55: 0.04 | AG55: 0 | AH55: 0.04 | AI55: 0 | AJ55: 0.04 | AK55: 0 | AL55: 0.04 | AM55: 0 | AN55: 0.04 | AO55: 0 | AP55: =$E$55*AP$15 -> 0 | AQ55: 0 | AR55: 0 | AS55: 0 | AT55: 0 | AU55: 0 | AV55: 0 | AW55: 0 | AX55: 0 | AY55: 0 | AZ55: 0 | BA55: 0 | BB55: 0 | BC55: 0 | BD55: 0 | BE55: 0 | BF55: 0 | BG55: 0 | BH55: 0 | BI55: 0 | BJ55: 0 | BK55: 0 | BL55: 0 | BM55: 0 | BN55: 0 | BO55: 0 | BP55: 0 | BQ55: 0 | BR55: 0 | BS55: 0 | BT55: 0 | BU55: 0 | BV55: =$E$55*BV$15 -> 0 | BW55: 0 | BX55: 0 | BY55: 0 | BZ55: 0 | CA55: 0 | CB55: 0 | CC55: 0 | CD55: 0 | CE55: 0 | CF55: 0 | CG55: 0 | CH55: 0 | CI55: 0 | CJ55: 0 | CK55: 0 | CL55: 0 | CM55: 0 | CN55: 0 | CO55: 0 | CP55: 0
C56: Flour price Index | J56: =IF(J$3=$I$4+1,1,I56*(1+J55)) -> 1 | K56: 1 | L56: 1 | M56: 1 | N56: 1.04 | O56: 1.04 | P56: 1.0816 | Q56: 1.0816 | R56: 1.124864 | S56: 1.124864 | T56: 1.16985856 | U56: 1.16985856 | V56: 1.216652902 | W56: 1.216652902 | X56: 1.265319018 | Y56: 1.265319018 | Z56: 1.315931779 | AA56: 1.315931779 | AB56: 1.36856905 | AC56: 1.36856905 | AD56: 1.423311812 | AE56: 1.423311812 | AF56: 1.480244285 | AG56: 1.480244285 | AH56: 1.539454056 | AI56: 1.539454056 | AJ56: 1.601032219 | AK56: 1.601032219 | AL56: 1.665073507 | AM56: 1.665073507 | AN56: 1.731676448 | AO56: 1.731676448 | AP56: =IF(AP$3=$I$4+1,1,AO56*(1+AP55)) -> 1.731676448 | AQ56: 1.731676448 | AR56: 1.731676448 | AS56: 1.731676448 | AT56: 1.731676448 | AU56: 1.731676448 | AV56: 1.731676448 | AW56: 1.731676448 | AX56: 1.731676448 | AY56: 1.731676448 | AZ56: 1.731676448 | BA56: 1.731676448 | BB56: 1.731676448 | BC56: 1.731676448 | BD56: 1.731676448 | BE56: 1.731676448 | BF56: 1.731676448 | BG56: 1.731676448 | BH56: 1.731676448 | BI56: 1.731676448 | BJ56: 1.731676448 | BK56: 1.731676448 | BL56: 1.731676448 | BM56: 1.731676448 | BN56: 1.731676448 | BO56: 1.731676448 | BP56: 1.731676448 | BQ56: 1.731676448 | BR56: 1.731676448 | BS56: 1.731676448 | BT56: 1.731676448 | BU56: 1.731676448 | BV56: =IF(BV$3=$I$4+1,1,BU56*(1+BV55)) -> 1.731676448 | BW56: 1.731676448 | BX56: 1.731676448 | BY56: 1.731676448 | BZ56: 1.731676448 | CA56: 1.731676448 | CB56: 1.731676448 | CC56: 1.731676448 | CD56: 1.731676448 | CE56: 1.731676448 | CF56: 1.731676448 | CG56: 1.731676448 | CH56: 1.731676448 | CI56: 1.731676448 | CJ56: 1.731676448 | CK56: 1.731676448 | CL56: 1.731676448 | CM56: 1.731676448 | CN56: 1.731676448 | CO56: 1.731676448 | CP56: 1.731676448
C57: Flour local market price | D57: FCFA/Kg | E57: =rice_by_product*parité/1000 -> 70 | J57: =$E$57*J56*J$7 -> 0 | K57: 0 | L57: 70 | M57: 70 | N57: 72.8 | O57: 72.8 | P57: 75.712 | Q57: 75.712 | R57: 78.74048 | S57: 78.74048 | T57: 81.8900992 | U57: 81.8900992 | V57: 85.16570317 | W57: 85.16570317 | X57: 88.57233129 | Y57: 88.57233129 | Z57: 92.11522455 | AA57: 92.11522455 | AB57: 95.79983353 | AC57: 95.79983353 | AD57: 99.63182687 | AE57: 99.63182687 | AF57: 103.6170999 | AG57: 103.6170999 | AH57: 107.7617839 | AI57: 107.7617839 | AJ57: 112.0722553 | AK57: 112.0722553 | AL57: 116.5551455 | AM57: 116.5551455 | AN57: 121.2173513 | AO57: 121.2173513 | AP57: =$E$57*AP56*AP$7 -> 0 | AQ57: 0 | AR57: 0 | AS57: 0 | AT57: 0 | AU57: 0 | AV57: 0 | AW57: 0 | AX57: 0 | AY57: 0 | AZ57: 0 | BA57: 0 | BB57: 0 | BC57: 0 | BD57: 0 | BE57: 0 | BF57: 0 | BG57: 0 | BH57: 0 | BI57: 0 | BJ57: 0 | BK57: 0 | BL57: 0 | BM57: 0 | BN57: 0 | BO57: 0 | BP57: 0 | BQ57: 0 | BR57: 0 | BS57: 0 | BT57: 0 | BU57: 0 | BV57: =$E$57*BV56*BV$7 -> 0 | BW57: 0 | BX57: 0 | BY57: 0 | BZ57: 0 | CA57: 0 | CB57: 0 | CC57: 0 | CD57: 0 | CE57: 0 | CF57: 0 | CG57: 0 | CH57: 0 | CI57: 0 | CJ57: 0 | CK57: 0 | CL57: 0 | CM57: 0 | CN57: 0 | CO57: 0 | CP57: 0
C59: Volumes
C60: risks on crops | D60: % | E60: =1-conting_crop -> 0.975
C62: Quantity ordinary rice sold in local market | D62: Tons | E62: =percentage_local -> 1 | J62: =IF(J$13<9,$E$62*J43*$E$60,IF(J$13<11,$E$62/2*J43*$E$60,0)) -> 0 | K62: =IF(K$13<9,$E$62*K43*$E$60,IF(K$13<11,$E$62/2*K43*$E$60,0)) -> 0 | L62: 0 | M62: 0 | N62: 1013.5125 | O62: 5701.007812 | P62: 7108.664062 | Q62: 13239.00703 | R62: 13196.77734 | S62: 20270.25 | T62: 8043.75 | U62: 10859.0625 | V62: 0 | W62: 0 | X62: 0 | Y62: 0 | Z62: 0 | AA62: 0 | AB62: 0 | AC62: 0 | AD62: 0 | AE62: 0 | AF62: 0 | AG62: 0 | AH62: 0 | AI62: 0 | AJ62: 0 | AK62: 0 | AL62: 0 | AM62: 0 | AN62: 0 | AO62: 0 | AP62: 0 | AQ62: 0 | AR62: 0 | AS62: 0 | AT62: 0 | AU62: 0 | AV62: 0 | AW62: 0 | AX62: 0 | AY62: 0 | AZ62: 0 | BA62: 0 | BB62: 0 | BC62: 0 | BD62: 0 | BE62: 0 | BF62: 0 | BG62: 0 | BH62: 0 | BI62: 0 | BJ62: 0 | BK62: 0 | BL62: 0 | BM62: 0 | BN62: 0 | BO62: 0 | BP62: 0 | BQ62: 0 | BR62: 0 | BS62: 0 | BT62: 0 | BU62: 0 | BV62: 0 | BW62: =IF(BW$13<9,$E$62*BW43*$E$60,IF(BW$13<11,$E$62/2*BW43*$E$60,0)) -> 0 | BX62: 0 | BY62: 0 | BZ62: 0 | CA62: 0 | CB62: 0 | CC62: 0 | CD62: 0 | CE62: 0 | CF62: 0 | CG62: 0 | CH62: 0 | CI62: 0 | CJ62: 0 | CK62: 0 | CL62: 0 | CM62: 0 | CN62: 0 | CO62: 0 | CP62: 0
C63: Quantity Flour sold in local market | D63: Tons | E63: =E62 -> 1 | J63: =$E$63*J44*$E$60 -> 0 | K63: 0 | L63: 0 | M63: 0 | N63: 214.9875 | O63: 1209.304688 | P63: 1507.898438 | Q63: 2808.274219 | R63: 2799.316406 | S63: 4299.75 | T63: 3412.5 | U63: 4606.875 | V63: 3651.375 | W63: 4914 | X63: 3822 | Y63: 4914 | Z63: 3822 | AA63: 4914 | AB63: 3822 | AC63: 4914 | AD63: 3822 | AE63: 4914 | AF63: 3822 | AG63: 4914 | AH63: 3822 | AI63: 4914 | AJ63: 3822 | AK63: 4914 | AL63: 3822 | AM63: 4914 | AN63: 3822 | AO63: 4914 | AP63: =$E$63*AP44*$E$60 -> 0 | AQ63: 0 | AR63: 0 | AS63: 0 | AT63: 0 | AU63: 0 | AV63: 0 | AW63: 0 | AX63: 0 | AY63: 0 | AZ63: 0 | BA63: 0 | BB63: 0 | BC63: 0 | BD63: 0 | BE63: 0 | BF63: 0 | BG63: 0 | BH63: 0 | BI63: 0 | BJ63: 0 | BK63: 0 | BL63: 0 | BM63: 0 | BN63: 0 | BO63: 0 | BP63: 0 | BQ63: 0 | BR63: 0 | BS63: 0 | BT63: 0 | BU63: 0 | BV63: =$E$63*BV44*$E$60 -> 0 | BW63: 0 | BX63: 0 | BY63: 0 | BZ63: 0 | CA63: 0 | CB63: 0 | CC63: 0 | CD63: 0 | CE63: 0 | CF63: 0 | CG63: 0 | CH63: 0 | CI63: 0 | CJ63: 0 | CK63: 0 | CL63: 0 | CM63: 0 | CN63: 0 | CO63: 0 | CP63: 0
C65: Sales in Million FCFA
C66: Ordinary rice sold in local market | D66: Million FCFA | J66: =J62*J53/Thousand -> 0 | K66: 0 | L66: 0 | M66: 0 | N66: 287.6279926 | O66: 1617.907458 | P66: 2098.086413 | Q66: 3907.426279 | R66: 4050.760896 | S66: 6221.968736 | T66: 2567.796621 | U66: 3466.525438 | V66: 0 | W66: 0 | X66: 0 | Y66: 0 | Z66: 0 | AA66: 0 | AB66: 0 | AC66: 0 | AD66: 0 | AE66: 0 | AF66: 0 | AG66: 0 | AH66: 0 | AI66: 0 | AJ66: 0 | AK66: 0 | AL66: 0 | AM66: 0 | AN66: 0 | AO66: 0 | AP66: =AP62*AP53/Thousand -> 0 | AQ66: 0 | AR66: 0 | AS66: 0 | AT66: 0 | AU66: 0 | AV66: 0 | AW66: 0 | AX66: 0 | AY66: 0 | AZ66: 0 | BA66: 0 | BB66: 0 | BC66: 0 | BD66: 0 | BE66: 0 | BF66: 0 | BG66: 0 | BH66: 0 | BI66: 0 | BJ66: 0 | BK66: 0 | BL66: 0 | BM66: 0 | BN66: 0 | BO66: 0 | BP66: 0 | BQ66: 0 | BR66: 0 | BS66: 0 | BT66: 0 | BU66: 0 | BV66: =BV62*BV53/Thousand -> 0 | BW66: 0 | BX66: 0 | BY66: 0 | BZ66: 0 | CA66: 0 | CB66: 0 | CC66: 0 | CD66: 0 | CE66: 0 | CF66: 0 | CG66: 0 | CH66: 0 | CI66: 0 | CJ66: 0 | CK66: 0 | CL66: 0 | CM66: 0 | CN66: 0 | CO66: 0 | CP66: 0
C67: Flour sold in local market | D67: Million FCFA | J67: =J63*J57/Thousand -> 0 | K67: 0 | L67: 0 | M67: 0 | N67: 15.65109 | O67: 88.03738125 | P67: 114.1660065 | Q67: 212.6200577 | R67: 220.4195175 | S67: 338.5643789 | T67: 279.4499635 | U67: 377.2574508 | V67: 310.9719194 | W67: 418.5042654 | X67: 338.5234502 | Y67: 435.244436 | Z67: 352.0643882 | AA67: 452.6542134 | AB67: 366.1469637 | AC67: 470.760382 | AD67: 380.7928423 | AE67: 489.5907972 | AF67: 396.024556 | AG67: 509.1744291 | AH67: 411.8655382 | AI67: 529.5414063 | AJ67: 428.3401598 | AK67: 550.7230625 | AL67: 445.4737661 | AM67: 572.751985 | AN67: 463.2927168 | AO67: 595.6620644 | AP67: =AP63*AP57/Thousand -> 0 | AQ67: 0 | AR67: 0 | AS67: 0 | AT67: 0 | AU67: 0 | AV67: 0 | AW67: 0 | AX67: 0 | AY67: 0 | AZ67: 0 | BA67: 0 | BB67: 0 | BC67: 0 | BD67: 0 | BE67: 0 | BF67: 0 | BG67: 0 | BH67: 0 | BI67: 0 | BJ67: 0 | BK67: 0 | BL67: 0 | BM67: 0 | BN67: 0 | BO67: 0 | BP67: 0 | BQ67: 0 | BR67: 0 | BS67: 0 | BT67: 0 | BU67: 0 | BV67: =BV63*BV57/Thousand -> 0 | BW67: 0 | BX67: 0 | BY67: 0 | BZ67: 0 | CA67: 0 | CB67: 0 | CC67: 0 | CD67: 0 | CE67: 0 | CF67: 0 | CG67: 0 | CH67: 0 | CI67: 0 | CJ67: 0 | CK67: 0 | CL67: 0 | CM67: 0 | CN67: 0 | CO67: 0 | CP67: 0
C69: Sales in EUR
C70: Local sales of ordinary rice | D70: EUR | J70: =J66*Million/J$33 -> 0 | K70: =K66*Million/K$33 -> 0 | L70: 0 | M70: 0 | N70: 438486.048 | O70: 2466484.02 | P70: 3198512.117 | Q70: 5956832.962 | R70: 6175345.176 | S70: 9485330.19 | T70: =T66*Million/T$33 -> 3914580.713 | U70: 5284683.963 | V70: 0 | W70: 0 | X70: 0 | Y70: 0 | Z70: 0 | AA70: 0 | AB70: 0 | AC70: 0 | AD70: 0 | AE70: 0 | AF70: 0 | AG70: 0 | AH70: 0 | AI70: 0 | AJ70: 0 | AK70: 0 | AL70: 0 | AM70: 0 | AN70: 0 | AO70: 0 | AP70: =AP66*Million/AP$33 -> 0 | AQ70: 0 | AR70: 0 | AS70: 0 | AT70: 0 | AU70: 0 | AV70: 0 | AW70: 0 | AX70: 0 | AY70: 0 | AZ70: 0 | BA70: 0 | BB70: 0 | BC70: 0 | BD70: 0 | BE70: 0 | BF70: 0 | BG70: 0 | BH70: 0 | BI70: 0 | BJ70: 0 | BK70: 0 | BL70: 0 | BM70: 0 | BN70: 0 | BO70: 0 | BP70: 0 | BQ70: 0 | BR70: 0 | BS70: 0 | BT70: 0 | BU70: 0 | BV70: =BV66*Million/BV$33 -> 0 | BW70: 0 | BX70: 0 | BY70: 0 | BZ70: 0 | CA70: 0 | CB70: 0 | CC70: 0 | CD70: 0 | CE70: 0 | CF70: 0 | CG70: 0 | CH70: 0 | CI70: 0 | CJ70: 0 | CK70: 0 | CL70: 0 | CM70: 0 | CN70: 0 | CO70: 0 | CP70: 0
C71: Local sales of flour | D71: EUR | J71: =J67*Million/J$33 -> 0 | K71: 0 | L71: 0 | M71: 0 | N71: 23859.93289 | O71: 134212.1225 | P71: 174044.9549 | Q71: 324137.1883 | R71: 336027.3882 | S71: 516138.0683 | T71: 426018.7231 | U71: 575125.2761 | V71: 474073.635 | W71: 638005.6396 | X71: 516075.673 | Y71: 663525.8652 | Z71: 536718.6999 | AA71: 690066.8998 | AB71: 558187.4479 | AC71: 717669.5758 | AD71: 580514.9458 | AE71: 746376.3589 | AF71: 603735.5436 | AG71: 776231.4132 | AH71: 627884.9654 | AI71: 807280.6698 | AJ71: 653000.364 | AK71: 839571.8965 | AL71: 679120.3785 | AM71: 873154.7724 | AN71: 706285.1937 | AO71: 908080.9633 | AP71: =AP67*Million/AP$33 -> 0 | AQ71: 0 | AR71: 0 | AS71: 0 | AT71: 0 | AU71: 0 | AV71: 0 | AW71: 0 | AX71: 0 | AY71: 0 | AZ71: 0 | BA71: 0 | BB71: 0 | BC71: 0 | BD71: 0 | BE71: 0 | BF71: 0 | BG71: 0 | BH71: 0 | BI71: 0 | BJ71: 0 | BK71: 0 | BL71: 0 | BM71: 0 | BN71: 0 | BO71: 0 | BP71: 0 | BQ71: 0 | BR71: 0 | BS71: 0 | BT71: 0 | BU71: 0 | BV71: =BV67*Million/BV$33 -> 0 | BW71: 0 | BX71: 0 | BY71: 0 | BZ71: 0 | CA71: 0 | CB71: 0 | CC71: 0 | CD71: 0 | CE71: 0 | CF71: 0 | CG71: 0 | CH71: 0 | CI71: 0 | CJ71: 0 | CK71: 0 | CL71: 0 | CM71: 0 | CN71: 0 | CO71: 0 | CP71: 0
C73: Sales to Local Market - wholesalers discounted
C74: Price | J74: =$E$48*J$15 -> 0 | K74: 0 | L74: 0 | M74: 0 | N74: 0.04 | O74: 0 | P74: 0.04 | Q74: 0 | R74: 0.04 | S74: 0 | T74: 0.04 | U74: 0 | V74: 0.04 | W74: 0 | X74: 0.04 | Y74: 0 | Z74: 0.04 | AA74: 0 | AB74: 0.04 | AC74: 0 | AD74: 0.04 | AE74: 0 | AF74: 0.04 | AG74: 0 | AH74: 0.04 | AI74: 0 | AJ74: 0.04 | AK74: 0 | AL74: 0.04 | AM74: 0 | AN74: 0.04 | AO74: 0 | AP74: =$E$48*AP$15 -> 0 | AQ74: 0 | AR74: 0 | AS74: 0 | AT74: 0 | AU74: 0 | AV74: 0 | AW74: 0 | AX74: 0 | AY74: 0 | AZ74: 0 | BA74: 0 | BB74: 0 | BC74: 0 | BD74: 0 | BE74: 0 | BF74: 0 | BG74: 0 | BH74: 0 | BI74: 0 | BJ74: 0 | BK74: 0 | BL74: 0 | BM74: 0 | BN74: 0 | BO74: 0 | BP74: 0 | BQ74: 0 | BR74: 0 | BS74: 0 | BT74: 0 | BU74: 0 | BV74: =$E$48*BV$15 -> 0 | BW74: 0 | BX74: 0 | BY74: 0 | BZ74: 0 | CA74: 0 | CB74: 0 | CC74: 0 | CD74: 0 | CE74: 0 | CF74: 0 | CG74: 0 | CH74: 0 | CI74: 0 | CJ74: 0 | CK74: 0 | CL74: 0 | CM74: 0 | CN74: 0 | CO74: 0 | CP74: 0
C75: Growth in wholesalers discounted prices | D75: % p.a. | E75: =inflation_céréales -> 0.04 | J75: =IF(J$3=$I$4+1,1,I75*(1+J74)) -> 1 | K75: 1 | L75: 1 | M75: 1 | N75: 1.04 | O75: 1.04 | P75: 1.0816 | Q75: 1.0816 | R75: 1.124864 | S75: 1.124864 | T75: 1.16985856 | U75: 1.16985856 | V75: 1.216652902 | W75: 1.216652902 | X75: 1.265319018 | Y75: 1.265319018 | Z75: 1.315931779 | AA75: 1.315931779 | AB75: 1.36856905 | AC75: 1.36856905 | AD75: 1.423311812 | AE75: 1.423311812 | AF75: 1.480244285 | AG75: 1.480244285 | AH75: 1.539454056 | AI75: 1.539454056 | AJ75: 1.601032219 | AK75: 1.601032219 | AL75: 1.665073507 | AM75: 1.665073507 | AN75: 1.731676448 | AO75: 1.731676448 | AP75: =IF(AP$3=$I$4+1,1,AO75*(1+AP74)) -> 1.731676448 | AQ75: 1.731676448 | AR75: 1.731676448 | AS75: 1.731676448 | AT75: 1.731676448 | AU75: 1.731676448 | AV75: 1.731676448 | AW75: 1.731676448 | AX75: 1.731676448 | AY75: 1.731676448 | AZ75: 1.731676448 | BA75: 1.731676448 | BB75: 1.731676448 | BC75: 1.731676448 | BD75: 1.731676448 | BE75: 1.731676448 | BF75: 1.731676448 | BG75: 1.731676448 | BH75: 1.731676448 | BI75: 1.731676448 | BJ75: 1.731676448 | BK75: 1.731676448 | BL75: 1.731676448 | BM75: 1.731676448 | BN75: 1.731676448 | BO75: 1.731676448 | BP75: 1.731676448 | BQ75: 1.731676448 | BR75: 1.731676448 | BS75: 1.731676448 | BT75: 1.731676448 | BU75: 1.731676448 | BV75: =IF(BV$3=$I$4+1,1,BU75*(1+BV74)) -> 1.731676448 | BW75: 1.731676448 | BX75: 1.731676448 | BY75: 1.731676448 | BZ75: 1.731676448 | CA75: 1.731676448 | CB75: 1.731676448 | CC75: 1.731676448 | CD75: 1.731676448 | CE75: 1.731676448 | CF75: 1.731676448 | CG75: 1.731676448 | CH75: 1.731676448 | CI75: 1.731676448 | CJ75: 1.731676448 | CK75: 1.731676448 | CL75: 1.731676448 | CM75: 1.731676448 | CN75: 1.731676448 | CO75: 1.731676448 | CP75: 1.731676448
C76: Wholesalers discounted cereals price Index
C77: ordinary rice wholesalers discounted price | D77: EUR/tons | E77: =ordinary_rice_wholesaler*parité/1000 -> 283.7932365 | J77: =$E$77*J75*J$7 -> 0 | K77: =$E$77*K75*K$7 -> 0 | L77: 283.7932365 | M77: 283.7932365 | N77: 295.1449659 | O77: 295.1449659 | P77: 306.9507646 | Q77: 306.9507646 | R77: 319.2287952 | S77: 319.2287952 | T77: 331.997947 | U77: 331.997947 | V77: 345.2778648 | W77: 345.2778648 | X77: 359.0889794 | Y77: 359.0889794 | Z77: 373.4525386 | AA77: 373.4525386 | AB77: 388.3906402 | AC77: 388.3906402 | AD77: 403.9262658 | AE77: 403.9262658 | AF77: 420.0833164 | AG77: 420.0833164 | AH77: 436.8866491 | AI77: 436.8866491 | AJ77: 454.362115 | AK77: 454.362115 | AL77: 472.5365996 | AM77: 472.5365996 | AN77: 491.4380636 | AO77: 491.4380636 | AP77: 0 | AQ77: 0 | AR77: 0 | AS77: 0 | AT77: 0 | AU77: 0 | AV77: 0 | AW77: 0 | AX77: 0 | AY77: 0 | AZ77: 0 | BA77: 0 | BB77: 0 | BC77: 0 | BD77: =$E$77*BD75*BD$7 -> 0 | BE77: 0 | BF77: 0 | BG77: 0 | BH77: 0 | BI77: 0 | BJ77: 0 | BK77: 0 | BL77: 0 | BM77: 0 | BN77: 0 | BO77: 0 | BP77: 0 | BQ77: 0 | BR77: 0 | BS77: 0 | BT77: 0 | BU77: 0 | BV77: 0 | BW77: 0 | BX77: 0 | BY77: 0 | BZ77: 0 | CA77: 0 | CB77: 0 | CC77: 0 | CD77: 0 | CE77: 0 | CF77: 0 | CG77: 0 | CH77: 0 | CI77: 0 | CJ77: 0 | CK77: 0 | CL77: 0 | CM77: 0 | CN77: 0 | CO77: 0 | CP77: 0
C79: Growth in Flour prices | D79: % p.a. | E79: =inflation_céréales -> 0.04 | J79: =$E$79*J$15 -> 0 | K79: 0 | L79: 0 | M79: 0 | N79: 0.04 | O79: 0 | P79: 0.04 | Q79: 0 | R79: 0.04 | S79: 0 | T79: 0.04 | U79: 0 | V79: 0.04 | W79: 0 | X79: 0.04 | Y79: 0 | Z79: 0.04 | AA79: 0 | AB79: 0.04 | AC79: 0 | AD79: 0.04 | AE79: 0 | AF79: 0.04 | AG79: 0 | AH79: 0.04 | AI79: 0 | AJ79: 0.04 | AK79: 0 | AL79: 0.04 | AM79: 0 | AN79: 0.04 | AO79: 0 | AP79: =$E$79*AP$15 -> 0 | AQ79: 0 | AR79: 0 | AS79: 0 | AT79: 0 | AU79: 0 | AV79: 0 | AW79: 0 | AX79: 0 | AY79: 0 | AZ79: 0 | BA79: 0 | BB79: 0 | BC79: 0 | BD79: 0 | BE79: 0 | BF79: 0 | BG79: 0 | BH79: 0 | BI79: 0 | BJ79: 0 | BK79: 0 | BL79: 0 | BM79: 0 | BN79: 0 | BO79: 0 | BP79: 0 | BQ79: 0 | BR79: 0 | BS79: 0 | BT79: 0 | BU79: 0 | BV79: =$E$79*BV$15 -> 0 | BW79: 0 | BX79: 0 | BY79: 0 | BZ79: 0 | CA79: 0 | CB79: 0 | CC79: 0 | CD79: 0 | CE79: 0 | CF79: 0 | CG79: 0 | CH79: 0 | CI79: 0 | CJ79: 0 | CK79: 0 | CL79: 0 | CM79: 0 | CN79: 0 | CO79: 0 | CP79: 0
C80: Flour price Index | J80: =IF(J$3=$I$4+1,1,I80*(1+J79)) -> 1 | K80: 1 | L80: 1 | M80: 1 | N80: 1.04 | O80: 1.04 | P80: 1.0816 | Q80: 1.0816 | R80: 1.124864 | S80: 1.124864 | T80: 1.16985856 | U80: 1.16985856 | V80: 1.216652902 | W80: 1.216652902 | X80: 1.265319018 | Y80: 1.265319018 | Z80: 1.315931779 | AA80: 1.315931779 | AB80: 1.36856905 | AC80: 1.36856905 | AD80: 1.423311812 | AE80: 1.423311812 | AF80: 1.480244285 | AG80: 1.480244285 | AH80: 1.539454056 | AI80: 1.539454056 | AJ80: 1.601032219 | AK80: 1.601032219 | AL80: 1.665073507 | AM80: 1.665073507 | AN80: 1.731676448 | AO80: 1.731676448 | AP80: =IF(AP$3=$I$4+1,1,AO80*(1+AP79)) -> 1.731676448 | AQ80: 1.731676448 | AR80: 1.731676448 | AS80: 1.731676448 | AT80: 1.731676448 | AU80: 1.731676448 | AV80: 1.731676448 | AW80: 1.731676448 | AX80: 1.731676448 | AY80: 1.731676448 | AZ80: 1.731676448 | BA80: 1.731676448 | BB80: 1.731676448 | BC80: 1.731676448 | BD80: 1.731676448 | BE80: 1.731676448 | BF80: 1.731676448 | BG80: 1.731676448 | BH80: 1.731676448 | BI80: 1.731676448 | BJ80: 1.731676448 | BK80: 1.731676448 | BL80: 1.731676448 | BM80: 1.731676448 | BN80: 1.731676448 | BO80: 1.731676448 | BP80: 1.731676448 | BQ80: 1.731676448 | BR80: 1.731676448 | BS80: 1.731676448 | BT80: 1.731676448 | BU80: 1.731676448 | BV80: =IF(BV$3=$I$4+1,1,BU80*(1+BV79)) -> 1.731676448 | BW80: 1.731676448 | BX80: 1.731676448 | BY80: 1.731676448 | BZ80: 1.731676448 | CA80: 1.731676448 | CB80: 1.731676448 | CC80: 1.731676448 | CD80: 1.731676448 | CE80: 1.731676448 | CF80: 1.731676448 | CG80: 1.731676448 | CH80: 1.731676448 | CI80: 1.731676448 | CJ80: 1.731676448 | CK80: 1.731676448 | CL80: 1.731676448 | CM80: 1.731676448 | CN80: 1.731676448 | CO80: 1.731676448 | CP80: 1.731676448
C81: Flour market price | D81: EUR/tons | E81: =rice_by_product*parité/1000 -> 70 | J81: =$E$81*J80*J$7 -> 0 | K81: 0 | L81: 70 | M81: 70 | N81: 72.8 | O81: 72.8 | P81: 75.712 | Q81: 75.712 | R81: 78.74048 | S81: 78.74048 | T81: 81.8900992 | U81: 81.8900992 | V81: 85.16570317 | W81: 85.16570317 | X81: 88.57233129 | Y81: 88.57233129 | Z81: 92.11522455 | AA81: 92.11522455 | AB81: 95.79983353 | AC81: 95.79983353 | AD81: 99.63182687 | AE81: 99.63182687 | AF81: 103.6170999 | AG81: 103.6170999 | AH81: 107.7617839 | AI81: 107.7617839 | AJ81: 112.0722553 | AK81: 112.0722553 | AL81: 116.5551455 | AM81: 116.5551455 | AN81: 121.2173513 | AO81: 121.2173513 | AP81: =$E$81*AP80*AP$7 -> 0 | AQ81: 0 | AR81: 0 | AS81: 0 | AT81: 0 | AU81: 0 | AV81: 0 | AW81: 0 | AX81: 0 | AY81: 0 | AZ81: 0 | BA81: 0 | BB81: 0 | BC81: 0 | BD81: 0 | BE81: 0 | BF81: 0 | BG81: 0 | BH81: 0 | BI81: 0 | BJ81: 0 | BK81: 0 | BL81: 0 | BM81: 0 | BN81: 0 | BO81: 0 | BP81: 0 | BQ81: 0 | BR81: 0 | BS81: 0 | BT81: 0 | BU81: 0 | BV81: =$E$81*BV80*BV$7 -> 0 | BW81: 0 | BX81: 0 | BY81: 0 | BZ81: 0 | CA81: 0 | CB81: 0 | CC81: 0 | CD81: 0 | CE81: 0 | CF81: 0 | CG81: 0 | CH81: 0 | CI81: 0 | CJ81: 0 | CK81: 0 | CL81: 0 | CM81: 0 | CN81: 0 | CO81: 0 | CP81: 0
C83: Volumes
C84: risks on crops | D84: % | E84: =1-conting_crop -> 0.975
C86: Wholesalers discounted volumes of ordinary rice | D86: Tons | E86: 1 | J86: =IF(OR(J$13>14,J$13<9),,IF(OR(AND(J$13>8,J$13<11),AND(J$13>12,J$13<15)),1/2*$E$86*J43*$E$84,$E$86*J43*$E$84)) -> 0 | K86: 0 | L86: 0 | M86: 0 | N86: 0 | O86: 0 | P86: 0 | Q86: 0 | R86: 0 | S86: 0 | T86: 8043.75 | U86: 10859.0625 | V86: =IF(OR(V$13>14,V$13<9),,IF(OR(AND(V$13>8,V$13<11),AND(V$13>12,V$13<15)),1/2*$E$86*V43*$E$84,$E$86*V43*$E$84)) -> 17213.625 | W86: =IF(OR(W$13>14,W$13<9),,IF(OR(AND(W$13>8,W$13<11),AND(W$13>12,W$13<15)),1/2*$E$86*W43*$E$84,$E$86*W43*$E$84)) -> 23166 | X86: 9009 | Y86: 11583 | Z86: 0 | AA86: 0 | AB86: 0 | AC86: 0 | AD86: 0 | AE86: 0 | AF86: 0 | AG86: 0 | AH86: 0 | AI86: 0 | AJ86: 0 | AK86: 0 | AL86: 0 | AM86: 0 | AN86: 0 | AO86: 0 | AP86: 0 | AQ86: 0 | AR86: 0 | AS86: 0 | AT86: 0 | AU86: 0 | AV86: 0 | AW86: 0 | AX86: 0 | AY86: 0 | AZ86: 0 | BA86: 0 | BB86: 0 | BC86: 0 | BD86: 0 | BE86: 0 | BF86: 0 | BG86: 0 | BH86: 0 | BI86: 0 | BJ86: 0 | BK86: 0 | BL86: 0 | BM86: 0 | BN86: 0 | BO86: 0 | BP86: 0 | BQ86: 0 | BR86: 0 | BS86: 0 | BT86: 0 | BU86: 0 | BV86: 0 | BW86: 0 | BX86: 0 | BY86: 0 | BZ86: 0 | CA86: 0 | CB86: 0 | CC86: 0 | CD86: 0 | CE86: 0 | CF86: 0 | CG86: 0 | CH86: 0 | CI86: =IF(OR(CI$13>14,CI$13<9),,IF(OR(AND(CI$13>8,CI$13<11),AND(CI$13>12,CI$13<15)),1/2*$E$86*CI43*$E$84,$E$86*CI43*$E$84)) -> 0 | CJ86: 0 | CK86: 0 | CL86: 0 | CM86: 0 | CN86: 0 | CO86: 0 | CP86: 0
C87: Wholesalers discounted volumes Flour | D87: Tons | E87: 0 | J87: =$E$87*J44*E84 -> 0 | K87: 0 | L87: 0 | M87: 0 | N87: 0 | O87: 0 | P87: 0 | Q87: 0 | R87: 0 | S87: 0 | T87: 0 | U87: 0 | V87: 0 | W87: 0 | X87: 0 | Y87: 0 | Z87: 0 | AA87: 0 | AB87: 0 | AC87: 0 | AD87: 0 | AE87: 0 | AF87: 0 | AG87: 0 | AH87: 0 | AI87: 0 | AJ87: 0 | AK87: 0 | AL87: 0 | AM87: 0 | AN87: 0 | AO87: 0 | AP87: =$E$87*AP44*AK84 -> 0 | AQ87: 0 | AR87: 0 | AS87: 0 | AT87: 0 | AU87: 0 | AV87: 0 | AW87: 0 | AX87: 0 | AY87: 0 | AZ87: 0 | BA87: 0 | BB87: 0 | BC87: 0 | BD87: 0 | BE87: 0 | BF87: 0 | BG87: 0 | BH87: 0 | BI87: 0 | BJ87: 0 | BK87: 0 | BL87: 0 | BM87: 0 | BN87: 0 | BO87: 0 | BP87: 0 | BQ87: 0 | BR87: 0 | BS87: 0 | BT87: 0 | BU87: 0 | BV87: =$E$87*BV44*BQ84 -> 0 | BW87: 0 | BX87: 0 | BY87: 0 | BZ87: 0 | CA87: 0 | CB87: 0 | CC87: 0 | CD87: 0 | CE87: 0 | CF87: 0 | CG87: 0 | CH87: 0 | CI87: 0 | CJ87: 0 | CK87: 0 | CL87: 0 | CM87: 0 | CN87: 0 | CO87: 0 | CP87: 0
C89: Sales in Million FCFA
C90: Ordinary rice sold in local market | D90: Million FCFA | J90: =J86*J77/Thousand -> 0 | K90: 0 | L90: 0 | M90: 0 | N90: 0 | O90: 0 | P90: 0 | Q90: 0 | R90: 0 | S90: 0 | T90: 2670.508486 | U90: 3605.186456 | V90: 5943.483686 | W90: 7998.707017 | X90: 3235.032616 | Y90: 4159.327649 | Z90: 0 | AA90: 0 | AB90: 0 | AC90: 0 | AD90: 0 | AE90: 0 | AF90: 0 | AG90: 0 | AH90: 0 | AI90: 0 | AJ90: 0 | AK90: 0 | AL90: 0 | AM90: 0 | AN90: 0 | AO90: 0 | AP90: 0 | AQ90: 0 | AR90: 0 | AS90: 0 | AT90: 0 | AU90: 0 | AV90: 0 | AW90: 0 | AX90: 0 | AY90: 0 | AZ90: 0 | BA90: 0 | BB90: 0 | BC90: 0 | BD90: 0 | BE90: 0 | BF90: 0 | BG90: 0 | BH90: 0 | BI90: 0 | BJ90: 0 | BK90: 0 | BL90: 0 | BM90: 0 | BN90: 0 | BO90: 0 | BP90: 0 | BQ90: 0 | BR90: 0 | BS90: 0 | BT90: 0 | BU90: 0 | BV90: =BV86*BV77/Thousand -> 0 | BW90: 0 | BX90: 0 | BY90: 0 | BZ90: 0 | CA90: 0 | CB90: 0 | CC90: 0 | CD90: 0 | CE90: 0 | CF90: 0 | CG90: 0 | CH90: 0 | CI90: 0 | CJ90: 0 | CK90: 0 | CL90: 0 | CM90: 0 | CN90: 0 | CO90: 0 | CP90: 0
C91: Flour sold in local market | D91: Million FCFA | J91: =J87*J81/Thousand -> 0 | K91: 0 | L91: 0 | M91: 0 | N91: 0 | O91: 0 | P91: 0 | Q91: 0 | R91: 0 | S91: 0 | T91: 0 | U91: 0 | V91: 0 | W91: 0 | X91: 0 | Y91: 0 | Z91: 0 | AA91: 0 | AB91: 0 | AC91: 0 | AD91: 0 | AE91: 0 | AF91: 0 | AG91: 0 | AH91: 0 | AI91: 0 | AJ91: 0 | AK91: 0 | AL91: 0 | AM91: 0 | AN91: 0 | AO91: 0 | AP91: 0 | AQ91: 0 | AR91: 0 | AS91: 0 | AT91: 0 | AU91: 0 | AV91: 0 | AW91: 0 | AX91: 0 | AY91: 0 | AZ91: 0 | BA91: 0 | BB91: 0 | BC91: 0 | BD91: 0 | BE91: 0 | BF91: 0 | BG91: 0 | BH91: 0 | BI91: 0 | BJ91: 0 | BK91: 0 | BL91: 0 | BM91: 0 | BN91: 0 | BO91: 0 | BP91: 0 | BQ91: 0 | BR91: 0 | BS91: 0 | BT91: 0 | BU91: 0 | BV91: =BV87*BV81/Thousand -> 0 | BW91: 0 | BX91: 0 | BY91: 0 | BZ91: 0 | CA91: 0 | CB91: 0 | CC91: 0 | CD91: 0 | CE91: 0 | CF91: 0 | CG91: 0 | CH91: 0 | CI91: 0 | CJ91: 0 | CK91: 0 | CL91: 0 | CM91: 0 | CN91: 0 | CO91: 0 | CP91: 0
C93: Sales in EUR
C94: Local sales of ordinary rice | D94: EUR | J94: =J90*Million/J$33 -> 0 | K94: =K90*Million/K$33 -> 0 | L94: 0 | M94: 0 | N94: 0 | O94: 0 | P94: 0 | Q94: 0 | R94: 0 | S94: 0 | T94: =T90*Million/T$33 -> 4071163.942 | U94: =U90*Million/U$33 -> 5496071.322 | V94: 9060782.469 | W94: 12193950.24 | X94: 4931775.43 | Y94: 6340854.124 | Z94: 0 | AA94: 0 | AB94: 0 | AC94: 0 | AD94: 0 | AE94: 0 | AF94: 0 | AG94: 0 | AH94: 0 | AI94: 0 | AJ94: 0 | AK94: 0 | AL94: 0 | AM94: 0 | AN94: 0 | AO94: 0 | AP94: 0 | AQ94: 0 | AR94: 0 | AS94: 0 | AT94: 0 | AU94: 0 | AV94: 0 | AW94: 0 | AX94: 0 | AY94: 0 | AZ94: 0 | BA94: 0 | BB94: 0 | BC94: 0 | BD94: 0 | BE94: 0 | BF94: 0 | BG94: 0 | BH94: 0 | BI94: 0 | BJ94: 0 | BK94: 0 | BL94: 0 | BM94: 0 | BN94: 0 | BO94: 0 | BP94: 0 | BQ94: 0 | BR94: 0 | BS94: 0 | BT94: 0 | BU94: 0 | BV94: 0 | BW94: 0 | BX94: 0 | BY94: 0 | BZ94: 0 | CA94: 0 | CB94: 0 | CC94: 0 | CD94: 0 | CE94: 0 | CF94: 0 | CG94: =CG90*Million/CG$33 -> 0 | CH94: 0 | CI94: 0 | CJ94: 0 | CK94: 0 | CL94: 0 | CM94: 0 | CN94: 0 | CO94: 0 | CP94: 0
C95: Local sales of flour | D95: EUR | J95: =J91*Million/J$33 -> 0 | K95: 0 | L95: 0 | M95: 0 | N95: 0 | O95: 0 | P95: 0 | Q95: 0 | R95: 0 | S95: 0 | T95: 0 | U95: 0 | V95: 0 | W95: 0 | X95: 0 | Y95: 0 | Z95: 0 | AA95: 0 | AB95: 0 | AC95: 0 | AD95: 0 | AE95: 0 | AF95: 0 | AG95: 0 | AH95: 0 | AI95: 0 | AJ95: 0 | AK95: 0 | AL95: 0 | AM95: 0 | AN95: 0 | AO95: 0 | AP95: 0 | AQ95: 0 | AR95: 0 | AS95: 0 | AT95: 0 | AU95: 0 | AV95: 0 | AW95: 0 | AX95: 0 | AY95: 0 | AZ95: 0 | BA95: 0 | BB95: 0 | BC95: 0 | BD95: 0 | BE95: 0 | BF95: 0 | BG95: 0 | BH95: 0 | BI95: 0 | BJ95: 0 | BK95: 0 | BL95: 0 | BM95: 0 | BN95: 0 | BO95: 0 | BP95: 0 | BQ95: 0 | BR95: 0 | BS95: 0 | BT95: 0 | BU95: 0 | BV95: =BV91*Million/BV$33 -> 0 | BW95: 0 | BX95: 0 | BY95: 0 | BZ95: 0 | CA95: 0 | CB95: 0 | CC95: 0 | CD95: 0 | CE95: 0 | CF95: 0 | CG95: 0 | CH95: 0 | CI95: 0 | CJ95: 0 | CK95: 0 | CL95: 0 | CM95: 0 | CN95: 0 | CO95: 0 | CP95: 0
C97: Sales to Local Market - wholesalers
C98: Price | J98: =$E$48*J$15 -> 0 | K98: 0 | L98: 0 | M98: 0 | N98: 0.04 | O98: 0 | P98: 0.04 | Q98: 0 | R98: 0.04 | S98: 0 | T98: 0.04 | U98: 0 | V98: 0.04 | W98: 0 | X98: 0.04 | Y98: 0 | Z98: 0.04 | AA98: 0 | AB98: 0.04 | AC98: 0 | AD98: 0.04 | AE98: 0 | AF98: 0.04 | AG98: 0 | AH98: 0.04 | AI98: 0 | AJ98: 0.04 | AK98: 0 | AL98: 0.04 | AM98: 0 | AN98: 0.04 | AO98: 0 | AP98: 0 | AQ98: 0 | AR98: 0 | AS98: 0 | AT98: 0 | AU98: 0 | AV98: 0 | AW98: 0 | AX98: 0 | AY98: 0 | AZ98: 0 | BA98: 0 | BB98: 0 | BC98: 0 | BD98: 0 | BE98: 0 | BF98: 0 | BG98: 0 | BH98: 0 | BI98: 0 | BJ98: 0 | BK98: 0 | BL98: 0 | BM98: 0 | BN98: 0 | BO98: 0 | BP98: 0 | BQ98: 0 | BR98: 0 | BS98: 0 | BT98: 0 | BU98: 0 | BV98: =$E$48*BV$15 -> 0 | BW98: 0 | BX98: 0 | BY98: 0 | BZ98: 0 | CA98: 0 | CB98: 0 | CC98: 0 | CD98: 0 | CE98: 0 | CF98: 0 | CG98: 0 | CH98: 0 | CI98: 0 | CJ98: 0 | CK98: 0 | CL98: 0 | CM98: 0 | CN98: 0 | CO98: 0 | CP98: 0
C99: Growth in prices | D99: % p.a. | E99: =inflation_céréales -> 0.04 | J99: =IF(J$3=$I$4+1,1,I99*(1+J98)) -> 1 | K99: =IF(K$3=$I$4+1,1,J99*(1+K98)) -> 1 | L99: =IF(L$3=$I$4+1,1,K99*(1+L98)) -> 1 | M99: =IF(M$3=$I$4+1,1,L99*(1+M98)) -> 1 | N99: =IF(N$3=$I$4+1,1,M99*(1+N98)) -> 1.04 | O99: =IF(O$3=$I$4+1,1,N99*(1+O98)) -> 1.04 | P99: =IF(P$3=$I$4+1,1,O99*(1+P98)) -> 1.0816 | Q99: =IF(Q$3=$I$4+1,1,P99*(1+Q98)) -> 1.0816 | R99: =IF(R$3=$I$4+1,1,Q99*(1+R98)) -> 1.124864 | S99: =IF(S$3=$I$4+1,1,R99*(1+S98)) -> 1.124864 | T99: =IF(T$3=$I$4+1,1,S99*(1+T98)) -> 1.16985856 | U99: =IF(U$3=$I$4+1,1,T99*(1+U98)) -> 1.16985856 | V99: =IF(V$3=$I$4+1,1,U99*(1+V98)) -> 1.216652902 | W99: =IF(W$3=$I$4+1,1,V99*(1+W98)) -> 1.216652902 | X99: =IF(X$3=$I$4+1,1,W99*(1+X98)) -> 1.265319018 | Y99: =IF(Y$3=$I$4+1,1,X99*(1+Y98)) -> 1.265319018 | Z99: =IF(Z$3=$I$4+1,1,Y99*(1+Z98)) -> 1.315931779 | AA99: =IF(AA$3=$I$4+1,1,Z99*(1+AA98)) -> 1.315931779 | AB99: =IF(AB$3=$I$4+1,1,AA99*(1+AB98)) -> 1.36856905 | AC99: =IF(AC$3=$I$4+1,1,AB99*(1+AC98)) -> 1.36856905 | AD99: =IF(AD$3=$I$4+1,1,AC99*(1+AD98)) -> 1.423311812 | AE99: =IF(AE$3=$I$4+1,1,AD99*(1+AE98)) -> 1.423311812 | AF99: =IF(AF$3=$I$4+1,1,AE99*(1+AF98)) -> 1.480244285 | AG99: =IF(AG$3=$I$4+1,1,AF99*(1+AG98)) -> 1.480244285 | AH99: =IF(AH$3=$I$4+1,1,AG99*(1+AH98)) -> 1.539454056 | AI99: =IF(AI$3=$I$4+1,1,AH99*(1+AI98)) -> 1.539454056 | AJ99: =IF(AJ$3=$I$4+1,1,AI99*(1+AJ98)) -> 1.601032219 | AK99: =IF(AK$3=$I$4+1,1,AJ99*(1+AK98)) -> 1.601032219 | AL99: =IF(AL$3=$I$4+1,1,AK99*(1+AL98)) -> 1.665073507 | AM99: =IF(AM$3=$I$4+1,1,AL99*(1+AM98)) -> 1.665073507 | AN99: =IF(AN$3=$I$4+1,1,AM99*(1+AN98)) -> 1.731676448 | AO99: =IF(AO$3=$I$4+1,1,AN99*(1+AO98)) -> 1.731676448 | AP99: =IF(AP$3=$I$4+1,1,AO99*(1+AP98)) -> 1.731676448 | AQ99: =IF(AQ$3=$I$4+1,1,AP99*(1+AQ98)) -> 1.731676448 | AR99: =IF(AR$3=$I$4+1,1,AQ99*(1+AR98)) -> 1.731676448 | AS99: =IF(AS$3=$I$4+1,1,AR99*(1+AS98)) -> 1.731676448 | AT99: =IF(AT$3=$I$4+1,1,AS99*(1+AT98)) -> 1.731676448 | AU99: =IF(AU$3=$I$4+1,1,AT99*(1+AU98)) -> 1.731676448 | AV99: =IF(AV$3=$I$4+1,1,AU99*(1+AV98)) -> 1.731676448 | AW99: =IF(AW$3=$I$4+1,1,AV99*(1+AW98)) -> 1.731676448 | AX99: =IF(AX$3=$I$4+1,1,AW99*(1+AX98)) -> 1.731676448 | AY99: =IF(AY$3=$I$4+1,1,AX99*(1+AY98)) -> 1.731676448 | AZ99: =IF(AZ$3=$I$4+1,1,AY99*(1+AZ98)) -> 1.731676448 | BA99: =IF(BA$3=$I$4+1,1,AZ99*(1+BA98)) -> 1.731676448 | BB99: =IF(BB$3=$I$4+1,1,BA99*(1+BB98)) -> 1.731676448 | BC99: =IF(BC$3=$I$4+1,1,BB99*(1+BC98)) -> 1.731676448 | BD99: =IF(BD$3=$I$4+1,1,BC99*(1+BD98)) -> 1.731676448 | BE99: =IF(BE$3=$I$4+1,1,BD99*(1+BE98)) -> 1.731676448 | BF99: =IF(BF$3=$I$4+1,1,BE99*(1+BF98)) -> 1.731676448 | BG99: =IF(BG$3=$I$4+1,1,BF99*(1+BG98)) -> 1.731676448 | BH99: =IF(BH$3=$I$4+1,1,BG99*(1+BH98)) -> 1.731676448 | BI99: =IF(BI$3=$I$4+1,1,BH99*(1+BI98)) -> 1.731676448 | BJ99: =IF(BJ$3=$I$4+1,1,BI99*(1+BJ98)) -> 1.731676448 | BK99: =IF(BK$3=$I$4+1,1,BJ99*(1+BK98)) -> 1.731676448 | BL99: =IF(BL$3=$I$4+1,1,BK99*(1+BL98)) -> 1.731676448 | BM99: =IF(BM$3=$I$4+1,1,BL99*(1+BM98)) -> 1.731676448 | BN99: =IF(BN$3=$I$4+1,1,BM99*(1+BN98)) -> 1.731676448 | BO99: =IF(BO$3=$I$4+1,1,BN99*(1+BO98)) -> 1.731676448 | BP99: =IF(BP$3=$I$4+1,1,BO99*(1+BP98)) -> 1.731676448 | BQ99: =IF(BQ$3=$I$4+1,1,BP99*(1+BQ98)) -> 1.731676448 | BR99: =IF(BR$3=$I$4+1,1,BQ99*(1+BR98)) -> 1.731676448 | BS99: =IF(BS$3=$I$4+1,1,BR99*(1+BS98)) -> 1.731676448 | BT99: =IF(BT$3=$I$4+1,1,BS99*(1+BT98)) -> 1.731676448 | BU99: =IF(BU$3=$I$4+1,1,BT99*(1+BU98)) -> 1.731676448 | BV99: =IF(BV$3=$I$4+1,1,BU99*(1+BV98)) -> 1.731676448 | BW99: =IF(BW$3=$I$4+1,1,BV99*(1+BW98)) -> 1.731676448 | BX99: =IF(BX$3=$I$4+1,1,BW99*(1+BX98)) -> 1.731676448 | BY99: =IF(BY$3=$I$4+1,1,BX99*(1+BY98)) -> 1.731676448 | BZ99: =IF(BZ$3=$I$4+1,1,BY99*(1+BZ98)) -> 1.731676448 | CA99: =IF(CA$3=$I$4+1,1,BZ99*(1+CA98)) -> 1.731676448 | CB99: =IF(CB$3=$I$4+1,1,CA99*(1+CB98)) -> 1.731676448 | CC99: =IF(CC$3=$I$4+1,1,CB99*(1+CC98)) -> 1.731676448 | CD99: =IF(CD$3=$I$4+1,1,CC99*(1+CD98)) -> 1.731676448 | CE99: =IF(CE$3=$I$4+1,1,CD99*(1+CE98)) -> 1.731676448 | CF99: =IF(CF$3=$I$4+1,1,CE99*(1+CF98)) -> 1.731676448 | CG99: =IF(CG$3=$I$4+1,1,CF99*(1+CG98)) -> 1.731676448 | CH99: =IF(CH$3=$I$4+1,1,CG99*(1+CH98)) -> 1.731676448 | CI99: =IF(CI$3=$I$4+1,1,CH99*(1+CI98)) -> 1.731676448 | CJ99: =IF(CJ$3=$I$4+1,1,CI99*(1+CJ98)) -> 1.731676448 | CK99: =IF(CK$3=$I$4+1,1,CJ99*(1+CK98)) -> 1.731676448 | CL99: =IF(CL$3=$I$4+1,1,CK99*(1+CL98)) -> 1.731676448 | CM99: =IF(CM$3=$I$4+1,1,CL99*(1+CM98)) -> 1.731676448 | CN99: =IF(CN$3=$I$4+1,1,CM99*(1+CN98)) -> 1.731676448 | CO99: =IF(CO$3=$I$4+1,1,CN99*(1+CO98)) -> 1.731676448 | CP99: =IF(CP$3=$I$4+1,1,CO99*(1+CP98)) -> 1.731676448
C100: wholesales cereals price Index
C101: ordinary rice retailers price | D101: EUR/tons | E101: =ordinary_rice_retailer*parité/1000 -> 291.9795798 | J101: =$E$101*J99*J$7 -> 0 | K101: 0 | L101: 291.9795798 | M101: 291.9795798 | N101: 303.658763 | O101: 303.658763 | P101: 315.8051136 | Q101: 315.8051136 | R101: 328.4373181 | S101: 328.4373181 | T101: 341.5748108 | U101: 341.5748108 | V101: 355.2378033 | W101: 355.2378033 | X101: 369.4473154 | Y101: 369.4473154 | Z101: 384.225208 | AA101: 384.225208 | AB101: 399.5942163 | AC101: 399.5942163 | AD101: 415.577985 | AE101: 415.577985 | AF101: 432.2011044 | AG101: 432.2011044 | AH101: 449.4891485 | AI101: 449.4891485 | AJ101: 467.4687145 | AK101: 467.4687145 | AL101: 486.1674631 | AM101: 486.1674631 | AN101: 505.6141616 | AO101: 505.6141616 | AP101: =$E$101*AP99*AP$7 -> 0 | AQ101: 0 | AR101: 0 | AS101: 0 | AT101: 0 | AU101: 0 | AV101: 0 | AW101: 0 | AX101: 0 | AY101: 0 | AZ101: 0 | BA101: 0 | BB101: 0 | BC101: 0 | BD101: 0 | BE101: 0 | BF101: 0 | BG101: 0 | BH101: 0 | BI101: 0 | BJ101: 0 | BK101: 0 | BL101: 0 | BM101: 0 | BN101: 0 | BO101: 0 | BP101: 0 | BQ101: 0 | BR101: 0 | BS101: 0 | BT101: 0 | BU101: 0 | BV101: =$E$101*BV99*BV$7 -> 0 | BW101: 0 | BX101: 0 | BY101: 0 | BZ101: 0 | CA101: 0 | CB101: 0 | CC101: 0 | CD101: 0 | CE101: 0 | CF101: 0 | CG101: 0 | CH101: 0 | CI101: 0 | CJ101: 0 | CK101: 0 | CL101: 0 | CM101: 0 | CN101: 0 | CO101: 0 | CP101: 0
C103: Growth in Flour prices | D103: % p.a. | E103: =inflation_céréales -> 0.04 | J103: =$E$79*J$15 -> 0 | K103: 0 | L103: 0 | M103: 0 | N103: 0.04 | O103: 0 | P103: 0.04 | Q103: 0 | R103: 0.04 | S103: 0 | T103: 0.04 | U103: 0 | V103: 0.04 | W103: 0 | X103: 0.04 | Y103: 0 | Z103: 0.04 | AA103: 0 | AB103: 0.04 | AC103: 0 | AD103: 0.04 | AE103: 0 | AF103: 0.04 | AG103: 0 | AH103: 0.04 | AI103: 0 | AJ103: 0.04 | AK103: 0 | AL103: 0.04 | AM103: 0 | AN103: 0.04 | AO103: 0 | AP103: =$E$79*AP$15 -> 0 | AQ103: 0 | AR103: 0 | AS103: 0 | AT103: 0 | AU103: 0 | AV103: 0 | AW103: 0 | AX103: 0 | AY103: 0 | AZ103: 0 | BA103: 0 | BB103: 0 | BC103: 0 | BD103: 0 | BE103: 0 | BF103: 0 | BG103: 0 | BH103: 0 | BI103: 0 | BJ103: 0 | BK103: 0 | BL103: 0 | BM103: 0 | BN103: 0 | BO103: 0 | BP103: 0 | BQ103: 0 | BR103: 0 | BS103: 0 | BT103: 0 | BU103: 0 | BV103: =$E$79*BV$15 -> 0 | BW103: 0 | BX103: 0 | BY103: 0 | BZ103: 0 | CA103: 0 | CB103: 0 | CC103: 0 | CD103: 0 | CE103: 0 | CF103: 0 | CG103: 0 | CH103: 0 | CI103: 0 | CJ103: 0 | CK103: 0 | CL103: 0 | CM103: 0 | CN103: 0 | CO103: 0 | CP103: 0
C104: Flour price Index | J104: =IF(J$3=$I$4+1,1,I104*(1+J103)) -> 1 | K104: =IF(K$3=$I$4+1,1,J104*(1+K103)) -> 1 | L104: =IF(L$3=$I$4+1,1,K104*(1+L103)) -> 1 | M104: =IF(M$3=$I$4+1,1,L104*(1+M103)) -> 1 | N104: =IF(N$3=$I$4+1,1,M104*(1+N103)) -> 1.04 | O104: =IF(O$3=$I$4+1,1,N104*(1+O103)) -> 1.04 | P104: =IF(P$3=$I$4+1,1,O104*(1+P103)) -> 1.0816 | Q104: =IF(Q$3=$I$4+1,1,P104*(1+Q103)) -> 1.0816 | R104: =IF(R$3=$I$4+1,1,Q104*(1+R103)) -> 1.124864 | S104: =IF(S$3=$I$4+1,1,R104*(1+S103)) -> 1.124864 | T104: =IF(T$3=$I$4+1,1,S104*(1+T103)) -> 1.16985856 | U104: =IF(U$3=$I$4+1,1,T104*(1+U103)) -> 1.16985856 | V104: =IF(V$3=$I$4+1,1,U104*(1+V103)) -> 1.216652902 | W104: =IF(W$3=$I$4+1,1,V104*(1+W103)) -> 1.216652902 | X104: =IF(X$3=$I$4+1,1,W104*(1+X103)) -> 1.265319018 | Y104: =IF(Y$3=$I$4+1,1,X104*(1+Y103)) -> 1.265319018 | Z104: =IF(Z$3=$I$4+1,1,Y104*(1+Z103)) -> 1.315931779 | AA104: =IF(AA$3=$I$4+1,1,Z104*(1+AA103)) -> 1.315931779 | AB104: =IF(AB$3=$I$4+1,1,AA104*(1+AB103)) -> 1.36856905 | AC104: =IF(AC$3=$I$4+1,1,AB104*(1+AC103)) -> 1.36856905 | AD104: =IF(AD$3=$I$4+1,1,AC104*(1+AD103)) -> 1.423311812 | AE104: =IF(AE$3=$I$4+1,1,AD104*(1+AE103)) -> 1.423311812 | AF104: =IF(AF$3=$I$4+1,1,AE104*(1+AF103)) -> 1.480244285 | AG104: =IF(AG$3=$I$4+1,1,AF104*(1+AG103)) -> 1.480244285 | AH104: =IF(AH$3=$I$4+1,1,AG104*(1+AH103)) -> 1.539454056 | AI104: =IF(AI$3=$I$4+1,1,AH104*(1+AI103)) -> 1.539454056 | AJ104: =IF(AJ$3=$I$4+1,1,AI104*(1+AJ103)) -> 1.601032219 | AK104: =IF(AK$3=$I$4+1,1,AJ104*(1+AK103)) -> 1.601032219 | AL104: =IF(AL$3=$I$4+1,1,AK104*(1+AL103)) -> 1.665073507 | AM104: =IF(AM$3=$I$4+1,1,AL104*(1+AM103)) -> 1.665073507 | AN104: =IF(AN$3=$I$4+1,1,AM104*(1+AN103)) -> 1.731676448 | AO104: =IF(AO$3=$I$4+1,1,AN104*(1+AO103)) -> 1.731676448 | AP104: =IF(AP$3=$I$4+1,1,AO104*(1+AP103)) -> 1.731676448 | AQ104: =IF(AQ$3=$I$4+1,1,AP104*(1+AQ103)) -> 1.731676448 | AR104: =IF(AR$3=$I$4+1,1,AQ104*(1+AR103)) -> 1.731676448 | AS104: =IF(AS$3=$I$4+1,1,AR104*(1+AS103)) -> 1.731676448 | AT104: =IF(AT$3=$I$4+1,1,AS104*(1+AT103)) -> 1.731676448 | AU104: =IF(AU$3=$I$4+1,1,AT104*(1+AU103)) -> 1.731676448 | AV104: =IF(AV$3=$I$4+1,1,AU104*(1+AV103)) -> 1.731676448 | AW104: =IF(AW$3=$I$4+1,1,AV104*(1+AW103)) -> 1.731676448 | AX104: =IF(AX$3=$I$4+1,1,AW104*(1+AX103)) -> 1.731676448 | AY104: =IF(AY$3=$I$4+1,1,AX104*(1+AY103)) -> 1.731676448 | AZ104: =IF(AZ$3=$I$4+1,1,AY104*(1+AZ103)) -> 1.731676448 | BA104: =IF(BA$3=$I$4+1,1,AZ104*(1+BA103)) -> 1.731676448 | BB104: =IF(BB$3=$I$4+1,1,BA104*(1+BB103)) -> 1.731676448 | BC104: =IF(BC$3=$I$4+1,1,BB104*(1+BC103)) -> 1.731676448 | BD104: =IF(BD$3=$I$4+1,1,BC104*(1+BD103)) -> 1.731676448 | BE104: =IF(BE$3=$I$4+1,1,BD104*(1+BE103)) -> 1.731676448 | BF104: =IF(BF$3=$I$4+1,1,BE104*(1+BF103)) -> 1.731676448 | BG104: =IF(BG$3=$I$4+1,1,BF104*(1+BG103)) -> 1.731676448 | BH104: =IF(BH$3=$I$4+1,1,BG104*(1+BH103)) -> 1.731676448 | BI104: =IF(BI$3=$I$4+1,1,BH104*(1+BI103)) -> 1.731676448 | BJ104: =IF(BJ$3=$I$4+1,1,BI104*(1+BJ103)) -> 1.731676448 | BK104: =IF(BK$3=$I$4+1,1,BJ104*(1+BK103)) -> 1.731676448 | BL104: =IF(BL$3=$I$4+1,1,BK104*(1+BL103)) -> 1.731676448 | BM104: =IF(BM$3=$I$4+1,1,BL104*(1+BM103)) -> 1.731676448 | BN104: =IF(BN$3=$I$4+1,1,BM104*(1+BN103)) -> 1.731676448 | BO104: =IF(BO$3=$I$4+1,1,BN104*(1+BO103)) -> 1.731676448 | BP104: =IF(BP$3=$I$4+1,1,BO104*(1+BP103)) -> 1.731676448 | BQ104: =IF(BQ$3=$I$4+1,1,BP104*(1+BQ103)) -> 1.731676448 | BR104: =IF(BR$3=$I$4+1,1,BQ104*(1+BR103)) -> 1.731676448 | BS104: =IF(BS$3=$I$4+1,1,BR104*(1+BS103)) -> 1.731676448 | BT104: =IF(BT$3=$I$4+1,1,BS104*(1+BT103)) -> 1.731676448 | BU104: =IF(BU$3=$I$4+1,1,BT104*(1+BU103)) -> 1.731676448 | BV104: =IF(BV$3=$I$4+1,1,BU104*(1+BV103)) -> 1.731676448 | BW104: =IF(BW$3=$I$4+1,1,BV104*(1+BW103)) -> 1.731676448 | BX104: =IF(BX$3=$I$4+1,1,BW104*(1+BX103)) -> 1.731676448 | BY104: =IF(BY$3=$I$4+1,1,BX104*(1+BY103)) -> 1.731676448 | BZ104: =IF(BZ$3=$I$4+1,1,BY104*(1+BZ103)) -> 1.731676448 | CA104: =IF(CA$3=$I$4+1,1,BZ104*(1+CA103)) -> 1.731676448 | CB104: =IF(CB$3=$I$4+1,1,CA104*(1+CB103)) -> 1.731676448 | CC104: =IF(CC$3=$I$4+1,1,CB104*(1+CC103)) -> 1.731676448 | CD104: =IF(CD$3=$I$4+1,1,CC104*(1+CD103)) -> 1.731676448 | CE104: =IF(CE$3=$I$4+1,1,CD104*(1+CE103)) -> 1.731676448 | CF104: =IF(CF$3=$I$4+1,1,CE104*(1+CF103)) -> 1.731676448 | CG104: =IF(CG$3=$I$4+1,1,CF104*(1+CG103)) -> 1.731676448 | CH104: =IF(CH$3=$I$4+1,1,CG104*(1+CH103)) -> 1.731676448 | CI104: =IF(CI$3=$I$4+1,1,CH104*(1+CI103)) -> 1.731676448 | CJ104: =IF(CJ$3=$I$4+1,1,CI104*(1+CJ103)) -> 1.731676448 | CK104: =IF(CK$3=$I$4+1,1,CJ104*(1+CK103)) -> 1.731676448 | CL104: =IF(CL$3=$I$4+1,1,CK104*(1+CL103)) -> 1.731676448 | CM104: =IF(CM$3=$I$4+1,1,CL104*(1+CM103)) -> 1.731676448 | CN104: =IF(CN$3=$I$4+1,1,CM104*(1+CN103)) -> 1.731676448 | CO104: =IF(CO$3=$I$4+1,1,CN104*(1+CO103)) -> 1.731676448 | CP104: =IF(CP$3=$I$4+1,1,CO104*(1+CP103)) -> 1.731676448
C105: Flour market price | D105: EUR/tons | E105: =rice_by_product*parité/1000 -> 70 | J105: =$E$81*J104*J$7 -> 0 | K105: 0 | L105: 70 | M105: 70 | N105: 72.8 | O105: 72.8 | P105: 75.712 | Q105: 75.712 | R105: 78.74048 | S105: 78.74048 | T105: 81.8900992 | U105: 81.8900992 | V105: 85.16570317 | W105: 85.16570317 | X105: 88.57233129 | Y105: 88.57233129 | Z105: 92.11522455 | AA105: 92.11522455 | AB105: 95.79983353 | AC105: 95.79983353 | AD105: 99.63182687 | AE105: 99.63182687 | AF105: 103.6170999 | AG105: 103.6170999 | AH105: 107.7617839 | AI105: 107.7617839 | AJ105: 112.0722553 | AK105: 112.0722553 | AL105: 116.5551455 | AM105: 116.5551455 | AN105: 121.2173513 | AO105: 121.2173513 | AP105: =$E$81*AP104*AP$7 -> 0 | AQ105: 0 | AR105: 0 | AS105: 0 | AT105: 0 | AU105: 0 | AV105: 0 | AW105: 0 | AX105: 0 | AY105: 0 | AZ105: 0 | BA105: 0 | BB105: 0 | BC105: 0 | BD105: 0 | BE105: 0 | BF105: 0 | BG105: 0 | BH105: 0 | BI105: 0 | BJ105: 0 | BK105: 0 | BL105: 0 | BM105: 0 | BN105: 0 | BO105: 0 | BP105: 0 | BQ105: 0 | BR105: 0 | BS105: 0 | BT105: 0 | BU105: 0 | BV105: =$E$81*BV104*BV$7 -> 0 | BW105: 0 | BX105: 0 | BY105: 0 | BZ105: 0 | CA105: 0 | CB105: 0 | CC105: 0 | CD105: 0 | CE105: 0 | CF105: 0 | CG105: 0 | CH105: 0 | CI105: 0 | CJ105: 0 | CK105: 0 | CL105: 0 | CM105: 0 | CN105: 0 | CO105: 0 | CP105: 0
C107: Volumes
C108: risks on crops | D108: % | E108: =1-conting_crop -> 0.975
C110: wholesalers volumes of ordinary rice | D110: Tons | E110: 1 | J110: =IF(J$13<13,,IF(AND(J$13>12,J$13<15),1/2*$E$110*J43*$E$108,$E$110*J43*$E$108)) -> 0 | K110: 0 | L110: 0 | M110: 0 | N110: 0 | O110: 0 | P110: 0 | Q110: 0 | R110: 0 | S110: 0 | T110: 0 | U110: 0 | V110: 0 | W110: 0 | X110: 9009 | Y110: 11583 | Z110: =IF(Z$13<13,,IF(AND(Z$13>12,Z$13<15),1/2*$E$110*Z43*$E$108,$E$110*Z43*$E$108)) -> 18018 | AA110: =IF(AA$13<13,,IF(AND(AA$13>12,AA$13<15),1/2*$E$110*AA43*$E$108,$E$110*AA43*$E$108)) -> 23166 | AB110: 18018 | AC110: 23166 | AD110: 18018 | AE110: 23166 | AF110: 18018 | AG110: 23166 | AH110: 18018 | AI110: 23166 | AJ110: 18018 | AK110: 23166 | AL110: 18018 | AM110: 23166 | AN110: 18018 | AO110: 23166 | AP110: 0 | AQ110: 0 | AR110: 0 | AS110: 0 | AT110: 0 | AU110: 0 | AV110: 0 | AW110: 0 | AX110: 0 | AY110: 0 | AZ110: 0 | BA110: 0 | BB110: 0 | BC110: 0 | BD110: 0 | BE110: 0 | BF110: 0 | BG110: 0 | BH110: 0 | BI110: 0 | BJ110: 0 | BK110: 0 | BL110: 0 | BM110: 0 | BN110: 0 | BO110: 0 | BP110: 0 | BQ110: 0 | BR110: 0 | BS110: 0 | BT110: 0 | BU110: 0 | BV110: 0 | BW110: 0 | BX110: 0 | BY110: 0 | BZ110: 0 | CA110: 0 | CB110: 0 | CC110: 0 | CD110: 0 | CE110: 0 | CF110: 0 | CG110: 0 | CH110: 0 | CI110: 0 | CJ110: 0 | CK110: 0 | CL110: 0 | CM110: =IF(CM$13<13,,IF(AND(CM$13>12,CM$13<15),1/2*$E$110*CM43*$E$108,$E$110*CM43*$E$108)) -> 0 | CN110: 0 | CO110: 0 | CP110: 0
C111: wholesalers volumes Flour | D111: Tons | E111: 0 | J111: =$E$87*J64*E108 -> 0 | K111: 0 | L111: 0 | M111: 0 | N111: 0 | O111: 0 | P111: 0 | Q111: 0 | R111: 0 | S111: 0 | T111: 0 | U111: 0 | V111: 0 | W111: 0 | X111: 0 | Y111: 0 | Z111: 0 | AA111: 0 | AB111: 0 | AC111: 0 | AD111: 0 | AE111: 0 | AF111: 0 | AG111: 0 | AH111: 0 | AI111: 0 | AJ111: 0 | AK111: 0 | AL111: 0 | AM111: 0 | AN111: 0 | AO111: 0 | AP111: =$E$87*AP64*AK108 -> 0 | AQ111: 0 | AR111: 0 | AS111: 0 | AT111: 0 | AU111: 0 | AV111: 0 | AW111: 0 | AX111: 0 | AY111: 0 | AZ111: 0 | BA111: 0 | BB111: 0 | BC111: 0 | BD111: 0 | BE111: 0 | BF111: 0 | BG111: 0 | BH111: 0 | BI111: 0 | BJ111: 0 | BK111: 0 | BL111: 0 | BM111: 0 | BN111: 0 | BO111: 0 | BP111: 0 | BQ111: 0 | BR111: 0 | BS111: 0 | BT111: 0 | BU111: 0 | BV111: =$E$87*BV64*BQ108 -> 0 | BW111: 0 | BX111: 0 | BY111: 0 | BZ111: 0 | CA111: 0 | CB111: 0 | CC111: 0 | CD111: 0 | CE111: 0 | CF111: 0 | CG111: 0 | CH111: 0 | CI111: 0 | CJ111: 0 | CK111: 0 | CL111: 0 | CM111: 0 | CN111: 0 | CO111: 0 | CP111: 0
C113: Sales in Million FCFA
C114: Ordinary rice sold in local market | D114: Million FCFA | J114: =J110*J101/Thousand -> 0 | K114: 0 | L114: 0 | M114: 0 | N114: 0 | O114: 0 | P114: 0 | Q114: 0 | R114: 0 | S114: 0 | T114: 0 | U114: 0 | V114: 0 | W114: 0 | X114: 3328.350864 | Y114: 4279.308254 | Z114: 6922.969798 | AA114: 8900.961169 | AB114: 7199.88859 | AC114: 9256.999615 | AD114: 7487.884133 | AE114: 9627.2796 | AF114: 7787.399499 | AG114: 10012.37078 | AH114: 8098.895478 | AI114: 10412.86562 | AJ114: 8422.851298 | AK114: 10829.38024 | AL114: 8759.76535 | AM114: 11262.55545 | AN114: 9110.155964 | AO114: 11713.05767 | AP114: 0 | AQ114: 0 | AR114: 0 | AS114: 0 | AT114: 0 | AU114: 0 | AV114: 0 | AW114: 0 | AX114: 0 | AY114: 0 | AZ114: 0 | BA114: 0 | BB114: 0 | BC114: 0 | BD114: 0 | BE114: 0 | BF114: 0 | BG114: 0 | BH114: 0 | BI114: 0 | BJ114: 0 | BK114: 0 | BL114: 0 | BM114: 0 | BN114: 0 | BO114: 0 | BP114: 0 | BQ114: 0 | BR114: 0 | BS114: 0 | BT114: 0 | BU114: 0 | BV114: =BV110*BV101/Thousand -> 0 | BW114: 0 | BX114: 0 | BY114: 0 | BZ114: 0 | CA114: 0 | CB114: 0 | CC114: 0 | CD114: 0 | CE114: 0 | CF114: 0 | CG114: 0 | CH114: 0 | CI114: 0 | CJ114: 0 | CK114: 0 | CL114: 0 | CM114: 0 | CN114: 0 | CO114: 0 | CP114: 0
C115: Flour sold in local market | D115: Million FCFA | J115: =J111*J105/Thousand -> 0 | K115: 0 | L115: 0 | M115: 0 | N115: 0 | O115: 0 | P115: 0 | Q115: 0 | R115: 0 | S115: 0 | T115: 0 | U115: 0 | V115: 0 | W115: 0 | X115: 0 | Y115: 0 | Z115: 0 | AA115: 0 | AB115: 0 | AC115: 0 | AD115: 0 | AE115: 0 | AF115: 0 | AG115: 0 | AH115: 0 | AI115: 0 | AJ115: 0 | AK115: 0 | AL115: 0 | AM115: 0 | AN115: 0 | AO115: 0 | AP115: 0 | AQ115: 0 | AR115: 0 | AS115: 0 | AT115: 0 | AU115: 0 | AV115: 0 | AW115: 0 | AX115: 0 | AY115: 0 | AZ115: 0 | BA115: 0 | BB115: 0 | BC115: 0 | BD115: 0 | BE115: 0 | BF115: 0 | BG115: 0 | BH115: 0 | BI115: 0 | BJ115: 0 | BK115: 0 | BL115: 0 | BM115: 0 | BN115: 0 | BO115: 0 | BP115: 0 | BQ115: 0 | BR115: 0 | BS115: 0 | BT115: 0 | BU115: 0 | BV115: =BV111*BV105/Thousand -> 0 | BW115: 0 | BX115: 0 | BY115: 0 | BZ115: 0 | CA115: 0 | CB115: 0 | CC115: 0 | CD115: 0 | CE115: 0 | CF115: 0 | CG115: 0 | CH115: 0 | CI115: 0 | CJ115: 0 | CK115: 0 | CL115: 0 | CM115: 0 | CN115: 0 | CO115: 0 | CP115: 0
C117: Sales in EUR
C118: Local sales of ordinary rice | D118: EUR | J118: =J114*Million/J$33 -> 0 | K118: =K114*Million/K$33 -> 0 | L118: 0 | M118: 0 | N118: 0 | O118: 0 | P118: 0 | Q118: 0 | R118: 0 | S118: 0 | T118: =T114*Million/T$33 -> 0 | U118: =U114*Million/U$33 -> 0 | V118: 0 | W118: 0 | X118: 5074038.183 | Y118: 6523763.378 | Z118: 10553999.42 | AA118: 13569427.83 | AB118: 10976159.4 | AC118: 14112204.94 | AD118: 11415205.77 | AE118: 14676693.14 | AF118: 11871814 | AG118: 15263760.86 | AH118: 12346686.56 | AI118: 15874311.3 | AJ118: 12840554.03 | AK118: 16509283.75 | AL118: 13354176.19 | AM118: 17169655.1 | AN118: 13888343.24 | AO118: 17856441.3 | AP118: 0 | AQ118: 0 | AR118: 0 | AS118: 0 | AT118: 0 | AU118: 0 | AV118: 0 | AW118: 0 | AX118: 0 | AY118: 0 | AZ118: 0 | BA118: 0 | BB118: 0 | BC118: 0 | BD118: 0 | BE118: 0 | BF118: 0 | BG118: 0 | BH118: 0 | BI118: 0 | BJ118: 0 | BK118: 0 | BL118: 0 | BM118: 0 | BN118: 0 | BO118: 0 | BP118: 0 | BQ118: 0 | BR118: 0 | BS118: 0 | BT118: 0 | BU118: 0 | BV118: 0 | BW118: 0 | BX118: 0 | BY118: 0 | BZ118: 0 | CA118: 0 | CB118: 0 | CC118: 0 | CD118: 0 | CE118: 0 | CF118: 0 | CG118: =CG114*Million/CG$33 -> 0 | CH118: 0 | CI118: 0 | CJ118: 0 | CK118: 0 | CL118: 0 | CM118: 0 | CN118: 0 | CO118: 0 | CP118: 0
C119: Local sales of flour | D119: EUR | J119: =J115*Million/J$33 -> 0 | K119: 0 | L119: 0 | M119: 0 | N119: 0 | O119: 0 | P119: 0 | Q119: 0 | R119: 0 | S119: 0 | T119: 0 | U119: 0 | V119: 0 | W119: 0 | X119: 0 | Y119: 0 | Z119: 0 | AA119: 0 | AB119: 0 | AC119: 0 | AD119: 0 | AE119: 0 | AF119: 0 | AG119: 0 | AH119: 0 | AI119: 0 | AJ119: 0 | AK119: 0 | AL119: 0 | AM119: 0 | AN119: 0 | AO119: 0 | AP119: 0 | AQ119: 0 | AR119: 0 | AS119: 0 | AT119: 0 | AU119: 0 | AV119: 0 | AW119: 0 | AX119: 0 | AY119: 0 | AZ119: 0 | BA119: 0 | BB119: 0 | BC119: 0 | BD119: 0 | BE119: 0 | BF119: 0 | BG119: 0 | BH119: 0 | BI119: 0 | BJ119: 0 | BK119: 0 | BL119: 0 | BM119: 0 | BN119: 0 | BO119: 0 | BP119: 0 | BQ119: 0 | BR119: 0 | BS119: 0 | BT119: 0 | BU119: 0 | BV119: =BV115*Million/BV$33 -> 0 | BW119: 0 | BX119: 0 | BY119: 0 | BZ119: 0 | CA119: 0 | CB119: 0 | CC119: 0 | CD119: 0 | CE119: 0 | CF119: 0 | CG119: 0 | CH119: 0 | CI119: 0 | CJ119: 0 | CK119: 0 | CL119: 0 | CM119: 0 | CN119: 0 | CO119: 0 | CP119: 0
C122: Trading areas
C123: Trading Commercialised volumes | J123: =J41 -> 2012-01-01 | K123: 2012-07-01 | L123: 2013-01-01 | M123: 2013-07-01 | N123: 2014-01-01 | O123: 2014-07-01 | P123: 2015-01-01 | Q123: 2015-07-01 | R123: 2016-01-01 | S123: 2016-07-01 | T123: 2017-01-01 | U123: 2017-07-01 | V123: 2018-01-01 | W123: 2018-07-01 | X123: 2019-01-01 | Y123: 2019-07-01 | Z123: 2020-01-01 | AA123: 2020-07-01 | AB123: 2021-01-01 | AC123: 2021-07-01 | AD123: 2022-01-01 | AE123: 2022-07-01 | AF123: 2023-01-01 | AG123: 2023-07-01 | AH123: 2024-01-01 | AI123: 2024-07-01 | AJ123: 2025-01-01 | AK123: 2025-07-01 | AL123: 2026-01-01 | AM123: 2026-07-01 | AN123: 2027-01-01 | AO123: 2027-07-01
C124: Annual milled quantity | D124: Tons | J124: =LOOKUP(J$123,'Trading 1 Farm'!$AF$18:$BM$18,'Trading 1 Farm'!$AF21:$BM21)*J7 -> 0 | K124: =LOOKUP(K$123,'Trading 1 Farm'!$AF$18:$BM$18,'Trading 1 Farm'!$AF21:$BM21)*K7 -> 0 | L124: =LOOKUP(L$123,'Trading 1 Farm'!$AF$18:$BM$18,'Trading 1 Farm'!$AF21:$BM21)*L7 -> 0 | M124: =LOOKUP(M$123,'Trading 1 Farm'!$AF$18:$BM$18,'Trading 1 Farm'!$AF21:$BM21)*M7 -> 0 | N124: =LOOKUP(N$123,'Trading 1 Farm'!$AF$18:$BM$18,'Trading 1 Farm'!$AF21:$BM21)*N7 -> 67.5 | O124: =LOOKUP(O$123,'Trading 1 Farm'!$AF$18:$BM$18,'Trading 1 Farm'!$AF21:$BM21)*O7 -> 405 | P124: =LOOKUP(P$123,'Trading 1 Farm'!$AF$18:$BM$18,'Trading 1 Farm'!$AF21:$BM21)*P7 -> 480 | Q124: =LOOKUP(Q$123,'Trading 1 Farm'!$AF$18:$BM$18,'Trading 1 Farm'!$AF21:$BM21)*Q7 -> 855 | R124: =LOOKUP(R$123,'Trading 1 Farm'!$AF$18:$BM$18,'Trading 1 Farm'!$AF21:$BM21)*R7 -> 937.5 | S124: =LOOKUP(S$123,'Trading 1 Farm'!$AF$18:$BM$18,'Trading 1 Farm'!$AF21:$BM21)*S7 -> 1350 | T124: =LOOKUP(T$123,'Trading 1 Farm'!$AF$18:$BM$18,'Trading 1 Farm'!$AF21:$BM21)*T7 -> 1425 | U124: =LOOKUP(U$123,'Trading 1 Farm'!$AF$18:$BM$18,'Trading 1 Farm'!$AF21:$BM21)*U7 -> 1800 | V124: =LOOKUP(V$123,'Trading 1 Farm'!$AF$18:$BM$18,'Trading 1 Farm'!$AF21:$BM21)*V7 -> 1875 | W124: =LOOKUP(W$123,'Trading 1 Farm'!$AF$18:$BM$18,'Trading 1 Farm'!$AF21:$BM21)*W7 -> 2250 | X124: =LOOKUP(X$123,'Trading 1 Farm'!$AF$18:$BM$18,'Trading 1 Farm'!$AF21:$BM21)*X7 -> 2250 | Y124: =LOOKUP(Y$123,'Trading 1 Farm'!$AF$18:$BM$18,'Trading 1 Farm'!$AF21:$BM21)*Y7 -> 2250 | Z124: =LOOKUP(Z$123,'Trading 1 Farm'!$AF$18:$BM$18,'Trading 1 Farm'!$AF21:$BM21)*Z7 -> 2250 | AA124: =LOOKUP(AA$123,'Trading 1 Farm'!$AF$18:$BM$18,'Trading 1 Farm'!$AF21:$BM21)*AA7 -> 2250 | AB124: =LOOKUP(AB$123,'Trading 1 Farm'!$AF$18:$BM$18,'Trading 1 Farm'!$AF21:$BM21)*AB7 -> 2250 | AC124: =LOOKUP(AC$123,'Trading 1 Farm'!$AF$18:$BM$18,'Trading 1 Farm'!$AF21:$BM21)*AC7 -> 2250 | AD124: =LOOKUP(AD$123,'Trading 1 Farm'!$AF$18:$BM$18,'Trading 1 Farm'!$AF21:$BM21)*AD7 -> 2250 | AE124: =LOOKUP(AE$123,'Trading 1 Farm'!$AF$18:$BM$18,'Trading 1 Farm'!$AF21:$BM21)*AE7 -> 2250 | AF124: =LOOKUP(AF$123,'Trading 1 Farm'!$AF$18:$BM$18,'Trading 1 Farm'!$AF21:$BM21)*AF7 -> 2250 | AG124: =LOOKUP(AG$123,'Trading 1 Farm'!$AF$18:$BM$18,'Trading 1 Farm'!$AF21:$BM21)*AG7 -> 2250 | AH124: =+AG124 -> 2250 | AI124: 2250 | AJ124: 2250 | AK124: 2250 | AL124: 2250 | AM124: 2250 | AN124: 2250 | AO124: 2250 | AP124: 2250 | AQ124: 2250 | AR124: 2250 | AS124: 2250 | AT124: 2250 | AU124: 2250 | AV124: 2250 | AW124: 2250 | AX124: 2250 | AY124: 2250 | AZ124: 2250 | BA124: 2250 | BB124: 2250 | BC124: 2250 | BD124: 2250 | BE124: 2250 | BF124: 2250 | BG124: 2250 | BH124: 2250 | BI124: 2250 | BJ124: 2250 | BK124: 2250 | BL124: 2250 | BM124: 2250 | BN124: =+BM124 -> 2250 | BO124: 2250 | BP124: 2250 | BQ124: 2250 | BR124: 2250 | BS124: 2250 | BT124: 2250 | BU124: 2250 | BV124: 2250 | BW124: 2250 | BX124: 2250 | BY124: 2250 | BZ124: 2250 | CA124: 2250 | CB124: 2250 | CC124: 2250 | CD124: 2250 | CE124: 2250 | CF124: 2250 | CG124: 2250 | CH124: 2250 | CI124: 2250 | CJ124: 2250 | CK124: 2250 | CL124: 2250 | CM124: 2250 | CN124: 2250 | CO124: 2250 | CP124: 2250
C125: Total Volume of ordinary rice | D125: Tons | E125: =tx_usinage -> 0.66 | J125: =J124*$E$125 -> 0 | K125: 0 | L125: 0 | M125: 0 | N125: 44.55 | O125: 267.3 | P125: 316.8 | Q125: 564.3 | R125: 618.75 | S125: 891 | T125: 940.5 | U125: 1188 | V125: 1237.5 | W125: 1485 | X125: 1485 | Y125: 1485 | Z125: 1485 | AA125: 1485 | AB125: 1485 | AC125: 1485 | AD125: 1485 | AE125: 1485 | AF125: 1485 | AG125: 1485 | AH125: 1485 | AI125: 1485 | AJ125: 1485 | AK125: 1485 | AL125: 1485 | AM125: 1485 | AN125: 1485 | AO125: 1485 | AP125: =AP124*$E$125 -> 1485 | AQ125: 1485 | AR125: 1485 | AS125: 1485 | AT125: 1485 | AU125: 1485 | AV125: 1485 | AW125: 1485 | AX125: 1485 | AY125: 1485 | AZ125: 1485 | BA125: 1485 | BB125: 1485 | BC125: 1485 | BD125: 1485 | BE125: 1485 | BF125: 1485 | BG125: 1485 | BH125: 1485 | BI125: 1485 | BJ125: 1485 | BK125: 1485 | BL125: 1485 | BM125: 1485 | BN125: 1485 | BO125: 1485 | BP125: 1485 | BQ125: 1485 | BR125: 1485 | BS125: 1485 | BT125: 1485 | BU125: 1485 | BV125: =BV124*$E$125 -> 1485 | BW125: 1485 | BX125: 1485 | BY125: 1485 | BZ125: 1485 | CA125: 1485 | CB125: 1485 | CC125: 1485 | CD125: 1485 | CE125: 1485 | CF125: 1485 | CG125: 1485 | CH125: 1485 | CI125: 1485 | CJ125: 1485 | CK125: 1485 | CL125: 1485 | CM125: 1485 | CN125: 1485 | CO125: 1485 | CP125: 1485
C126: Total Volume of by product | D126: Tons | E126: =Flour_rate -> 0.14 | J126: =J124*$E$126 -> 0 | K126: 0 | L126: 0 | M126: 0 | N126: 9.45 | O126: 56.7 | P126: 67.2 | Q126: 119.7 | R126: 131.25 | S126: 189 | T126: 199.5 | U126: 252 | V126: 262.5 | W126: 315 | X126: 315 | Y126: 315 | Z126: 315 | AA126: 315 | AB126: 315 | AC126: 315 | AD126: 315 | AE126: 315 | AF126: 315 | AG126: 315 | AH126: 315 | AI126: 315 | AJ126: 315 | AK126: 315 | AL126: 315 | AM126: 315 | AN126: 315 | AO126: 315 | AP126: =AP124*$E$126 -> 315 | AQ126: 315 | AR126: 315 | AS126: 315 | AT126: 315 | AU126: 315 | AV126: 315 | AW126: 315 | AX126: 315 | AY126: 315 | AZ126: 315 | BA126: 315 | BB126: 315 | BC126: 315 | BD126: 315 | BE126: 315 | BF126: 315 | BG126: 315 | BH126: 315 | BI126: 315 | BJ126: 315 | BK126: 315 | BL126: 315 | BM126: 315 | BN126: 315 | BO126: 315 | BP126: 315 | BQ126: 315 | BR126: 315 | BS126: 315 | BT126: 315 | BU126: 315 | BV126: =BV124*$E$126 -> 315 | BW126: 315 | BX126: 315 | BY126: 315 | BZ126: 315 | CA126: 315 | CB126: 315 | CC126: 315 | CD126: 315 | CE126: 315 | CF126: 315 | CG126: 315 | CH126: 315 | CI126: 315 | CJ126: 315 | CK126: 315 | CL126: 315 | CM126: 315 | CN126: 315 | CO126: 315 | CP126: 315
C127: Sales to local market importers
C128: Price
C129: Growth in local cereals prices | D129: % p.a. | E129: =inflation_céréales -> 0.04 | J129: =$E$129*J15 -> 0 | K129: 0 | L129: 0 | M129: 0 | N129: 0.04 | O129: 0 | P129: 0.04 | Q129: 0 | R129: 0.04 | S129: 0 | T129: 0.04 | U129: 0 | V129: 0.04 | W129: 0 | X129: 0.04 | Y129: 0 | Z129: 0.04 | AA129: 0 | AB129: 0.04 | AC129: 0 | AD129: 0.04 | AE129: 0 | AF129: 0.04 | AG129: 0 | AH129: 0.04 | AI129: 0 | AJ129: 0.04 | AK129: 0 | AL129: 0.04 | AM129: 0 | AN129: 0.04 | AO129: 0 | AP129: =$E$129*AP15 -> 0 | AQ129: 0 | AR129: 0 | AS129: 0 | AT129: 0 | AU129: 0 | AV129: 0 | AW129: 0 | AX129: 0 | AY129: 0 | AZ129: 0 | BA129: 0 | BB129: 0 | BC129: 0 | BD129: 0 | BE129: 0 | BF129: 0 | BG129: 0 | BH129: 0 | BI129: 0 | BJ129: 0 | BK129: 0 | BL129: 0 | BM129: 0 | BN129: 0 | BO129: 0 | BP129: 0 | BQ129: 0 | BR129: 0 | BS129: 0 | BT129: 0 | BU129: 0 | BV129: =$E$129*BV15 -> 0 | BW129: 0 | BX129: 0 | BY129: 0 | BZ129: 0 | CA129: 0 | CB129: 0 | CC129: 0 | CD129: 0 | CE129: 0 | CF129: 0 | CG129: 0 | CH129: 0 | CI129: 0 | CJ129: 0 | CK129: 0 | CL129: 0 | CM129: 0 | CN129: 0 | CO129: 0 | CP129: 0
C130: cereals price Index | J130: =IF(J$3=$I$4+1,1,I130*(1+J129)) -> 1 | K130: 1 | L130: 1 | M130: 1 | N130: 1.04 | O130: 1.04 | P130: 1.0816 | Q130: 1.0816 | R130: 1.124864 | S130: 1.124864 | T130: 1.16985856 | U130: 1.16985856 | V130: 1.216652902 | W130: 1.216652902 | X130: 1.265319018 | Y130: 1.265319018 | Z130: 1.315931779 | AA130: 1.315931779 | AB130: 1.36856905 | AC130: 1.36856905 | AD130: 1.423311812 | AE130: 1.423311812 | AF130: 1.480244285 | AG130: 1.480244285 | AH130: 1.539454056 | AI130: 1.539454056 | AJ130: 1.601032219 | AK130: 1.601032219 | AL130: 1.665073507 | AM130: 1.665073507 | AN130: 1.731676448 | AO130: 1.731676448 | AP130: =IF(AP$3=$I$4+1,1,AO130*(1+AP129)) -> 1.731676448 | AQ130: 1.731676448 | AR130: 1.731676448 | AS130: 1.731676448 | AT130: 1.731676448 | AU130: 1.731676448 | AV130: 1.731676448 | AW130: 1.731676448 | AX130: 1.731676448 | AY130: 1.731676448 | AZ130: 1.731676448 | BA130: 1.731676448 | BB130: 1.731676448 | BC130: 1.731676448 | BD130: 1.731676448 | BE130: 1.731676448 | BF130: 1.731676448 | BG130: 1.731676448 | BH130: 1.731676448 | BI130: 1.731676448 | BJ130: 1.731676448 | BK130: 1.731676448 | BL130: 1.731676448 | BM130: 1.731676448 | BN130: 1.731676448 | BO130: 1.731676448 | BP130: 1.731676448 | BQ130: 1.731676448 | BR130: 1.731676448 | BS130: 1.731676448 | BT130: 1.731676448 | BU130: 1.731676448 | BV130: =IF(BV$3=$I$4+1,1,BU130*(1+BV129)) -> 1.731676448 | BW130: 1.731676448 | BX130: 1.731676448 | BY130: 1.731676448 | BZ130: 1.731676448 | CA130: 1.731676448 | CB130: 1.731676448 | CC130: 1.731676448 | CD130: 1.731676448 | CE130: 1.731676448 | CF130: 1.731676448 | CG130: 1.731676448 | CH130: 1.731676448 | CI130: 1.731676448 | CJ130: 1.731676448 | CK130: 1.731676448 | CL130: 1.731676448 | CM130: 1.731676448 | CN130: 1.731676448 | CO130: 1.731676448 | CP130: 1.731676448
C131: ordinary rice local market price | D131: FCFA/Kg | E131: =ordinary_rice_local*parité/1000 -> 272.878112 | J131: =$E$131*J130*J$7 -> 0 | K131: 0 | L131: 272.878112 | M131: 272.878112 | N131: 283.7932365 | O131: 283.7932365 | P131: 295.1449659 | Q131: 295.1449659 | R131: 306.9507646 | S131: 306.9507646 | T131: 319.2287952 | U131: 319.2287952 | V131: 331.997947 | W131: 331.997947 | X131: 345.2778648 | Y131: 345.2778648 | Z131: 359.0889794 | AA131: 359.0889794 | AB131: 373.4525386 | AC131: 373.4525386 | AD131: 388.3906402 | AE131: 388.3906402 | AF131: 403.9262658 | AG131: 403.9262658 | AH131: 420.0833164 | AI131: 420.0833164 | AJ131: 436.8866491 | AK131: 436.8866491 | AL131: 454.362115 | AM131: 454.362115 | AN131: 472.5365996 | AO131: 472.5365996 | AP131: =$E$131*AP130*AP$7 -> 0 | AQ131: 0 | AR131: 0 | AS131: 0 | AT131: 0 | AU131: 0 | AV131: 0 | AW131: 0 | AX131: 0 | AY131: 0 | AZ131: 0 | BA131: 0 | BB131: 0 | BC131: 0 | BD131: 0 | BE131: 0 | BF131: 0 | BG131: 0 | BH131: 0 | BI131: 0 | BJ131: 0 | BK131: 0 | BL131: 0 | BM131: 0 | BN131: 0 | BO131: 0 | BP131: 0 | BQ131: 0 | BR131: 0 | BS131: 0 | BT131: 0 | BU131: 0 | BV131: =$E$131*BV130*BV$7 -> 0 | BW131: 0 | BX131: 0 | BY131: 0 | BZ131: 0 | CA131: 0 | CB131: 0 | CC131: 0 | CD131: 0 | CE131: 0 | CF131: 0 | CG131: 0 | CH131: 0 | CI131: 0 | CJ131: 0 | CK131: 0 | CL131: 0 | CM131: 0 | CN131: 0 | CO131: 0 | CP131: 0
C133: Growth in local Flour prices | D133: % p.a. | E133: =inflation_céréales -> 0.04 | J133: =$E$133*J$15 -> 0 | K133: 0 | L133: 0 | M133: 0 | N133: 0.04 | O133: 0 | P133: 0.04 | Q133: 0 | R133: 0.04 | S133: 0 | T133: 0.04 | U133: 0 | V133: 0.04 | W133: 0 | X133: 0.04 | Y133: 0 | Z133: 0.04 | AA133: 0 | AB133: 0.04 | AC133: 0 | AD133: 0.04 | AE133: 0 | AF133: 0.04 | AG133: 0 | AH133: 0.04 | AI133: 0 | AJ133: 0.04 | AK133: 0 | AL133: 0.04 | AM133: 0 | AN133: 0.04 | AO133: 0 | AP133: =$E$133*AP$15 -> 0 | AQ133: 0 | AR133: 0 | AS133: 0 | AT133: 0 | AU133: 0 | AV133: 0 | AW133: 0 | AX133: 0 | AY133: 0 | AZ133: 0 | BA133: 0 | BB133: 0 | BC133: 0 | BD133: 0 | BE133: 0 | BF133: 0 | BG133: 0 | BH133: 0 | BI133: 0 | BJ133: 0 | BK133: 0 | BL133: 0 | BM133: 0 | BN133: 0 | BO133: 0 | BP133: 0 | BQ133: 0 | BR133: 0 | BS133: 0 | BT133: 0 | BU133: 0 | BV133: =$E$133*BV$15 -> 0 | BW133: 0 | BX133: 0 | BY133: 0 | BZ133: 0 | CA133: 0 | CB133: 0 | CC133: 0 | CD133: 0 | CE133: 0 | CF133: 0 | CG133: 0 | CH133: 0 | CI133: 0 | CJ133: 0 | CK133: 0 | CL133: 0 | CM133: 0 | CN133: 0 | CO133: 0 | CP133: 0
C134: Flour price Index | J134: =IF(J$3=$I$4+1,1,I134*(1+J133)) -> 1 | K134: 1 | L134: 1 | M134: 1 | N134: 1.04 | O134: 1.04 | P134: 1.0816 | Q134: 1.0816 | R134: 1.124864 | S134: 1.124864 | T134: 1.16985856 | U134: 1.16985856 | V134: 1.216652902 | W134: 1.216652902 | X134: 1.265319018 | Y134: 1.265319018 | Z134: 1.315931779 | AA134: 1.315931779 | AB134: 1.36856905 | AC134: 1.36856905 | AD134: 1.423311812 | AE134: 1.423311812 | AF134: 1.480244285 | AG134: 1.480244285 | AH134: 1.539454056 | AI134: 1.539454056 | AJ134: 1.601032219 | AK134: 1.601032219 | AL134: 1.665073507 | AM134: 1.665073507 | AN134: 1.731676448 | AO134: 1.731676448 | AP134: =IF(AP$3=$I$4+1,1,AO134*(1+AP133)) -> 1.731676448 | AQ134: 1.731676448 | AR134: 1.731676448 | AS134: 1.731676448 | AT134: 1.731676448 | AU134: 1.731676448 | AV134: 1.731676448 | AW134: 1.731676448 | AX134: 1.731676448 | AY134: 1.731676448 | AZ134: 1.731676448 | BA134: 1.731676448 | BB134: 1.731676448 | BC134: 1.731676448 | BD134: 1.731676448 | BE134: 1.731676448 | BF134: 1.731676448 | BG134: 1.731676448 | BH134: 1.731676448 | BI134: 1.731676448 | BJ134: 1.731676448 | BK134: 1.731676448 | BL134: 1.731676448 | BM134: 1.731676448 | BN134: 1.731676448 | BO134: 1.731676448 | BP134: 1.731676448 | BQ134: 1.731676448 | BR134: 1.731676448 | BS134: 1.731676448 | BT134: 1.731676448 | BU134: 1.731676448 | BV134: =IF(BV$3=$I$4+1,1,BU134*(1+BV133)) -> 1.731676448 | BW134: 1.731676448 | BX134: 1.731676448 | BY134: 1.731676448 | BZ134: 1.731676448 | CA134: 1.731676448 | CB134: 1.731676448 | CC134: 1.731676448 | CD134: 1.731676448 | CE134: 1.731676448 | CF134: 1.731676448 | CG134: 1.731676448 | CH134: 1.731676448 | CI134: 1.731676448 | CJ134: 1.731676448 | CK134: 1.731676448 | CL134: 1.731676448 | CM134: 1.731676448 | CN134: 1.731676448 | CO134: 1.731676448 | CP134: 1.731676448
C135: Flour local market price | D135: FCFA/Kg | E135: =rice_by_product*parité/1000 -> 70 | J135: =$E$135*J134*J$7 -> 0 | K135: 0 | L135: 70 | M135: 70 | N135: 72.8 | O135: 72.8 | P135: 75.712 | Q135: 75.712 | R135: 78.74048 | S135: 78.74048 | T135: 81.8900992 | U135: 81.8900992 | V135: 85.16570317 | W135: 85.16570317 | X135: 88.57233129 | Y135: 88.57233129 | Z135: 92.11522455 | AA135: 92.11522455 | AB135: 95.79983353 | AC135: 95.79983353 | AD135: 99.63182687 | AE135: 99.63182687 | AF135: 103.6170999 | AG135: 103.6170999 | AH135: 107.7617839 | AI135: 107.7617839 | AJ135: 112.0722553 | AK135: 112.0722553 | AL135: 116.5551455 | AM135: 116.5551455 | AN135: 121.2173513 | AO135: 121.2173513 | AP135: =$E$135*AP134*AP$7 -> 0 | AQ135: 0 | AR135: 0 | AS135: 0 | AT135: 0 | AU135: 0 | AV135: 0 | AW135: 0 | AX135: 0 | AY135: 0 | AZ135: 0 | BA135: 0 | BB135: 0 | BC135: 0 | BD135: 0 | BE135: 0 | BF135: 0 | BG135: 0 | BH135: 0 | BI135: 0 | BJ135: 0 | BK135: 0 | BL135: 0 | BM135: 0 | BN135: 0 | BO135: 0 | BP135: 0 | BQ135: 0 | BR135: 0 | BS135: 0 | BT135: 0 | BU135: 0 | BV135: =$E$135*BV134*BV$7 -> 0 | BW135: 0 | BX135: 0 | BY135: 0 | BZ135: 0 | CA135: 0 | CB135: 0 | CC135: 0 | CD135: 0 | CE135: 0 | CF135: 0 | CG135: 0 | CH135: 0 | CI135: 0 | CJ135: 0 | CK135: 0 | CL135: 0 | CM135: 0 | CN135: 0 | CO135: 0 | CP135: 0
C137: Volumes
C138: risks on crops | D138: % | E138: =1-conting_crop -> 0.975
C140: Quantity ordinary rice sold in local market | D140: Tons | J140: =IF(J$13<9,$E$62*J125*$E$60,IF(J$13<11,$E$62/2*J125*$E$60,0)) -> 0 | K140: =IF(K$13<9,$E$62*K125*$E$60,IF(K$13<11,$E$62/2*K125*$E$60,0)) -> 0 | L140: 0 | M140: 0 | N140: 43.43625 | O140: 260.6175 | P140: 308.88 | Q140: 550.1925 | R140: 603.28125 | S140: 868.725 | T140: 458.49375 | U140: 579.15 | V140: 0 | W140: 0 | X140: 0 | Y140: 0 | Z140: 0 | AA140: 0 | AB140: 0 | AC140: 0 | AD140: 0 | AE140: 0 | AF140: 0 | AG140: 0 | AH140: 0 | AI140: 0 | AJ140: 0 | AK140: 0 | AL140: 0 | AM140: 0 | AN140: 0 | AO140: 0 | AP140: 1447.875 | AQ140: 1447.875 | AR140: 1447.875 | AS140: 1447.875 | AT140: 1447.875 | AU140: 1447.875 | AV140: 1447.875 | AW140: 1447.875 | AX140: 1447.875 | AY140: 1447.875 | AZ140: 1447.875 | BA140: 1447.875 | BB140: 1447.875 | BC140: 1447.875 | BD140: 1447.875 | BE140: 1447.875 | BF140: 1447.875 | BG140: 1447.875 | BH140: 1447.875 | BI140: 1447.875 | BJ140: 1447.875 | BK140: 1447.875 | BL140: 1447.875 | BM140: 1447.875 | BN140: 1447.875 | BO140: 1447.875 | BP140: 1447.875 | BQ140: 1447.875 | BR140: 1447.875 | BS140: 1447.875 | BT140: 1447.875 | BU140: 1447.875 | BV140: 1447.875 | BW140: =IF(BW$13<9,$E$62*BW125*$E$60,IF(BW$13<11,$E$62/2*BW125*$E$60,0)) -> 1447.875 | BX140: 1447.875 | BY140: 1447.875 | BZ140: 1447.875 | CA140: 1447.875 | CB140: 1447.875 | CC140: 1447.875 | CD140: 1447.875 | CE140: 1447.875 | CF140: 1447.875 | CG140: 1447.875 | CH140: 1447.875 | CI140: 1447.875 | CJ140: 1447.875 | CK140: 1447.875 | CL140: 1447.875 | CM140: 1447.875 | CN140: 1447.875 | CO140: 1447.875 | CP140: 1447.875
C141: Quantity Flour sold in local market | D141: Tons | J141: =J126*$E$138 -> 0 | K141: 0 | L141: 0 | M141: 0 | N141: 9.21375 | O141: 55.2825 | P141: 65.52 | Q141: 116.7075 | R141: 127.96875 | S141: 184.275 | T141: 194.5125 | U141: 245.7 | V141: 255.9375 | W141: 307.125 | X141: 307.125 | Y141: 307.125 | Z141: 307.125 | AA141: 307.125 | AB141: 307.125 | AC141: 307.125 | AD141: 307.125 | AE141: 307.125 | AF141: 307.125 | AG141: 307.125 | AH141: 307.125 | AI141: 307.125 | AJ141: 307.125 | AK141: 307.125 | AL141: 307.125 | AM141: 307.125 | AN141: 307.125 | AO141: 307.125 | AP141: =AP126*$E$138 -> 307.125 | AQ141: 307.125 | AR141: 307.125 | AS141: 307.125 | AT141: 307.125 | AU141: 307.125 | AV141: 307.125 | AW141: 307.125 | AX141: 307.125 | AY141: 307.125 | AZ141: 307.125 | BA141: 307.125 | BB141: 307.125 | BC141: 307.125 | BD141: 307.125 | BE141: 307.125 | BF141: 307.125 | BG141: 307.125 | BH141: 307.125 | BI141: 307.125 | BJ141: 307.125 | BK141: 307.125 | BL141: 307.125 | BM141: 307.125 | BN141: 307.125 | BO141: 307.125 | BP141: 307.125 | BQ141: 307.125 | BR141: 307.125 | BS141: 307.125 | BT141: 307.125 | BU141: 307.125 | BV141: =BV126*$E$138 -> 307.125 | BW141: 307.125 | BX141: 307.125 | BY141: 307.125 | BZ141: 307.125 | CA141: 307.125 | CB141: 307.125 | CC141: 307.125 | CD141: 307.125 | CE141: 307.125 | CF141: 307.125 | CG141: 307.125 | CH141: 307.125 | CI141: 307.125 | CJ141: 307.125 | CK141: 307.125 | CL141: 307.125 | CM141: 307.125 | CN141: 307.125 | CO141: 307.125 | CP141: 307.125
C143: Sales in Million FCFA
C144: Ordinary rice sold in local market | D144: Million FCFA | J144: =J140*J131/Thousand -> 0 | K144: 0 | L144: 0 | M144: 0 | N144: 12.32691397 | O144: 73.96148381 | P144: 91.16437708 | Q144: 162.3865467 | R144: 185.1776409 | S144: 266.655803 | T144: 146.3644074 | U144: 184.8813567 | V144: 0 | W144: 0 | X144: 0 | Y144: 0 | Z144: 0 | AA144: 0 | AB144: 0 | AC144: 0 | AD144: 0 | AE144: 0 | AF144: 0 | AG144: 0 | AH144: 0 | AI144: 0 | AJ144: 0 | AK144: 0 | AL144: 0 | AM144: 0 | AN144: 0 | AO144: 0 | AP144: =AP140*AP131/Thousand -> 0 | AQ144: 0 | AR144: 0 | AS144: 0 | AT144: 0 | AU144: 0 | AV144: 0 | AW144: 0 | AX144: 0 | AY144: 0 | AZ144: 0 | BA144: 0 | BB144: 0 | BC144: 0 | BD144: 0 | BE144: 0 | BF144: 0 | BG144: 0 | BH144: 0 | BI144: 0 | BJ144: 0 | BK144: 0 | BL144: 0 | BM144: 0 | BN144: 0 | BO144: 0 | BP144: 0 | BQ144: 0 | BR144: 0 | BS144: 0 | BT144: 0 | BU144: 0 | BV144: =BV140*BV131/Thousand -> 0 | BW144: 0 | BX144: 0 | BY144: 0 | BZ144: 0 | CA144: 0 | CB144: 0 | CC144: 0 | CD144: 0 | CE144: 0 | CF144: 0 | CG144: 0 | CH144: 0 | CI144: 0 | CJ144: 0 | CK144: 0 | CL144: 0 | CM144: 0 | CN144: 0 | CO144: 0 | CP144: 0
C145: Flour sold in local market | D145: Million FCFA | J145: =J141*J135/Thousand -> 0 | K145: 0 | L145: 0 | M145: 0 | N145: 0.670761 | O145: 4.024566 | P145: 4.96065024 | Q145: 8.83615824 | R145: 10.0763208 | S145: 14.50990195 | T145: 15.92864792 | U145: 20.12039737 | V145: 21.79709715 | W145: 26.15651659 | X145: 27.20277725 | Y145: 27.20277725 | Z145: 28.29088834 | AA145: 28.29088834 | AB145: 29.42252387 | AC145: 29.42252387 | AD145: 30.59942483 | AE145: 30.59942483 | AF145: 31.82340182 | AG145: 31.82340182 | AH145: 33.09633789 | AI145: 33.09633789 | AJ145: 34.42019141 | AK145: 34.42019141 | AL145: 35.79699907 | AM145: 35.79699907 | AN145: 37.22887903 | AO145: 37.22887903 | AP145: =AP141*AP135/Thousand -> 0 | AQ145: 0 | AR145: 0 | AS145: 0 | AT145: 0 | AU145: 0 | AV145: 0 | AW145: 0 | AX145: 0 | AY145: 0 | AZ145: 0 | BA145: 0 | BB145: 0 | BC145: 0 | BD145: 0 | BE145: 0 | BF145: 0 | BG145: 0 | BH145: 0 | BI145: 0 | BJ145: 0 | BK145: 0 | BL145: 0 | BM145: 0 | BN145: 0 | BO145: 0 | BP145: 0 | BQ145: 0 | BR145: 0 | BS145: 0 | BT145: 0 | BU145: 0 | BV145: =BV141*BV135/Thousand -> 0 | BW145: 0 | BX145: 0 | BY145: 0 | BZ145: 0 | CA145: 0 | CB145: 0 | CC145: 0 | CD145: 0 | CE145: 0 | CF145: 0 | CG145: 0 | CH145: 0 | CI145: 0 | CJ145: 0 | CK145: 0 | CL145: 0 | CM145: 0 | CN145: 0 | CO145: 0 | CP145: 0
C147: Sales in EUR
C148: Local sales of ordinary rice | D148: EUR | J148: =J144*Million/J$33 -> 0 | K148: 0 | L148: 0 | M148: 0 | N148: 18792.2592 | O148: 112753.5552 | P148: 138979.1969 | Q148: 247556.6945 | R148: 282301.4938 | S148: 406514.151 | T148: 223131.1007 | U148: 281849.8114 | V148: 0 | W148: 0 | X148: 0 | Y148: 0 | Z148: 0 | AA148: 0 | AB148: 0 | AC148: 0 | AD148: 0 | AE148: 0 | AF148: 0 | AG148: 0 | AH148: 0 | AI148: 0 | AJ148: 0 | AK148: 0 | AL148: 0 | AM148: 0 | AN148: 0 | AO148: 0 | AP148: =AP144*Million/AP$33 -> 0 | AQ148: 0 | AR148: 0 | AS148: 0 | AT148: 0 | AU148: 0 | AV148: 0 | AW148: 0 | AX148: 0 | AY148: 0 | AZ148: 0 | BA148: 0 | BB148: 0 | BC148: 0 | BD148: 0 | BE148: 0 | BF148: 0 | BG148: 0 | BH148: 0 | BI148: 0 | BJ148: 0 | BK148: 0 | BL148: 0 | BM148: 0 | BN148: 0 | BO148: 0 | BP148: 0 | BQ148: 0 | BR148: 0 | BS148: 0 | BT148: 0 | BU148: 0 | BV148: =BV144*Million/BV$33 -> 0 | BW148: 0 | BX148: 0 | BY148: 0 | BZ148: 0 | CA148: 0 | CB148: 0 | CC148: 0 | CD148: 0 | CE148: 0 | CF148: 0 | CG148: 0 | CH148: 0 | CI148: 0 | CJ148: 0 | CK148: 0 | CL148: 0 | CM148: 0 | CN148: 0 | CO148: 0 | CP148: 0
C149: Local sales of flour | D149: EUR | J149: =J145*Million/J$33 -> 0 | K149: 0 | L149: 0 | M149: 0 | N149: 1022.568553 | O149: 6135.411315 | P149: 7562.462539 | Q149: 13470.6364 | R149: 15361.25203 | S149: 22120.20293 | T149: 24283.06721 | U149: 30673.34806 | V149: 33229.4604 | W149: 39875.35248 | X149: 41470.36658 | Y149: 41470.36658 | Z149: 43129.18124 | AA149: 43129.18124 | AB149: 44854.34849 | AC149: 44854.34849 | AD149: 46648.52243 | AE149: 46648.52243 | AF149: 48514.46333 | AG149: 48514.46333 | AH149: 50455.04186 | AI149: 50455.04186 | AJ149: 52473.24353 | AK149: 52473.24353 | AL149: 54572.17328 | AM149: 54572.17328 | AN149: 56755.06021 | AO149: 56755.06021 | AP149: =AP145*Million/AP$33 -> 0 | AQ149: 0 | AR149: 0 | AS149: 0 | AT149: 0 | AU149: 0 | AV149: 0 | AW149: 0 | AX149: 0 | AY149: 0 | AZ149: 0 | BA149: 0 | BB149: 0 | BC149: 0 | BD149: 0 | BE149: 0 | BF149: 0 | BG149: 0 | BH149: 0 | BI149: 0 | BJ149: 0 | BK149: 0 | BL149: 0 | BM149: 0 | BN149: 0 | BO149: 0 | BP149: 0 | BQ149: 0 | BR149: 0 | BS149: 0 | BT149: 0 | BU149: 0 | BV149: =BV145*Million/BV$33 -> 0 | BW149: 0 | BX149: 0 | BY149: 0 | BZ149: 0 | CA149: 0 | CB149: 0 | CC149: 0 | CD149: 0 | CE149: 0 | CF149: 0 | CG149: 0 | CH149: 0 | CI149: 0 | CJ149: 0 | CK149: 0 | CL149: 0 | CM149: 0 | CN149: 0 | CO149: 0 | CP149: 0
C151: Sales to Local Market - wholesalers discounted
C152: Price | J152: =$E$48*J$15 -> 0 | K152: 0 | L152: 0 | M152: 0 | N152: 0.04 | O152: 0 | P152: 0.04 | Q152: 0 | R152: 0.04 | S152: 0 | T152: 0.04 | U152: 0 | V152: 0.04 | W152: 0 | X152: 0.04 | Y152: 0 | Z152: 0.04 | AA152: 0 | AB152: 0.04 | AC152: 0 | AD152: 0.04 | AE152: 0 | AF152: 0.04 | AG152: 0 | AH152: 0.04 | AI152: 0 | AJ152: 0.04 | AK152: 0 | AL152: 0.04 | AM152: 0 | AN152: 0.04 | AO152: 0 | AP152: 0 | AQ152: 0 | AR152: 0 | AS152: 0 | AT152: 0 | AU152: 0 | AV152: 0 | AW152: 0 | AX152: 0 | AY152: 0 | AZ152: 0 | BA152: 0 | BB152: 0 | BC152: 0 | BD152: 0 | BE152: 0 | BF152: 0 | BG152: 0 | BH152: 0 | BI152: 0 | BJ152: 0 | BK152: 0 | BL152: 0 | BM152: 0 | BN152: 0 | BO152: 0 | BP152: 0 | BQ152: 0 | BR152: 0 | BS152: 0 | BT152: 0 | BU152: 0 | BV152: =$E$48*BV$15 -> 0 | BW152: 0 | BX152: 0 | BY152: 0 | BZ152: 0 | CA152: 0 | CB152: 0 | CC152: 0 | CD152: 0 | CE152: 0 | CF152: 0 | CG152: 0 | CH152: 0 | CI152: 0 | CJ152: 0 | CK152: 0 | CL152: 0 | CM152: 0 | CN152: 0 | CO152: 0 | CP152: 0
C153: Growth in wholesalers discounted prices | D153: % p.a. | E153: =inflation_céréales -> 0.04 | J153: =IF(J$3=$I$4+1,1,I153*(1+J152)) -> 1 | K153: =IF(K$3=$I$4+1,1,J153*(1+K152)) -> 1 | L153: =IF(L$3=$I$4+1,1,K153*(1+L152)) -> 1 | M153: =IF(M$3=$I$4+1,1,L153*(1+M152)) -> 1 | N153: =IF(N$3=$I$4+1,1,M153*(1+N152)) -> 1.04 | O153: =IF(O$3=$I$4+1,1,N153*(1+O152)) -> 1.04 | P153: =IF(P$3=$I$4+1,1,O153*(1+P152)) -> 1.0816 | Q153: =IF(Q$3=$I$4+1,1,P153*(1+Q152)) -> 1.0816 | R153: =IF(R$3=$I$4+1,1,Q153*(1+R152)) -> 1.124864 | S153: =IF(S$3=$I$4+1,1,R153*(1+S152)) -> 1.124864 | T153: =IF(T$3=$I$4+1,1,S153*(1+T152)) -> 1.16985856 | U153: =IF(U$3=$I$4+1,1,T153*(1+U152)) -> 1.16985856 | V153: =IF(V$3=$I$4+1,1,U153*(1+V152)) -> 1.216652902 | W153: =IF(W$3=$I$4+1,1,V153*(1+W152)) -> 1.216652902 | X153: =IF(X$3=$I$4+1,1,W153*(1+X152)) -> 1.265319018 | Y153: =IF(Y$3=$I$4+1,1,X153*(1+Y152)) -> 1.265319018 | Z153: =IF(Z$3=$I$4+1,1,Y153*(1+Z152)) -> 1.315931779 | AA153: =IF(AA$3=$I$4+1,1,Z153*(1+AA152)) -> 1.315931779 | AB153: =IF(AB$3=$I$4+1,1,AA153*(1+AB152)) -> 1.36856905 | AC153: =IF(AC$3=$I$4+1,1,AB153*(1+AC152)) -> 1.36856905 | AD153: =IF(AD$3=$I$4+1,1,AC153*(1+AD152)) -> 1.423311812 | AE153: =IF(AE$3=$I$4+1,1,AD153*(1+AE152)) -> 1.423311812 | AF153: =IF(AF$3=$I$4+1,1,AE153*(1+AF152)) -> 1.480244285 | AG153: =IF(AG$3=$I$4+1,1,AF153*(1+AG152)) -> 1.480244285 | AH153: =IF(AH$3=$I$4+1,1,AG153*(1+AH152)) -> 1.539454056 | AI153: =IF(AI$3=$I$4+1,1,AH153*(1+AI152)) -> 1.539454056 | AJ153: =IF(AJ$3=$I$4+1,1,AI153*(1+AJ152)) -> 1.601032219 | AK153: =IF(AK$3=$I$4+1,1,AJ153*(1+AK152)) -> 1.601032219 | AL153: =IF(AL$3=$I$4+1,1,AK153*(1+AL152)) -> 1.665073507 | AM153: =IF(AM$3=$I$4+1,1,AL153*(1+AM152)) -> 1.665073507 | AN153: =IF(AN$3=$I$4+1,1,AM153*(1+AN152)) -> 1.731676448 | AO153: =IF(AO$3=$I$4+1,1,AN153*(1+AO152)) -> 1.731676448 | AP153: =IF(AP$3=$I$4+1,1,AO153*(1+AP152)) -> 1.731676448 | AQ153: =IF(AQ$3=$I$4+1,1,AP153*(1+AQ152)) -> 1.731676448 | AR153: =IF(AR$3=$I$4+1,1,AQ153*(1+AR152)) -> 1.731676448 | AS153: =IF(AS$3=$I$4+1,1,AR153*(1+AS152)) -> 1.731676448 | AT153: =IF(AT$3=$I$4+1,1,AS153*(1+AT152)) -> 1.731676448 | AU153: =IF(AU$3=$I$4+1,1,AT153*(1+AU152)) -> 1.731676448 | AV153: =IF(AV$3=$I$4+1,1,AU153*(1+AV152)) -> 1.731676448 | AW153: =IF(AW$3=$I$4+1,1,AV153*(1+AW152)) -> 1.731676448 | AX153: =IF(AX$3=$I$4+1,1,AW153*(1+AX152)) -> 1.731676448 | AY153: =IF(AY$3=$I$4+1,1,AX153*(1+AY152)) -> 1.731676448 | AZ153: =IF(AZ$3=$I$4+1,1,AY153*(1+AZ152)) -> 1.731676448 | BA153: =IF(BA$3=$I$4+1,1,AZ153*(1+BA152)) -> 1.731676448 | BB153: =IF(BB$3=$I$4+1,1,BA153*(1+BB152)) -> 1.731676448 | BC153: =IF(BC$3=$I$4+1,1,BB153*(1+BC152)) -> 1.731676448 | BD153: =IF(BD$3=$I$4+1,1,BC153*(1+BD152)) -> 1.731676448 | BE153: =IF(BE$3=$I$4+1,1,BD153*(1+BE152)) -> 1.731676448 | BF153: =IF(BF$3=$I$4+1,1,BE153*(1+BF152)) -> 1.731676448 | BG153: =IF(BG$3=$I$4+1,1,BF153*(1+BG152)) -> 1.731676448 | BH153: =IF(BH$3=$I$4+1,1,BG153*(1+BH152)) -> 1.731676448 | BI153: =IF(BI$3=$I$4+1,1,BH153*(1+BI152)) -> 1.731676448 | BJ153: =IF(BJ$3=$I$4+1,1,BI153*(1+BJ152)) -> 1.731676448 | BK153: =IF(BK$3=$I$4+1,1,BJ153*(1+BK152)) -> 1.731676448 | BL153: =IF(BL$3=$I$4+1,1,BK153*(1+BL152)) -> 1.731676448 | BM153: =IF(BM$3=$I$4+1,1,BL153*(1+BM152)) -> 1.731676448 | BN153: =IF(BN$3=$I$4+1,1,BM153*(1+BN152)) -> 1.731676448 | BO153: =IF(BO$3=$I$4+1,1,BN153*(1+BO152)) -> 1.731676448 | BP153: =IF(BP$3=$I$4+1,1,BO153*(1+BP152)) -> 1.731676448 | BQ153: =IF(BQ$3=$I$4+1,1,BP153*(1+BQ152)) -> 1.731676448 | BR153: =IF(BR$3=$I$4+1,1,BQ153*(1+BR152)) -> 1.731676448 | BS153: =IF(BS$3=$I$4+1,1,BR153*(1+BS152)) -> 1.731676448 | BT153: =IF(BT$3=$I$4+1,1,BS153*(1+BT152)) -> 1.731676448 | BU153: =IF(BU$3=$I$4+1,1,BT153*(1+BU152)) -> 1.731676448 | BV153: =IF(BV$3=$I$4+1,1,BU153*(1+BV152)) -> 1.731676448 | BW153: =IF(BW$3=$I$4+1,1,BV153*(1+BW152)) -> 1.731676448 | BX153: =IF(BX$3=$I$4+1,1,BW153*(1+BX152)) -> 1.731676448 | BY153: =IF(BY$3=$I$4+1,1,BX153*(1+BY152)) -> 1.731676448 | BZ153: =IF(BZ$3=$I$4+1,1,BY153*(1+BZ152)) -> 1.731676448 | CA153: =IF(CA$3=$I$4+1,1,BZ153*(1+CA152)) -> 1.731676448 | CB153: =IF(CB$3=$I$4+1,1,CA153*(1+CB152)) -> 1.731676448 | CC153: =IF(CC$3=$I$4+1,1,CB153*(1+CC152)) -> 1.731676448 | CD153: =IF(CD$3=$I$4+1,1,CC153*(1+CD152)) -> 1.731676448 | CE153: =IF(CE$3=$I$4+1,1,CD153*(1+CE152)) -> 1.731676448 | CF153: =IF(CF$3=$I$4+1,1,CE153*(1+CF152)) -> 1.731676448 | CG153: =IF(CG$3=$I$4+1,1,CF153*(1+CG152)) -> 1.731676448 | CH153: =IF(CH$3=$I$4+1,1,CG153*(1+CH152)) -> 1.731676448 | CI153: =IF(CI$3=$I$4+1,1,CH153*(1+CI152)) -> 1.731676448 | CJ153: =IF(CJ$3=$I$4+1,1,CI153*(1+CJ152)) -> 1.731676448 | CK153: =IF(CK$3=$I$4+1,1,CJ153*(1+CK152)) -> 1.731676448 | CL153: =IF(CL$3=$I$4+1,1,CK153*(1+CL152)) -> 1.731676448 | CM153: =IF(CM$3=$I$4+1,1,CL153*(1+CM152)) -> 1.731676448 | CN153: =IF(CN$3=$I$4+1,1,CM153*(1+CN152)) -> 1.731676448 | CO153: =IF(CO$3=$I$4+1,1,CN153*(1+CO152)) -> 1.731676448 | CP153: =IF(CP$3=$I$4+1,1,CO153*(1+CP152)) -> 1.731676448
C154: Wholesalers discounted cereals price Index
C155: ordinary rice wholesalers discounted price | D155: EUR/tons | E155: =ordinary_rice_wholesaler*parité/1000 -> 283.7932365 | J155: =$E$77*J153*J$7 -> 0 | K155: =$E$77*K153*K$7 -> 0 | L155: 283.7932365 | M155: 283.7932365 | N155: 295.1449659 | O155: 295.1449659 | P155: 306.9507646 | Q155: 306.9507646 | R155: 319.2287952 | S155: 319.2287952 | T155: 331.997947 | U155: 331.997947 | V155: 345.2778648 | W155: 345.2778648 | X155: 359.0889794 | Y155: 359.0889794 | Z155: 373.4525386 | AA155: 373.4525386 | AB155: 388.3906402 | AC155: 388.3906402 | AD155: 403.9262658 | AE155: 403.9262658 | AF155: 420.0833164 | AG155: 420.0833164 | AH155: 436.8866491 | AI155: 436.8866491 | AJ155: 454.362115 | AK155: 454.362115 | AL155: 472.5365996 | AM155: 472.5365996 | AN155: 491.4380636 | AO155: 491.4380636 | AP155: 0 | AQ155: 0 | AR155: 0 | AS155: 0 | AT155: 0 | AU155: 0 | AV155: 0 | AW155: 0 | AX155: 0 | AY155: 0 | AZ155: 0 | BA155: 0 | BB155: 0 | BC155: 0 | BD155: =$E$77*BD153*BD$7 -> 0 | BE155: 0 | BF155: 0 | BG155: 0 | BH155: 0 | BI155: 0 | BJ155: 0 | BK155: 0 | BL155: 0 | BM155: 0 | BN155: 0 | BO155: 0 | BP155: 0 | BQ155: 0 | BR155: 0 | BS155: 0 | BT155: 0 | BU155: 0 | BV155: 0 | BW155: 0 | BX155: 0 | BY155: 0 | BZ155: 0 | CA155: 0 | CB155: 0 | CC155: 0 | CD155: 0 | CE155: 0 | CF155: 0 | CG155: 0 | CH155: 0 | CI155: 0 | CJ155: 0 | CK155: 0 | CL155: 0 | CM155: 0 | CN155: 0 | CO155: 0 | CP155: 0
C157: Growth in Flour prices | D157: % p.a. | E157: =inflation_céréales -> 0.04 | J157: =$E$79*J$15 -> 0 | K157: 0 | L157: 0 | M157: 0 | N157: 0.04 | O157: 0 | P157: 0.04 | Q157: 0 | R157: 0.04 | S157: 0 | T157: 0.04 | U157: 0 | V157: 0.04 | W157: 0 | X157: 0.04 | Y157: 0 | Z157: 0.04 | AA157: 0 | AB157: 0.04 | AC157: 0 | AD157: 0.04 | AE157: 0 | AF157: 0.04 | AG157: 0 | AH157: 0.04 | AI157: 0 | AJ157: 0.04 | AK157: 0 | AL157: 0.04 | AM157: 0 | AN157: 0.04 | AO157: 0 | AP157: =$E$79*AP$15 -> 0 | AQ157: 0 | AR157: 0 | AS157: 0 | AT157: 0 | AU157: 0 | AV157: 0 | AW157: 0 | AX157: 0 | AY157: 0 | AZ157: 0 | BA157: 0 | BB157: 0 | BC157: 0 | BD157: 0 | BE157: 0 | BF157: 0 | BG157: 0 | BH157: 0 | BI157: 0 | BJ157: 0 | BK157: 0 | BL157: 0 | BM157: 0 | BN157: 0 | BO157: 0 | BP157: 0 | BQ157: 0 | BR157: 0 | BS157: 0 | BT157: 0 | BU157: 0 | BV157: =$E$79*BV$15 -> 0 | BW157: 0 | BX157: 0 | BY157: 0 | BZ157: 0 | CA157: 0 | CB157: 0 | CC157: 0 | CD157: 0 | CE157: 0 | CF157: 0 | CG157: 0 | CH157: 0 | CI157: 0 | CJ157: 0 | CK157: 0 | CL157: 0 | CM157: 0 | CN157: 0 | CO157: 0 | CP157: 0
C158: Flour price Index | J158: =IF(J$3=$I$4+1,1,I158*(1+J157)) -> 1 | K158: =IF(K$3=$I$4+1,1,J158*(1+K157)) -> 1 | L158: =IF(L$3=$I$4+1,1,K158*(1+L157)) -> 1 | M158: =IF(M$3=$I$4+1,1,L158*(1+M157)) -> 1 | N158: =IF(N$3=$I$4+1,1,M158*(1+N157)) -> 1.04 | O158: =IF(O$3=$I$4+1,1,N158*(1+O157)) -> 1.04 | P158: =IF(P$3=$I$4+1,1,O158*(1+P157)) -> 1.0816 | Q158: =IF(Q$3=$I$4+1,1,P158*(1+Q157)) -> 1.0816 | R158: =IF(R$3=$I$4+1,1,Q158*(1+R157)) -> 1.124864 | S158: =IF(S$3=$I$4+1,1,R158*(1+S157)) -> 1.124864 | T158: =IF(T$3=$I$4+1,1,S158*(1+T157)) -> 1.16985856 | U158: =IF(U$3=$I$4+1,1,T158*(1+U157)) -> 1.16985856 | V158: =IF(V$3=$I$4+1,1,U158*(1+V157)) -> 1.216652902 | W158: =IF(W$3=$I$4+1,1,V158*(1+W157)) -> 1.216652902 | X158: =IF(X$3=$I$4+1,1,W158*(1+X157)) -> 1.265319018 | Y158: =IF(Y$3=$I$4+1,1,X158*(1+Y157)) -> 1.265319018 | Z158: =IF(Z$3=$I$4+1,1,Y158*(1+Z157)) -> 1.315931779 | AA158: =IF(AA$3=$I$4+1,1,Z158*(1+AA157)) -> 1.315931779 | AB158: =IF(AB$3=$I$4+1,1,AA158*(1+AB157)) -> 1.36856905 | AC158: =IF(AC$3=$I$4+1,1,AB158*(1+AC157)) -> 1.36856905 | AD158: =IF(AD$3=$I$4+1,1,AC158*(1+AD157)) -> 1.423311812 | AE158: =IF(AE$3=$I$4+1,1,AD158*(1+AE157)) -> 1.423311812 | AF158: =IF(AF$3=$I$4+1,1,AE158*(1+AF157)) -> 1.480244285 | AG158: =IF(AG$3=$I$4+1,1,AF158*(1+AG157)) -> 1.480244285 | AH158: =IF(AH$3=$I$4+1,1,AG158*(1+AH157)) -> 1.539454056 | AI158: =IF(AI$3=$I$4+1,1,AH158*(1+AI157)) -> 1.539454056 | AJ158: =IF(AJ$3=$I$4+1,1,AI158*(1+AJ157)) -> 1.601032219 | AK158: =IF(AK$3=$I$4+1,1,AJ158*(1+AK157)) -> 1.601032219 | AL158: =IF(AL$3=$I$4+1,1,AK158*(1+AL157)) -> 1.665073507 | AM158: =IF(AM$3=$I$4+1,1,AL158*(1+AM157)) -> 1.665073507 | AN158: =IF(AN$3=$I$4+1,1,AM158*(1+AN157)) -> 1.731676448 | AO158: =IF(AO$3=$I$4+1,1,AN158*(1+AO157)) -> 1.731676448 | AP158: =IF(AP$3=$I$4+1,1,AO158*(1+AP157)) -> 1.731676448 | AQ158: =IF(AQ$3=$I$4+1,1,AP158*(1+AQ157)) -> 1.731676448 | AR158: =IF(AR$3=$I$4+1,1,AQ158*(1+AR157)) -> 1.731676448 | AS158: =IF(AS$3=$I$4+1,1,AR158*(1+AS157)) -> 1.731676448 | AT158: =IF(AT$3=$I$4+1,1,AS158*(1+AT157)) -> 1.731676448 | AU158: =IF(AU$3=$I$4+1,1,AT158*(1+AU157)) -> 1.731676448 | AV158: =IF(AV$3=$I$4+1,1,AU158*(1+AV157)) -> 1.731676448 | AW158: =IF(AW$3=$I$4+1,1,AV158*(1+AW157)) -> 1.731676448 | AX158: =IF(AX$3=$I$4+1,1,AW158*(1+AX157)) -> 1.731676448 | AY158: =IF(AY$3=$I$4+1,1,AX158*(1+AY157)) -> 1.731676448 | AZ158: =IF(AZ$3=$I$4+1,1,AY158*(1+AZ157)) -> 1.731676448 | BA158: =IF(BA$3=$I$4+1,1,AZ158*(1+BA157)) -> 1.731676448 | BB158: =IF(BB$3=$I$4+1,1,BA158*(1+BB157)) -> 1.731676448 | BC158: =IF(BC$3=$I$4+1,1,BB158*(1+BC157)) -> 1.731676448 | BD158: =IF(BD$3=$I$4+1,1,BC158*(1+BD157)) -> 1.731676448 | BE158: =IF(BE$3=$I$4+1,1,BD158*(1+BE157)) -> 1.731676448 | BF158: =IF(BF$3=$I$4+1,1,BE158*(1+BF157)) -> 1.731676448 | BG158: =IF(BG$3=$I$4+1,1,BF158*(1+BG157)) -> 1.731676448 | BH158: =IF(BH$3=$I$4+1,1,BG158*(1+BH157)) -> 1.731676448 | BI158: =IF(BI$3=$I$4+1,1,BH158*(1+BI157)) -> 1.731676448 | BJ158: =IF(BJ$3=$I$4+1,1,BI158*(1+BJ157)) -> 1.731676448 | BK158: =IF(BK$3=$I$4+1,1,BJ158*(1+BK157)) -> 1.731676448 | BL158: =IF(BL$3=$I$4+1,1,BK158*(1+BL157)) -> 1.731676448 | BM158: =IF(BM$3=$I$4+1,1,BL158*(1+BM157)) -> 1.731676448 | BN158: =IF(BN$3=$I$4+1,1,BM158*(1+BN157)) -> 1.731676448 | BO158: =IF(BO$3=$I$4+1,1,BN158*(1+BO157)) -> 1.731676448 | BP158: =IF(BP$3=$I$4+1,1,BO158*(1+BP157)) -> 1.731676448 | BQ158: =IF(BQ$3=$I$4+1,1,BP158*(1+BQ157)) -> 1.731676448 | BR158: =IF(BR$3=$I$4+1,1,BQ158*(1+BR157)) -> 1.731676448 | BS158: =IF(BS$3=$I$4+1,1,BR158*(1+BS157)) -> 1.731676448 | BT158: =IF(BT$3=$I$4+1,1,BS158*(1+BT157)) -> 1.731676448 | BU158: =IF(BU$3=$I$4+1,1,BT158*(1+BU157)) -> 1.731676448 | BV158: =IF(BV$3=$I$4+1,1,BU158*(1+BV157)) -> 1.731676448 | BW158: =IF(BW$3=$I$4+1,1,BV158*(1+BW157)) -> 1.731676448 | BX158: =IF(BX$3=$I$4+1,1,BW158*(1+BX157)) -> 1.731676448 | BY158: =IF(BY$3=$I$4+1,1,BX158*(1+BY157)) -> 1.731676448 | BZ158: =IF(BZ$3=$I$4+1,1,BY158*(1+BZ157)) -> 1.731676448 | CA158: =IF(CA$3=$I$4+1,1,BZ158*(1+CA157)) -> 1.731676448 | CB158: =IF(CB$3=$I$4+1,1,CA158*(1+CB157)) -> 1.731676448 | CC158: =IF(CC$3=$I$4+1,1,CB158*(1+CC157)) -> 1.731676448 | CD158: =IF(CD$3=$I$4+1,1,CC158*(1+CD157)) -> 1.731676448 | CE158: =IF(CE$3=$I$4+1,1,CD158*(1+CE157)) -> 1.731676448 | CF158: =IF(CF$3=$I$4+1,1,CE158*(1+CF157)) -> 1.731676448 | CG158: =IF(CG$3=$I$4+1,1,CF158*(1+CG157)) -> 1.731676448 | CH158: =IF(CH$3=$I$4+1,1,CG158*(1+CH157)) -> 1.731676448 | CI158: =IF(CI$3=$I$4+1,1,CH158*(1+CI157)) -> 1.731676448 | CJ158: =IF(CJ$3=$I$4+1,1,CI158*(1+CJ157)) -> 1.731676448 | CK158: =IF(CK$3=$I$4+1,1,CJ158*(1+CK157)) -> 1.731676448 | CL158: =IF(CL$3=$I$4+1,1,CK158*(1+CL157)) -> 1.731676448 | CM158: =IF(CM$3=$I$4+1,1,CL158*(1+CM157)) -> 1.731676448 | CN158: =IF(CN$3=$I$4+1,1,CM158*(1+CN157)) -> 1.731676448 | CO158: =IF(CO$3=$I$4+1,1,CN158*(1+CO157)) -> 1.731676448 | CP158: =IF(CP$3=$I$4+1,1,CO158*(1+CP157)) -> 1.731676448
C159: Flour market price | D159: EUR/tons | E159: =rice_by_product*parité/1000 -> 70 | J159: =$E$81*J158*J$7 -> 0 | K159: 0 | L159: 70 | M159: 70 | N159: 72.8 | O159: 72.8 | P159: 75.712 | Q159: 75.712 | R159: 78.74048 | S159: 78.74048 | T159: 81.8900992 | U159: 81.8900992 | V159: 85.16570317 | W159: 85.16570317 | X159: 88.57233129 | Y159: 88.57233129 | Z159: 92.11522455 | AA159: 92.11522455 | AB159: 95.79983353 | AC159: 95.79983353 | AD159: 99.63182687 | AE159: 99.63182687 | AF159: 103.6170999 | AG159: 103.6170999 | AH159: 107.7617839 | AI159: 107.7617839 | AJ159: 112.0722553 | AK159: 112.0722553 | AL159: 116.5551455 | AM159: 116.5551455 | AN159: 121.2173513 | AO159: 121.2173513 | AP159: =$E$81*AP158*AP$7 -> 0 | AQ159: 0 | AR159: 0 | AS159: 0 | AT159: 0 | AU159: 0 | AV159: 0 | AW159: 0 | AX159: 0 | AY159: 0 | AZ159: 0 | BA159: 0 | BB159: 0 | BC159: 0 | BD159: 0 | BE159: 0 | BF159: 0 | BG159: 0 | BH159: 0 | BI159: 0 | BJ159: 0 | BK159: 0 | BL159: 0 | BM159: 0 | BN159: 0 | BO159: 0 | BP159: 0 | BQ159: 0 | BR159: 0 | BS159: 0 | BT159: 0 | BU159: 0 | BV159: =$E$81*BV158*BV$7 -> 0 | BW159: 0 | BX159: 0 | BY159: 0 | BZ159: 0 | CA159: 0 | CB159: 0 | CC159: 0 | CD159: 0 | CE159: 0 | CF159: 0 | CG159: 0 | CH159: 0 | CI159: 0 | CJ159: 0 | CK159: 0 | CL159: 0 | CM159: 0 | CN159: 0 | CO159: 0 | CP159: 0
C161: Volumes
C162: risks on crops | D162: % | E162: =1-conting_crop -> 0.975
C164: Wholesalers discounted volumes of ordinary rice | D164: Tons | E164: 1 | J164: =IF(OR(J$13>14,J$13<9),,IF(OR(AND(J$13>8,J$13<11),AND(J$13>12,J$13<15)),1/2*$E$86*J125*$E$84,$E$86*J125*$E$84)) -> 0 | K164: =IF(OR(K$13>14,K$13<9),,IF(OR(AND(K$13>8,K$13<11),AND(K$13>12,K$13<15)),1/2*$E$86*K125*$E$84,$E$86*K125*$E$84)) -> 0 | L164: 0 | M164: 0 | N164: 0 | O164: 0 | P164: 0 | Q164: 0 | R164: 0 | S164: 0 | T164: 458.49375 | U164: 579.15 | V164: 1206.5625 | W164: 1447.875 | X164: 723.9375 | Y164: 723.9375 | Z164: 0 | AA164: 0 | AB164: 0 | AC164: 0 | AD164: 0 | AE164: 0 | AF164: 0 | AG164: 0 | AH164: 0 | AI164: 0 | AJ164: 0 | AK164: 0 | AL164: 0 | AM164: 0 | AN164: 0 | AO164: 0 | AP164: 0 | AQ164: 0 | AR164: 0 | AS164: 0 | AT164: 0 | AU164: 0 | AV164: 0 | AW164: 0 | AX164: 0 | AY164: 0 | AZ164: 0 | BA164: 0 | BB164: 0 | BC164: 0 | BD164: 0 | BE164: 0 | BF164: 0 | BG164: 0 | BH164: 0 | BI164: 0 | BJ164: 0 | BK164: 0 | BL164: 0 | BM164: 0 | BN164: 0 | BO164: 0 | BP164: 0 | BQ164: 0 | BR164: 0 | BS164: 0 | BT164: 0 | BU164: 0 | BV164: 0 | BW164: =IF(OR(BW$13>14,BW$13<9),,IF(OR(AND(BW$13>8,BW$13<11),AND(BW$13>12,BW$13<15)),1/2*$E$86*BW125*$E$84,$E$86*BW125*$E$84)) -> 0 | BX164: 0 | BY164: 0 | BZ164: 0 | CA164: 0 | CB164: 0 | CC164: 0 | CD164: 0 | CE164: 0 | CF164: 0 | CG164: 0 | CH164: 0 | CI164: 0 | CJ164: 0 | CK164: 0 | CL164: 0 | CM164: 0 | CN164: 0 | CO164: 0 | CP164: 0
C165: Wholesalers discounted volumes Flour | D165: Tons | E165: 0 | J165: =$E$87*J126*E162 -> 0 | K165: =$E$87*K126*F162 -> 0 | L165: 0 | M165: 0 | N165: 0 | O165: 0 | P165: 0 | Q165: 0 | R165: 0 | S165: 0 | T165: 0 | U165: 0 | V165: 0 | W165: 0 | X165: 0 | Y165: 0 | Z165: 0 | AA165: 0 | AB165: 0 | AC165: 0 | AD165: 0 | AE165: 0 | AF165: 0 | AG165: 0 | AH165: 0 | AI165: 0 | AJ165: 0 | AK165: 0 | AL165: 0 | AM165: 0 | AN165: 0 | AO165: 0 | AP165: 0 | AQ165: 0 | AR165: 0 | AS165: 0 | AT165: 0 | AU165: 0 | AV165: 0 | AW165: 0 | AX165: 0 | AY165: 0 | AZ165: 0 | BA165: 0 | BB165: 0 | BC165: 0 | BD165: 0 | BE165: 0 | BF165: 0 | BG165: 0 | BH165: 0 | BI165: 0 | BJ165: 0 | BK165: 0 | BL165: 0 | BM165: 0 | BN165: 0 | BO165: 0 | BP165: 0 | BQ165: 0 | BR165: 0 | BS165: 0 | BT165: 0 | BU165: 0 | BV165: 0 | BW165: =$E$87*BW126*BR162 -> 0 | BX165: 0 | BY165: 0 | BZ165: 0 | CA165: 0 | CB165: 0 | CC165: 0 | CD165: 0 | CE165: 0 | CF165: 0 | CG165: 0 | CH165: 0 | CI165: 0 | CJ165: 0 | CK165: 0 | CL165: 0 | CM165: 0 | CN165: 0 | CO165: 0 | CP165: 0
C167: Sales in Million FCFA
C168: Ordinary rice sold in local market | D168: Million FCFA | J168: =J164*J155/Thousand -> 0 | K168: 0 | L168: 0 | M168: 0 | N168: 0 | O168: 0 | P168: 0 | Q168: 0 | R168: 0 | S168: 0 | T168: 152.2189837 | U168: 192.276611 | V168: 416.5993238 | W168: 499.9191886 | X168: 259.9579781 | Y168: 259.9579781 | Z168: 0 | AA168: 0 | AB168: 0 | AC168: 0 | AD168: 0 | AE168: 0 | AF168: 0 | AG168: 0 | AH168: 0 | AI168: 0 | AJ168: 0 | AK168: 0 | AL168: 0 | AM168: 0 | AN168: 0 | AO168: 0 | AP168: 0 | AQ168: 0 | AR168: 0 | AS168: 0 | AT168: 0 | AU168: 0 | AV168: 0 | AW168: 0 | AX168: 0 | AY168: 0 | AZ168: 0 | BA168: 0 | BB168: 0 | BC168: 0 | BD168: 0 | BE168: 0 | BF168: 0 | BG168: 0 | BH168: 0 | BI168: 0 | BJ168: 0 | BK168: 0 | BL168: 0 | BM168: 0 | BN168: 0 | BO168: 0 | BP168: 0 | BQ168: 0 | BR168: 0 | BS168: 0 | BT168: 0 | BU168: 0 | BV168: =BV164*BV155/Thousand -> 0 | BW168: 0 | BX168: 0 | BY168: 0 | BZ168: 0 | CA168: 0 | CB168: 0 | CC168: 0 | CD168: 0 | CE168: 0 | CF168: 0 | CG168: 0 | CH168: 0 | CI168: 0 | CJ168: 0 | CK168: 0 | CL168: 0 | CM168: 0 | CN168: 0 | CO168: 0 | CP168: 0
C169: Flour sold in local market | D169: Million FCFA | J169: =J165*J159/Thousand -> 0 | K169: 0 | L169: 0 | M169: 0 | N169: 0 | O169: 0 | P169: 0 | Q169: 0 | R169: 0 | S169: 0 | T169: 0 | U169: 0 | V169: 0 | W169: 0 | X169: 0 | Y169: 0 | Z169: 0 | AA169: 0 | AB169: 0 | AC169: 0 | AD169: 0 | AE169: 0 | AF169: 0 | AG169: 0 | AH169: 0 | AI169: 0 | AJ169: 0 | AK169: 0 | AL169: 0 | AM169: 0 | AN169: 0 | AO169: 0 | AP169: 0 | AQ169: 0 | AR169: 0 | AS169: 0 | AT169: 0 | AU169: 0 | AV169: 0 | AW169: 0 | AX169: 0 | AY169: 0 | AZ169: 0 | BA169: 0 | BB169: 0 | BC169: 0 | BD169: 0 | BE169: 0 | BF169: 0 | BG169: 0 | BH169: 0 | BI169: 0 | BJ169: 0 | BK169: 0 | BL169: 0 | BM169: 0 | BN169: 0 | BO169: 0 | BP169: 0 | BQ169: 0 | BR169: 0 | BS169: 0 | BT169: 0 | BU169: 0 | BV169: =BV165*BV159/Thousand -> 0 | BW169: 0 | BX169: 0 | BY169: 0 | BZ169: 0 | CA169: 0 | CB169: 0 | CC169: 0 | CD169: 0 | CE169: 0 | CF169: 0 | CG169: 0 | CH169: 0 | CI169: 0 | CJ169: 0 | CK169: 0 | CL169: 0 | CM169: 0 | CN169: 0 | CO169: 0 | CP169: 0
C171: Sales in EUR
C172: Local sales of ordinary rice | D172: EUR | J172: =J168*Million/J$33 -> 0 | K172: =K168*Million/K$33 -> 0 | L172: 0 | M172: 0 | N172: 0 | O172: 0 | P172: 0 | Q172: 0 | R172: 0 | S172: 0 | T172: =T168*Million/T$33 -> 232056.3447 | U172: =U168*Million/U$33 -> 293123.8038 | V172: 635101.575 | W172: 762121.8899 | X172: 396303.3828 | Y172: 396303.3828 | Z172: 0 | AA172: 0 | AB172: 0 | AC172: 0 | AD172: 0 | AE172: 0 | AF172: 0 | AG172: 0 | AH172: 0 | AI172: 0 | AJ172: 0 | AK172: 0 | AL172: 0 | AM172: 0 | AN172: 0 | AO172: 0 | AP172: 0 | AQ172: 0 | AR172: 0 | AS172: 0 | AT172: 0 | AU172: 0 | AV172: 0 | AW172: 0 | AX172: 0 | AY172: 0 | AZ172: 0 | BA172: 0 | BB172: 0 | BC172: 0 | BD172: 0 | BE172: 0 | BF172: 0 | BG172: 0 | BH172: 0 | BI172: 0 | BJ172: 0 | BK172: 0 | BL172: 0 | BM172: 0 | BN172: 0 | BO172: 0 | BP172: 0 | BQ172: 0 | BR172: 0 | BS172: 0 | BT172: 0 | BU172: 0 | BV172: 0 | BW172: 0 | BX172: 0 | BY172: 0 | BZ172: 0 | CA172: 0 | CB172: 0 | CC172: 0 | CD172: 0 | CE172: 0 | CF172: 0 | CG172: =CG168*Million/CG$33 -> 0 | CH172: 0 | CI172: 0 | CJ172: 0 | CK172: 0 | CL172: 0 | CM172: 0 | CN172: 0 | CO172: 0 | CP172: 0
C173: Local sales of flour | D173: EUR | J173: =J169*Million/J$33 -> 0 | K173: 0 | L173: 0 | M173: 0 | N173: 0 | O173: 0 | P173: 0 | Q173: 0 | R173: 0 | S173: 0 | T173: 0 | U173: 0 | V173: 0 | W173: 0 | X173: 0 | Y173: 0 | Z173: 0 | AA173: 0 | AB173: 0 | AC173: 0 | AD173: 0 | AE173: 0 | AF173: 0 | AG173: 0 | AH173: 0 | AI173: 0 | AJ173: 0 | AK173: 0 | AL173: 0 | AM173: 0 | AN173: 0 | AO173: 0 | AP173: 0 | AQ173: 0 | AR173: 0 | AS173: 0 | AT173: 0 | AU173: 0 | AV173: 0 | AW173: 0 | AX173: 0 | AY173: 0 | AZ173: 0 | BA173: 0 | BB173: 0 | BC173: 0 | BD173: 0 | BE173: 0 | BF173: 0 | BG173: 0 | BH173: 0 | BI173: 0 | BJ173: 0 | BK173: 0 | BL173: 0 | BM173: 0 | BN173: 0 | BO173: 0 | BP173: 0 | BQ173: 0 | BR173: 0 | BS173: 0 | BT173: 0 | BU173: 0 | BV173: =BV169*Million/BV$33 -> 0 | BW173: 0 | BX173: 0 | BY173: 0 | BZ173: 0 | CA173: 0 | CB173: 0 | CC173: 0 | CD173: 0 | CE173: 0 | CF173: 0 | CG173: 0 | CH173: 0 | CI173: 0 | CJ173: 0 | CK173: 0 | CL173: 0 | CM173: 0 | CN173: 0 | CO173: 0 | CP173: 0
C175: Sales to Local Market - wholesalers
C176: Price | J176: =$E$48*J$15 -> 0 | K176: 0 | L176: 0 | M176: 0 | N176: 0.04 | O176: 0 | P176: 0.04 | Q176: 0 | R176: 0.04 | S176: 0 | T176: 0.04 | U176: 0 | V176: 0.04 | W176: 0 | X176: 0.04 | Y176: 0 | Z176: 0.04 | AA176: 0 | AB176: 0.04 | AC176: 0 | AD176: 0.04 | AE176: 0 | AF176: 0.04 | AG176: 0 | AH176: 0.04 | AI176: 0 | AJ176: 0.04 | AK176: 0 | AL176: 0.04 | AM176: 0 | AN176: 0.04 | AO176: 0 | AP176: 0 | AQ176: 0 | AR176: 0 | AS176: 0 | AT176: 0 | AU176: 0 | AV176: 0 | AW176: 0 | AX176: 0 | AY176: 0 | AZ176: 0 | BA176: 0 | BB176: 0 | BC176: 0 | BD176: 0 | BE176: 0 | BF176: 0 | BG176: 0 | BH176: 0 | BI176: 0 | BJ176: 0 | BK176: 0 | BL176: 0 | BM176: 0 | BN176: 0 | BO176: 0 | BP176: 0 | BQ176: 0 | BR176: 0 | BS176: 0 | BT176: 0 | BU176: 0 | BV176: =$E$48*BV$15 -> 0 | BW176: 0 | BX176: 0 | BY176: 0 | BZ176: 0 | CA176: 0 | CB176: 0 | CC176: 0 | CD176: 0 | CE176: 0 | CF176: 0 | CG176: 0 | CH176: 0 | CI176: 0 | CJ176: 0 | CK176: 0 | CL176: 0 | CM176: 0 | CN176: 0 | CO176: 0 | CP176: 0
C177: Growth in prices | D177: % p.a. | E177: =inflation_céréales -> 0.04 | J177: =IF(J$3=$I$4+1,1,I177*(1+J176)) -> 1 | K177: =IF(K$3=$I$4+1,1,J177*(1+K176)) -> 1 | L177: =IF(L$3=$I$4+1,1,K177*(1+L176)) -> 1 | M177: =IF(M$3=$I$4+1,1,L177*(1+M176)) -> 1 | N177: =IF(N$3=$I$4+1,1,M177*(1+N176)) -> 1.04 | O177: =IF(O$3=$I$4+1,1,N177*(1+O176)) -> 1.04 | P177: =IF(P$3=$I$4+1,1,O177*(1+P176)) -> 1.0816 | Q177: =IF(Q$3=$I$4+1,1,P177*(1+Q176)) -> 1.0816 | R177: =IF(R$3=$I$4+1,1,Q177*(1+R176)) -> 1.124864 | S177: =IF(S$3=$I$4+1,1,R177*(1+S176)) -> 1.124864 | T177: =IF(T$3=$I$4+1,1,S177*(1+T176)) -> 1.16985856 | U177: =IF(U$3=$I$4+1,1,T177*(1+U176)) -> 1.16985856 | V177: =IF(V$3=$I$4+1,1,U177*(1+V176)) -> 1.216652902 | W177: =IF(W$3=$I$4+1,1,V177*(1+W176)) -> 1.216652902 | X177: =IF(X$3=$I$4+1,1,W177*(1+X176)) -> 1.265319018 | Y177: =IF(Y$3=$I$4+1,1,X177*(1+Y176)) -> 1.265319018 | Z177: =IF(Z$3=$I$4+1,1,Y177*(1+Z176)) -> 1.315931779 | AA177: =IF(AA$3=$I$4+1,1,Z177*(1+AA176)) -> 1.315931779 | AB177: =IF(AB$3=$I$4+1,1,AA177*(1+AB176)) -> 1.36856905 | AC177: =IF(AC$3=$I$4+1,1,AB177*(1+AC176)) -> 1.36856905 | AD177: =IF(AD$3=$I$4+1,1,AC177*(1+AD176)) -> 1.423311812 | AE177: =IF(AE$3=$I$4+1,1,AD177*(1+AE176)) -> 1.423311812 | AF177: =IF(AF$3=$I$4+1,1,AE177*(1+AF176)) -> 1.480244285 | AG177: =IF(AG$3=$I$4+1,1,AF177*(1+AG176)) -> 1.480244285 | AH177: =IF(AH$3=$I$4+1,1,AG177*(1+AH176)) -> 1.539454056 | AI177: =IF(AI$3=$I$4+1,1,AH177*(1+AI176)) -> 1.539454056 | AJ177: =IF(AJ$3=$I$4+1,1,AI177*(1+AJ176)) -> 1.601032219 | AK177: =IF(AK$3=$I$4+1,1,AJ177*(1+AK176)) -> 1.601032219 | AL177: =IF(AL$3=$I$4+1,1,AK177*(1+AL176)) -> 1.665073507 | AM177: =IF(AM$3=$I$4+1,1,AL177*(1+AM176)) -> 1.665073507 | AN177: =IF(AN$3=$I$4+1,1,AM177*(1+AN176)) -> 1.731676448 | AO177: =IF(AO$3=$I$4+1,1,AN177*(1+AO176)) -> 1.731676448 | AP177: =IF(AP$3=$I$4+1,1,AO177*(1+AP176)) -> 1.731676448 | AQ177: =IF(AQ$3=$I$4+1,1,AP177*(1+AQ176)) -> 1.731676448 | AR177: =IF(AR$3=$I$4+1,1,AQ177*(1+AR176)) -> 1.731676448 | AS177: =IF(AS$3=$I$4+1,1,AR177*(1+AS176)) -> 1.731676448 | AT177: =IF(AT$3=$I$4+1,1,AS177*(1+AT176)) -> 1.731676448 | AU177: =IF(AU$3=$I$4+1,1,AT177*(1+AU176)) -> 1.731676448 | AV177: =IF(AV$3=$I$4+1,1,AU177*(1+AV176)) -> 1.731676448 | AW177: =IF(AW$3=$I$4+1,1,AV177*(1+AW176)) -> 1.731676448 | AX177: =IF(AX$3=$I$4+1,1,AW177*(1+AX176)) -> 1.731676448 | AY177: =IF(AY$3=$I$4+1,1,AX177*(1+AY176)) -> 1.731676448 | AZ177: =IF(AZ$3=$I$4+1,1,AY177*(1+AZ176)) -> 1.731676448 | BA177: =IF(BA$3=$I$4+1,1,AZ177*(1+BA176)) -> 1.731676448 | BB177: =IF(BB$3=$I$4+1,1,BA177*(1+BB176)) -> 1.731676448 | BC177: =IF(BC$3=$I$4+1,1,BB177*(1+BC176)) -> 1.731676448 | BD177: =IF(BD$3=$I$4+1,1,BC177*(1+BD176)) -> 1.731676448 | BE177: =IF(BE$3=$I$4+1,1,BD177*(1+BE176)) -> 1.731676448 | BF177: =IF(BF$3=$I$4+1,1,BE177*(1+BF176)) -> 1.731676448 | BG177: =IF(BG$3=$I$4+1,1,BF177*(1+BG176)) -> 1.731676448 | BH177: =IF(BH$3=$I$4+1,1,BG177*(1+BH176)) -> 1.731676448 | BI177: =IF(BI$3=$I$4+1,1,BH177*(1+BI176)) -> 1.731676448 | BJ177: =IF(BJ$3=$I$4+1,1,BI177*(1+BJ176)) -> 1.731676448 | BK177: =IF(BK$3=$I$4+1,1,BJ177*(1+BK176)) -> 1.731676448 | BL177: =IF(BL$3=$I$4+1,1,BK177*(1+BL176)) -> 1.731676448 | BM177: =IF(BM$3=$I$4+1,1,BL177*(1+BM176)) -> 1.731676448 | BN177: =IF(BN$3=$I$4+1,1,BM177*(1+BN176)) -> 1.731676448 | BO177: =IF(BO$3=$I$4+1,1,BN177*(1+BO176)) -> 1.731676448 | BP177: =IF(BP$3=$I$4+1,1,BO177*(1+BP176)) -> 1.731676448 | BQ177: =IF(BQ$3=$I$4+1,1,BP177*(1+BQ176)) -> 1.731676448 | BR177: =IF(BR$3=$I$4+1,1,BQ177*(1+BR176)) -> 1.731676448 | BS177: =IF(BS$3=$I$4+1,1,BR177*(1+BS176)) -> 1.731676448 | BT177: =IF(BT$3=$I$4+1,1,BS177*(1+BT176)) -> 1.731676448 | BU177: =IF(BU$3=$I$4+1,1,BT177*(1+BU176)) -> 1.731676448 | BV177: =IF(BV$3=$I$4+1,1,BU177*(1+BV176)) -> 1.731676448 | BW177: =IF(BW$3=$I$4+1,1,BV177*(1+BW176)) -> 1.731676448 | BX177: =IF(BX$3=$I$4+1,1,BW177*(1+BX176)) -> 1.731676448 | BY177: =IF(BY$3=$I$4+1,1,BX177*(1+BY176)) -> 1.731676448 | BZ177: =IF(BZ$3=$I$4+1,1,BY177*(1+BZ176)) -> 1.731676448 | CA177: =IF(CA$3=$I$4+1,1,BZ177*(1+CA176)) -> 1.731676448 | CB177: =IF(CB$3=$I$4+1,1,CA177*(1+CB176)) -> 1.731676448 | CC177: =IF(CC$3=$I$4+1,1,CB177*(1+CC176)) -> 1.731676448 | CD177: =IF(CD$3=$I$4+1,1,CC177*(1+CD176)) -> 1.731676448 | CE177: =IF(CE$3=$I$4+1,1,CD177*(1+CE176)) -> 1.731676448 | CF177: =IF(CF$3=$I$4+1,1,CE177*(1+CF176)) -> 1.731676448 | CG177: =IF(CG$3=$I$4+1,1,CF177*(1+CG176)) -> 1.731676448 | CH177: =IF(CH$3=$I$4+1,1,CG177*(1+CH176)) -> 1.731676448 | CI177: =IF(CI$3=$I$4+1,1,CH177*(1+CI176)) -> 1.731676448 | CJ177: =IF(CJ$3=$I$4+1,1,CI177*(1+CJ176)) -> 1.731676448 | CK177: =IF(CK$3=$I$4+1,1,CJ177*(1+CK176)) -> 1.731676448 | CL177: =IF(CL$3=$I$4+1,1,CK177*(1+CL176)) -> 1.731676448 | CM177: =IF(CM$3=$I$4+1,1,CL177*(1+CM176)) -> 1.731676448 | CN177: =IF(CN$3=$I$4+1,1,CM177*(1+CN176)) -> 1.731676448 | CO177: =IF(CO$3=$I$4+1,1,CN177*(1+CO176)) -> 1.731676448 | CP177: =IF(CP$3=$I$4+1,1,CO177*(1+CP176)) -> 1.731676448
C178: Wholesalers cereals price Index
C179: ordinary rice retailers price | D179: EUR/tons | E179: =ordinary_rice_retailer*parité/1000 -> 291.9795798 | J179: =$E$101*J177*J$7 -> 0 | K179: 0 | L179: 291.9795798 | M179: 291.9795798 | N179: 303.658763 | O179: 303.658763 | P179: 315.8051136 | Q179: 315.8051136 | R179: 328.4373181 | S179: 328.4373181 | T179: 341.5748108 | U179: 341.5748108 | V179: 355.2378033 | W179: 355.2378033 | X179: 369.4473154 | Y179: 369.4473154 | Z179: 384.225208 | AA179: 384.225208 | AB179: 399.5942163 | AC179: 399.5942163 | AD179: 415.577985 | AE179: 415.577985 | AF179: 432.2011044 | AG179: 432.2011044 | AH179: 449.4891485 | AI179: 449.4891485 | AJ179: 467.4687145 | AK179: 467.4687145 | AL179: 486.1674631 | AM179: 486.1674631 | AN179: 505.6141616 | AO179: 505.6141616 | AP179: =$E$101*AP177*AP$7 -> 0 | AQ179: 0 | AR179: 0 | AS179: 0 | AT179: 0 | AU179: 0 | AV179: 0 | AW179: 0 | AX179: 0 | AY179: 0 | AZ179: 0 | BA179: 0 | BB179: 0 | BC179: 0 | BD179: 0 | BE179: 0 | BF179: 0 | BG179: 0 | BH179: 0 | BI179: 0 | BJ179: 0 | BK179: 0 | BL179: 0 | BM179: 0 | BN179: 0 | BO179: 0 | BP179: 0 | BQ179: 0 | BR179: 0 | BS179: 0 | BT179: 0 | BU179: 0 | BV179: =$E$101*BV177*BV$7 -> 0 | BW179: 0 | BX179: 0 | BY179: 0 | BZ179: 0 | CA179: 0 | CB179: 0 | CC179: 0 | CD179: 0 | CE179: 0 | CF179: 0 | CG179: 0 | CH179: 0 | CI179: 0 | CJ179: 0 | CK179: 0 | CL179: 0 | CM179: 0 | CN179: 0 | CO179: 0 | CP179: 0
C181: Growth in Flour prices | D181: % p.a. | E181: =inflation_céréales -> 0.04 | J181: =$E$79*J$15 -> 0 | K181: 0 | L181: 0 | M181: 0 | N181: 0.04 | O181: 0 | P181: 0.04 | Q181: 0 | R181: 0.04 | S181: 0 | T181: 0.04 | U181: 0 | V181: 0.04 | W181: 0 | X181: 0.04 | Y181: 0 | Z181: 0.04 | AA181: 0 | AB181: 0.04 | AC181: 0 | AD181: 0.04 | AE181: 0 | AF181: 0.04 | AG181: 0 | AH181: 0.04 | AI181: 0 | AJ181: 0.04 | AK181: 0 | AL181: 0.04 | AM181: 0 | AN181: 0.04 | AO181: 0 | AP181: =$E$79*AP$15 -> 0 | AQ181: 0 | AR181: 0 | AS181: 0 | AT181: 0 | AU181: 0 | AV181: 0 | AW181: 0 | AX181: 0 | AY181: 0 | AZ181: 0 | BA181: 0 | BB181: 0 | BC181: 0 | BD181: 0 | BE181: 0 | BF181: 0 | BG181: 0 | BH181: 0 | BI181: 0 | BJ181: 0 | BK181: 0 | BL181: 0 | BM181: 0 | BN181: 0 | BO181: 0 | BP181: 0 | BQ181: 0 | BR181: 0 | BS181: 0 | BT181: 0 | BU181: 0 | BV181: =$E$79*BV$15 -> 0 | BW181: 0 | BX181: 0 | BY181: 0 | BZ181: 0 | CA181: 0 | CB181: 0 | CC181: 0 | CD181: 0 | CE181: 0 | CF181: 0 | CG181: 0 | CH181: 0 | CI181: 0 | CJ181: 0 | CK181: 0 | CL181: 0 | CM181: 0 | CN181: 0 | CO181: 0 | CP181: 0
C182: Flour price Index | J182: =IF(J$3=$I$4+1,1,I182*(1+J181)) -> 1 | K182: =IF(K$3=$I$4+1,1,J182*(1+K181)) -> 1 | L182: =IF(L$3=$I$4+1,1,K182*(1+L181)) -> 1 | M182: =IF(M$3=$I$4+1,1,L182*(1+M181)) -> 1 | N182: =IF(N$3=$I$4+1,1,M182*(1+N181)) -> 1.04 | O182: =IF(O$3=$I$4+1,1,N182*(1+O181)) -> 1.04 | P182: =IF(P$3=$I$4+1,1,O182*(1+P181)) -> 1.0816 | Q182: =IF(Q$3=$I$4+1,1,P182*(1+Q181)) -> 1.0816 | R182: =IF(R$3=$I$4+1,1,Q182*(1+R181)) -> 1.124864 | S182: =IF(S$3=$I$4+1,1,R182*(1+S181)) -> 1.124864 | T182: =IF(T$3=$I$4+1,1,S182*(1+T181)) -> 1.16985856 | U182: =IF(U$3=$I$4+1,1,T182*(1+U181)) -> 1.16985856 | V182: =IF(V$3=$I$4+1,1,U182*(1+V181)) -> 1.216652902 | W182: =IF(W$3=$I$4+1,1,V182*(1+W181)) -> 1.216652902 | X182: =IF(X$3=$I$4+1,1,W182*(1+X181)) -> 1.265319018 | Y182: =IF(Y$3=$I$4+1,1,X182*(1+Y181)) -> 1.265319018 | Z182: =IF(Z$3=$I$4+1,1,Y182*(1+Z181)) -> 1.315931779 | AA182: =IF(AA$3=$I$4+1,1,Z182*(1+AA181)) -> 1.315931779 | AB182: =IF(AB$3=$I$4+1,1,AA182*(1+AB181)) -> 1.36856905 | AC182: =IF(AC$3=$I$4+1,1,AB182*(1+AC181)) -> 1.36856905 | AD182: =IF(AD$3=$I$4+1,1,AC182*(1+AD181)) -> 1.423311812 | AE182: =IF(AE$3=$I$4+1,1,AD182*(1+AE181)) -> 1.423311812 | AF182: =IF(AF$3=$I$4+1,1,AE182*(1+AF181)) -> 1.480244285 | AG182: =IF(AG$3=$I$4+1,1,AF182*(1+AG181)) -> 1.480244285 | AH182: =IF(AH$3=$I$4+1,1,AG182*(1+AH181)) -> 1.539454056 | AI182: =IF(AI$3=$I$4+1,1,AH182*(1+AI181)) -> 1.539454056 | AJ182: =IF(AJ$3=$I$4+1,1,AI182*(1+AJ181)) -> 1.601032219 | AK182: =IF(AK$3=$I$4+1,1,AJ182*(1+AK181)) -> 1.601032219 | AL182: =IF(AL$3=$I$4+1,1,AK182*(1+AL181)) -> 1.665073507 | AM182: =IF(AM$3=$I$4+1,1,AL182*(1+AM181)) -> 1.665073507 | AN182: =IF(AN$3=$I$4+1,1,AM182*(1+AN181)) -> 1.731676448 | AO182: =IF(AO$3=$I$4+1,1,AN182*(1+AO181)) -> 1.731676448 | AP182: =IF(AP$3=$I$4+1,1,AO182*(1+AP181)) -> 1.731676448 | AQ182: =IF(AQ$3=$I$4+1,1,AP182*(1+AQ181)) -> 1.731676448 | AR182: =IF(AR$3=$I$4+1,1,AQ182*(1+AR181)) -> 1.731676448 | AS182: =IF(AS$3=$I$4+1,1,AR182*(1+AS181)) -> 1.731676448 | AT182: =IF(AT$3=$I$4+1,1,AS182*(1+AT181)) -> 1.731676448 | AU182: =IF(AU$3=$I$4+1,1,AT182*(1+AU181)) -> 1.731676448 | AV182: =IF(AV$3=$I$4+1,1,AU182*(1+AV181)) -> 1.731676448 | AW182: =IF(AW$3=$I$4+1,1,AV182*(1+AW181)) -> 1.731676448 | AX182: =IF(AX$3=$I$4+1,1,AW182*(1+AX181)) -> 1.731676448 | AY182: =IF(AY$3=$I$4+1,1,AX182*(1+AY181)) -> 1.731676448 | AZ182: =IF(AZ$3=$I$4+1,1,AY182*(1+AZ181)) -> 1.731676448 | BA182: =IF(BA$3=$I$4+1,1,AZ182*(1+BA181)) -> 1.731676448 | BB182: =IF(BB$3=$I$4+1,1,BA182*(1+BB181)) -> 1.731676448 | BC182: =IF(BC$3=$I$4+1,1,BB182*(1+BC181)) -> 1.731676448 | BD182: =IF(BD$3=$I$4+1,1,BC182*(1+BD181)) -> 1.731676448 | BE182: =IF(BE$3=$I$4+1,1,BD182*(1+BE181)) -> 1.731676448 | BF182: =IF(BF$3=$I$4+1,1,BE182*(1+BF181)) -> 1.731676448 | BG182: =IF(BG$3=$I$4+1,1,BF182*(1+BG181)) -> 1.731676448 | BH182: =IF(BH$3=$I$4+1,1,BG182*(1+BH181)) -> 1.731676448 | BI182: =IF(BI$3=$I$4+1,1,BH182*(1+BI181)) -> 1.731676448 | BJ182: =IF(BJ$3=$I$4+1,1,BI182*(1+BJ181)) -> 1.731676448 | BK182: =IF(BK$3=$I$4+1,1,BJ182*(1+BK181)) -> 1.731676448 | BL182: =IF(BL$3=$I$4+1,1,BK182*(1+BL181)) -> 1.731676448 | BM182: =IF(BM$3=$I$4+1,1,BL182*(1+BM181)) -> 1.731676448 | BN182: =IF(BN$3=$I$4+1,1,BM182*(1+BN181)) -> 1.731676448 | BO182: =IF(BO$3=$I$4+1,1,BN182*(1+BO181)) -> 1.731676448 | BP182: =IF(BP$3=$I$4+1,1,BO182*(1+BP181)) -> 1.731676448 | BQ182: =IF(BQ$3=$I$4+1,1,BP182*(1+BQ181)) -> 1.731676448 | BR182: =IF(BR$3=$I$4+1,1,BQ182*(1+BR181)) -> 1.731676448 | BS182: =IF(BS$3=$I$4+1,1,BR182*(1+BS181)) -> 1.731676448 | BT182: =IF(BT$3=$I$4+1,1,BS182*(1+BT181)) -> 1.731676448 | BU182: =IF(BU$3=$I$4+1,1,BT182*(1+BU181)) -> 1.731676448 | BV182: =IF(BV$3=$I$4+1,1,BU182*(1+BV181)) -> 1.731676448 | BW182: =IF(BW$3=$I$4+1,1,BV182*(1+BW181)) -> 1.731676448 | BX182: =IF(BX$3=$I$4+1,1,BW182*(1+BX181)) -> 1.731676448 | BY182: =IF(BY$3=$I$4+1,1,BX182*(1+BY181)) -> 1.731676448 | BZ182: =IF(BZ$3=$I$4+1,1,BY182*(1+BZ181)) -> 1.731676448 | CA182: =IF(CA$3=$I$4+1,1,BZ182*(1+CA181)) -> 1.731676448 | CB182: =IF(CB$3=$I$4+1,1,CA182*(1+CB181)) -> 1.731676448 | CC182: =IF(CC$3=$I$4+1,1,CB182*(1+CC181)) -> 1.731676448 | CD182: =IF(CD$3=$I$4+1,1,CC182*(1+CD181)) -> 1.731676448 | CE182: =IF(CE$3=$I$4+1,1,CD182*(1+CE181)) -> 1.731676448 | CF182: =IF(CF$3=$I$4+1,1,CE182*(1+CF181)) -> 1.731676448 | CG182: =IF(CG$3=$I$4+1,1,CF182*(1+CG181)) -> 1.731676448 | CH182: =IF(CH$3=$I$4+1,1,CG182*(1+CH181)) -> 1.731676448 | CI182: =IF(CI$3=$I$4+1,1,CH182*(1+CI181)) -> 1.731676448 | CJ182: =IF(CJ$3=$I$4+1,1,CI182*(1+CJ181)) -> 1.731676448 | CK182: =IF(CK$3=$I$4+1,1,CJ182*(1+CK181)) -> 1.731676448 | CL182: =IF(CL$3=$I$4+1,1,CK182*(1+CL181)) -> 1.731676448 | CM182: =IF(CM$3=$I$4+1,1,CL182*(1+CM181)) -> 1.731676448 | CN182: =IF(CN$3=$I$4+1,1,CM182*(1+CN181)) -> 1.731676448 | CO182: =IF(CO$3=$I$4+1,1,CN182*(1+CO181)) -> 1.731676448 | CP182: =IF(CP$3=$I$4+1,1,CO182*(1+CP181)) -> 1.731676448
C183: Flour market price | D183: EUR/tons | E183: =rice_by_product*parité/1000 -> 70 | J183: =$E$81*J182*J$7 -> 0 | K183: 0 | L183: 70 | M183: 70 | N183: 72.8 | O183: 72.8 | P183: 75.712 | Q183: 75.712 | R183: 78.74048 | S183: 78.74048 | T183: 81.8900992 | U183: 81.8900992 | V183: 85.16570317 | W183: 85.16570317 | X183: 88.57233129 | Y183: 88.57233129 | Z183: 92.11522455 | AA183: 92.11522455 | AB183: 95.79983353 | AC183: 95.79983353 | AD183: 99.63182687 | AE183: 99.63182687 | AF183: 103.6170999 | AG183: 103.6170999 | AH183: 107.7617839 | AI183: 107.7617839 | AJ183: 112.0722553 | AK183: 112.0722553 | AL183: 116.5551455 | AM183: 116.5551455 | AN183: 121.2173513 | AO183: 121.2173513 | AP183: =$E$81*AP182*AP$7 -> 0 | AQ183: 0 | AR183: 0 | AS183: 0 | AT183: 0 | AU183: 0 | AV183: 0 | AW183: 0 | AX183: 0 | AY183: 0 | AZ183: 0 | BA183: 0 | BB183: 0 | BC183: 0 | BD183: 0 | BE183: 0 | BF183: 0 | BG183: 0 | BH183: 0 | BI183: 0 | BJ183: 0 | BK183: 0 | BL183: 0 | BM183: 0 | BN183: 0 | BO183: 0 | BP183: 0 | BQ183: 0 | BR183: 0 | BS183: 0 | BT183: 0 | BU183: 0 | BV183: =$E$81*BV182*BV$7 -> 0 | BW183: 0 | BX183: 0 | BY183: 0 | BZ183: 0 | CA183: 0 | CB183: 0 | CC183: 0 | CD183: 0 | CE183: 0 | CF183: 0 | CG183: 0 | CH183: 0 | CI183: 0 | CJ183: 0 | CK183: 0 | CL183: 0 | CM183: 0 | CN183: 0 | CO183: 0 | CP183: 0
C185: Volumes
C186: risks on crops | D186: % | E186: =1-conting_crop -> 0.975
C188: Wholesalers volumes of ordinary rice | D188: Tons | E188: 1 | J188: =IF(J$13<13,,IF(AND(J$13>12,J$13<15),1/2*$E$188*J125*$E$186,$E$188*J125*$E$186)) -> 0 | K188: =IF(K$13<13,,IF(AND(K$13>12,K$13<15),1/2*$E$188*K125*$E$186,$E$188*K125*$E$186)) -> 0 | L188: 0 | M188: 0 | N188: 0 | O188: 0 | P188: 0 | Q188: 0 | R188: 0 | S188: 0 | T188: 0 | U188: 0 | V188: 0 | W188: 0 | X188: 723.9375 | Y188: 723.9375 | Z188: 1447.875 | AA188: 1447.875 | AB188: 1447.875 | AC188: 1447.875 | AD188: 1447.875 | AE188: 1447.875 | AF188: 1447.875 | AG188: 1447.875 | AH188: 1447.875 | AI188: 1447.875 | AJ188: 1447.875 | AK188: 1447.875 | AL188: 1447.875 | AM188: 1447.875 | AN188: 1447.875 | AO188: 1447.875 | AP188: 0 | AQ188: 0 | AR188: 0 | AS188: 0 | AT188: 0 | AU188: 0 | AV188: 0 | AW188: 0 | AX188: 0 | AY188: 0 | AZ188: 0 | BA188: 0 | BB188: 0 | BC188: 0 | BD188: 0 | BE188: 0 | BF188: 0 | BG188: 0 | BH188: 0 | BI188: 0 | BJ188: 0 | BK188: 0 | BL188: 0 | BM188: 0 | BN188: 0 | BO188: 0 | BP188: 0 | BQ188: 0 | BR188: 0 | BS188: 0 | BT188: 0 | BU188: 0 | BV188: 0 | BW188: =IF(BW$13<13,,IF(AND(BW$13>12,BW$13<15),1/2*$E$188*BW125*$E$186,$E$188*BW125*$E$186)) -> 0 | BX188: 0 | BY188: 0 | BZ188: 0 | CA188: 0 | CB188: 0 | CC188: 0 | CD188: 0 | CE188: 0 | CF188: 0 | CG188: 0 | CH188: 0 | CI188: 0 | CJ188: 0 | CK188: 0 | CL188: 0 | CM188: 0 | CN188: 0 | CO188: 0 | CP188: 0
C189: Wholesalers volumes Flour | D189: Tons | E189: 0 | J189: =$E$189*J126*E186 -> 0 | K189: =$E$189*K126*F186 -> 0 | L189: 0 | M189: 0 | N189: 0 | O189: 0 | P189: 0 | Q189: 0 | R189: 0 | S189: 0 | T189: 0 | U189: 0 | V189: 0 | W189: 0 | X189: 0 | Y189: 0 | Z189: 0 | AA189: 0 | AB189: 0 | AC189: 0 | AD189: 0 | AE189: 0 | AF189: 0 | AG189: 0 | AH189: 0 | AI189: 0 | AJ189: 0 | AK189: 0 | AL189: 0 | AM189: 0 | AN189: 0 | AO189: 0 | AP189: 0 | AQ189: 0 | AR189: 0 | AS189: 0 | AT189: 0 | AU189: 0 | AV189: 0 | AW189: 0 | AX189: 0 | AY189: 0 | AZ189: 0 | BA189: 0 | BB189: 0 | BC189: 0 | BD189: 0 | BE189: 0 | BF189: 0 | BG189: 0 | BH189: 0 | BI189: 0 | BJ189: 0 | BK189: 0 | BL189: 0 | BM189: 0 | BN189: 0 | BO189: 0 | BP189: 0 | BQ189: 0 | BR189: 0 | BS189: 0 | BT189: 0 | BU189: 0 | BV189: 0 | BW189: =$E$189*BW126*BR186 -> 0 | BX189: 0 | BY189: 0 | BZ189: 0 | CA189: 0 | CB189: 0 | CC189: 0 | CD189: 0 | CE189: 0 | CF189: 0 | CG189: 0 | CH189: 0 | CI189: 0 | CJ189: 0 | CK189: 0 | CL189: 0 | CM189: 0 | CN189: 0 | CO189: 0 | CP189: 0
C191: Sales in Million FCFA
C192: Ordinary rice sold in local market | D192: Million FCFA | J192: =J188*J179/Thousand -> 0 | K192: 0 | L192: 0 | M192: 0 | N192: 0 | O192: 0 | P192: 0 | Q192: 0 | R192: 0 | S192: 0 | T192: 0 | U192: 0 | V192: 0 | W192: 0 | X192: 267.4567659 | Y192: 267.4567659 | Z192: 556.310073 | AA192: 556.310073 | AB192: 578.562476 | AC192: 578.562476 | AD192: 601.704975 | AE192: 601.704975 | AF192: 625.773174 | AG192: 625.773174 | AH192: 650.804101 | AI192: 650.804101 | AJ192: 676.836265 | AK192: 676.836265 | AL192: 703.9097156 | AM192: 703.9097156 | AN192: 732.0661042 | AO192: 732.0661042 | AP192: 0 | AQ192: 0 | AR192: 0 | AS192: 0 | AT192: 0 | AU192: 0 | AV192: 0 | AW192: 0 | AX192: 0 | AY192: 0 | AZ192: 0 | BA192: 0 | BB192: 0 | BC192: 0 | BD192: 0 | BE192: 0 | BF192: 0 | BG192: 0 | BH192: 0 | BI192: 0 | BJ192: 0 | BK192: 0 | BL192: 0 | BM192: 0 | BN192: 0 | BO192: 0 | BP192: 0 | BQ192: 0 | BR192: 0 | BS192: 0 | BT192: 0 | BU192: 0 | BV192: =BV188*BV179/Thousand -> 0 | BW192: 0 | BX192: 0 | BY192: 0 | BZ192: 0 | CA192: 0 | CB192: 0 | CC192: 0 | CD192: 0 | CE192: 0 | CF192: 0 | CG192: 0 | CH192: 0 | CI192: 0 | CJ192: 0 | CK192: 0 | CL192: 0 | CM192: 0 | CN192: 0 | CO192: 0 | CP192: 0
C193: Flour sold in local market | D193: Million FCFA | J193: =J189*J183/Thousand -> 0 | K193: 0 | L193: 0 | M193: 0 | N193: 0 | O193: 0 | P193: 0 | Q193: 0 | R193: 0 | S193: 0 | T193: 0 | U193: 0 | V193: 0 | W193: 0 | X193: 0 | Y193: 0 | Z193: 0 | AA193: 0 | AB193: 0 | AC193: 0 | AD193: 0 | AE193: 0 | AF193: 0 | AG193: 0 | AH193: 0 | AI193: 0 | AJ193: 0 | AK193: 0 | AL193: 0 | AM193: 0 | AN193: 0 | AO193: 0 | AP193: 0 | AQ193: 0 | AR193: 0 | AS193: 0 | AT193: 0 | AU193: 0 | AV193: 0 | AW193: 0 | AX193: 0 | AY193: 0 | AZ193: 0 | BA193: 0 | BB193: 0 | BC193: 0 | BD193: 0 | BE193: 0 | BF193: 0 | BG193: 0 | BH193: 0 | BI193: 0 | BJ193: 0 | BK193: 0 | BL193: 0 | BM193: 0 | BN193: 0 | BO193: 0 | BP193: 0 | BQ193: 0 | BR193: 0 | BS193: 0 | BT193: 0 | BU193: 0 | BV193: =BV189*BV183/Thousand -> 0 | BW193: 0 | BX193: 0 | BY193: 0 | BZ193: 0 | CA193: 0 | CB193: 0 | CC193: 0 | CD193: 0 | CE193: 0 | CF193: 0 | CG193: 0 | CH193: 0 | CI193: 0 | CJ193: 0 | CK193: 0 | CL193: 0 | CM193: 0 | CN193: 0 | CO193: 0 | CP193: 0
C195: Sales in EUR
C196: Local sales of ordinary rice | D196: EUR | J196: =J192*Million/J$33 -> 0 | K196: =K192*Million/K$33 -> 0 | L196: 0 | M196: 0 | N196: 0 | O196: 0 | P196: 0 | Q196: 0 | R196: 0 | S196: 0 | T196: =T192*Million/T$33 -> 0 | U196: =U192*Million/U$33 -> 0 | V196: 0 | W196: 0 | X196: 407735.2111 | Y196: 407735.2111 | Z196: 848089.2391 | AA196: 848089.2391 | AB196: 882012.8087 | AC196: 882012.8087 | AD196: 917293.321 | AE196: 917293.321 | AF196: 953985.0539 | AG196: 953985.0539 | AH196: 992144.456 | AI196: 992144.456 | AJ196: 1031830.234 | AK196: 1031830.234 | AL196: 1073103.444 | AM196: 1073103.444 | AN196: 1116027.581 | AO196: 1116027.581 | AP196: 0 | AQ196: 0 | AR196: 0 | AS196: 0 | AT196: 0 | AU196: 0 | AV196: 0 | AW196: 0 | AX196: 0 | AY196: 0 | AZ196: 0 | BA196: 0 | BB196: 0 | BC196: 0 | BD196: 0 | BE196: 0 | BF196: 0 | BG196: 0 | BH196: 0 | BI196: 0 | BJ196: 0 | BK196: 0 | BL196: 0 | BM196: 0 | BN196: 0 | BO196: 0 | BP196: 0 | BQ196: 0 | BR196: 0 | BS196: 0 | BT196: 0 | BU196: 0 | BV196: 0 | BW196: 0 | BX196: 0 | BY196: 0 | BZ196: 0 | CA196: 0 | CB196: 0 | CC196: 0 | CD196: 0 | CE196: 0 | CF196: 0 | CG196: =CG192*Million/CG$33 -> 0 | CH196: 0 | CI196: 0 | CJ196: 0 | CK196: 0 | CL196: 0 | CM196: 0 | CN196: 0 | CO196: 0 | CP196: 0
C197: Local sales of flour | D197: EUR | J197: =J193*Million/J$33 -> 0 | K197: 0 | L197: 0 | M197: 0 | N197: 0 | O197: 0 | P197: 0 | Q197: 0 | R197: 0 | S197: 0 | T197: 0 | U197: 0 | V197: 0 | W197: 0 | X197: 0 | Y197: 0 | Z197: 0 | AA197: 0 | AB197: 0 | AC197: 0 | AD197: 0 | AE197: 0 | AF197: 0 | AG197: 0 | AH197: 0 | AI197: 0 | AJ197: 0 | AK197: 0 | AL197: 0 | AM197: 0 | AN197: 0 | AO197: 0 | AP197: 0 | AQ197: 0 | AR197: 0 | AS197: 0 | AT197: 0 | AU197: 0 | AV197: 0 | AW197: 0 | AX197: 0 | AY197: 0 | AZ197: 0 | BA197: 0 | BB197: 0 | BC197: 0 | BD197: 0 | BE197: 0 | BF197: 0 | BG197: 0 | BH197: 0 | BI197: 0 | BJ197: 0 | BK197: 0 | BL197: 0 | BM197: 0 | BN197: 0 | BO197: 0 | BP197: 0 | BQ197: 0 | BR197: 0 | BS197: 0 | BT197: 0 | BU197: 0 | BV197: =BV193*Million/BV$33 -> 0 | BW197: 0 | BX197: 0 | BY197: 0 | BZ197: 0 | CA197: 0 | CB197: 0 | CC197: 0 | CD197: 0 | CE197: 0 | CF197: 0 | CG197: 0 | CH197: 0 | CI197: 0 | CJ197: 0 | CK197: 0 | CL197: 0 | CM197: 0 | CN197: 0 | CO197: 0 | CP197: 0
C200: Summary Sales
C201: Farm 1: importers sales of ordinary rice | D201: =D70 -> EUR | I201: =SUM(J201:CP201) -> 36920255.19 | J201: =J70 -> 0 | K201: 0 | L201: 0 | M201: 0 | N201: 438486.048 | O201: 2466484.02 | P201: 3198512.117 | Q201: 5956832.962 | R201: 6175345.176 | S201: 9485330.19 | T201: 3914580.713 | U201: 5284683.963 | V201: 0 | W201: 0 | X201: 0 | Y201: 0 | Z201: 0 | AA201: 0 | AB201: 0 | AC201: 0 | AD201: 0 | AE201: 0 | AF201: 0 | AG201: 0 | AH201: 0 | AI201: 0 | AJ201: 0 | AK201: 0 | AL201: 0 | AM201: 0 | AN201: 0 | AO201: 0 | AP201: =AP70 -> 0 | AQ201: 0 | AR201: 0 | AS201: 0 | AT201: 0 | AU201: 0 | AV201: 0 | AW201: 0 | AX201: 0 | AY201: 0 | AZ201: 0 | BA201: 0 | BB201: 0 | BC201: 0 | BD201: 0 | BE201: 0 | BF201: 0 | BG201: 0 | BH201: 0 | BI201: 0 | BJ201: 0 | BK201: 0 | BL201: 0 | BM201: 0 | BN201: 0 | BO201: 0 | BP201: 0 | BQ201: 0 | BR201: 0 | BS201: 0 | BT201: 0 | BU201: 0 | BV201: =BV70 -> 0 | BW201: 0 | BX201: 0 | BY201: 0 | BZ201: 0 | CA201: 0 | CB201: 0 | CC201: 0 | CD201: 0 | CE201: 0 | CF201: 0 | CG201: 0 | CH201: 0 | CI201: 0 | CJ201: 0 | CK201: 0 | CL201: 0 | CM201: 0 | CN201: 0 | CO201: 0 | CP201: 0
C202: Farm 1: Local sales of flour | D202: =D71 -> EUR | I202: 16105124.56 | J202: =J71 -> 0 | K202: 0 | L202: 0 | M202: 0 | N202: 23859.93289 | O202: 134212.1225 | P202: 174044.9549 | Q202: 324137.1883 | R202: 336027.3882 | S202: 516138.0683 | T202: 426018.7231 | U202: 575125.2761 | V202: 474073.635 | W202: 638005.6396 | X202: 516075.673 | Y202: 663525.8652 | Z202: 536718.6999 | AA202: 690066.8998 | AB202: 558187.4479 | AC202: 717669.5758 | AD202: 580514.9458 | AE202: 746376.3589 | AF202: 603735.5436 | AG202: 776231.4132 | AH202: 627884.9654 | AI202: 807280.6698 | AJ202: 653000.364 | AK202: 839571.8965 | AL202: 679120.3785 | AM202: 873154.7724 | AN202: 706285.1937 | AO202: 908080.9633 | AP202: =AP71 -> 0 | AQ202: 0 | AR202: 0 | AS202: 0 | AT202: 0 | AU202: 0 | AV202: 0 | AW202: 0 | AX202: 0 | AY202: 0 | AZ202: 0 | BA202: 0 | BB202: 0 | BC202: 0 | BD202: 0 | BE202: 0 | BF202: 0 | BG202: 0 | BH202: 0 | BI202: 0 | BJ202: 0 | BK202: 0 | BL202: 0 | BM202: 0 | BN202: 0 | BO202: 0 | BP202: 0 | BQ202: 0 | BR202: 0 | BS202: 0 | BT202: 0 | BU202: 0 | BV202: =BV71 -> 0 | BW202: 0 | BX202: 0 | BY202: 0 | BZ202: 0 | CA202: 0 | CB202: 0 | CC202: 0 | CD202: 0 | CE202: 0 | CF202: 0 | CG202: 0 | CH202: 0 | CI202: 0 | CJ202: 0 | CK202: 0 | CL202: 0 | CM202: 0 | CN202: 0 | CO202: 0 | CP202: 0
C203: Farm 1 Subtotal: Local Market | D203: EUR | I203: 53025379.75 | J203: =SUM(J201:J202) -> 0 | K203: 0 | L203: 0 | M203: 0 | N203: 462345.9809 | O203: 2600696.143 | P203: 3372557.072 | Q203: 6280970.15 | R203: 6511372.564 | S203: 10001468.26 | T203: 4340599.437 | U203: 5859809.239 | V203: 474073.635 | W203: 638005.6396 | X203: 516075.673 | Y203: 663525.8652 | Z203: 536718.6999 | AA203: 690066.8998 | AB203: 558187.4479 | AC203: 717669.5758 | AD203: 580514.9458 | AE203: 746376.3589 | AF203: 603735.5436 | AG203: 776231.4132 | AH203: 627884.9654 | AI203: 807280.6698 | AJ203: 653000.364 | AK203: 839571.8965 | AL203: 679120.3785 | AM203: 873154.7724 | AN203: 706285.1937 | AO203: 908080.9633 | AP203: =SUM(AP201:AP202) -> 0 | AQ203: 0 | AR203: 0 | AS203: 0 | AT203: 0 | AU203: 0 | AV203: 0 | AW203: 0 | AX203: 0 | AY203: 0 | AZ203: 0 | BA203: 0 | BB203: 0 | BC203: 0 | BD203: 0 | BE203: 0 | BF203: 0 | BG203: 0 | BH203: 0 | BI203: 0 | BJ203: 0 | BK203: 0 | BL203: 0 | BM203: 0 | BN203: 0 | BO203: 0 | BP203: 0 | BQ203: 0 | BR203: 0 | BS203: 0 | BT203: 0 | BU203: 0 | BV203: =SUM(BV201:BV202) -> 0 | BW203: 0 | BX203: 0 | BY203: 0 | BZ203: 0 | CA203: 0 | CB203: 0 | CC203: 0 | CD203: 0 | CE203: 0 | CF203: 0 | CG203: 0 | CH203: 0 | CI203: 0 | CJ203: 0 | CK203: 0 | CL203: 0 | CM203: 0 | CN203: 0 | CO203: 0 | CP203: 0
C204: Farm 1: Ordinary rice wholesalers discounted sales | D204: EUR | I204: 42094597.53 | J204: =J94 -> 0 | K204: 0 | L204: 0 | M204: 0 | N204: 0 | O204: 0 | P204: 0 | Q204: 0 | R204: 0 | S204: 0 | T204: 4071163.942 | U204: 5496071.322 | V204: 9060782.469 | W204: 12193950.24 | X204: 4931775.43 | Y204: 6340854.124 | Z204: 0 | AA204: 0 | AB204: 0 | AC204: 0 | AD204: 0 | AE204: 0 | AF204: 0 | AG204: 0 | AH204: 0 | AI204: 0 | AJ204: 0 | AK204: 0 | AL204: 0 | AM204: 0 | AN204: 0 | AO204: 0 | AP204: =AP94 -> 0 | AQ204: 0 | AR204: 0 | AS204: 0 | AT204: 0 | AU204: 0 | AV204: 0 | AW204: 0 | AX204: 0 | AY204: 0 | AZ204: 0 | BA204: 0 | BB204: 0 | BC204: 0 | BD204: 0 | BE204: 0 | BF204: 0 | BG204: 0 | BH204: 0 | BI204: 0 | BJ204: 0 | BK204: 0 | BL204: 0 | BM204: 0 | BN204: 0 | BO204: 0 | BP204: 0 | BQ204: 0 | BR204: 0 | BS204: 0 | BT204: 0 | BU204: 0 | BV204: =BV94 -> 0 | BW204: 0 | BX204: 0 | BY204: 0 | BZ204: 0 | CA204: 0 | CB204: 0 | CC204: 0 | CD204: 0 | CE204: 0 | CF204: 0 | CG204: 0 | CH204: 0 | CI204: 0 | CJ204: 0 | CK204: 0 | CL204: 0 | CM204: 0 | CN204: 0 | CO204: 0 | CP204: 0
C205: Farm 1: Flour sales | D205: EUR | I205: 0 | J205: =J95 -> 0 | K205: 0 | L205: 0 | M205: 0 | N205: 0 | O205: 0 | P205: 0 | Q205: 0 | R205: 0 | S205: 0 | T205: 0 | U205: 0 | V205: 0 | W205: 0 | X205: 0 | Y205: 0 | Z205: 0 | AA205: 0 | AB205: 0 | AC205: 0 | AD205: 0 | AE205: 0 | AF205: 0 | AG205: 0 | AH205: 0 | AI205: 0 | AJ205: 0 | AK205: 0 | AL205: 0 | AM205: 0 | AN205: 0 | AO205: 0 | AP205: =AP95 -> 0 | AQ205: 0 | AR205: 0 | AS205: 0 | AT205: 0 | AU205: 0 | AV205: 0 | AW205: 0 | AX205: 0 | AY205: 0 | AZ205: 0 | BA205: 0 | BB205: 0 | BC205: 0 | BD205: 0 | BE205: 0 | BF205: 0 | BG205: 0 | BH205: 0 | BI205: 0 | BJ205: 0 | BK205: 0 | BL205: 0 | BM205: 0 | BN205: 0 | BO205: 0 | BP205: 0 | BQ205: 0 | BR205: 0 | BS205: 0 | BT205: 0 | BU205: 0 | BV205: =BV95 -> 0 | BW205: 0 | BX205: 0 | BY205: 0 | BZ205: 0 | CA205: 0 | CB205: 0 | CC205: 0 | CD205: 0 | CE205: 0 | CF205: 0 | CG205: 0 | CH205: 0 | CI205: 0 | CJ205: 0 | CK205: 0 | CL205: 0 | CM205: 0 | CN205: 0 | CO205: 0 | CP205: 0
C206: Farm 1: Subtotal: wholesalers discounted | D206: EUR | I206: 42094597.53 | J206: =SUM(J204:J205) -> 0 | K206: 0 | L206: 0 | M206: 0 | N206: 0 | O206: 0 | P206: 0 | Q206: 0 | R206: 0 | S206: 0 | T206: 4071163.942 | U206: 5496071.322 | V206: 9060782.469 | W206: 12193950.24 | X206: 4931775.43 | Y206: 6340854.124 | Z206: 0 | AA206: 0 | AB206: 0 | AC206: 0 | AD206: 0 | AE206: 0 | AF206: 0 | AG206: 0 | AH206: 0 | AI206: 0 | AJ206: 0 | AK206: 0 | AL206: 0 | AM206: 0 | AN206: 0 | AO206: 0 | AP206: =SUM(AP204:AP205) -> 0 | AQ206: 0 | AR206: 0 | AS206: 0 | AT206: 0 | AU206: 0 | AV206: 0 | AW206: 0 | AX206: 0 | AY206: 0 | AZ206: 0 | BA206: 0 | BB206: 0 | BC206: 0 | BD206: 0 | BE206: 0 | BF206: 0 | BG206: 0 | BH206: 0 | BI206: 0 | BJ206: 0 | BK206: 0 | BL206: 0 | BM206: 0 | BN206: 0 | BO206: 0 | BP206: 0 | BQ206: 0 | BR206: 0 | BS206: 0 | BT206: 0 | BU206: 0 | BV206: =SUM(BV204:BV205) -> 0 | BW206: 0 | BX206: 0 | BY206: 0 | BZ206: 0 | CA206: 0 | CB206: 0 | CC206: 0 | CD206: 0 | CE206: 0 | CF206: 0 | CG206: 0 | CH206: 0 | CI206: 0 | CJ206: 0 | CK206: 0 | CL206: 0 | CM206: 0 | CN206: 0 | CO206: 0 | CP206: 0
C207: Farm 1: Ordinary rice wholesalers sales | D207: EUR | I207: =SUM(J207:CP207) -> 233876518.4 | J207: =J118 -> 0 | K207: 0 | L207: 0 | M207: 0 | N207: 0 | O207: 0 | P207: 0 | Q207: 0 | R207: 0 | S207: 0 | T207: 0 | U207: 0 | V207: 0 | W207: 0 | X207: 5074038.183 | Y207: 6523763.378 | Z207: 10553999.42 | AA207: 13569427.83 | AB207: 10976159.4 | AC207: 14112204.94 | AD207: 11415205.77 | AE207: 14676693.14 | AF207: 11871814 | AG207: 15263760.86 | AH207: 12346686.56 | AI207: 15874311.3 | AJ207: 12840554.03 | AK207: 16509283.75 | AL207: 13354176.19 | AM207: 17169655.1 | AN207: 13888343.24 | AO207: 17856441.3 | AP207: =AP118 -> 0 | AQ207: 0 | AR207: 0 | AS207: 0 | AT207: 0 | AU207: 0 | AV207: 0 | AW207: 0 | AX207: 0 | AY207: 0 | AZ207: 0 | BA207: 0 | BB207: 0 | BC207: 0 | BD207: 0 | BE207: 0 | BF207: 0 | BG207: 0 | BH207: 0 | BI207: 0 | BJ207: 0 | BK207: 0 | BL207: 0 | BM207: 0 | BN207: 0 | BO207: 0 | BP207: 0 | BQ207: 0 | BR207: 0 | BS207: 0 | BT207: 0 | BU207: 0 | BV207: 0 | BW207: =BW118 -> 0 | BX207: 0 | BY207: 0 | BZ207: 0 | CA207: 0 | CB207: 0 | CC207: 0 | CD207: 0 | CE207: 0 | CF207: 0 | CG207: 0 | CH207: 0 | CI207: 0 | CJ207: 0 | CK207: 0 | CL207: 0 | CM207: 0 | CN207: 0 | CO207: 0 | CP207: 0
C208: Farm 1: Flour sales | D208: EUR | I208: 0 | J208: =J119 -> 0 | K208: =K119 -> 0 | L208: 0 | M208: 0 | N208: 0 | O208: 0 | P208: 0 | Q208: 0 | R208: 0 | S208: 0 | T208: 0 | U208: 0 | V208: 0 | W208: 0 | X208: 0 | Y208: 0 | Z208: 0 | AA208: 0 | AB208: 0 | AC208: 0 | AD208: 0 | AE208: 0 | AF208: 0 | AG208: 0 | AH208: 0 | AI208: 0 | AJ208: 0 | AK208: 0 | AL208: 0 | AM208: 0 | AN208: 0 | AO208: 0 | AP208: 0 | AQ208: 0 | AR208: 0 | AS208: 0 | AT208: 0 | AU208: 0 | AV208: 0 | AW208: 0 | AX208: 0 | AY208: 0 | AZ208: 0 | BA208: 0 | BB208: 0 | BC208: 0 | BD208: 0 | BE208: 0 | BF208: 0 | BG208: 0 | BH208: 0 | BI208: 0 | BJ208: 0 | BK208: 0 | BL208: 0 | BM208: 0 | BN208: 0 | BO208: 0 | BP208: 0 | BQ208: 0 | BR208: 0 | BS208: 0 | BT208: 0 | BU208: 0 | BV208: 0 | BW208: =BW119 -> 0 | BX208: 0 | BY208: 0 | BZ208: 0 | CA208: 0 | CB208: 0 | CC208: 0 | CD208: 0 | CE208: 0 | CF208: 0 | CG208: 0 | CH208: 0 | CI208: 0 | CJ208: 0 | CK208: 0 | CL208: 0 | CM208: 0 | CN208: 0 | CO208: 0 | CP208: 0
C209: Farm 1: Subtotal:wholesalers | D209: EUR | I209: 233876518.4 | J209: =SUM(J207:J208) -> 0 | K209: 0 | L209: 0 | M209: 0 | N209: 0 | O209: 0 | P209: 0 | Q209: 0 | R209: 0 | S209: 0 | T209: 0 | U209: 0 | V209: 0 | W209: 0 | X209: 5074038.183 | Y209: 6523763.378 | Z209: 10553999.42 | AA209: 13569427.83 | AB209: 10976159.4 | AC209: 14112204.94 | AD209: 11415205.77 | AE209: 14676693.14 | AF209: 11871814 | AG209: 15263760.86 | AH209: 12346686.56 | AI209: 15874311.3 | AJ209: 12840554.03 | AK209: 16509283.75 | AL209: 13354176.19 | AM209: 17169655.1 | AN209: 13888343.24 | AO209: 17856441.3 | AP209: 0 | AQ209: 0 | AR209: 0 | AS209: 0 | AT209: 0 | AU209: 0 | AV209: 0 | AW209: 0 | AX209: 0 | AY209: 0 | AZ209: 0 | BA209: 0 | BB209: 0 | BC209: 0 | BD209: 0 | BE209: 0 | BF209: 0 | BG209: 0 | BH209: 0 | BI209: 0 | BJ209: 0 | BK209: 0 | BL209: 0 | BM209: 0 | BN209: 0 | BO209: 0 | BP209: 0 | BQ209: 0 | BR209: 0 | BS209: 0 | BT209: 0 | BU209: 0 | BV209: =SUM(BV207:BV208) -> 0 | BW209: 0 | BX209: 0 | BY209: 0 | BZ209: 0 | CA209: 0 | CB209: 0 | CC209: 0 | CD209: 0 | CE209: 0 | CF209: 0 | CG209: 0 | CH209: 0 | CI209: 0 | CJ209: 0 | CK209: 0 | CL209: 0 | CM209: 0 | CN209: 0 | CO209: 0 | CP209: 0
C210: Farm 1: Subtotal: | D210: EUR | I210: 328996495.7 | J210: =+J203+J206+J209 -> 0 | K210: =+K203+K206+K209 -> 0 | L210: 0 | M210: 0 | N210: 462345.9809 | O210: 2600696.143 | P210: 3372557.072 | Q210: 6280970.15 | R210: 6511372.564 | S210: 10001468.26 | T210: 8411763.379 | U210: 11355880.56 | V210: 9534856.104 | W210: 12831955.88 | X210: 10521889.29 | Y210: 13528143.37 | Z210: 11090718.12 | AA210: 14259494.73 | AB210: 11534346.84 | AC210: 14829874.51 | AD210: 11995720.72 | AE210: 15423069.5 | AF210: 12475549.55 | AG210: 16039992.28 | AH210: 12974571.53 | AI210: 16681591.97 | AJ210: 13493554.39 | AK210: 17348855.65 | AL210: 14033296.57 | AM210: 18042809.87 | AN210: 14594628.43 | AO210: 18764522.27 | AP210: 0 | AQ210: 0 | AR210: 0 | AS210: 0 | AT210: 0 | AU210: 0 | AV210: 0 | AW210: 0 | AX210: 0 | AY210: 0 | AZ210: 0 | BA210: 0 | BB210: 0 | BC210: 0 | BD210: 0 | BE210: 0 | BF210: 0 | BG210: 0 | BH210: 0 | BI210: 0 | BJ210: 0 | BK210: 0 | BL210: 0 | BM210: 0 | BN210: 0 | BO210: 0 | BP210: 0 | BQ210: 0 | BR210: 0 | BS210: 0 | BT210: 0 | BU210: 0 | BV210: 0 | BW210: =+BW203+BW206+BW209 -> 0 | BX210: 0 | BY210: 0 | BZ210: 0 | CA210: 0 | CB210: 0 | CC210: 0 | CD210: 0 | CE210: 0 | CF210: 0 | CG210: 0 | CH210: 0 | CI210: 0 | CJ210: 0 | CK210: 0 | CL210: 0 | CM210: 0 | CN210: 0 | CO210: 0 | CP210: 0
C212: Trading: Local sales of ordinary rice | D212: EUR | I212: 1711878.263 | J212: =J148 -> 0 | K212: 0 | L212: 0 | M212: 0 | N212: 18792.2592 | O212: 112753.5552 | P212: 138979.1969 | Q212: 247556.6945 | R212: 282301.4938 | S212: 406514.151 | T212: 223131.1007 | U212: 281849.8114 | V212: 0 | W212: 0 | X212: 0 | Y212: 0 | Z212: 0 | AA212: 0 | AB212: 0 | AC212: 0 | AD212: 0 | AE212: 0 | AF212: 0 | AG212: 0 | AH212: 0 | AI212: 0 | AJ212: 0 | AK212: 0 | AL212: 0 | AM212: 0 | AN212: 0 | AO212: 0 | AP212: =AP148 -> 0 | AQ212: 0 | AR212: 0 | AS212: 0 | AT212: 0 | AU212: 0 | AV212: 0 | AW212: 0 | AX212: 0 | AY212: 0 | AZ212: 0 | BA212: 0 | BB212: 0 | BC212: 0 | BD212: 0 | BE212: 0 | BF212: 0 | BG212: 0 | BH212: 0 | BI212: 0 | BJ212: 0 | BK212: 0 | BL212: 0 | BM212: 0 | BN212: 0 | BO212: 0 | BP212: 0 | BQ212: 0 | BR212: 0 | BS212: 0 | BT212: 0 | BU212: 0 | BV212: =BV148 -> 0 | BW212: 0 | BX212: 0 | BY212: 0 | BZ212: 0 | CA212: 0 | CB212: 0 | CC212: 0 | CD212: 0 | CE212: 0 | CF212: 0 | CG212: 0 | CH212: 0 | CI212: 0 | CJ212: 0 | CK212: 0 | CL212: 0 | CM212: 0 | CN212: 0 | CO212: 0 | CP212: 0
C213: Trading: Local sales of flour | D213: EUR | I213: 1071478.564 | J213: =J149 -> 0 | K213: 0 | L213: 0 | M213: 0 | N213: 1022.568553 | O213: 6135.411315 | P213: 7562.462539 | Q213: 13470.6364 | R213: 15361.25203 | S213: 22120.20293 | T213: 24283.06721 | U213: 30673.34806 | V213: 33229.4604 | W213: 39875.35248 | X213: 41470.36658 | Y213: 41470.36658 | Z213: 43129.18124 | AA213: 43129.18124 | AB213: 44854.34849 | AC213: 44854.34849 | AD213: 46648.52243 | AE213: 46648.52243 | AF213: 48514.46333 | AG213: 48514.46333 | AH213: 50455.04186 | AI213: 50455.04186 | AJ213: 52473.24353 | AK213: 52473.24353 | AL213: 54572.17328 | AM213: 54572.17328 | AN213: 56755.06021 | AO213: 56755.06021 | AP213: =AP149 -> 0 | AQ213: 0 | AR213: 0 | AS213: 0 | AT213: 0 | AU213: 0 | AV213: 0 | AW213: 0 | AX213: 0 | AY213: 0 | AZ213: 0 | BA213: 0 | BB213: 0 | BC213: 0 | BD213: 0 | BE213: 0 | BF213: 0 | BG213: 0 | BH213: 0 | BI213: 0 | BJ213: 0 | BK213: 0 | BL213: 0 | BM213: 0 | BN213: 0 | BO213: 0 | BP213: 0 | BQ213: 0 | BR213: 0 | BS213: 0 | BT213: 0 | BU213: 0 | BV213: =BV149 -> 0 | BW213: 0 | BX213: 0 | BY213: 0 | BZ213: 0 | CA213: 0 | CB213: 0 | CC213: 0 | CD213: 0 | CE213: 0 | CF213: 0 | CG213: 0 | CH213: 0 | CI213: 0 | CJ213: 0 | CK213: 0 | CL213: 0 | CM213: 0 | CN213: 0 | CO213: 0 | CP213: 0
C214: Trading Subtotal : Local Market | D214: EUR | I214: =SUM(J214:CP214) -> 2783356.826 | J214: =SUM(J212:J213) -> 0 | K214: =SUM(K212:K213) -> 0 | L214: 0 | M214: 0 | N214: 19814.82775 | O214: 118888.9665 | P214: 146541.6595 | Q214: 261027.3309 | R214: 297662.7458 | S214: 428634.3539 | T214: 247414.1679 | U214: 312523.1594 | V214: 33229.4604 | W214: 39875.35248 | X214: 41470.36658 | Y214: 41470.36658 | Z214: 43129.18124 | AA214: 43129.18124 | AB214: 44854.34849 | AC214: 44854.34849 | AD214: 46648.52243 | AE214: 46648.52243 | AF214: 48514.46333 | AG214: 48514.46333 | AH214: 50455.04186 | AI214: 50455.04186 | AJ214: 52473.24353 | AK214: 52473.24353 | AL214: 54572.17328 | AM214: 54572.17328 | AN214: 56755.06021 | AO214: 56755.06021 | AP214: 0 | AQ214: 0 | AR214: 0 | AS214: 0 | AT214: 0 | AU214: 0 | AV214: 0 | AW214: 0 | AX214: 0 | AY214: 0 | AZ214: 0 | BA214: 0 | BB214: 0 | BC214: 0 | BD214: 0 | BE214: 0 | BF214: 0 | BG214: 0 | BH214: 0 | BI214: 0 | BJ214: 0 | BK214: 0 | BL214: 0 | BM214: 0 | BN214: 0 | BO214: 0 | BP214: 0 | BQ214: 0 | BR214: 0 | BS214: 0 | BT214: 0 | BU214: 0 | BV214: 0 | BW214: =SUM(BW212:BW213) -> 0 | BX214: 0 | BY214: 0 | BZ214: 0 | CA214: 0 | CB214: 0 | CC214: 0 | CD214: 0 | CE214: 0 | CF214: 0 | CG214: 0 | CH214: 0 | CI214: 0 | CJ214: 0 | CK214: 0 | CL214: 0 | CM214: 0 | CN214: 0 | CO214: 0 | CP214: 0
C215: Trading: Wholesalers discounted sales of ordinary rice | D215: EUR | I215: 2715010.379 | J215: =+J172 -> 0 | K215: =+K172 -> 0 | L215: 0 | M215: 0 | N215: 0 | O215: 0 | P215: 0 | Q215: 0 | R215: 0 | S215: 0 | T215: 232056.3447 | U215: 293123.8038 | V215: 635101.575 | W215: 762121.8899 | X215: 396303.3828 | Y215: 396303.3828 | Z215: 0 | AA215: 0 | AB215: 0 | AC215: 0 | AD215: 0 | AE215: 0 | AF215: 0 | AG215: 0 | AH215: 0 | AI215: 0 | AJ215: 0 | AK215: 0 | AL215: 0 | AM215: 0 | AN215: 0 | AO215: 0 | AP215: 0 | AQ215: 0 | AR215: 0 | AS215: 0 | AT215: 0 | AU215: 0 | AV215: 0 | AW215: 0 | AX215: 0 | AY215: 0 | AZ215: 0 | BA215: 0 | BB215: 0 | BC215: 0 | BD215: 0 | BE215: 0 | BF215: 0 | BG215: 0 | BH215: 0 | BI215: 0 | BJ215: 0 | BK215: 0 | BL215: 0 | BM215: 0 | BN215: 0 | BO215: 0 | BP215: 0 | BQ215: 0 | BR215: 0 | BS215: 0 | BT215: 0 | BU215: 0 | BV215: 0 | BW215: =+BW172 -> 0 | BX215: 0 | BY215: 0 | BZ215: 0 | CA215: 0 | CB215: 0 | CC215: 0 | CD215: 0 | CE215: 0 | CF215: 0 | CG215: 0 | CH215: 0 | CI215: 0 | CJ215: 0 | CK215: 0 | CL215: 0 | CM215: 0 | CN215: 0 | CO215: 0 | CP215: 0
C216: Trading: Wholesalers discounted sales of flour | D216: EUR | I216: 0 | J216: =+J173 -> 0 | K216: =+K173 -> 0 | L216: 0 | M216: 0 | N216: 0 | O216: 0 | P216: 0 | Q216: 0 | R216: 0 | S216: 0 | T216: 0 | U216: 0 | V216: 0 | W216: 0 | X216: 0 | Y216: 0 | Z216: 0 | AA216: 0 | AB216: 0 | AC216: 0 | AD216: 0 | AE216: 0 | AF216: 0 | AG216: 0 | AH216: 0 | AI216: 0 | AJ216: 0 | AK216: 0 | AL216: 0 | AM216: 0 | AN216: 0 | AO216: 0 | AP216: 0 | AQ216: 0 | AR216: 0 | AS216: 0 | AT216: 0 | AU216: 0 | AV216: 0 | AW216: 0 | AX216: 0 | AY216: 0 | AZ216: 0 | BA216: 0 | BB216: 0 | BC216: 0 | BD216: 0 | BE216: 0 | BF216: 0 | BG216: 0 | BH216: 0 | BI216: 0 | BJ216: 0 | BK216: 0 | BL216: 0 | BM216: 0 | BN216: 0 | BO216: 0 | BP216: 0 | BQ216: 0 | BR216: 0 | BS216: 0 | BT216: 0 | BU216: 0 | BV216: 0 | BW216: =+BW173 -> 0 | BX216: 0 | BY216: 0 | BZ216: 0 | CA216: 0 | CB216: 0 | CC216: 0 | CD216: 0 | CE216: 0 | CF216: 0 | CG216: 0 | CH216: 0 | CI216: 0 | CJ216: 0 | CK216: 0 | CL216: 0 | CM216: 0 | CN216: 0 | CO216: 0 | CP216: 0
C217: Trading Subtotal :Wholesalers discounted sales | D217: EUR | I217: 2715010.379 | J217: =SUM(J215:J216) -> 0 | K217: =SUM(K215:K216) -> 0 | L217: 0 | M217: 0 | N217: 0 | O217: 0 | P217: 0 | Q217: 0 | R217: 0 | S217: 0 | T217: 232056.3447 | U217: 293123.8038 | V217: 635101.575 | W217: 762121.8899 | X217: 396303.3828 | Y217: 396303.3828 | Z217: 0 | AA217: 0 | AB217: 0 | AC217: 0 | AD217: 0 | AE217: 0 | AF217: 0 | AG217: 0 | AH217: 0 | AI217: 0 | AJ217: 0 | AK217: 0 | AL217: 0 | AM217: 0 | AN217: 0 | AO217: 0 | AP217: 0 | AQ217: 0 | AR217: 0 | AS217: 0 | AT217: 0 | AU217: 0 | AV217: 0 | AW217: 0 | AX217: 0 | AY217: 0 | AZ217: 0 | BA217: 0 | BB217: 0 | BC217: 0 | BD217: 0 | BE217: 0 | BF217: 0 | BG217: 0 | BH217: 0 | BI217: 0 | BJ217: 0 | BK217: 0 | BL217: 0 | BM217: 0 | BN217: 0 | BO217: 0 | BP217: 0 | BQ217: 0 | BR217: 0 | BS217: 0 | BT217: 0 | BU217: 0 | BV217: 0 | BW217: =SUM(BW215:BW216) -> 0 | BX217: 0 | BY217: 0 | BZ217: 0 | CA217: 0 | CB217: 0 | CC217: 0 | CD217: 0 | CE217: 0 | CF217: 0 | CG217: 0 | CH217: 0 | CI217: 0 | CJ217: 0 | CK217: 0 | CL217: 0 | CM217: 0 | CN217: 0 | CO217: 0 | CP217: 0
C218: Trading:Retailers sales of ordinary rice | D218: EUR | I218: 16444442.7 | J218: =+J196 -> 0 | K218: =+K196 -> 0 | L218: 0 | M218: 0 | N218: 0 | O218: 0 | P218: 0 | Q218: 0 | R218: 0 | S218: 0 | T218: 0 | U218: 0 | V218: 0 | W218: 0 | X218: 407735.2111 | Y218: 407735.2111 | Z218: 848089.2391 | AA218: 848089.2391 | AB218: 882012.8087 | AC218: 882012.8087 | AD218: 917293.321 | AE218: 917293.321 | AF218: 953985.0539 | AG218: 953985.0539 | AH218: 992144.456 | AI218: 992144.456 | AJ218: 1031830.234 | AK218: 1031830.234 | AL218: 1073103.444 | AM218: 1073103.444 | AN218: 1116027.581 | AO218: 1116027.581 | AP218: 0 | AQ218: 0 | AR218: 0 | AS218: 0 | AT218: 0 | AU218: 0 | AV218: 0 | AW218: 0 | AX218: 0 | AY218: 0 | AZ218: 0 | BA218: 0 | BB218: 0 | BC218: 0 | BD218: 0 | BE218: 0 | BF218: 0 | BG218: 0 | BH218: 0 | BI218: 0 | BJ218: 0 | BK218: 0 | BL218: 0 | BM218: 0 | BN218: 0 | BO218: 0 | BP218: 0 | BQ218: 0 | BR218: 0 | BS218: 0 | BT218: 0 | BU218: 0 | BV218: 0 | BW218: =+BW196 -> 0 | BX218: 0 | BY218: 0 | BZ218: 0 | CA218: 0 | CB218: 0 | CC218: 0 | CD218: 0 | CE218: 0 | CF218: 0 | CG218: 0 | CH218: 0 | CI218: 0 | CJ218: 0 | CK218: 0 | CL218: 0 | CM218: 0 | CN218: 0 | CO218: 0 | CP218: 0
C219: Trading: Retailers sales of flour | D219: EUR | I219: 0 | J219: =+J197 -> 0 | K219: =+K197 -> 0 | L219: 0 | M219: 0 | N219: 0 | O219: 0 | P219: 0 | Q219: 0 | R219: 0 | S219: 0 | T219: 0 | U219: 0 | V219: 0 | W219: 0 | X219: 0 | Y219: 0 | Z219: 0 | AA219: 0 | AB219: 0 | AC219: 0 | AD219: 0 | AE219: 0 | AF219: 0 | AG219: 0 | AH219: 0 | AI219: 0 | AJ219: 0 | AK219: 0 | AL219: 0 | AM219: 0 | AN219: 0 | AO219: 0 | AP219: 0 | AQ219: 0 | AR219: 0 | AS219: 0 | AT219: 0 | AU219: 0 | AV219: 0 | AW219: 0 | AX219: 0 | AY219: 0 | AZ219: 0 | BA219: 0 | BB219: 0 | BC219: 0 | BD219: 0 | BE219: 0 | BF219: 0 | BG219: 0 | BH219: 0 | BI219: 0 | BJ219: 0 | BK219: 0 | BL219: 0 | BM219: 0 | BN219: 0 | BO219: 0 | BP219: 0 | BQ219: 0 | BR219: 0 | BS219: 0 | BT219: 0 | BU219: 0 | BV219: 0 | BW219: =+BW197 -> 0 | BX219: 0 | BY219: 0 | BZ219: 0 | CA219: 0 | CB219: 0 | CC219: 0 | CD219: 0 | CE219: 0 | CF219: 0 | CG219: 0 | CH219: 0 | CI219: 0 | CJ219: 0 | CK219: 0 | CL219: 0 | CM219: 0 | CN219: 0 | CO219: 0 | CP219: 0
C220: Trading Subtotal : wholesalers sales | D220: EUR | I220: 16444442.7 | J220: =SUM(J218:J219) -> 0 | K220: =SUM(K218:K219) -> 0 | L220: 0 | M220: 0 | N220: 0 | O220: 0 | P220: 0 | Q220: 0 | R220: 0 | S220: 0 | T220: 0 | U220: 0 | V220: 0 | W220: 0 | X220: 407735.2111 | Y220: 407735.2111 | Z220: 848089.2391 | AA220: 848089.2391 | AB220: 882012.8087 | AC220: 882012.8087 | AD220: 917293.321 | AE220: 917293.321 | AF220: 953985.0539 | AG220: 953985.0539 | AH220: 992144.456 | AI220: 992144.456 | AJ220: 1031830.234 | AK220: 1031830.234 | AL220: 1073103.444 | AM220: 1073103.444 | AN220: 1116027.581 | AO220: 1116027.581 | AP220: 0 | AQ220: 0 | AR220: 0 | AS220: 0 | AT220: 0 | AU220: 0 | AV220: 0 | AW220: 0 | AX220: 0 | AY220: 0 | AZ220: 0 | BA220: 0 | BB220: 0 | BC220: 0 | BD220: 0 | BE220: 0 | BF220: 0 | BG220: 0 | BH220: 0 | BI220: 0 | BJ220: 0 | BK220: 0 | BL220: 0 | BM220: 0 | BN220: 0 | BO220: 0 | BP220: 0 | BQ220: 0 | BR220: 0 | BS220: 0 | BT220: 0 | BU220: 0 | BV220: 0 | BW220: =SUM(BW218:BW219) -> 0 | BX220: 0 | BY220: 0 | BZ220: 0 | CA220: 0 | CB220: 0 | CC220: 0 | CD220: 0 | CE220: 0 | CF220: 0 | CG220: 0 | CH220: 0 | CI220: 0 | CJ220: 0 | CK220: 0 | CL220: 0 | CM220: 0 | CN220: 0 | CO220: 0 | CP220: 0
C221: Trading: Subtotal | D221: EUR | I221: 21942809.9 | J221: =+J214+J217+J220 -> 0 | K221: =+K214+K217+K220 -> 0 | L221: 0 | M221: 0 | N221: 19814.82775 | O221: 118888.9665 | P221: 146541.6595 | Q221: 261027.3309 | R221: 297662.7458 | S221: 428634.3539 | T221: 479470.5126 | U221: 605646.9633 | V221: 668331.0354 | W221: 801997.2424 | X221: 845508.9605 | Y221: 845508.9605 | Z221: 891218.4204 | AA221: 891218.4204 | AB221: 926867.1572 | AC221: 926867.1572 | AD221: 963941.8435 | AE221: 963941.8435 | AF221: 1002499.517 | AG221: 1002499.517 | AH221: 1042599.498 | AI221: 1042599.498 | AJ221: 1084303.478 | AK221: 1084303.478 | AL221: 1127675.617 | AM221: 1127675.617 | AN221: 1172782.642 | AO221: 1172782.642 | AP221: 0 | AQ221: 0 | AR221: 0 | AS221: 0 | AT221: 0 | AU221: 0 | AV221: 0 | AW221: 0 | AX221: 0 | AY221: 0 | AZ221: 0 | BA221: 0 | BB221: 0 | BC221: 0 | BD221: 0 | BE221: 0 | BF221: 0 | BG221: 0 | BH221: 0 | BI221: 0 | BJ221: 0 | BK221: 0 | BL221: 0 | BM221: 0 | BN221: 0 | BO221: 0 | BP221: 0 | BQ221: 0 | BR221: 0 | BS221: 0 | BT221: 0 | BU221: 0 | BV221: 0 | BW221: =+BW214+BW217+BW220 -> 0 | BX221: 0 | BY221: 0 | BZ221: 0 | CA221: 0 | CB221: 0 | CC221: 0 | CD221: 0 | CE221: 0 | CF221: 0 | CG221: 0 | CH221: 0 | CI221: 0 | CJ221: 0 | CK221: 0 | CL221: 0 | CM221: 0 | CN221: 0 | CO221: 0 | CP221: 0
C223: Total Sales | D223: EUR | I223: 350939305.6 | J223: =+J210+J221 -> 0 | K223: =+K210+K221 -> 0 | L223: 0 | M223: 0 | N223: 482160.8086 | O223: 2719585.109 | P223: 3519098.731 | Q223: 6541997.481 | R223: 6809035.31 | S223: 10430102.61 | T223: 8891233.891 | U223: 11961527.52 | V223: 10203187.14 | W223: 13633953.12 | X223: 11367398.25 | Y223: 14373652.33 | Z223: 11981936.54 | AA223: 15150713.15 | AB223: 12461214 | AC223: 15756741.67 | AD223: 12959662.56 | AE223: 16387011.34 | AF223: 13478049.06 | AG223: 17042491.79 | AH223: 14017171.03 | AI223: 17724191.46 | AJ223: 14577857.87 | AK223: 18433159.12 | AL223: 15160972.18 | AM223: 19170485.49 | AN223: 15767411.07 | AO223: 19937304.91 | AP223: 0 | AQ223: 0 | AR223: 0 | AS223: 0 | AT223: 0 | AU223: 0 | AV223: 0 | AW223: 0 | AX223: 0 | AY223: 0 | AZ223: 0 | BA223: 0 | BB223: 0 | BC223: 0 | BD223: 0 | BE223: 0 | BF223: 0 | BG223: 0 | BH223: 0 | BI223: 0 | BJ223: 0 | BK223: 0 | BL223: 0 | BM223: 0 | BN223: 0 | BO223: 0 | BP223: 0 | BQ223: 0 | BR223: 0 | BS223: 0 | BT223: 0 | BU223: 0 | BV223: 0 | BW223: =+BW210+BW221 -> 0 | BX223: 0 | BY223: 0 | BZ223: 0 | CA223: 0 | CB223: 0 | CC223: 0 | CD223: 0 | CE223: 0 | CF223: 0 | CG223: 0 | CH223: 0 | CI223: 0 | CJ223: 0 | CK223: 0 | CL223: 0 | CM223: 0 | CN223: 0 | CO223: 0 | CP223: 0
C225: Farm 1: importers sales of ordinary rice | D225: Million FCFA | I225: =SUM(J225:CP225) -> 24218.09983 | J225: =J66 -> 0 | K225: 0 | L225: 0 | M225: 0 | N225: 287.6279926 | O225: 1617.907458 | P225: 2098.086413 | Q225: 3907.426279 | R225: 4050.760896 | S225: 6221.968736 | T225: 2567.796621 | U225: 3466.525438 | V225: 0 | W225: 0 | X225: 0 | Y225: 0 | Z225: 0 | AA225: 0 | AB225: 0 | AC225: 0 | AD225: 0 | AE225: 0 | AF225: 0 | AG225: 0 | AH225: 0 | AI225: 0 | AJ225: 0 | AK225: 0 | AL225: 0 | AM225: 0 | AN225: 0 | AO225: 0 | AP225: =AP66 -> 0 | AQ225: 0 | AR225: 0 | AS225: 0 | AT225: 0 | AU225: 0 | AV225: 0 | AW225: 0 | AX225: 0 | AY225: 0 | AZ225: 0 | BA225: 0 | BB225: 0 | BC225: 0 | BD225: 0 | BE225: 0 | BF225: 0 | BG225: 0 | BH225: 0 | BI225: 0 | BJ225: 0 | BK225: 0 | BL225: 0 | BM225: 0 | BN225: 0 | BO225: 0 | BP225: 0 | BQ225: 0 | BR225: 0 | BS225: 0 | BT225: 0 | BU225: 0 | BV225: =BV66 -> 0 | BW225: 0 | BX225: 0 | BY225: 0 | BZ225: 0 | CA225: 0 | CB225: 0 | CC225: 0 | CD225: 0 | CE225: 0 | CF225: 0 | CG225: 0 | CH225: 0 | CI225: 0 | CJ225: 0 | CK225: 0 | CL225: 0 | CM225: 0 | CN225: 0 | CO225: 0 | CP225: 0
C226: Farm 1: Local sales of flour | D226: Million FCFA | I226: 10564.26919 | J226: =J67 -> 0 | K226: 0 | L226: 0 | M226: 0 | N226: 15.65109 | O226: 88.03738125 | P226: 114.1660065 | Q226: 212.6200577 | R226: 220.4195175 | S226: 338.5643789 | T226: 279.4499635 | U226: 377.2574508 | V226: 310.9719194 | W226: 418.5042654 | X226: 338.5234502 | Y226: 435.244436 | Z226: 352.0643882 | AA226: 452.6542134 | AB226: 366.1469637 | AC226: 470.760382 | AD226: 380.7928423 | AE226: 489.5907972 | AF226: 396.024556 | AG226: 509.1744291 | AH226: 411.8655382 | AI226: 529.5414063 | AJ226: 428.3401598 | AK226: 550.7230625 | AL226: 445.4737661 | AM226: 572.751985 | AN226: 463.2927168 | AO226: 595.6620644 | AP226: =AP67 -> 0 | AQ226: 0 | AR226: 0 | AS226: 0 | AT226: 0 | AU226: 0 | AV226: 0 | AW226: 0 | AX226: 0 | AY226: 0 | AZ226: 0 | BA226: 0 | BB226: 0 | BC226: 0 | BD226: 0 | BE226: 0 | BF226: 0 | BG226: 0 | BH226: 0 | BI226: 0 | BJ226: 0 | BK226: 0 | BL226: 0 | BM226: 0 | BN226: 0 | BO226: 0 | BP226: 0 | BQ226: 0 | BR226: 0 | BS226: 0 | BT226: 0 | BU226: 0 | BV226: =BV67 -> 0 | BW226: 0 | BX226: 0 | BY226: 0 | BZ226: 0 | CA226: 0 | CB226: 0 | CC226: 0 | CD226: 0 | CE226: 0 | CF226: 0 | CG226: 0 | CH226: 0 | CI226: 0 | CJ226: 0 | CK226: 0 | CL226: 0 | CM226: 0 | CN226: 0 | CO226: 0 | CP226: 0
C227: Farm 1 Subtotal: Local Market | D227: Million FCFA | I227: 34782.36902 | J227: =SUM(J225:J226) -> 0 | K227: =SUM(K225:K226) -> 0 | L227: 0 | M227: 0 | N227: 303.2790826 | O227: 1705.94484 | P227: 2212.252419 | Q227: 4120.046337 | R227: 4271.180413 | S227: 6560.533115 | T227: 2847.246585 | U227: 3843.782889 | V227: 310.9719194 | W227: 418.5042654 | X227: 338.5234502 | Y227: 435.244436 | Z227: 352.0643882 | AA227: 452.6542134 | AB227: 366.1469637 | AC227: 470.760382 | AD227: 380.7928423 | AE227: 489.5907972 | AF227: 396.024556 | AG227: 509.1744291 | AH227: 411.8655382 | AI227: 529.5414063 | AJ227: 428.3401598 | AK227: 550.7230625 | AL227: 445.4737661 | AM227: 572.751985 | AN227: 463.2927168 | AO227: 595.6620644 | AP227: 0 | AQ227: 0 | AR227: 0 | AS227: 0 | AT227: 0 | AU227: 0 | AV227: 0 | AW227: 0 | AX227: 0 | AY227: 0 | AZ227: 0 | BA227: 0 | BB227: 0 | BC227: 0 | BD227: 0 | BE227: 0 | BF227: 0 | BG227: 0 | BH227: 0 | BI227: 0 | BJ227: 0 | BK227: 0 | BL227: 0 | BM227: 0 | BN227: 0 | BO227: 0 | BP227: 0 | BQ227: 0 | BR227: 0 | BS227: 0 | BT227: 0 | BU227: 0 | BV227: 0 | BW227: =SUM(BW225:BW226) -> 0 | BX227: 0 | BY227: 0 | BZ227: 0 | CA227: 0 | CB227: 0 | CC227: 0 | CD227: 0 | CE227: 0 | CF227: 0 | CG227: 0 | CH227: 0 | CI227: 0 | CJ227: 0 | CK227: 0 | CL227: 0 | CM227: 0 | CN227: 0 | CO227: 0 | CP227: 0
C228: Farm 1: Ordinary rice wholesalers discounted sales | D228: Million FCFA | I228: 27612.24591 | J228: =+J90 -> 0 | K228: =+K90 -> 0 | L228: 0 | M228: 0 | N228: 0 | O228: 0 | P228: 0 | Q228: 0 | R228: 0 | S228: 0 | T228: 2670.508486 | U228: 3605.186456 | V228: 5943.483686 | W228: 7998.707017 | X228: 3235.032616 | Y228: 4159.327649 | Z228: 0 | AA228: 0 | AB228: 0 | AC228: 0 | AD228: 0 | AE228: 0 | AF228: 0 | AG228: 0 | AH228: 0 | AI228: 0 | AJ228: 0 | AK228: 0 | AL228: 0 | AM228: 0 | AN228: 0 | AO228: 0 | AP228: 0 | AQ228: 0 | AR228: 0 | AS228: 0 | AT228: 0 | AU228: 0 | AV228: 0 | AW228: 0 | AX228: 0 | AY228: 0 | AZ228: 0 | BA228: 0 | BB228: 0 | BC228: 0 | BD228: 0 | BE228: 0 | BF228: 0 | BG228: 0 | BH228: 0 | BI228: 0 | BJ228: 0 | BK228: 0 | BL228: 0 | BM228: 0 | BN228: 0 | BO228: 0 | BP228: 0 | BQ228: 0 | BR228: 0 | BS228: 0 | BT228: 0 | BU228: 0 | BV228: 0 | BW228: =+BW90 -> 0 | BX228: 0 | BY228: 0 | BZ228: 0 | CA228: 0 | CB228: 0 | CC228: 0 | CD228: 0 | CE228: 0 | CF228: 0 | CG228: 0 | CH228: 0 | CI228: 0 | CJ228: 0 | CK228: 0 | CL228: 0 | CM228: 0 | CN228: 0 | CO228: 0 | CP228: 0
C229: Farm 1: Flour sales | D229: Million FCFA | I229: 0 | J229: =+J91 -> 0 | K229: =+K91 -> 0 | L229: 0 | M229: 0 | N229: 0 | O229: 0 | P229: 0 | Q229: 0 | R229: 0 | S229: 0 | T229: 0 | U229: 0 | V229: 0 | W229: 0 | X229: 0 | Y229: 0 | Z229: 0 | AA229: 0 | AB229: 0 | AC229: 0 | AD229: 0 | AE229: 0 | AF229: 0 | AG229: 0 | AH229: 0 | AI229: 0 | AJ229: 0 | AK229: 0 | AL229: 0 | AM229: 0 | AN229: 0 | AO229: 0 | AP229: 0 | AQ229: 0 | AR229: 0 | AS229: 0 | AT229: 0 | AU229: 0 | AV229: 0 | AW229: 0 | AX229: 0 | AY229: 0 | AZ229: 0 | BA229: 0 | BB229: 0 | BC229: 0 | BD229: 0 | BE229: 0 | BF229: 0 | BG229: 0 | BH229: 0 | BI229: 0 | BJ229: 0 | BK229: 0 | BL229: 0 | BM229: 0 | BN229: 0 | BO229: 0 | BP229: 0 | BQ229: 0 | BR229: 0 | BS229: 0 | BT229: 0 | BU229: 0 | BV229: 0 | BW229: =+BW91 -> 0 | BX229: 0 | BY229: 0 | BZ229: 0 | CA229: 0 | CB229: 0 | CC229: 0 | CD229: 0 | CE229: 0 | CF229: 0 | CG229: 0 | CH229: 0 | CI229: 0 | CJ229: 0 | CK229: 0 | CL229: 0 | CM229: 0 | CN229: 0 | CO229: 0 | CP229: 0
C230: Farm 1: Subtotal: wholesalers discounted | D230: Million FCFA | I230: 27612.24591 | J230: =SUM(J228:J229) -> 0 | K230: =SUM(K228:K229) -> 0 | L230: 0 | M230: 0 | N230: 0 | O230: 0 | P230: 0 | Q230: 0 | R230: 0 | S230: 0 | T230: 2670.508486 | U230: 3605.186456 | V230: 5943.483686 | W230: 7998.707017 | X230: 3235.032616 | Y230: 4159.327649 | Z230: 0 | AA230: 0 | AB230: 0 | AC230: 0 | AD230: 0 | AE230: 0 | AF230: 0 | AG230: 0 | AH230: 0 | AI230: 0 | AJ230: 0 | AK230: 0 | AL230: 0 | AM230: 0 | AN230: 0 | AO230: 0 | AP230: 0 | AQ230: 0 | AR230: 0 | AS230: 0 | AT230: 0 | AU230: 0 | AV230: 0 | AW230: 0 | AX230: 0 | AY230: 0 | AZ230: 0 | BA230: 0 | BB230: 0 | BC230: 0 | BD230: 0 | BE230: 0 | BF230: 0 | BG230: 0 | BH230: 0 | BI230: 0 | BJ230: 0 | BK230: 0 | BL230: 0 | BM230: 0 | BN230: 0 | BO230: 0 | BP230: 0 | BQ230: 0 | BR230: 0 | BS230: 0 | BT230: 0 | BU230: 0 | BV230: 0 | BW230: =SUM(BW228:BW229) -> 0 | BX230: 0 | BY230: 0 | BZ230: 0 | CA230: 0 | CB230: 0 | CC230: 0 | CD230: 0 | CE230: 0 | CF230: 0 | CG230: 0 | CH230: 0 | CI230: 0 | CJ230: 0 | CK230: 0 | CL230: 0 | CM230: 0 | CN230: 0 | CO230: 0 | CP230: 0
C231: Farm 1: Ordinary rice wholesalers sales | D231: Million FCFA | I231: 153412.9394 | J231: =+J114 -> 0 | K231: =+K114 -> 0 | L231: 0 | M231: 0 | N231: 0 | O231: 0 | P231: 0 | Q231: 0 | R231: 0 | S231: 0 | T231: 0 | U231: 0 | V231: 0 | W231: 0 | X231: 3328.350864 | Y231: 4279.308254 | Z231: 6922.969798 | AA231: 8900.961169 | AB231: 7199.88859 | AC231: 9256.999615 | AD231: 7487.884133 | AE231: 9627.2796 | AF231: 7787.399499 | AG231: 10012.37078 | AH231: 8098.895478 | AI231: 10412.86562 | AJ231: 8422.851298 | AK231: 10829.38024 | AL231: 8759.76535 | AM231: 11262.55545 | AN231: 9110.155964 | AO231: 11713.05767 | AP231: 0 | AQ231: 0 | AR231: 0 | AS231: 0 | AT231: 0 | AU231: 0 | AV231: 0 | AW231: 0 | AX231: 0 | AY231: 0 | AZ231: 0 | BA231: 0 | BB231: 0 | BC231: 0 | BD231: 0 | BE231: 0 | BF231: 0 | BG231: 0 | BH231: 0 | BI231: 0 | BJ231: 0 | BK231: 0 | BL231: 0 | BM231: 0 | BN231: 0 | BO231: 0 | BP231: 0 | BQ231: 0 | BR231: 0 | BS231: 0 | BT231: 0 | BU231: 0 | BV231: 0 | BW231: =+BW114 -> 0 | BX231: 0 | BY231: 0 | BZ231: 0 | CA231: 0 | CB231: 0 | CC231: 0 | CD231: 0 | CE231: 0 | CF231: 0 | CG231: 0 | CH231: 0 | CI231: 0 | CJ231: 0 | CK231: 0 | CL231: 0 | CM231: 0 | CN231: 0 | CO231: 0 | CP231: 0
C232: Farm 1: Flour sales | D232: Million FCFA | I232: 0 | J232: =+J115 -> 0 | K232: =+K115 -> 0 | L232: 0 | M232: 0 | N232: 0 | O232: 0 | P232: 0 | Q232: 0 | R232: 0 | S232: 0 | T232: 0 | U232: 0 | V232: 0 | W232: 0 | X232: 0 | Y232: 0 | Z232: 0 | AA232: 0 | AB232: 0 | AC232: 0 | AD232: 0 | AE232: 0 | AF232: 0 | AG232: 0 | AH232: 0 | AI232: 0 | AJ232: 0 | AK232: 0 | AL232: 0 | AM232: 0 | AN232: 0 | AO232: 0 | AP232: 0 | AQ232: 0 | AR232: 0 | AS232: 0 | AT232: 0 | AU232: 0 | AV232: 0 | AW232: 0 | AX232: 0 | AY232: 0 | AZ232: 0 | BA232: 0 | BB232: 0 | BC232: 0 | BD232: 0 | BE232: 0 | BF232: 0 | BG232: 0 | BH232: 0 | BI232: 0 | BJ232: 0 | BK232: 0 | BL232: 0 | BM232: 0 | BN232: 0 | BO232: 0 | BP232: 0 | BQ232: 0 | BR232: 0 | BS232: 0 | BT232: 0 | BU232: 0 | BV232: 0 | BW232: =+BW115 -> 0 | BX232: 0 | BY232: 0 | BZ232: 0 | CA232: 0 | CB232: 0 | CC232: 0 | CD232: 0 | CE232: 0 | CF232: 0 | CG232: 0 | CH232: 0 | CI232: 0 | CJ232: 0 | CK232: 0 | CL232: 0 | CM232: 0 | CN232: 0 | CO232: 0 | CP232: 0
C233: Farm 1: Subtotal:wholesalers | D233: Million FCFA | I233: 153412.9394 | J233: =SUM(J231:J232) -> 0 | K233: =SUM(K231:K232) -> 0 | L233: 0 | M233: 0 | N233: 0 | O233: 0 | P233: 0 | Q233: 0 | R233: 0 | S233: 0 | T233: 0 | U233: 0 | V233: 0 | W233: 0 | X233: 3328.350864 | Y233: 4279.308254 | Z233: 6922.969798 | AA233: 8900.961169 | AB233: 7199.88859 | AC233: 9256.999615 | AD233: 7487.884133 | AE233: 9627.2796 | AF233: 7787.399499 | AG233: 10012.37078 | AH233: 8098.895478 | AI233: 10412.86562 | AJ233: 8422.851298 | AK233: 10829.38024 | AL233: 8759.76535 | AM233: 11262.55545 | AN233: 9110.155964 | AO233: 11713.05767 | AP233: 0 | AQ233: 0 | AR233: 0 | AS233: 0 | AT233: 0 | AU233: 0 | AV233: 0 | AW233: 0 | AX233: 0 | AY233: 0 | AZ233: 0 | BA233: 0 | BB233: 0 | BC233: 0 | BD233: 0 | BE233: 0 | BF233: 0 | BG233: 0 | BH233: 0 | BI233: 0 | BJ233: 0 | BK233: 0 | BL233: 0 | BM233: 0 | BN233: 0 | BO233: 0 | BP233: 0 | BQ233: 0 | BR233: 0 | BS233: 0 | BT233: 0 | BU233: 0 | BV233: 0 | BW233: =SUM(BW231:BW232) -> 0 | BX233: 0 | BY233: 0 | BZ233: 0 | CA233: 0 | CB233: 0 | CC233: 0 | CD233: 0 | CE233: 0 | CF233: 0 | CG233: 0 | CH233: 0 | CI233: 0 | CJ233: 0 | CK233: 0 | CL233: 0 | CM233: 0 | CN233: 0 | CO233: 0 | CP233: 0
C234: Farm 1: Subtotal: | D234: Million FCFA | I234: =SUM(J234:CP234) -> 215807.5543 | J234: =+J227+J230+J233 -> 0 | K234: =+K227+K230+K233 -> 0 | L234: =+L227+L230+L233 -> 0 | M234: =+M227+M230+M233 -> 0 | N234: =+N227+N230+N233 -> 303.2790826 | O234: =+O227+O230+O233 -> 1705.94484 | P234: =+P227+P230+P233 -> 2212.252419 | Q234: =+Q227+Q230+Q233 -> 4120.046337 | R234: =+R227+R230+R233 -> 4271.180413 | S234: =+S227+S230+S233 -> 6560.533115 | T234: =+T227+T230+T233 -> 5517.75507 | U234: =+U227+U230+U233 -> 7448.969345 | V234: =+V227+V230+V233 -> 6254.455606 | W234: =+W227+W230+W233 -> 8417.211282 | X234: =+X227+X230+X233 -> 6901.90693 | Y234: =+Y227+Y230+Y233 -> 8873.880339 | Z234: =+Z227+Z230+Z233 -> 7275.034186 | AA234: =+AA227+AA230+AA233 -> 9353.615382 | AB234: =+AB227+AB230+AB233 -> 7566.035553 | AC234: =+AC227+AC230+AC233 -> 9727.759997 | AD234: =+AD227+AD230+AD233 -> 7868.676976 | AE234: =+AE227+AE230+AE233 -> 10116.8704 | AF234: =+AF227+AF230+AF233 -> 8183.424055 | AG234: =+AG227+AG230+AG233 -> 10521.54521 | AH234: =+AH227+AH230+AH233 -> 8510.761017 | AI234: =+AI227+AI230+AI233 -> 10942.40702 | AJ234: =+AJ227+AJ230+AJ233 -> 8851.191457 | AK234: =+AK227+AK230+AK233 -> 11380.1033 | AL234: =+AL227+AL230+AL233 -> 9205.239116 | AM234: =+AM227+AM230+AM233 -> 11835.30743 | AN234: =+AN227+AN230+AN233 -> 9573.44868 | AO234: =+AO227+AO230+AO233 -> 12308.71973 | AP234: =+AP227+AP230+AP233 -> 0 | AQ234: =+AQ227+AQ230+AQ233 -> 0 | AR234: =+AR227+AR230+AR233 -> 0 | AS234: =+AS227+AS230+AS233 -> 0 | AT234: =+AT227+AT230+AT233 -> 0 | AU234: =+AU227+AU230+AU233 -> 0 | AV234: =+AV227+AV230+AV233 -> 0 | AW234: =+AW227+AW230+AW233 -> 0 | AX234: =+AX227+AX230+AX233 -> 0 | AY234: =+AY227+AY230+AY233 -> 0 | AZ234: =+AZ227+AZ230+AZ233 -> 0 | BA234: =+BA227+BA230+BA233 -> 0 | BB234: =+BB227+BB230+BB233 -> 0 | BC234: =+BC227+BC230+BC233 -> 0 | BD234: =+BD227+BD230+BD233 -> 0 | BE234: =+BE227+BE230+BE233 -> 0 | BF234: =+BF227+BF230+BF233 -> 0 | BG234: =+BG227+BG230+BG233 -> 0 | BH234: =+BH227+BH230+BH233 -> 0 | BI234: =+BI227+BI230+BI233 -> 0 | BJ234: =+BJ227+BJ230+BJ233 -> 0 | BK234: =+BK227+BK230+BK233 -> 0 | BL234: =+BL227+BL230+BL233 -> 0 | BM234: =+BM227+BM230+BM233 -> 0 | BN234: =+BN227+BN230+BN233 -> 0 | BO234: =+BO227+BO230+BO233 -> 0 | BP234: =+BP227+BP230+BP233 -> 0 | BQ234: =+BQ227+BQ230+BQ233 -> 0 | BR234: =+BR227+BR230+BR233 -> 0 | BS234: =+BS227+BS230+BS233 -> 0 | BT234: =+BT227+BT230+BT233 -> 0 | BU234: =+BU227+BU230+BU233 -> 0 | BV234: =+BV227+BV230+BV233 -> 0 | BW234: =+BW227+BW230+BW233 -> 0 | BX234: =+BX227+BX230+BX233 -> 0 | BY234: =+BY227+BY230+BY233 -> 0 | BZ234: =+BZ227+BZ230+BZ233 -> 0 | CA234: =+CA227+CA230+CA233 -> 0 | CB234: =+CB227+CB230+CB233 -> 0 | CC234: =+CC227+CC230+CC233 -> 0 | CD234: =+CD227+CD230+CD233 -> 0 | CE234: =+CE227+CE230+CE233 -> 0 | CF234: =+CF227+CF230+CF233 -> 0 | CG234: =+CG227+CG230+CG233 -> 0 | CH234: =+CH227+CH230+CH233 -> 0 | CI234: =+CI227+CI230+CI233 -> 0 | CJ234: =+CJ227+CJ230+CJ233 -> 0 | CK234: =+CK227+CK230+CK233 -> 0 | CL234: =+CL227+CL230+CL233 -> 0 | CM234: =+CM227+CM230+CM233 -> 0 | CN234: =+CN227+CN230+CN233 -> 0 | CO234: =+CO227+CO230+CO233 -> 0 | CP234: =+CP227+CP230+CP233 -> 0
C236: Trading: Local sales of ordinary rice | D236: Million FCFA | I236: 1122.91853 | J236: =J144 -> 0 | K236: 0 | L236: 0 | M236: 0 | N236: 12.32691397 | O236: 73.96148381 | P236: 91.16437708 | Q236: 162.3865467 | R236: 185.1776409 | S236: 266.655803 | T236: 146.3644074 | U236: 184.8813567 | V236: 0 | W236: 0 | X236: 0 | Y236: 0 | Z236: 0 | AA236: 0 | AB236: 0 | AC236: 0 | AD236: 0 | AE236: 0 | AF236: 0 | AG236: 0 | AH236: 0 | AI236: 0 | AJ236: 0 | AK236: 0 | AL236: 0 | AM236: 0 | AN236: 0 | AO236: 0 | AP236: =AP144 -> 0 | AQ236: 0 | AR236: 0 | AS236: 0 | AT236: 0 | AU236: 0 | AV236: 0 | AW236: 0 | AX236: 0 | AY236: 0 | AZ236: 0 | BA236: 0 | BB236: 0 | BC236: 0 | BD236: 0 | BE236: 0 | BF236: 0 | BG236: 0 | BH236: 0 | BI236: 0 | BJ236: 0 | BK236: 0 | BL236: 0 | BM236: 0 | BN236: 0 | BO236: 0 | BP236: 0 | BQ236: 0 | BR236: 0 | BS236: 0 | BT236: 0 | BU236: 0 | BV236: =BV144 -> 0 | BW236: 0 | BX236: 0 | BY236: 0 | BZ236: 0 | CA236: 0 | CB236: 0 | CC236: 0 | CD236: 0 | CE236: 0 | CF236: 0 | CG236: 0 | CH236: 0 | CI236: 0 | CJ236: 0 | CK236: 0 | CL236: 0 | CM236: 0 | CN236: 0 | CO236: 0 | CP236: 0
C237: Trading: Local sales of flour | D237: Million FCFA | I237: 702.8438643 | J237: =J145 -> 0 | K237: 0 | L237: 0 | M237: 0 | N237: 0.670761 | O237: 4.024566 | P237: 4.96065024 | Q237: 8.83615824 | R237: 10.0763208 | S237: 14.50990195 | T237: 15.92864792 | U237: 20.12039737 | V237: 21.79709715 | W237: 26.15651659 | X237: 27.20277725 | Y237: 27.20277725 | Z237: 28.29088834 | AA237: 28.29088834 | AB237: 29.42252387 | AC237: 29.42252387 | AD237: 30.59942483 | AE237: 30.59942483 | AF237: 31.82340182 | AG237: 31.82340182 | AH237: 33.09633789 | AI237: 33.09633789 | AJ237: 34.42019141 | AK237: 34.42019141 | AL237: 35.79699907 | AM237: 35.79699907 | AN237: 37.22887903 | AO237: 37.22887903 | AP237: =AP145 -> 0 | AQ237: 0 | AR237: 0 | AS237: 0 | AT237: 0 | AU237: 0 | AV237: 0 | AW237: 0 | AX237: 0 | AY237: 0 | AZ237: 0 | BA237: 0 | BB237: 0 | BC237: 0 | BD237: 0 | BE237: 0 | BF237: 0 | BG237: 0 | BH237: 0 | BI237: 0 | BJ237: 0 | BK237: 0 | BL237: 0 | BM237: 0 | BN237: 0 | BO237: 0 | BP237: 0 | BQ237: 0 | BR237: 0 | BS237: 0 | BT237: 0 | BU237: 0 | BV237: =BV145 -> 0 | BW237: 0 | BX237: 0 | BY237: 0 | BZ237: 0 | CA237: 0 | CB237: 0 | CC237: 0 | CD237: 0 | CE237: 0 | CF237: 0 | CG237: 0 | CH237: 0 | CI237: 0 | CJ237: 0 | CK237: 0 | CL237: 0 | CM237: 0 | CN237: 0 | CO237: 0 | CP237: 0
C238: Trading Subtotal : Local Market | D238: Million FCFA | I238: 1825.762394 | J238: =SUM(J236:J237) -> 0 | K238: 0 | L238: 0 | M238: 0 | N238: 12.99767497 | O238: 77.98604981 | P238: 96.12502732 | Q238: 171.2227049 | R238: 195.2539617 | S238: 281.1657049 | T238: 162.2930553 | U238: 205.0017541 | V238: 21.79709715 | W238: 26.15651659 | X238: 27.20277725 | Y238: 27.20277725 | Z238: 28.29088834 | AA238: 28.29088834 | AB238: 29.42252387 | AC238: 29.42252387 | AD238: 30.59942483 | AE238: 30.59942483 | AF238: 31.82340182 | AG238: 31.82340182 | AH238: 33.09633789 | AI238: 33.09633789 | AJ238: 34.42019141 | AK238: 34.42019141 | AL238: 35.79699907 | AM238: 35.79699907 | AN238: 37.22887903 | AO238: 37.22887903 | AP238: =SUM(AP236:AP237) -> 0 | AQ238: 0 | AR238: 0 | AS238: 0 | AT238: 0 | AU238: 0 | AV238: 0 | AW238: 0 | AX238: 0 | AY238: 0 | AZ238: 0 | BA238: 0 | BB238: 0 | BC238: 0 | BD238: 0 | BE238: 0 | BF238: 0 | BG238: 0 | BH238: 0 | BI238: 0 | BJ238: 0 | BK238: 0 | BL238: 0 | BM238: 0 | BN238: 0 | BO238: 0 | BP238: 0 | BQ238: 0 | BR238: 0 | BS238: 0 | BT238: 0 | BU238: 0 | BV238: =SUM(BV236:BV237) -> 0 | BW238: 0 | BX238: 0 | BY238: 0 | BZ238: 0 | CA238: 0 | CB238: 0 | CC238: 0 | CD238: 0 | CE238: 0 | CF238: 0 | CG238: 0 | CH238: 0 | CI238: 0 | CJ238: 0 | CK238: 0 | CL238: 0 | CM238: 0 | CN238: 0 | CO238: 0 | CP238: 0
C239: Trading: Wholesalers discounted sales of ordinary rice | D239: Million FCFA | I239: 1780.930063 | J239: =+J168 -> 0 | K239: =+K168 -> 0 | L239: 0 | M239: 0 | N239: 0 | O239: 0 | P239: 0 | Q239: 0 | R239: 0 | S239: 0 | T239: 152.2189837 | U239: 192.276611 | V239: 416.5993238 | W239: 499.9191886 | X239: 259.9579781 | Y239: 259.9579781 | Z239: 0 | AA239: 0 | AB239: 0 | AC239: 0 | AD239: 0 | AE239: 0 | AF239: 0 | AG239: 0 | AH239: 0 | AI239: 0 | AJ239: 0 | AK239: 0 | AL239: 0 | AM239: 0 | AN239: 0 | AO239: 0 | AP239: 0 | AQ239: 0 | AR239: 0 | AS239: 0 | AT239: 0 | AU239: 0 | AV239: 0 | AW239: 0 | AX239: 0 | AY239: 0 | AZ239: 0 | BA239: 0 | BB239: 0 | BC239: 0 | BD239: 0 | BE239: 0 | BF239: 0 | BG239: 0 | BH239: 0 | BI239: 0 | BJ239: 0 | BK239: 0 | BL239: 0 | BM239: 0 | BN239: 0 | BO239: 0 | BP239: 0 | BQ239: 0 | BR239: 0 | BS239: 0 | BT239: 0 | BU239: 0 | BV239: 0 | BW239: =+BW168 -> 0 | BX239: 0 | BY239: 0 | BZ239: 0 | CA239: 0 | CB239: 0 | CC239: 0 | CD239: 0 | CE239: 0 | CF239: 0 | CG239: 0 | CH239: 0 | CI239: 0 | CJ239: 0 | CK239: 0 | CL239: 0 | CM239: 0 | CN239: 0 | CO239: 0 | CP239: 0
C240: Trading: Wholesalers discounted sales of flour | D240: Million FCFA | I240: 0 | J240: =+J169 -> 0 | K240: =+K169 -> 0 | L240: 0 | M240: 0 | N240: 0 | O240: 0 | P240: 0 | Q240: 0 | R240: 0 | S240: 0 | T240: 0 | U240: 0 | V240: 0 | W240: 0 | X240: 0 | Y240: 0 | Z240: 0 | AA240: 0 | AB240: 0 | AC240: 0 | AD240: 0 | AE240: 0 | AF240: 0 | AG240: 0 | AH240: 0 | AI240: 0 | AJ240: 0 | AK240: 0 | AL240: 0 | AM240: 0 | AN240: 0 | AO240: 0 | AP240: 0 | AQ240: 0 | AR240: 0 | AS240: 0 | AT240: 0 | AU240: 0 | AV240: 0 | AW240: 0 | AX240: 0 | AY240: 0 | AZ240: 0 | BA240: 0 | BB240: 0 | BC240: 0 | BD240: 0 | BE240: 0 | BF240: 0 | BG240: 0 | BH240: 0 | BI240: 0 | BJ240: 0 | BK240: 0 | BL240: 0 | BM240: 0 | BN240: 0 | BO240: 0 | BP240: 0 | BQ240: 0 | BR240: 0 | BS240: 0 | BT240: 0 | BU240: 0 | BV240: 0 | BW240: =+BW169 -> 0 | BX240: 0 | BY240: 0 | BZ240: 0 | CA240: 0 | CB240: 0 | CC240: 0 | CD240: 0 | CE240: 0 | CF240: 0 | CG240: 0 | CH240: 0 | CI240: 0 | CJ240: 0 | CK240: 0 | CL240: 0 | CM240: 0 | CN240: 0 | CO240: 0 | CP240: 0
C241: Trading Subtotal :Wholesalers discounted sales | D241: Million FCFA | I241: 1780.930063 | J241: =SUM(J239:J240) -> 0 | K241: =SUM(K239:K240) -> 0 | L241: 0 | M241: 0 | N241: 0 | O241: 0 | P241: 0 | Q241: 0 | R241: 0 | S241: 0 | T241: 152.2189837 | U241: 192.276611 | V241: 416.5993238 | W241: 499.9191886 | X241: 259.9579781 | Y241: 259.9579781 | Z241: 0 | AA241: 0 | AB241: 0 | AC241: 0 | AD241: 0 | AE241: 0 | AF241: 0 | AG241: 0 | AH241: 0 | AI241: 0 | AJ241: 0 | AK241: 0 | AL241: 0 | AM241: 0 | AN241: 0 | AO241: 0 | AP241: 0 | AQ241: 0 | AR241: 0 | AS241: 0 | AT241: 0 | AU241: 0 | AV241: 0 | AW241: 0 | AX241: 0 | AY241: 0 | AZ241: 0 | BA241: 0 | BB241: 0 | BC241: 0 | BD241: 0 | BE241: 0 | BF241: 0 | BG241: 0 | BH241: 0 | BI241: 0 | BJ241: 0 | BK241: 0 | BL241: 0 | BM241: 0 | BN241: 0 | BO241: 0 | BP241: 0 | BQ241: 0 | BR241: 0 | BS241: 0 | BT241: 0 | BU241: 0 | BV241: 0 | BW241: =SUM(BW239:BW240) -> 0 | BX241: 0 | BY241: 0 | BZ241: 0 | CA241: 0 | CB241: 0 | CC241: 0 | CD241: 0 | CE241: 0 | CF241: 0 | CG241: 0 | CH241: 0 | CI241: 0 | CJ241: 0 | CK241: 0 | CL241: 0 | CM241: 0 | CN241: 0 | CO241: 0 | CP241: 0
C242: Trading:Retailers sales of ordinary rice | D242: Million FCFA | I242: 10786.8473 | J242: =+J192 -> 0 | K242: =+K192 -> 0 | L242: 0 | M242: 0 | N242: 0 | O242: 0 | P242: 0 | Q242: 0 | R242: 0 | S242: 0 | T242: 0 | U242: 0 | V242: 0 | W242: 0 | X242: 267.4567659 | Y242: 267.4567659 | Z242: 556.310073 | AA242: 556.310073 | AB242: 578.562476 | AC242: 578.562476 | AD242: 601.704975 | AE242: 601.704975 | AF242: 625.773174 | AG242: 625.773174 | AH242: 650.804101 | AI242: 650.804101 | AJ242: 676.836265 | AK242: 676.836265 | AL242: 703.9097156 | AM242: 703.9097156 | AN242: 732.0661042 | AO242: 732.0661042 | AP242: 0 | AQ242: 0 | AR242: 0 | AS242: 0 | AT242: 0 | AU242: 0 | AV242: 0 | AW242: 0 | AX242: 0 | AY242: 0 | AZ242: 0 | BA242: 0 | BB242: 0 | BC242: 0 | BD242: 0 | BE242: 0 | BF242: 0 | BG242: 0 | BH242: 0 | BI242: 0 | BJ242: 0 | BK242: 0 | BL242: 0 | BM242: 0 | BN242: 0 | BO242: 0 | BP242: 0 | BQ242: 0 | BR242: 0 | BS242: 0 | BT242: 0 | BU242: 0 | BV242: 0 | BW242: =+BW192 -> 0 | BX242: 0 | BY242: 0 | BZ242: 0 | CA242: 0 | CB242: 0 | CC242: 0 | CD242: 0 | CE242: 0 | CF242: 0 | CG242: 0 | CH242: 0 | CI242: 0 | CJ242: 0 | CK242: 0 | CL242: 0 | CM242: 0 | CN242: 0 | CO242: 0 | CP242: 0
C243: Trading: Retailers sales of flour | D243: Million FCFA | I243: 0 | J243: =+J193 -> 0 | K243: =+K193 -> 0 | L243: 0 | M243: 0 | N243: 0 | O243: 0 | P243: 0 | Q243: 0 | R243: 0 | S243: 0 | T243: 0 | U243: 0 | V243: 0 | W243: 0 | X243: 0 | Y243: 0 | Z243: 0 | AA243: 0 | AB243: 0 | AC243: 0 | AD243: 0 | AE243: 0 | AF243: 0 | AG243: 0 | AH243: 0 | AI243: 0 | AJ243: 0 | AK243: 0 | AL243: 0 | AM243: 0 | AN243: 0 | AO243: 0 | AP243: 0 | AQ243: 0 | AR243: 0 | AS243: 0 | AT243: 0 | AU243: 0 | AV243: 0 | AW243: 0 | AX243: 0 | AY243: 0 | AZ243: 0 | BA243: 0 | BB243: 0 | BC243: 0 | BD243: 0 | BE243: 0 | BF243: 0 | BG243: 0 | BH243: 0 | BI243: 0 | BJ243: 0 | BK243: 0 | BL243: 0 | BM243: 0 | BN243: 0 | BO243: 0 | BP243: 0 | BQ243: 0 | BR243: 0 | BS243: 0 | BT243: 0 | BU243: 0 | BV243: 0 | BW243: =+BW193 -> 0 | BX243: 0 | BY243: 0 | BZ243: 0 | CA243: 0 | CB243: 0 | CC243: 0 | CD243: 0 | CE243: 0 | CF243: 0 | CG243: 0 | CH243: 0 | CI243: 0 | CJ243: 0 | CK243: 0 | CL243: 0 | CM243: 0 | CN243: 0 | CO243: 0 | CP243: 0
C244: Trading Subtotal : wholesalers sales | D244: Million FCFA | I244: 10786.8473 | J244: =SUM(J242:J243) -> 0 | K244: =SUM(K242:K243) -> 0 | L244: 0 | M244: 0 | N244: 0 | O244: 0 | P244: 0 | Q244: 0 | R244: 0 | S244: 0 | T244: 0 | U244: 0 | V244: 0 | W244: 0 | X244: 267.4567659 | Y244: 267.4567659 | Z244: 556.310073 | AA244: 556.310073 | AB244: 578.562476 | AC244: 578.562476 | AD244: 601.704975 | AE244: 601.704975 | AF244: 625.773174 | AG244: 625.773174 | AH244: 650.804101 | AI244: 650.804101 | AJ244: 676.836265 | AK244: 676.836265 | AL244: 703.9097156 | AM244: 703.9097156 | AN244: 732.0661042 | AO244: 732.0661042 | AP244: 0 | AQ244: 0 | AR244: 0 | AS244: 0 | AT244: 0 | AU244: 0 | AV244: 0 | AW244: 0 | AX244: 0 | AY244: 0 | AZ244: 0 | BA244: 0 | BB244: 0 | BC244: 0 | BD244: 0 | BE244: 0 | BF244: 0 | BG244: 0 | BH244: 0 | BI244: 0 | BJ244: 0 | BK244: 0 | BL244: 0 | BM244: 0 | BN244: 0 | BO244: 0 | BP244: 0 | BQ244: 0 | BR244: 0 | BS244: 0 | BT244: 0 | BU244: 0 | BV244: 0 | BW244: =SUM(BW242:BW243) -> 0 | BX244: 0 | BY244: 0 | BZ244: 0 | CA244: 0 | CB244: 0 | CC244: 0 | CD244: 0 | CE244: 0 | CF244: 0 | CG244: 0 | CH244: 0 | CI244: 0 | CJ244: 0 | CK244: 0 | CL244: 0 | CM244: 0 | CN244: 0 | CO244: 0 | CP244: 0
C245: Trading: Subtotal | D245: Million FCFA | I245: 14393.53976 | J245: =+J238+J241+J244 -> 0 | K245: =+K238+K241+K244 -> 0 | L245: 0 | M245: 0 | N245: 12.99767497 | O245: 77.98604981 | P245: 96.12502732 | Q245: 171.2227049 | R245: 195.2539617 | S245: 281.1657049 | T245: 314.512039 | U245: 397.2783651 | V245: 438.396421 | W245: 526.0757051 | X245: 554.6175212 | Y245: 554.6175212 | Z245: 584.6009614 | AA245: 584.6009614 | AB245: 607.9849998 | AC245: 607.9849998 | AD245: 632.3043998 | AE245: 632.3043998 | AF245: 657.5965758 | AG245: 657.5965758 | AH245: 683.9004388 | AI245: 683.9004388 | AJ245: 711.2564564 | AK245: 711.2564564 | AL245: 739.7067147 | AM245: 739.7067147 | AN245: 769.2949832 | AO245: 769.2949832 | AP245: 0 | AQ245: 0 | AR245: 0 | AS245: 0 | AT245: 0 | AU245: 0 | AV245: 0 | AW245: 0 | AX245: 0 | AY245: 0 | AZ245: 0 | BA245: 0 | BB245: 0 | BC245: 0 | BD245: 0 | BE245: 0 | BF245: 0 | BG245: 0 | BH245: 0 | BI245: 0 | BJ245: 0 | BK245: 0 | BL245: 0 | BM245: 0 | BN245: 0 | BO245: 0 | BP245: 0 | BQ245: 0 | BR245: 0 | BS245: 0 | BT245: 0 | BU245: 0 | BV245: 0 | BW245: =+BW238+BW241+BW244 -> 0 | BX245: 0 | BY245: 0 | BZ245: 0 | CA245: 0 | CB245: 0 | CC245: 0 | CD245: 0 | CE245: 0 | CF245: 0 | CG245: 0 | CH245: 0 | CI245: 0 | CJ245: 0 | CK245: 0 | CL245: 0 | CM245: 0 | CN245: 0 | CO245: 0 | CP245: 0
C247: Total Sales | D247: Million FCFA | I247: =SUM(J247:CP247) -> 230201.0941 | J247: =+J234+J245 -> 0 | K247: =+K234+K245 -> 0 | L247: 0 | M247: 0 | N247: 316.2767576 | O247: 1783.930889 | P247: 2308.377446 | Q247: 4291.269042 | R247: 4466.434375 | S247: 6841.698819 | T247: 5832.26711 | U247: 7846.24771 | V247: 6692.852027 | W247: 8943.286988 | X247: 7456.524451 | Y247: 9428.49786 | Z247: 7859.635147 | AA247: 9938.216343 | AB247: 8174.020553 | AC247: 10335.745 | AD247: 8500.981375 | AE247: 10749.1748 | AF247: 8841.02063 | AG247: 11179.14179 | AH247: 9194.661456 | AI247: 11626.30746 | AJ247: 9562.447914 | AK247: 12091.35976 | AL247: 9944.94583 | AM247: 12575.01415 | AN247: 10342.74366 | AO247: 13078.01472 | AP247: 0 | AQ247: 0 | AR247: 0 | AS247: 0 | AT247: 0 | AU247: 0 | AV247: 0 | AW247: 0 | AX247: 0 | AY247: 0 | AZ247: 0 | BA247: 0 | BB247: 0 | BC247: 0 | BD247: 0 | BE247: 0 | BF247: 0 | BG247: 0 | BH247: 0 | BI247: 0 | BJ247: 0 | BK247: 0 | BL247: 0 | BM247: 0 | BN247: 0 | BO247: 0 | BP247: 0 | BQ247: 0 | BR247: 0 | BS247: 0 | BT247: 0 | BU247: 0 | BV247: 0 | BW247: =+BW234+BW245 -> 0 | BX247: 0 | BY247: 0 | BZ247: 0 | CA247: 0 | CB247: 0 | CC247: 0 | CD247: 0 | CE247: 0 | CF247: 0 | CG247: 0 | CH247: 0 | CI247: 0 | CJ247: 0 | CK247: 0 | CL247: 0 | CM247: 0 | CN247: 0 | CO247: 0 | CP247: 0
C249: Check : AfDB Vs. Sponsors calculations
C250: AfDB annual Local sales of Farm 1 | D250: EUR | I250: =SUM(J250:CP250) -> 328996495.7 | J250: =+J203 -> 0 | K250: 0 | L250: 0 | M250: 0 | N250: 462345.9809 | O250: 2600696.143 | P250: 3372557.072 | Q250: 6280970.15 | R250: 6511372.564 | S250: 10001468.26 | T250: =+T203+T206+T209 -> 8411763.379 | U250: 11355880.56 | V250: 9534856.104 | W250: 12831955.88 | X250: 10521889.29 | Y250: 13528143.37 | Z250: 11090718.12 | AA250: 14259494.73 | AB250: 11534346.84 | AC250: 14829874.51 | AD250: 11995720.72 | AE250: 15423069.5 | AF250: 12475549.55 | AG250: 16039992.28 | AH250: 12974571.53 | AI250: 16681591.97 | AJ250: 13493554.39 | AK250: 17348855.65 | AL250: 14033296.57 | AM250: 18042809.87 | AN250: =+AN203+AN206+AN209 -> 14594628.43 | AO250: 18764522.27
C251: Sponsors annual Local sales of Farm 1 | D251: EUR | I251: 328996495.7 | L251: =HLOOKUP(L2,'Farm 1'!$AH$26:$BC$31,6) -> 0 | M251: =HLOOKUP(M2,'Farm 1'!$AH$26:$BC$31,6) -> 0 | N251: =HLOOKUP(N2,'Farm 1'!$AH$26:$BC$31,6) -> 462345.9809 | O251: =HLOOKUP(O2,'Farm 1'!$AH$26:$BC$31,6) -> 2600696.143 | P251: =HLOOKUP(P2,'Farm 1'!$AH$26:$BC$31,6) -> 3372557.072 | Q251: =HLOOKUP(Q2,'Farm 1'!$AH$26:$BC$31,6) -> 6280970.15 | R251: =HLOOKUP(R2,'Farm 1'!$AH$26:$BC$31,6) -> 6511372.564 | S251: =HLOOKUP(S2,'Farm 1'!$AH$26:$BC$31,6) -> 10001468.26 | T251: =HLOOKUP(T2,'Farm 1'!$AH$26:$BC$31,6) -> 8411763.379 | U251: =HLOOKUP(U2,'Farm 1'!$AH$26:$BC$31,6) -> 11355880.56 | V251: =HLOOKUP(V2,'Farm 1'!$AH$26:$BC$31,6) -> 9534856.104 | W251: =HLOOKUP(W2,'Farm 1'!$AH$26:$BC$31,6) -> 12831955.88 | X251: =HLOOKUP(X2,'Farm 1'!$AH$26:$BC$31,6) -> 10521889.29 | Y251: =HLOOKUP(Y2,'Farm 1'!$AH$26:$BC$31,6) -> 13528143.37 | Z251: =HLOOKUP(Z2,'Farm 1'!$AH$26:$BC$31,6) -> 11090718.12 | AA251: =HLOOKUP(AA2,'Farm 1'!$AH$26:$BC$31,6) -> 14259494.73 | AB251: =HLOOKUP(AB2,'Farm 1'!$AH$26:$BC$31,6) -> 11534346.84 | AC251: =HLOOKUP(AC2,'Farm 1'!$AH$26:$BC$31,6) -> 14829874.51 | AD251: =HLOOKUP(AD2,'Farm 1'!$AH$26:$BC$31,6) -> 11995720.72 | AE251: =HLOOKUP(AE2,'Farm 1'!$AH$26:$BC$31,6) -> 15423069.5 | AF251: =HLOOKUP(AF2,'Farm 1'!$AH$26:$BC$31,6) -> 12475549.55 | AG251: =HLOOKUP(AG2,'Farm 1'!$AH$26:$BM$31,6) -> 16039992.28 | AH251: =HLOOKUP(AH2,'Farm 1'!$AH$26:$BM$31,6) -> 12974571.53 | AI251: =HLOOKUP(AI2,'Farm 1'!$AH$26:$BM$31,6) -> 16681591.97 | AJ251: =HLOOKUP(AJ2,'Farm 1'!$AH$26:$BM$31,6) -> 13493554.39 | AK251: =HLOOKUP(AK2,'Farm 1'!$AH$26:$BM$31,6) -> 17348855.65 | AL251: =HLOOKUP(AL2,'Farm 1'!$AH$26:$BM$31,6) -> 14033296.57 | AM251: =HLOOKUP(AM2,'Farm 1'!$AH$26:$BM$31,6) -> 18042809.87 | AN251: =HLOOKUP(AN2,'Farm 1'!$AH$26:$BM$31,6) -> 14594628.43 | AO251: =HLOOKUP(AO2,'Farm 1'!$AH$26:$BM$31,6) -> 18764522.27
C252: Check: AfDB =Sponsors? | D252: Check | J252: =IF(ABS(J251-J250)<VerySmallNo,"Ok", "Check") -> Ok | K252: Ok | L252: Ok | M252: Ok | N252: =IF(ABS(N251-N250)<VerySmallNo,"Ok", "Check") -> Ok | O252: Ok | P252: Ok | Q252: Ok | R252: Ok | S252: Ok | T252: Ok | U252: Ok | V252: Ok | W252: Ok | X252: Ok | Y252: Ok | Z252: Ok | AA252: Ok | AB252: Ok | AC252: Ok | AD252: Ok | AE252: Ok | AF252: Ok | AG252: Ok | AH252: Ok | AI252: Ok | AJ252: Ok | AK252: Ok | AL252: Ok | AM252: Ok | AN252: Ok | AO252: Ok
C254: AfDB annual Local sales of Trading | D254: EUR | I254: =SUM(J254:CP254) -> 21942809.9 | J254: =+J221 -> 0 | K254: 0 | L254: 0 | M254: 0 | N254: 19814.82775 | O254: 118888.9665 | P254: 146541.6595 | Q254: 261027.3309 | R254: 297662.7458 | S254: 428634.3539 | T254: 479470.5126 | U254: 605646.9633 | V254: 668331.0354 | W254: 801997.2424 | X254: 845508.9605 | Y254: 845508.9605 | Z254: 891218.4204 | AA254: 891218.4204 | AB254: 926867.1572 | AC254: 926867.1572 | AD254: 963941.8435 | AE254: 963941.8435 | AF254: 1002499.517 | AG254: 1002499.517 | AH254: 1042599.498 | AI254: 1042599.498 | AJ254: 1084303.478 | AK254: 1084303.478 | AL254: 1127675.617 | AM254: 1127675.617 | AN254: 1172782.642 | AO254: 1172782.642
... 2 more rows

Sheet Returns
C1: Including a terminale value
K2: -1 | L2: =+K2+1 -> 0 | M2: =+L2+1 -> 1 | N2: 2 | O2: 3 | P2: 4 | Q2: 5 | R2: 6 | S2: 7 | T2: 8 | U2: 9 | V2: 10 | W2: 11 | X2: 12 | Y2: 13 | Z2: 14 | AA2: 15 | AB2: 16 | AC2: 17 | AD2: 18 | AE2: 19 | AF2: 20 | AG2: 21 | AH2: 22 | AI2: =+AH2+1 -> 23 | AJ2: =+AI2+1 -> 24 | AK2: =+AJ2+1 -> 25 | AL2: =+AK2+1 -> 26 | AM2: =+AL2+1 -> 27 | AN2: =+AM2+1 -> 28 | AO2: =+AN2+1 -> 29 | AP2: =+AO2+1 -> 30
C3: Farm 1 : Ndiayène - Ordinary rice | K3: ='Alt 1'!J3 -> 2012-01-01 | L3: ='Alt 1'!K3 -> 2012-07-01 | M3: ='Alt 1'!L3 -> 2013-01-01 | N3: ='Alt 1'!M3 -> 2013-07-01 | O3: ='Alt 1'!N3 -> 2014-01-01 | P3: ='Alt 1'!O3 -> 2014-07-01 | Q3: ='Alt 1'!P3 -> 2015-01-01 | R3: ='Alt 1'!Q3 -> 2015-07-01 | S3: ='Alt 1'!R3 -> 2016-01-01 | T3: ='Alt 1'!S3 -> 2016-07-01 | U3: ='Alt 1'!T3 -> 2017-01-01 | V3: ='Alt 1'!U3 -> 2017-07-01 | W3: ='Alt 1'!V3 -> 2018-01-01 | X3: ='Alt 1'!W3 -> 2018-07-01 | Y3: ='Alt 1'!X3 -> 2019-01-01 | Z3: ='Alt 1'!Y3 -> 2019-07-01 | AA3: ='Alt 1'!Z3 -> 2020-01-01 | AB3: ='Alt 1'!AA3 -> 2020-07-01 | AC3: ='Alt 1'!AB3 -> 2021-01-01 | AD3: ='Alt 1'!AC3 -> 2021-07-01 | AE3: ='Alt 1'!AD3 -> 2022-01-01 | AF3: ='Alt 1'!AE3 -> 2022-07-01 | AG3: ='Alt 1'!AF3 -> 2023-01-01 | AH3: ='Alt 1'!AG3 -> 2023-07-01 | AI3: ='Alt 1'!AH3 -> 2024-01-01 | AJ3: ='Alt 1'!AI3 -> 2024-07-01 | AK3: ='Alt 1'!AJ3 -> 2025-01-01 | AL3: ='Alt 1'!AK3 -> 2025-07-01 | AM3: ='Alt 1'!AL3 -> 2026-01-01 | AN3: ='Alt 1'!AM3 -> 2026-07-01 | AO3: ='Alt 1'!AN3 -> 2027-01-01 | AP3: ='Alt 1'!AO3 -> 2027-07-01 | AQ3: ='Alt 1'!AP3 -> 2028-01-01 | AR3: ='Alt 1'!AQ3 -> 2028-07-01 | AS3: ='Alt 1'!AR3 -> 2029-01-01 | AT3: ='Alt 1'!AS3 -> 2029-07-01 | AU3: ='Alt 1'!AT3 -> 2030-01-01 | AV3: ='Alt 1'!AU3 -> 2030-07-01 | AW3: ='Alt 1'!AV3 -> 2031-01-01 | AX3: ='Alt 1'!AW3 -> 2031-07-01 | AY3: ='Alt 1'!AX3 -> 2032-01-01 | AZ3: ='Alt 1'!AY3 -> 2032-07-01 | BA3: ='Alt 1'!AZ3 -> 2033-01-01 | BB3: ='Alt 1'!BA3 -> 2033-07-01
J4: ='Alt 1'!I4 -> 2011-12-31 | K4: ='Alt 1'!J4 -> 2012-06-30 | L4: ='Alt 1'!K4 -> 2012-12-31 | M4: ='Alt 1'!L4 -> 2013-06-30 | N4: ='Alt 1'!M4 -> 2013-12-31 | O4: ='Alt 1'!N4 -> 2014-06-30 | P4: ='Alt 1'!O4 -> 2014-12-31 | Q4: ='Alt 1'!P4 -> 2015-06-30 | R4: ='Alt 1'!Q4 -> 2015-12-31 | S4: ='Alt 1'!R4 -> 2016-06-30 | T4: ='Alt 1'!S4 -> 2016-12-31 | U4: ='Alt 1'!T4 -> 2017-06-30 | V4: ='Alt 1'!U4 -> 2017-12-31 | W4: ='Alt 1'!V4 -> 2018-06-30 | X4: ='Alt 1'!W4 -> 2018-12-31 | Y4: ='Alt 1'!X4 -> 2019-06-30 | Z4: ='Alt 1'!Y4 -> 2019-12-31 | AA4: ='Alt 1'!Z4 -> 2020-06-30 | AB4: ='Alt 1'!AA4 -> 2020-12-31 | AC4: ='Alt 1'!AB4 -> 2021-06-30 | AD4: ='Alt 1'!AC4 -> 2021-12-31 | AE4: ='Alt 1'!AD4 -> 2022-06-30 | AF4: ='Alt 1'!AE4 -> 2022-12-31 | AG4: ='Alt 1'!AF4 -> 2023-06-30 | AH4: ='Alt 1'!AG4 -> 2023-12-31 | AI4: ='Alt 1'!AH4 -> 2024-06-30 | AJ4: ='Alt 1'!AI4 -> 2024-12-31 | AK4: ='Alt 1'!AJ4 -> 2025-06-30 | AL4: ='Alt 1'!AK4 -> 2025-12-31 | AM4: ='Alt 1'!AL4 -> 2026-06-30 | AN4: ='Alt 1'!AM4 -> 2026-12-31 | AO4: ='Alt 1'!AN4 -> 2027-06-30 | AP4: ='Alt 1'!AO4 -> 2027-12-31 | AQ4: ='Alt 1'!AP4 -> 2028-06-30 | AR4: ='Alt 1'!AQ4 -> 2028-12-31 | AS4: ='Alt 1'!AR4 -> 2029-06-30 | AT4: ='Alt 1'!AS4 -> 2029-12-31 | AU4: ='Alt 1'!AT4 -> 2030-06-30 | AV4: ='Alt 1'!AU4 -> 2030-12-31 | AW4: ='Alt 1'!AV4 -> 2031-06-30 | AX4: ='Alt 1'!AW4 -> 2031-12-31 | AY4: ='Alt 1'!AX4 -> 2032-06-30 | AZ4: ='Alt 1'!AY4 -> 2032-12-31 | BA4: ='Alt 1'!AZ4 -> 2033-06-30 | BB4: ='Alt 1'!BA4 -> 2033-12-31
C6: Planning period | K6: ='Alt 1'!J6 -> 1 | L6: ='Alt 1'!K6 -> 1 | M6: ='Alt 1'!L6 -> 1 | N6: ='Alt 1'!M6 -> 1 | O6: ='Alt 1'!N6 -> 1 | P6: ='Alt 1'!O6 -> 1 | Q6: ='Alt 1'!P6 -> 1 | R6: ='Alt 1'!Q6 -> 1 | S6: ='Alt 1'!R6 -> 1 | T6: ='Alt 1'!S6 -> 0 | U6: ='Alt 1'!T6 -> 0 | V6: ='Alt 1'!U6 -> 0 | W6: ='Alt 1'!V6 -> 0 | X6: ='Alt 1'!W6 -> 0 | Y6: ='Alt 1'!X6 -> 0 | Z6: ='Alt 1'!Y6 -> 0 | AA6: ='Alt 1'!Z6 -> 0 | AB6: ='Alt 1'!AA6 -> 0 | AC6: ='Alt 1'!AB6 -> 0 | AD6: ='Alt 1'!AC6 -> 0 | AE6: ='Alt 1'!AD6 -> 0 | AF6: ='Alt 1'!AE6 -> 0 | AG6: ='Alt 1'!AF6 -> 0 | AH6: ='Alt 1'!AG6 -> 0 | AI6: ='Alt 1'!AH6 -> 0 | AJ6: ='Alt 1'!AI6 -> 0 | AK6: ='Alt 1'!AJ6 -> 0 | AL6: ='Alt 1'!AK6 -> 0 | AM6: ='Alt 1'!AL6 -> 0 | AN6: ='Alt 1'!AM6 -> 0 | AO6: ='Alt 1'!AN6 -> 0 | AP6: ='Alt 1'!AO6 -> 0 | AQ6: ='Alt 1'!AP6 -> 0 | AR6: ='Alt 1'!AQ6 -> 0 | AS6: ='Alt 1'!AR6 -> 0 | AT6: ='Alt 1'!AS6 -> 0 | AU6: ='Alt 1'!AT6 -> 0 | AV6: ='Alt 1'!AU6 -> 0 | AW6: ='Alt 1'!AV6 -> 0 | AX6: ='Alt 1'!AW6 -> 0 | AY6: ='Alt 1'!AX6 -> 0 | AZ6: ='Alt 1'!AY6 -> 0 | BA6: ='Alt 1'!AZ6 -> 0 | BB6: ='Alt 1'!BA6 -> 0
C7: Full Operations | J7: =SUM(K7:BB7) -> 30 | K7: ='Alt 1'!J7 -> 0 | L7: ='Alt 1'!K7 -> 0 | M7: ='Alt 1'!L7 -> 1 | N7: ='Alt 1'!M7 -> 1 | O7: ='Alt 1'!N7 -> 1 | P7: ='Alt 1'!O7 -> 1 | Q7: ='Alt 1'!P7 -> 1 | R7: ='Alt 1'!Q7 -> 1 | S7: ='Alt 1'!R7 -> 1 | T7: ='Alt 1'!S7 -> 1 | U7: ='Alt 1'!T7 -> 1 | V7: ='Alt 1'!U7 -> 1 | W7: ='Alt 1'!V7 -> 1 | X7: ='Alt 1'!W7 -> 1 | Y7: ='Alt 1'!X7 -> 1 | Z7: ='Alt 1'!Y7 -> 1 | AA7: ='Alt 1'!Z7 -> 1 | AB7: ='Alt 1'!AA7 -> 1 | AC7: ='Alt 1'!AB7 -> 1 | AD7: ='Alt 1'!AC7 -> 1 | AE7: ='Alt 1'!AD7 -> 1 | AF7: ='Alt 1'!AE7 -> 1 | AG7: ='Alt 1'!AF7 -> 1 | AH7: ='Alt 1'!AG7 -> 1 | AI7: ='Alt 1'!AH7 -> 1 | AJ7: ='Alt 1'!AI7 -> 1 | AK7: ='Alt 1'!AJ7 -> 1 | AL7: ='Alt 1'!AK7 -> 1 | AM7: ='Alt 1'!AL7 -> 1 | AN7: ='Alt 1'!AM7 -> 1 | AO7: ='Alt 1'!AN7 -> 1 | AP7: ='Alt 1'!AO7 -> 1 | AQ7: ='Alt 1'!AP7 -> 0 | AR7: ='Alt 1'!AQ7 -> 0 | AS7: ='Alt 1'!AR7 -> 0 | AT7: ='Alt 1'!AS7 -> 0 | AU7: ='Alt 1'!AT7 -> 0 | AV7: ='Alt 1'!AU7 -> 0 | AW7: ='Alt 1'!AV7 -> 0 | AX7: ='Alt 1'!AW7 -> 0 | AY7: ='Alt 1'!AX7 -> 0 | AZ7: ='Alt 1'!AY7 -> 0 | BA7: ='Alt 1'!AZ7 -> 0 | BB7: ='Alt 1'!BA7 -> 0
C9: ='Alt 1'!C23 -> Euro Inflation rate | K9: ='Alt 1'!J24 -> 1 | L9: ='Alt 1'!K24 -> 1 | M9: ='Alt 1'!L24 -> 1 | N9: ='Alt 1'!M24 -> 1 | O9: ='Alt 1'!N24 -> 1.03 | P9: ='Alt 1'!O24 -> 1.03 | Q9: ='Alt 1'!P24 -> 1.0609 | R9: ='Alt 1'!Q24 -> 1.0609 | S9: ='Alt 1'!R24 -> 1.092727 | T9: ='Alt 1'!S24 -> 1.092727 | U9: ='Alt 1'!T24 -> 1.12550881 | V9: ='Alt 1'!U24 -> 1.12550881 | W9: ='Alt 1'!V24 -> 1.159274074 | X9: ='Alt 1'!W24 -> 1.159274074 | Y9: ='Alt 1'!X24 -> 1.194052297 | Z9: ='Alt 1'!Y24 -> 1.194052297 | AA9: ='Alt 1'!Z24 -> 1.229873865 | AB9: ='Alt 1'!AA24 -> 1.229873865 | AC9: ='Alt 1'!AB24 -> 1.266770081 | AD9: ='Alt 1'!AC24 -> 1.266770081 | AE9: ='Alt 1'!AD24 -> 1.304773184 | AF9: ='Alt 1'!AE24 -> 1.304773184 | AG9: ='Alt 1'!AF24 -> 1.343916379 | AH9: ='Alt 1'!AG24 -> 1.343916379 | AI9: ='Alt 1'!AH24 -> 1.384233871 | AJ9: ='Alt 1'!AI24 -> 1.384233871 | AK9: ='Alt 1'!AJ24 -> 1.425760887 | AL9: ='Alt 1'!AK24 -> 1.425760887 | AM9: ='Alt 1'!AL24 -> 1.468533713 | AN9: ='Alt 1'!AM24 -> 1.468533713 | AO9: ='Alt 1'!AN24 -> 1.512589725 | AP9: ='Alt 1'!AO24 -> 1.512589725 | AQ9: ='Alt 1'!AP24 -> 0 | AR9: ='Alt 1'!AQ24 -> 0 | AS9: ='Alt 1'!AR24 -> 0 | AT9: ='Alt 1'!AS24 -> 0 | AU9: ='Alt 1'!AT24 -> 0 | AV9: ='Alt 1'!AU24 -> 0 | AW9: ='Alt 1'!AV24 -> 0 | AX9: ='Alt 1'!AW24 -> 0 | AY9: ='Alt 1'!AX24 -> 0 | AZ9: ='Alt 1'!AY24 -> 0 | BA9: ='Alt 1'!AZ24 -> 0 | BB9: ='Alt 1'!BA24 -> 0
C11: Project Returns | G11: Nominal IRR
C12: Nominal Net Cashflow before financing | D12: 000'EUR | G12: =XIRR(M12:BB12,$M$3:$BB$3) -> 0.2740275323 | J12: =SUM(K12:BB12) -> 140086.7756 | K12: =IF(K4=$G$22,IFS!K93+EBITDA*AFS!L130,IF(K4>$G$22,0,IFS!K93)) -> -2559.176078 | L12: =IF(L4=$G$22,IFS!L93+EBITDA*AFS!M130,IF(L4>$G$22,0,IFS!L93)) -> -692.0083489 | M12: =IF(M4=$G$22,IFS!M93+EBITDA*AFS!N130,IF(M4>$G$22,0,IFS!M93)) -> -16640.10444 | N12: =IF(N4=$G$22,IFS!N93+EBITDA*AFS!O130,IF(N4>$G$22,0,IFS!N93)) -> -3001.827278 | O12: =IF(O4=$G$22,IFS!O93+EBITDA*AFS!P130,IF(O4>$G$22,0,IFS!O93)) -> -8570.196619 | P12: =IF(P4=$G$22,IFS!P93+EBITDA*AFS!Q130,IF(P4>$G$22,0,IFS!P93)) -> -1590.120291 | Q12: =IF(Q4=$G$22,IFS!Q93+EBITDA*AFS!R130,IF(Q4>$G$22,0,IFS!Q93)) -> -9226.037546 | R12: =IF(R4=$G$22,IFS!R93+EBITDA*AFS!S130,IF(R4>$G$22,0,IFS!R93)) -> 483.8979554 | S12: =IF(S4=$G$22,IFS!S93+EBITDA*AFS!T130,IF(S4>$G$22,0,IFS!S93)) -> -3964.65674 | T12: =IF(T4=$G$22,IFS!T93+EBITDA*AFS!U130,IF(T4>$G$22,0,IFS!T93)) -> 5600.307883 | U12: =IF(U4=$G$22,IFS!U93+EBITDA*AFS!V130,IF(U4>$G$22,0,IFS!U93)) -> 834.5309799 | V12: =IF(V4=$G$22,IFS!V93+EBITDA*AFS!W130,IF(V4>$G$22,0,IFS!V93)) -> 6290.470941 | W12: =IF(W4=$G$22,IFS!W93+EBITDA*AFS!X130,IF(W4>$G$22,0,IFS!W93)) -> 1254.645185 | X12: =IF(X4=$G$22,IFS!X93+EBITDA*AFS!Y130,IF(X4>$G$22,0,IFS!X93)) -> 7553.278943 | Y12: =IF(Y4=$G$22,IFS!Y93+EBITDA*AFS!Z130,IF(Y4>$G$22,0,IFS!Y93)) -> 2022.158033 | Z12: =IF(Z4=$G$22,IFS!Z93+EBITDA*AFS!AA130,IF(Z4>$G$22,0,IFS!Z93)) -> 8138.257264 | AA12: =IF(AA4=$G$22,IFS!AA93+EBITDA*AFS!AB130,IF(AA4>$G$22,0,IFS!AA93)) -> 2581.627328 | AB12: =IF(AB4=$G$22,IFS!AB93+EBITDA*AFS!AC130,IF(AB4>$G$22,0,IFS!AB93)) -> 151571.7284 | AC12: =IF(AC4=$G$22,IFS!AC93+EBITDA*AFS!AD130,IF(AC4>$G$22,0,IFS!AC93)) -> 0 | AD12: =IF(AD4=$G$22,IFS!AD93+EBITDA*AFS!AE130,IF(AD4>$G$22,0,IFS!AD93)) -> 0 | AE12: =IF(AE4=$G$22,IFS!AE93+EBITDA*AFS!AF130,IF(AE4>$G$22,0,IFS!AE93)) -> 0 | AF12: =IF(AF4=$G$22,IFS!AF93+EBITDA*AFS!AG130,IF(AF4>$G$22,0,IFS!AF93)) -> 0 | AG12: =IF(AG4=$G$22,IFS!AG93+EBITDA*AFS!AH130,IF(AG4>$G$22,0,IFS!AG93)) -> 0 | AH12: =IF(AH4=$G$22,IFS!AH93+EBITDA*AFS!AI130,IF(AH4>$G$22,0,IFS!AH93)) -> 0 | AI12: =IF(AI4=$G$22,IFS!AI93+EBITDA*AFS!AJ130,IF(AI4>$G$22,0,IFS!AI93)) -> 0 | AJ12: =IF(AJ4=$G$22,IFS!AJ93+EBITDA*AFS!AK130,IF(AJ4>$G$22,0,IFS!AJ93)) -> 0 | AK12: =IF(AK4=$G$22,IFS!AK93+EBITDA*AFS!AL130,IF(AK4>$G$22,0,IFS!AK93)) -> 0 | AL12: =IF(AL4=$G$22,IFS!AL93+EBITDA*AFS!AM130,IF(AL4>$G$22,0,IFS!AL93)) -> 0 | AM12: =IF(AM4=$G$22,IFS!AM93+EBITDA*AFS!AN130,IF(AM4>$G$22,0,IFS!AM93)) -> 0 | AN12: =IF(AN4=$G$22,IFS!AN93+EBITDA*AFS!AO130,IF(AN4>$G$22,0,IFS!AN93)) -> 0 | AO12: =IF(AO4=$G$22,IFS!AO93+EBITDA*AFS!AP130,IF(AO4>$G$22,0,IFS!AO93)) -> 0 | AP12: =IF(AP4=$G$22,IFS!AP93+EBITDA*AFS!AQ130,IF(AP4>$G$22,0,IFS!AP93)) -> 0 | AQ12: =IF(AQ4=$G$22,IFS!AQ93+EBITDA*AFS!AR130,IF(AQ4>$G$22,0,IFS!AQ93)) -> 0 | AR12: =IF(AR4=$G$22,IFS!AR93+EBITDA*AFS!AS130,IF(AR4>$G$22,0,IFS!AR93)) -> 0 | AS12: =IF(AS4=$G$22,IFS!AS93+EBITDA*AFS!AT130,IF(AS4>$G$22,0,IFS!AS93)) -> 0 | AT12: =IF(AT4=$G$22,IFS!AT93+EBITDA*AFS!AU130,IF(AT4>$G$22,0,IFS!AT93)) -> 0 | AU12: =IF(AU4=$G$22,IFS!AU93+EBITDA*AFS!AV130,IF(AU4>$G$22,0,IFS!AU93)) -> 0 | AV12: =IF(AV4=$G$22,IFS!AV93+EBITDA*AFS!AW130,IF(AV4>$G$22,0,IFS!AV93)) -> 0 | AW12: =IF(AW4=$G$22,IFS!AW93+EBITDA*AFS!AX130,IF(AW4>$G$22,0,IFS!AW93)) -> 0 | AX12: =IF(AX4=$G$22,IFS!AX93+EBITDA*AFS!AY130,IF(AX4>$G$22,0,IFS!AX93)) -> 0 | AY12: =IF(AY4=$G$22,IFS!AY93+EBITDA*AFS!AZ130,IF(AY4>$G$22,0,IFS!AY93)) -> 0 | AZ12: =IF(AZ4=$G$22,IFS!AZ93+EBITDA*AFS!BA130,IF(AZ4>$G$22,0,IFS!AZ93)) -> 0 | BA12: =IF(BA4=$G$22,IFS!BA93+EBITDA*AFS!BB130,IF(BA4>$G$22,0,IFS!BA93)) -> 0 | BB12: =IF(BB4=$G$22,IFS!BB93+EBITDA*AFS!BC130,IF(BB4>$G$22,0,IFS!BB93)) -> 0
G13: Real IRR
C14: Real Net Cashflow before financing | D14: 000'EUR | G14: =XIRR(M14:BB14,$M$3:$BB$3) -> 0.2395093262 | J14: =SUM(K14:BB14) -> 108277.2835 | K14: =IF(K7+K6>=1,K12/K9,) -> -2559.176078 | L14: -692.0083489 | M14: -16640.10444 | N14: -3001.827278 | O14: -8320.579242 | P14: -1543.806107 | Q14: -8696.425249 | R14: 456.1202332 | S14: -3628.222548 | T14: 5125.075049 | U14: 741.4699668 | V14: 5589.001957 | W14: 1082.267958 | X14: 6515.524767 | Y14: 1693.525517 | Z14: 6815.662335 | AA14: 2099.099266 | AB14: 123241.6857 | AC14: =IF(AC7+AC6>=1,AC12/AC9,) -> 0 | AD14: 0 | AE14: 0 | AF14: 0 | AG14: 0 | AH14: 0 | AI14: 0 | AJ14: 0 | AK14: 0 | AL14: 0 | AM14: 0 | AN14: 0 | AO14: 0 | AP14: =IF(AP7+AP6>=1,AP12/AP9,)+G10 -> 0 | AQ14: 0 | AR14: 0 | AS14: 0 | AT14: 0 | AU14: 0 | AV14: 0 | AW14: 0 | AX14: 0 | AY14: 0 | AZ14: 0 | BA14: 0 | BB14: 0
C15: (incl. Euro inflation rate)
C16: Equity Returns | G16: Nominal IRR
C17: Nominal Net Cashflow for Equity | D17: 000'EUR | G17: =XIRR(M17:BB17,$M$3:$BB$3) -> 0.3631303608 | J17: =SUM(K17:BB17) -> 142413.9824 | K17: =IF(K4=$G$22,IFS!K116-IFS!K97+EBITDA*AFS!L130,IF(K4>$G$22,0,IFS!K116-IFS!K97)) -> -2559.176078 | L17: =IF(L4=$G$22,IFS!L116-IFS!L97+EBITDA*AFS!M130,IF(L4>$G$22,0,IFS!L116-IFS!L97)) -> -692.0083489 | M17: =IF(M4=$G$22,IFS!M116-IFS!M97+EBITDA*AFS!N130,IF(M4>$G$22,0,IFS!M116-IFS!M97)) -> -16640.10444 | N17: =IF(N4=$G$22,IFS!N116-IFS!N97+EBITDA*AFS!O130,IF(N4>$G$22,0,IFS!N116-IFS!N97)) -> -700.8143543 | O17: =IF(O4=$G$22,IFS!O116-IFS!O97+EBITDA*AFS!P130,IF(O4>$G$22,0,IFS!O116-IFS!O97)) -> 1.818989404e-12 | P17: =IF(P4=$G$22,IFS!P116-IFS!P97+EBITDA*AFS!Q130,IF(P4>$G$22,0,IFS!P116-IFS!P97)) -> -9.094947018e-13 | Q17: =IF(Q4=$G$22,IFS!Q116-IFS!Q97+EBITDA*AFS!R130,IF(Q4>$G$22,0,IFS!Q116-IFS!Q97)) -> 5.456968211e-12 | R17: =IF(R4=$G$22,IFS!R116-IFS!R97+EBITDA*AFS!S130,IF(R4>$G$22,0,IFS!R116-IFS!R97)) -> 0 | S17: =IF(S4=$G$22,IFS!S116-IFS!S97+EBITDA*AFS!T130,IF(S4>$G$22,0,IFS!S116-IFS!S97)) -> 0 | T17: =IF(T4=$G$22,IFS!T116-IFS!T97+EBITDA*AFS!U130,IF(T4>$G$22,0,IFS!T116-IFS!T97)) -> 3228.55154 | U17: =IF(U4=$G$22,IFS!U116-IFS!U97+EBITDA*AFS!V130,IF(U4>$G$22,0,IFS!U116-IFS!U97)) -> -1531.281567 | V17: =IF(V4=$G$22,IFS!V116-IFS!V97+EBITDA*AFS!W130,IF(V4>$G$22,0,IFS!V116-IFS!V97)) -> 2355.552498 | W17: =IF(W4=$G$22,IFS!W116-IFS!W97+EBITDA*AFS!X130,IF(W4>$G$22,0,IFS!W116-IFS!W97)) -> -1023.769015 | X17: =IF(X4=$G$22,IFS!X116-IFS!X97+EBITDA*AFS!Y130,IF(X4>$G$22,0,IFS!X116-IFS!X97)) -> 4243.85277 | Y17: =IF(Y4=$G$22,IFS!Y116-IFS!Y97+EBITDA*AFS!Z130,IF(Y4>$G$22,0,IFS!Y116-IFS!Y97)) -> -168.8578212 | Z17: =IF(Z4=$G$22,IFS!Z116-IFS!Z97+EBITDA*AFS!AA130,IF(Z4>$G$22,0,IFS!Z116-IFS!Z97)) -> 5799.46864 | AA17: =IF(AA4=$G$22,IFS!AA116-IFS!AA97+EBITDA*AFS!AB130,IF(AA4>$G$22,0,IFS!AA116-IFS!AA97)) -> 531.0443588 | AB17: =IF(AB4=$G$22,IFS!AB116-IFS!AB97+EBITDA*AFS!AC130,IF(AB4>$G$22,0,IFS!AB116-IFS!AB97)) -> 149571.5242 | AC17: =IF(AC4=$G$22,IFS!AC116-IFS!AC97+EBITDA*AFS!AD130,IF(AC4>$G$22,0,IFS!AC116-IFS!AC97)) -> 0 | AD17: =IF(AD4=$G$22,IFS!AD116-IFS!AD97+EBITDA*AFS!AE130,IF(AD4>$G$22,0,IFS!AD116-IFS!AD97)) -> 0 | AE17: =IF(AE4=$G$22,IFS!AE116-IFS!AE97+EBITDA*AFS!AF130,IF(AE4>$G$22,0,IFS!AE116-IFS!AE97)) -> 0 | AF17: =IF(AF4=$G$22,IFS!AF116-IFS!AF97+EBITDA*AFS!AG130,IF(AF4>$G$22,0,IFS!AF116-IFS!AF97)) -> 0 | AG17: =IF(AG4=$G$22,IFS!AG116-IFS!AG97+EBITDA*AFS!AH130,IF(AG4>$G$22,0,IFS!AG116-IFS!AG97)) -> 0 | AH17: =IF(AH4=$G$22,IFS!AH116-IFS!AH97+EBITDA*AFS!AI130,IF(AH4>$G$22,0,IFS!AH116-IFS!AH97)) -> 0 | AI17: =IF(AI4=$G$22,IFS!AI116-IFS!AI97+EBITDA*AFS!AJ130,IF(AI4>$G$22,0,IFS!AI116-IFS!AI97)) -> 0 | AJ17: =IF(AJ4=$G$22,IFS!AJ116-IFS!AJ97+EBITDA*AFS!AK130,IF(AJ4>$G$22,0,IFS!AJ116-IFS!AJ97)) -> 0 | AK17: =IF(AK4=$G$22,IFS!AK116-IFS!AK97+EBITDA*AFS!AL130,IF(AK4>$G$22,0,IFS!AK116-IFS!AK97)) -> 0 | AL17: =IF(AL4=$G$22,IFS!AL116-IFS!AL97+EBITDA*AFS!AM130,IF(AL4>$G$22,0,IFS!AL116-IFS!AL97)) -> 0 | AM17: =IF(AM4=$G$22,IFS!AM116-IFS!AM97+EBITDA*AFS!AN130,IF(AM4>$G$22,0,IFS!AM116-IFS!AM97)) -> 0 | AN17: =IF(AN4=$G$22,IFS!AN116-IFS!AN97+EBITDA*AFS!AO130,IF(AN4>$G$22,0,IFS!AN116-IFS!AN97)) -> 0 | AO17: =IF(AO4=$G$22,IFS!AO116-IFS!AO97+EBITDA*AFS!AP130,IF(AO4>$G$22,0,IFS!AO116-IFS!AO97)) -> 0 | AP17: =IF(AP4=$G$22,IFS!AP116-IFS!AP97+EBITDA*AFS!AQ130,IF(AP4>$G$22,0,IFS!AP116-IFS!AP97)) -> 0 | AQ17: =IF(AQ4=$G$22,IFS!AQ116-IFS!AQ97+EBITDA*AFS!AR130,IF(AQ4>$G$22,0,IFS!AQ116-IFS!AQ97)) -> 0 | AR17: =IF(AR4=$G$22,IFS!AR116-IFS!AR97+EBITDA*AFS!AS130,IF(AR4>$G$22,0,IFS!AR116-IFS!AR97)) -> 0 | AS17: =IF(AS4=$G$22,IFS!AS116-IFS!AS97+EBITDA*AFS!AT130,IF(AS4>$G$22,0,IFS!AS116-IFS!AS97)) -> 0 | AT17: =IF(AT4=$G$22,IFS!AT116-IFS!AT97+EBITDA*AFS!AU130,IF(AT4>$G$22,0,IFS!AT116-IFS!AT97)) -> 0 | AU17: =IF(AU4=$G$22,IFS!AU116-IFS!AU97+EBITDA*AFS!AV130,IF(AU4>$G$22,0,IFS!AU116-IFS!AU97)) -> 0 | AV17: =IF(AV4=$G$22,IFS!AV116-IFS!AV97+EBITDA*AFS!AW130,IF(AV4>$G$22,0,IFS!AV116-IFS!AV97)) -> 0 | AW17: =IF(AW4=$G$22,IFS!AW116-IFS!AW97+EBITDA*AFS!AX130,IF(AW4>$G$22,0,IFS!AW116-IFS!AW97)) -> 0 | AX17: =IF(AX4=$G$22,IFS!AX116-IFS!AX97+EBITDA*AFS!AY130,IF(AX4>$G$22,0,IFS!AX116-IFS!AX97)) -> 0 | AY17: =IF(AY4=$G$22,IFS!AY116-IFS!AY97+EBITDA*AFS!AZ130,IF(AY4>$G$22,0,IFS!AY116-IFS!AY97)) -> 0 | AZ17: =IF(AZ4=$G$22,IFS!AZ116-IFS!AZ97+EBITDA*AFS!BA130,IF(AZ4>$G$22,0,IFS!AZ116-IFS!AZ97)) -> 0 | BA17: =IF(BA4=$G$22,IFS!BA116-IFS!BA97+EBITDA*AFS!BB130,IF(BA4>$G$22,0,IFS!BA116-IFS!BA97)) -> 0 | BB17: =IF(BB4=$G$22,IFS!BB116-IFS!BB97+EBITDA*AFS!BC130,IF(BB4>$G$22,0,IFS!BB116-IFS!BB97)) -> 0
G18: Real IRR
C19: Real Net Cashflow for Equity | D19: 000'EUR | G19: =XIRR(M19:BB19,$M$3:$BB$3) -> 0.3261880338 | J19: =SUM(K19:BB19) -> 112635.1776 | K19: =IF(K7+K6>=1,K17/K9,) -> -2559.176078 | L19: -692.0083489 | M19: -16640.10444 | N19: -700.8143543 | O19: 1.76600913e-12 | P19: -8.830045648e-13 | Q19: 5.143715912e-12 | R19: 0 | S19: 0 | T19: 2954.582013 | U19: -1360.523839 | V19: 2092.877885 | W19: -883.1121457 | X19: 3660.784679 | Y19: -141.4157669 | Z19: 4856.963683 | AA19: 431.7876603 | AB19: 121615.3367 | AC19: =IF(AC7+AC6>=1,AC17/AC9,) -> 0 | AD19: 0 | AE19: 0 | AF19: 0 | AG19: 0 | AH19: 0 | AI19: 0 | AJ19: 0 | AK19: 0 | AL19: 0 | AM19: 0 | AN19: 0 | AO19: 0 | AP19: =IF(AP7+AP6>=1,AP17/AP9,)+G10 -> 0 | AQ19: 0 | AR19: 0
C20: Real Net Cashflow for Equity
C22: Exit year | G22: 2020-12-31
C23: Debt Ratios
C24: DSCR
C25: Debt service calculation Flag | D25: Flag | E25: =MIN(Inputs!D367,Inputs!D382,Inputs!D396,Inputs!D410)+1 -> 2016-07-01 | F25: =MAX(Inputs!D368,Inputs!D383,Inputs!D397,Inputs!D411) -> 2023-06-30 | K25: =IF(OR(K3<$E$25,K4>$F$25),0,1) -> 0 | L25: =IF(OR(L3<$E$25,L4>$F$25),0,1) -> 0 | M25: 0 | N25: 0 | O25: 0 | P25: 0 | Q25: 0 | R25: 0 | S25: 0 | T25: 1 | U25: 1 | V25: 1 | W25: 1 | X25: 1 | Y25: 1 | Z25: 1 | AA25: 1 | AB25: 1 | AC25: 1 | AD25: 1 | AE25: 1 | AF25: 1 | AG25: 1 | AH25: 0 | AI25: 0 | AJ25: 0 | AK25: 0 | AL25: 0 | AM25: 0 | AN25: 0 | AO25: 0 | AP25: 0 | AQ25: 0 | AR25: 0 | AS25: 0 | AT25: 0 | AU25: 0 | AV25: 0 | AW25: 0 | AX25: 0 | AY25: 0 | AZ25: 0 | BA25: 0 | BB25: 0
C28: Nominator
C29: CFADS | D29: 000'EUR | J29: =SUM(K29:BB29) -> 124370.1557 | K29: =IFS!K101 -> 4.547473509e-13 | L29: =IFS!L101 -> 1.136868377e-13 | M29: =IFS!M101 -> 0 | N29: =IFS!N101 -> -4.547473509e-13 | O29: =IFS!O101 -> 1.818989404e-12 | P29: =IFS!P101 -> -9.094947018e-13 | Q29: =IFS!Q101 -> 5.456968211e-12 | R29: =IFS!R101 -> 0 | S29: =IFS!S101 -> 0 | T29: =IFS!T101 -> 5600.307883 | U29: =IFS!U101 -> 834.5309799 | V29: =IFS!V101 -> 6290.470941 | W29: =IFS!W101 -> 1254.645185 | X29: =IFS!X101 -> 7553.278943 | Y29: =IFS!Y101 -> 2022.158033 | Z29: =IFS!Z101 -> 8138.257264 | AA29: =IFS!AA101 -> 2581.627328 | AB29: =IFS!AB101 -> 8643.45188 | AC29: =IFS!AC101 -> 545.2889166 | AD29: =IFS!AD101 -> 9000.738473 | AE29: =IFS!AE101 -> -188.8702338 | AF29: =IFS!AF101 -> 9376.196183 | AG29: =IFS!AG101 -> 1194.256157 | AH29: =IFS!AH101 -> 9749.34442 | AI29: =IFS!AI101 -> 2622.380663 | AJ29: =IFS!AJ101 -> 10204.60138 | AK29: =IFS!AK101 -> 3236.690298 | AL29: =IFS!AL101 -> 10547.86915 | AM29: =IFS!AM101 -> 3663.216238 | AN29: =IFS!AN101 -> 11095.04899 | AO29: =IFS!AO101 -> 3845.850863 | AP29: =IFS!AP101 -> 11447.0288 | AQ29: =IFS!AQ101 -> -4461.163162 | AR29: =IFS!AR101 -> -427.0498468 | AS29: =IFS!AS101 -> 0 | AT29: =IFS!AT101 -> 0 | AU29: =IFS!AU101 -> 0 | AV29: =IFS!AV101 -> 0 | AW29: =IFS!AW101 -> 0 | AX29: =IFS!AX101 -> 0 | AY29: =IFS!AY101 -> 0 | AZ29: =IFS!AZ101 -> 0 | BA29: =IFS!BA101 -> 0 | BB29: =IFS!BB101 -> 0
C31: Denominator
C32: Interest | D32: 000'EUR | J32: =SUM(K32:BB32) -> 6174.21833 | K32: =-IFS!K105 -> 0 | L32: =-IFS!L105 -> 0 | M32: =-IFS!M105 -> 0 | N32: =-IFS!N105 -> 0 | O32: =-IFS!O105 -> 0 | P32: =-IFS!P105 -> 0 | Q32: =-IFS!Q105 -> 0 | R32: =-IFS!R105 -> 0 | S32: =-IFS!S105 -> 0 | T32: =-IFS!T105 -> 829.2380823 | U32: =-IFS!U105 -> 757.4523322 | V32: =-IFS!V105 -> 710.7754991 | W32: =-IFS!W105 -> 640.9212041 | X32: =-IFS!X105 -> 592.3129159 | Y32: =-IFS!Y105 -> 524.3900761 | Z32: =-IFS!Z105 -> 473.8503327 | AA32: =-IFS!AA105 -> 410.1123124 | AB32: =-IFS!AB105 -> 355.3877496 | AC32: =-IFS!AC105 -> 291.3278201 | AD32: =-IFS!AD105 -> 236.9251664 | AE32: =-IFS!AE105 -> 174.796692 | AF32: =-IFS!AF105 -> 118.4625832 | AG32: =-IFS!AG105 -> 58.26556401 | AH32: =-IFS!AH105 -> 0 | AI32: =-IFS!AI105 -> 0 | AJ32: =-IFS!AJ105 -> 0 | AK32: =-IFS!AK105 -> 0 | AL32: =-IFS!AL105 -> 0 | AM32: =-IFS!AM105 -> 0 | AN32: =-IFS!AN105 -> 0 | AO32: =-IFS!AO105 -> 0 | AP32: =-IFS!AP105 -> 0 | AQ32: =-IFS!AQ105 -> 0 | AR32: =-IFS!AR105 -> 0 | AS32: =-IFS!AS105 -> 0 | AT32: =-IFS!AT105 -> 0 | AU32: =-IFS!AU105 -> 0 | AV32: =-IFS!AV105 -> 0 | AW32: =-IFS!AW105 -> 0 | AX32: =-IFS!AX105 -> 0 | AY32: =-IFS!AY105 -> 0 | AZ32: =-IFS!AZ105 -> 0 | BA32: =-IFS!BA105 -> 0 | BB32: =-IFS!BB105 -> 0
C33: Principal | D33: 000'EUR | J33: =SUM(K33:BB33) -> 25168.12616 | K33: =-IFS!K106 -> 0 | L33: =-IFS!L106 -> 0 | M33: =-IFS!M106 -> 0 | N33: =-IFS!N106 -> 0 | O33: =-IFS!O106 -> 0 | P33: =-IFS!P106 -> 0 | Q33: =-IFS!Q106 -> 0 | R33: =-IFS!R106 -> 0 | S33: =-IFS!S106 -> 0 | T33: =-IFS!T106 -> 1797.723297 | U33: =-IFS!U106 -> 1797.723297 | V33: =-IFS!V106 -> 1797.723297 | W33: =-IFS!W106 -> 1797.723297 | X33: =-IFS!X106 -> 1797.723297 | Y33: =-IFS!Y106 -> 1797.723297 | Z33: =-IFS!Z106 -> 1797.723297 | AA33: =-IFS!AA106 -> 1797.723297 | AB33: =-IFS!AB106 -> 1797.723297 | AC33: =-IFS!AC106 -> 1797.723297 | AD33: =-IFS!AD106 -> 1797.723297 | AE33: =-IFS!AE106 -> 1797.723297 | AF33: =-IFS!AF106 -> 1797.723297 | AG33: =-IFS!AG106 -> 1797.723297 | AH33: =-IFS!AH106 -> 0 | AI33: =-IFS!AI106 -> 0 | AJ33: =-IFS!AJ106 -> 0 | AK33: =-IFS!AK106 -> 0 | AL33: =-IFS!AL106 -> 0 | AM33: =-IFS!AM106 -> 0 | AN33: =-IFS!AN106 -> 0 | AO33: =-IFS!AO106 -> 0 | AP33: =-IFS!AP106 -> 0 | AQ33: =-IFS!AQ106 -> 0 | AR33: =-IFS!AR106 -> 0 | AS33: =-IFS!AS106 -> 0 | AT33: =-IFS!AT106 -> 0 | AU33: =-IFS!AU106 -> 0 | AV33: =-IFS!AV106 -> 0 | AW33: =-IFS!AW106 -> 0 | AX33: =-IFS!AX106 -> 0 | AY33: =-IFS!AY106 -> 0 | AZ33: =-IFS!AZ106 -> 0 | BA33: =-IFS!BA106 -> 0 | BB33: =-IFS!BB106 -> 0
C34: Total debt service | D34: 000'EUR | J34: =SUM(K34:BB34) -> 31342.34449 | K34: =SUM(K32:K33) -> 0 | L34: 0 | M34: 0 | N34: 0 | O34: 0 | P34: 0 | Q34: 0 | R34: 0 | S34: 0 | T34: 2626.96138 | U34: 2555.17563 | V34: 2508.498797 | W34: 2438.644502 | X34: 2390.036213 | Y34: 2322.113374 | Z34: 2271.57363 | AA34: 2207.83561 | AB34: 2153.111047 | AC34: 2089.051118 | AD34: 2034.648464 | AE34: 1972.519989 | AF34: 1916.185881 | AG34: 1855.988861 | AH34: 0 | AI34: 0 | AJ34: 0 | AK34: 0 | AL34: 0 | AM34: 0 | AN34: 0 | AO34: 0 | AP34: 0 | AQ34: 0 | AR34: 0 | AS34: 0 | AT34: 0 | AU34: 0 | AV34: 0 | AW34: 0 | AX34: 0 | AY34: 0 | AZ34: 0 | BA34: 0 | BB34: 0
C36: Semi-Annual Senior DSCR | D36: x | K36: =IF(OR(K29<0,K33=0),0,K29/K34)*K25 -> 0 | L36: 0 | M36: 0 | N36: 0 | O36: 0 | P36: 0 | Q36: 0 | R36: 0 | S36: 0 | T36: 2.131857714 | U36: 0.326604156 | V36: 2.507663528 | W36: 0.5144846592 | X36: 3.160319873 | Y36: 0.8708265739 | Z36: 3.58265176 | AA36: 1.169302332 | AB36: 4.014401344 | AC36: 0.2610222948 | AD36: 4.423731486 | AE36: 0 | AF36: 4.893155866 | AG36: 0.6434608425 | AH36: 0 | AI36: 0 | AJ36: 0 | AK36: 0 | AL36: 0 | AM36: 0 | AN36: 0 | AO36: 0 | AP36: 0 | AQ36: 0 | AR36: 0 | AS36: 0 | AT36: 0 | AU36: 0 | AV36: 0 | AW36: 0 | AX36: 0 | AY36: 0 | AZ36: 0 | BA36: 0 | BB36: 0
C37: Average | D37: x | E37: =AVERAGE(IF(K36:BB36<>0,K36:BB36)) -> 2.192267879
C38: Minimum | D38: x | E38: =MIN(IF(J36:BN36<>0,J36:BN36)) -> 0.2610222948
C39: Minimum Period | D39: Date | E39: =IF(I39>1,"NA",SUMPRODUCT(J39:BM39,J$3:BM$3)) -> 2021-01-01 | J39: =SUM(K39:BB39) -> 1 | K39: =IF(K36=$E38,1,0) -> 0 | L39: 0 | M39: 0 | N39: 0 | O39: 0 | P39: 0 | Q39: 0 | R39: 0 | S39: 0 | T39: 0 | U39: 0 | V39: 0 | W39: 0 | X39: 0 | Y39: 0 | Z39: 0 | AA39: 0 | AB39: 0 | AC39: 1 | AD39: 0 | AE39: 0 | AF39: 0 | AG39: 0 | AH39: 0 | AI39: 0 | AJ39: 0 | AK39: 0 | AL39: 0 | AM39: 0 | AN39: 0 | AO39: 0 | AP39: 0 | AQ39: 0 | AR39: 0 | AS39: 0 | AT39: 0 | AU39: 0 | AV39: 0 | AW39: 0 | AX39: 0 | AY39: 0 | AZ39: 0 | BA39: 0 | BB39: 0
C40: Maximum | D40: x | E40: =MAX(IF(J36:DQ36<>0,J36:DQ36)) -> 4.893155866
C41: Maximum Period | D41: Date | E41: =IF(I41>1,"NA",SUMPRODUCT(J41:BM41,J$3:BM$3)) -> 2022-07-01 | J41: =SUM(K41:BB41) -> 1 | K41: =IF(K36=$E40,1,0) -> 0 | L41: 0 | M41: 0 | N41: 0 | O41: 0 | P41: 0 | Q41: 0 | R41: 0 | S41: 0 | T41: 0 | U41: 0 | V41: 0 | W41: 0 | X41: 0 | Y41: 0 | Z41: 0 | AA41: 0 | AB41: 0 | AC41: 0 | AD41: 0 | AE41: 0 | AF41: 1 | AG41: 0 | AH41: 0 | AI41: 0 | AJ41: 0 | AK41: 0 | AL41: 0 | AM41: 0 | AN41: 0 | AO41: 0 | AP41: 0 | AQ41: 0 | AR41: 0 | AS41: 0 | AT41: 0 | AU41: 0 | AV41: 0 | AW41: 0 | AX41: 0 | AY41: 0 | AZ41: 0 | BA41: 0 | BB41: 0
C43: Annual Senior DSCR
C44: Year | E44: =YEAR(E25) -> 2016 | F44: =YEAR(F25) -> 2023 | K44: =E44 -> 2016 | L44: =K44+1 -> 2017 | M44: =L44+1 -> 2018 | N44: 2019 | O44: 2020 | P44: 2021 | Q44: 2022 | R44: 2023
C45: CFADS | D45: 000'EUR | K45: =AFS!O100 -> 5116.409927 | L45: =AFS!P100 -> 7125.001921 | M45: =AFS!Q100 -> 8807.924128 | N45: =AFS!R100 -> 10160.4153 | O45: =AFS!S100 -> 11225.07921 | P45: =AFS!T100 -> 9546.02739 | Q45: =AFS!U100 -> 9187.325949 | R45: =AFS!V100 -> 10943.60058
D46: 000'EUR
C47: Interest | D47: 000'EUR | K47: =-AFS!O104 -> 829.2380823 | L47: =-AFS!P104 -> 1468.227831 | M47: =-AFS!Q104 -> 1233.23412 | N47: =-AFS!R104 -> 998.2404088 | O47: =-AFS!S104 -> 765.500062 | P47: =-AFS!T104 -> 528.2529864 | Q47: =-AFS!U104 -> 293.2592752 | R47: =-AFS!V104 -> 58.26556401
C48: Principal | D48: 000'EUR | K48: =-AFS!O105 -> 1797.723297 | L48: =-AFS!P105 -> 3595.446595 | M48: =-AFS!Q105 -> 3595.446595 | N48: =-AFS!R105 -> 3595.446595 | O48: =-AFS!S105 -> 3595.446595 | P48: =-AFS!T105 -> 3595.446595 | Q48: =-AFS!U105 -> 3595.446595 | R48: =-AFS!V105 -> 1797.723297
C49: Total | D49: 000'EUR | K49: =SUM(K47:K48) -> 2626.96138 | L49: =SUM(L47:L48) -> 5063.674426 | M49: 4828.680715 | N49: 4593.687004 | O49: 4360.946657 | P49: 4123.699581 | Q49: 3888.70587 | R49: 1855.988861
C51: Annual DSCR | D51: x | K51: =IF(OR(K45<0,K48=0),0,K45/K49) -> 1.947653272 | L51: =IF(OR(L45<0,L48=0),0,L45/L49) -> 1.407081365 | M51: 1.824085014 | N51: 2.211821417 | O51: 2.574000576 | P51: 2.314918243 | Q51: 2.362566431 | R51: 5.896371904
C52: Average | D52: x | E52: =AVERAGE(IF(K51:R51<>0,K51:R51)) -> 2.567312278
C53: Minimum | D53: x | E53: =MIN(IF(K51:R51<>0,K51:R51)) -> 1.407081365
C54: Minimum Period | D54: Date | E54: =IF(I54>1,"NA",SUMPRODUCT(J54:AQ54,J44:AQ44)) -> 2017 | J54: =SUM(K54:BO54) -> 1 | K54: =IF(K51=$E53,1,0) -> 0 | L54: 1 | M54: 0 | N54: 0 | O54: 0 | P54: 0 | Q54: 0 | R54: 0
C55: Maximum | D55: x | E55: =MAX(IF(J51:DQ51<>0,J51:DQ51)) -> 5.896371904
C56: Maximum Period | D56: Date | E56: =IF(I56>1,"NA",SUMPRODUCT(J56:AQ56,J44:AQ44)) -> 2023 | J56: =SUM(K56:BO56) -> 1 | K56: =IF(K51=$E55,1,0) -> 0 | L56: =IF(L51=$E55,1,0) -> 0 | M56: 0 | N56: 0 | O56: 0 | P56: 0 | Q56: 0 | R56: 1
C80: LLCR
C81: Nominator
C82: =C29 -> CFADS | D82: =D29 -> 000'EUR | M82: =M29 -> 0 | N82: -4.547473509e-13 | O82: 1.818989404e-12 | P82: -9.094947018e-13 | Q82: 5.456968211e-12 | R82: 0 | S82: 0 | T82: 5600.307883 | U82: 834.5309799 | V82: 6290.470941 | W82: 1254.645185 | X82: 7553.278943 | Y82: 2022.158033 | Z82: 8138.257264 | AA82: 2581.627328 | AB82: 8643.45188 | AC82: 545.2889166 | AD82: 9000.738473 | AE82: -188.8702338 | AF82: 9376.196183 | AG82: 1194.256157 | AH82: 9749.34442 | AI82: 2622.380663 | AJ82: 10204.60138 | AK82: 3236.690298 | AL82: 10547.86915 | AM82: 3663.216238 | AN82: 11095.04899 | AO82: 3845.850863 | AP82: 11447.0288 | AQ82: -4461.163162 | AR82: -427.0498468 | AS82: 0 | AT82: 0 | AU82: 0 | AV82: 0
C83: Discounted factor | M83: =1/(1+$E$84)^((K4-$K$3)/360) -> 0.9688336733 | N83: =1/(1+$E$84)^((L4-$K$3)/360) -> 0.9381462276 | O83: =1/(1+$E$84)^((M4-$K$3)/360) -> 0.9089076558 | P83: 0.8801183444 | Q83: 0.8526882885 | R83: 0.8256797046 | S83: 0.7999463012 | T83: 0.7746083001 | U83: 0.7503353372 | V83: 0.7265687448 | W83: 0.703924266 | X83: 0.6816277271 | Y83: 0.6603838947 | Z83: 0.6394664808 | AA83: 0.6195366596 | AB83: 0.5999130666 | AC83: 0.5811143168 | AD83: 0.5627077373 | AE83: 0.5451702041 | AF83: 0.527902141 | AG83: 0.5114493704 | AH83: 0.4952494021 | AI83: 0.4798142975 | AJ83: 0.4646163583 | AK83: 0.4500572377 | AL83: 0.4358018424 | AM83: 0.4222194998 | AN83: 0.4088458544 | AO83: 0.3961036309 | AP83: 0.383557196 | AQ83: 0.3716031271 | AR83: 0.3598327365 | AS83: 0.3485570934 | AT83: 0.3375166773 | AU83: 0.3269975223 | AV83: 0.3166399976
C84: NPV + DSRA | D84: Rate | E84: =Inputs!D362 -> 0.065 | M84: =XNPV($E$84,M82:$AG$82,M3:$AG$3)+IFS!M157 -> 41261.08807 | N84: =XNPV($E$84,N82:$AG$82,N3:$AG$3)+IFS!N157 -> 42569.94455 | O84: =XNPV($E$84,O82:$AG$82,O3:$AG$3)+IFS!O157 -> 43943.05879 | P84: =XNPV($E$84,P82:$AG$82,P3:$AG$3)+IFS!P157 -> 45336.99095 | Q84: =XNPV($E$84,Q82:$AG$82,Q3:$AG$3)+IFS!Q157 -> 46799.35761 | R84: =XNPV($E$84,R82:$AG$82,R3:$AG$3)+IFS!R157 -> 48283.89536 | S84: =XNPV($E$84,S82:$AG$82,S3:$AG$3)+IFS!S157 -> 52468.27724 | T84: =XNPV($E$84,T82:$AG$82,T3:$AG$3)+IFS!T157 -> 53986.39704 | U84: =XNPV($E$84,U82:$AG$82,U3:$AG$3)+IFS!U157 -> 48143.74288 | V84: =XNPV($E$84,V82:$AG$82,V3:$AG$3)+IFS!V157 -> 50387.564 | W84: =XNPV($E$84,W82:$AG$82,W3:$AG$3)+IFS!W157 -> 44256.80723 | X84: =XNPV($E$84,X82:$AG$82,X3:$AG$3)+IFS!X157 -> 45393.91689 | Y84: =XNPV($E$84,Y82:$AG$82,Y3:$AG$3)+IFS!Y157 -> 38686.34987 | Z84: =XNPV($E$84,Z82:$AG$82,Z3:$AG$3)+IFS!Z157 -> 37948.76071 | AA84: =XNPV($E$84,AA82:$AG$82,AA3:$AG$3)+IFS!AA157 -> 30646.11634 | AB84: =XNPV($E$84,AB82:$AG$82,AB3:$AG$3)+IFS!AB157 -> 28826.98518 | AC84: =XNPV($E$84,AC82:$AG$82,AC3:$AG$3)+IFS!AC157 -> 19223.41742 | AD84: =XNPV($E$84,AD82:$AG$82,AD3:$AG$3)+IFS!AD157 -> 20680.55731 | AE84: =XNPV($E$84,AE82:$AG$82,AE3:$AG$3)+IFS!AE157 -> 10020.41249 | AF84: =XNPV($E$84,AF82:$AG$82,AF3:$AG$3)+IFS!AF157 -> 12389.12359 | AG84: =XNPV($E$84,AG82:$AG$82,AG3:$AG$3)+IFS!AG157 -> 2388.512313 | AH84: =XNPV($E$84,$AG82:AH$82,$AG3:AH$3)+IFS!AH157 -> 10643.84701 | AI84: =XNPV($E$84,$AG82:AI$82,$AG3:AI$3)+IFS!AI157 -> 13106.17627 | AJ84: =XNPV($E$84,$AG82:AJ$82,$AG3:AJ$3)+IFS!AJ157 -> 22391.7576 | AK84: =XNPV($E$84,$AG82:AK$82,$AG3:AK$3)+IFS!AK157 -> 25244.92333 | AL84: =XNPV($E$84,$AG82:AL$82,$AG3:AL$3)+IFS!AL157 -> 34257.06852 | AM84: =XNPV($E$84,$AG82:AM$82,$AG3:AM$3)+IFS!AM157 -> 37289.13557 | AN84: =XNPV($E$84,$AG82:AN$82,$AG3:AN$3)+IFS!AN157 -> 46190.22291 | AO84: =XNPV($E$84,$AG82:AO$82,$AG3:AO$3)+IFS!AO157 -> 49179.17585 | AP84: =XNPV($E$84,$AG82:AP$82,$AG3:AP$3)+IFS!AP157 -> 57802.14844 | AQ84: =XNPV($E$84,$AG82:AQ$82,$AG3:AQ$3)+IFS!AQ157 -> 54546.59268 | AR84: =XNPV($E$84,$AG82:AR$82,$AG3:AR$3)+IFS!AR157 -> 54244.58481 | AS84: =XNPV($E$84,$AG82:AS$82,$AG3:AS$3)+IFS!AS157 -> 54244.58481 | AT84: =XNPV($E$84,$AG82:AT$82,$AG3:AT$3)+IFS!AT157 -> 54244.58481 | AU84: =XNPV($E$84,$AG82:AU$82,$AG3:AU$3)+IFS!AU157 -> 54244.58481 | AV84: =XNPV($E$84,$AG82:AV$82,$AG3:AV$3)+IFS!AV157 -> 54244.58481
C87: Denominator
C89: Debt balance | M89: =IFS!M165 -> 0 | N89: =IFS!N165 -> 2301.012924 | O89: =IFS!O165 -> 10871.20954 | P89: =IFS!P165 -> 12461.32983 | Q89: =IFS!Q165 -> 21687.36738 | R89: =IFS!R165 -> 21687.36738 | S89: =IFS!S165 -> 25168.12616 | T89: =IFS!T165 -> 23370.40287 | U89: =IFS!U165 -> 21572.67957 | V89: =IFS!V165 -> 19774.95627 | W89: =IFS!W165 -> 17977.23297 | X89: =IFS!X165 -> 16179.50968 | Y89: =IFS!Y165 -> 14381.78638 | Z89: =IFS!Z165 -> 12584.06308 | AA89: =IFS!AA165 -> 10786.33978 | AB89: =IFS!AB165 -> 8988.616487 | AC89: =IFS!AC165 -> 7190.89319 | AD89: =IFS!AD165 -> 5393.169892 | AE89: =IFS!AE165 -> 3595.446595 | AF89: =IFS!AF165 -> 1797.723297
C91: LLCR | M91: =IF(OR(M84<0,M89=0),0,M84/M89) -> 0 | N91: 18.50052388 | O91: 4.04214992 | P91: 3.638214505 | Q91: 2.157908648 | R91: 2.226360374 | S91: 2.084711309 | T91: 2.310032794 | U91: 2.231699717 | V91: 2.548049326 | W91: 2.461825315 | X91: 2.805642309 | Y91: 2.689954422 | Z91: 3.015620667 | AA91: 2.841197009 | AB91: 3.207054748 | AC91: 2.673300369 | AD91: 3.83458295 | AE91: 2.786972974 | AF91: 6.891563125
C92: =1.75*(1+0.1) -> 1.925

Sheet Funding
J1: -1 | K1: =+J1+1 -> 0 | L1: =+K1+1 -> 1 | M1: 2 | N1: 3 | O1: 4 | P1: 5 | Q1: 6 | R1: 7 | S1: 8 | T1: 9 | U1: 10 | V1: 11 | W1: 12 | X1: 13 | Y1: 14 | Z1: 15 | AA1: 16 | AB1: 17 | AC1: 18 | AD1: 19 | AE1: 20 | AF1: 21 | AG1: 22 | AH1: 23 | AI1: 24 | AJ1: 25 | AK1: 26 | AL1: 27 | AM1: 28 | AN1: 29 | AO1: 30 | AP1: 31 | AQ1: 32 | AR1: =+AQ1+1 -> 33 | AS1: =+AR1+1 -> 34 | AT1: =+AS1+1 -> 35 | AU1: =+AT1+1 -> 36 | AV1: =+AU1+1 -> 37 | AW1: =+AV1+1 -> 38 | AX1: =+AW1+1 -> 39 | AY1: =+AX1+1 -> 40 | AZ1: =+AY1+1 -> 41 | BA1: =+AZ1+1 -> 42 | BB1: =+BA1+1 -> 43 | BC1: =+BB1+1 -> 44 | BD1: =+BC1+1 -> 45
C3: Farm 1 : Ndiayène - Ordinary rice | J3: ='Alt 1'!J3 -> 2012-01-01 | K3: ='Alt 1'!K3 -> 2012-07-01 | L3: ='Alt 1'!L3 -> 2013-01-01 | M3: ='Alt 1'!M3 -> 2013-07-01 | N3: ='Alt 1'!N3 -> 2014-01-01 | O3: ='Alt 1'!O3 -> 2014-07-01 | P3: ='Alt 1'!P3 -> 2015-01-01 | Q3: ='Alt 1'!Q3 -> 2015-07-01 | R3: ='Alt 1'!R3 -> 2016-01-01 | S3: ='Alt 1'!S3 -> 2016-07-01 | T3: ='Alt 1'!T3 -> 2017-01-01 | U3: ='Alt 1'!U3 -> 2017-07-01 | V3: ='Alt 1'!V3 -> 2018-01-01 | W3: ='Alt 1'!W3 -> 2018-07-01 | X3: ='Alt 1'!X3 -> 2019-01-01 | Y3: ='Alt 1'!Y3 -> 2019-07-01 | Z3: ='Alt 1'!Z3 -> 2020-01-01 | AA3: ='Alt 1'!AA3 -> 2020-07-01 | AB3: ='Alt 1'!AB3 -> 2021-01-01 | AC3: ='Alt 1'!AC3 -> 2021-07-01 | AD3: ='Alt 1'!AD3 -> 2022-01-01 | AE3: ='Alt 1'!AE3 -> 2022-07-01 | AF3: ='Alt 1'!AF3 -> 2023-01-01 | AG3: ='Alt 1'!AG3 -> 2023-07-01 | AH3: ='Alt 1'!AH3 -> 2024-01-01 | AI3: ='Alt 1'!AI3 -> 2024-07-01 | AJ3: ='Alt 1'!AJ3 -> 2025-01-01 | AK3: ='Alt 1'!AK3 -> 2025-07-01 | AL3: ='Alt 1'!AL3 -> 2026-01-01 | AM3: ='Alt 1'!AM3 -> 2026-07-01 | AN3: ='Alt 1'!AN3 -> 2027-01-01 | AO3: ='Alt 1'!AO3 -> 2027-07-01 | AP3: ='Alt 1'!AP3 -> 2028-01-01 | AQ3: ='Alt 1'!AQ3 -> 2028-07-01 | AR3: ='Alt 1'!AR3 -> 2029-01-01 | AS3: ='Alt 1'!AS3 -> 2029-07-01 | AT3: ='Alt 1'!AT3 -> 2030-01-01 | AU3: ='Alt 1'!AU3 -> 2030-07-01 | AV3: ='Alt 1'!AV3 -> 2031-01-01 | AW3: ='Alt 1'!AW3 -> 2031-07-01 | AX3: ='Alt 1'!AX3 -> 2032-01-01 | AY3: ='Alt 1'!AY3 -> 2032-07-01 | AZ3: ='Alt 1'!AZ3 -> 2033-01-01 | BA3: ='Alt 1'!BA3 -> 2033-07-01 | BB3: ='Alt 1'!BB3 -> 2034-01-01 | BC3: ='Alt 1'!BC3 -> 2034-07-01 | BD3: ='Alt 1'!BD3 -> 2035-01-01
I4: ='Alt 1'!I4 -> 2011-12-31 | J4: ='Alt 1'!J4 -> 2012-06-30 | K4: ='Alt 1'!K4 -> 2012-12-31 | L4: ='Alt 1'!L4 -> 2013-06-30 | M4: ='Alt 1'!M4 -> 2013-12-31 | N4: ='Alt 1'!N4 -> 2014-06-30 | O4: ='Alt 1'!O4 -> 2014-12-31 | P4: ='Alt 1'!P4 -> 2015-06-30 | Q4: ='Alt 1'!Q4 -> 2015-12-31 | R4: ='Alt 1'!R4 -> 2016-06-30 | S4: ='Alt 1'!S4 -> 2016-12-31 | T4: ='Alt 1'!T4 -> 2017-06-30 | U4: ='Alt 1'!U4 -> 2017-12-31 | V4: ='Alt 1'!V4 -> 2018-06-30 | W4: ='Alt 1'!W4 -> 2018-12-31 | X4: ='Alt 1'!X4 -> 2019-06-30 | Y4: ='Alt 1'!Y4 -> 2019-12-31 | Z4: ='Alt 1'!Z4 -> 2020-06-30 | AA4: ='Alt 1'!AA4 -> 2020-12-31 | AB4: ='Alt 1'!AB4 -> 2021-06-30 | AC4: ='Alt 1'!AC4 -> 2021-12-31 | AD4: ='Alt 1'!AD4 -> 2022-06-30 | AE4: ='Alt 1'!AE4 -> 2022-12-31 | AF4: ='Alt 1'!AF4 -> 2023-06-30 | AG4: ='Alt 1'!AG4 -> 2023-12-31 | AH4: ='Alt 1'!AH4 -> 2024-06-30 | AI4: ='Alt 1'!AI4 -> 2024-12-31 | AJ4: ='Alt 1'!AJ4 -> 2025-06-30 | AK4: ='Alt 1'!AK4 -> 2025-12-31 | AL4: ='Alt 1'!AL4 -> 2026-06-30 | AM4: ='Alt 1'!AM4 -> 2026-12-31 | AN4: ='Alt 1'!AN4 -> 2027-06-30 | AO4: ='Alt 1'!AO4 -> 2027-12-31 | AP4: ='Alt 1'!AP4 -> 2028-06-30 | AQ4: ='Alt 1'!AQ4 -> 2028-12-31 | AR4: ='Alt 1'!AR4 -> 2029-06-30 | AS4: ='Alt 1'!AS4 -> 2029-12-31 | AT4: ='Alt 1'!AT4 -> 2030-06-30 | AU4: ='Alt 1'!AU4 -> 2030-12-31 | AV4: ='Alt 1'!AV4 -> 2031-06-30 | AW4: ='Alt 1'!AW4 -> 2031-12-31 | AX4: ='Alt 1'!AX4 -> 2032-06-30 | AY4: ='Alt 1'!AY4 -> 2032-12-31 | AZ4: ='Alt 1'!AZ4 -> 2033-06-30 | BA4: ='Alt 1'!BA4 -> 2033-12-31 | BB4: ='Alt 1'!BB4 -> 2034-06-30 | BC4: ='Alt 1'!BC4 -> 2034-12-31 | BD4: ='Alt 1'!BD4 -> 2035-06-30
C6: ='Alt 1'!C6 -> Planning period | I6: =SUM(J6:BD6) -> 9 | J6: ='Alt 1'!J6 -> 1 | K6: ='Alt 1'!K6 -> 1 | L6: ='Alt 1'!L6 -> 1 | M6: ='Alt 1'!M6 -> 1 | N6: ='Alt 1'!N6 -> 1 | O6: ='Alt 1'!O6 -> 1 | P6: ='Alt 1'!P6 -> 1 | Q6: ='Alt 1'!Q6 -> 1 | R6: ='Alt 1'!R6 -> 1 | S6: ='Alt 1'!S6 -> 0 | T6: ='Alt 1'!T6 -> 0 | U6: ='Alt 1'!U6 -> 0 | V6: ='Alt 1'!V6 -> 0 | W6: ='Alt 1'!W6 -> 0 | X6: ='Alt 1'!X6 -> 0 | Y6: ='Alt 1'!Y6 -> 0 | Z6: ='Alt 1'!Z6 -> 0 | AA6: ='Alt 1'!AA6 -> 0 | AB6: ='Alt 1'!AB6 -> 0 | AC6: ='Alt 1'!AC6 -> 0 | AD6: ='Alt 1'!AD6 -> 0 | AE6: ='Alt 1'!AE6 -> 0 | AF6: ='Alt 1'!AF6 -> 0 | AG6: ='Alt 1'!AG6 -> 0 | AH6: ='Alt 1'!AH6 -> 0 | AI6: ='Alt 1'!AI6 -> 0 | AJ6: ='Alt 1'!AJ6 -> 0 | AK6: ='Alt 1'!AK6 -> 0 | AL6: ='Alt 1'!AL6 -> 0 | AM6: ='Alt 1'!AM6 -> 0 | AN6: ='Alt 1'!AN6 -> 0 | AO6: ='Alt 1'!AO6 -> 0 | AP6: ='Alt 1'!AP6 -> 0 | AQ6: ='Alt 1'!AQ6 -> 0 | AR6: ='Alt 1'!AR6 -> 0 | AS6: ='Alt 1'!AS6 -> 0 | AT6: ='Alt 1'!AT6 -> 0 | AU6: ='Alt 1'!AU6 -> 0 | AV6: ='Alt 1'!AV6 -> 0 | AW6: ='Alt 1'!AW6 -> 0 | AX6: ='Alt 1'!AX6 -> 0 | AY6: ='Alt 1'!AY6 -> 0 | AZ6: ='Alt 1'!AZ6 -> 0 | BA6: ='Alt 1'!BA6 -> 0 | BB6: ='Alt 1'!BB6 -> 0 | BC6: ='Alt 1'!BC6 -> 0 | BD6: ='Alt 1'!BD6 -> 0
C7: ='Alt 1'!C7 -> Full Operations | I7: =SUM(J7:BD7) -> 30 | J7: ='Alt 1'!J7 -> 0 | K7: ='Alt 1'!K7 -> 0 | L7: ='Alt 1'!L7 -> 1 | M7: ='Alt 1'!M7 -> 1 | N7: ='Alt 1'!N7 -> 1 | O7: ='Alt 1'!O7 -> 1 | P7: ='Alt 1'!P7 -> 1 | Q7: ='Alt 1'!Q7 -> 1 | R7: ='Alt 1'!R7 -> 1 | S7: ='Alt 1'!S7 -> 1 | T7: ='Alt 1'!T7 -> 1 | U7: ='Alt 1'!U7 -> 1 | V7: ='Alt 1'!V7 -> 1 | W7: ='Alt 1'!W7 -> 1 | X7: ='Alt 1'!X7 -> 1 | Y7: ='Alt 1'!Y7 -> 1 | Z7: ='Alt 1'!Z7 -> 1 | AA7: ='Alt 1'!AA7 -> 1 | AB7: ='Alt 1'!AB7 -> 1 | AC7: ='Alt 1'!AC7 -> 1 | AD7: ='Alt 1'!AD7 -> 1 | AE7: ='Alt 1'!AE7 -> 1 | AF7: ='Alt 1'!AF7 -> 1 | AG7: ='Alt 1'!AG7 -> 1 | AH7: ='Alt 1'!AH7 -> 1 | AI7: ='Alt 1'!AI7 -> 1 | AJ7: ='Alt 1'!AJ7 -> 1 | AK7: ='Alt 1'!AK7 -> 1 | AL7: ='Alt 1'!AL7 -> 1 | AM7: ='Alt 1'!AM7 -> 1 | AN7: ='Alt 1'!AN7 -> 1 | AO7: ='Alt 1'!AO7 -> 1 | AP7: ='Alt 1'!AP7 -> 0 | AQ7: ='Alt 1'!AQ7 -> 0 | AR7: ='Alt 1'!AR7 -> 0 | AS7: ='Alt 1'!AS7 -> 0 | AT7: ='Alt 1'!AT7 -> 0 | AU7: ='Alt 1'!AU7 -> 0 | AV7: ='Alt 1'!AV7 -> 0 | AW7: ='Alt 1'!AW7 -> 0 | AX7: ='Alt 1'!AX7 -> 0 | AY7: ='Alt 1'!AY7 -> 0 | AZ7: ='Alt 1'!AZ7 -> 0 | BA7: ='Alt 1'!BA7 -> 0 | BB7: ='Alt 1'!BB7 -> 0 | BC7: ='Alt 1'!BC7 -> 0 | BD7: ='Alt 1'!BD7 -> 0
C9: Flags & Counters
C10: Days in Period | D10: Num# | J10: =J4-J3+1 -> 182 | K10: 184 | L10: 181 | M10: 184 | N10: 181 | O10: 184 | P10: 181 | Q10: 184 | R10: 182 | S10: 184 | T10: 181 | U10: 184 | V10: 181 | W10: 184 | X10: 181 | Y10: 184 | Z10: 182 | AA10: 184 | AB10: 181 | AC10: 184 | AD10: 181 | AE10: 184 | AF10: 181 | AG10: 184 | AH10: 182 | AI10: 184 | AJ10: 181 | AK10: 184 | AL10: 181 | AM10: 184 | AN10: 181 | AO10: 184 | AP10: 182 | AQ10: 184 | AR10: 181 | AS10: 184 | AT10: 181 | AU10: 184 | AV10: 181 | AW10: 184 | AX10: 182 | AY10: 184 | AZ10: 181 | BA10: 184 | BB10: 181 | BC10: 184 | BD10: 181
C11: Planning | D11: Num# | J11: =SUM($J6:J6)*J6 -> 1 | K11: =SUM($J6:K6)*K6 -> 2 | L11: =SUM($J6:L6)*L6 -> 3 | M11: =SUM($J6:M6)*M6 -> 4 | N11: =SUM($J6:N6)*N6 -> 5 | O11: =SUM($J6:O6)*O6 -> 6 | P11: =SUM($J6:P6)*P6 -> 7 | Q11: =SUM($J6:Q6)*Q6 -> 8 | R11: =SUM($J6:R6)*R6 -> 9 | S11: =SUM($J6:S6)*S6 -> 0 | T11: =SUM($J6:T6)*T6 -> 0 | U11: =SUM($J6:U6)*U6 -> 0 | V11: =SUM($J6:V6)*V6 -> 0 | W11: =SUM($J6:W6)*W6 -> 0 | X11: =SUM($J6:X6)*X6 -> 0 | Y11: =SUM($J6:Y6)*Y6 -> 0 | Z11: =SUM($J6:Z6)*Z6 -> 0 | AA11: =SUM($J6:AA6)*AA6 -> 0 | AB11: =SUM($J6:AB6)*AB6 -> 0 | AC11: =SUM($J6:AC6)*AC6 -> 0 | AD11: =SUM($J6:AD6)*AD6 -> 0 | AE11: =SUM($J6:AE6)*AE6 -> 0 | AF11: =SUM($J6:AF6)*AF6 -> 0 | AG11: =SUM($J6:AG6)*AG6 -> 0 | AH11: =SUM($J6:AH6)*AH6 -> 0 | AI11: =SUM($J6:AI6)*AI6 -> 0 | AJ11: =SUM($J6:AJ6)*AJ6 -> 0 | AK11: =SUM($J6:AK6)*AK6 -> 0 | AL11: =SUM($J6:AL6)*AL6 -> 0 | AM11: =SUM($J6:AM6)*AM6 -> 0 | AN11: =SUM($J6:AN6)*AN6 -> 0 | AO11: =SUM($J6:AO6)*AO6 -> 0 | AP11: =SUM($J6:AP6)*AP6 -> 0 | AQ11: =SUM($J6:AQ6)*AQ6 -> 0 | AR11: =SUM($J6:AR6)*AR6 -> 0 | AS11: =SUM($J6:AS6)*AS6 -> 0 | AT11: =SUM($J6:AT6)*AT6 -> 0 | AU11: =SUM($J6:AU6)*AU6 -> 0 | AV11: =SUM($J6:AV6)*AV6 -> 0 | AW11: =SUM($J6:AW6)*AW6 -> 0 | AX11: =SUM($J6:AX6)*AX6 -> 0 | AY11: =SUM($J6:AY6)*AY6 -> 0 | AZ11: =SUM($J6:AZ6)*AZ6 -> 0 | BA11: =SUM($J6:BA6)*BA6 -> 0 | BB11: =SUM($J6:BB6)*BB6 -> 0 | BC11: =SUM($J6:BC6)*BC6 -> 0 | BD11: =SUM($J6:BD6)*BD6 -> 0
C12: Year: Calendar | D12: Year | J12: =YEAR(J4) -> 2012 | K12: 2012 | L12: 2013 | M12: 2013 | N12: 2014 | O12: 2014 | P12: 2015 | Q12: 2015 | R12: 2016 | S12: 2016 | T12: 2017 | U12: 2017 | V12: 2018 | W12: 2018 | X12: 2019 | Y12: 2019 | Z12: 2020 | AA12: 2020 | AB12: 2021 | AC12: 2021 | AD12: 2022 | AE12: 2022 | AF12: 2023 | AG12: 2023 | AH12: 2024 | AI12: 2024 | AJ12: 2025 | AK12: 2025 | AL12: 2026 | AM12: 2026 | AN12: 2027 | AO12: 2027 | AP12: 2028 | AQ12: 2028 | AR12: 2029 | AS12: 2029 | AT12: 2030 | AU12: 2030 | AV12: 2031 | AW12: 2031 | AX12: 2032 | AY12: 2032 | AZ12: 2033 | BA12: 2033 | BB12: 2034 | BC12: 2034 | BD12: 2035
C13: Semester: Operational | D13: Num# | J13: =SUM($J16:J16)*J16 -> 1 | K13: =SUM($J16:K16)*K16 -> 2 | L13: =SUM($J16:L16)*L16 -> 3 | M13: =SUM($J16:M16)*M16 -> 4 | N13: =SUM($J16:N16)*N16 -> 5 | O13: =SUM($J16:O16)*O16 -> 6 | P13: =SUM($J16:P16)*P16 -> 7 | Q13: =SUM($J16:Q16)*Q16 -> 8 | R13: =SUM($J16:R16)*R16 -> 9 | S13: =SUM($J16:S16)*S16 -> 10 | T13: =SUM($J16:T16)*T16 -> 11 | U13: =SUM($J16:U16)*U16 -> 12 | V13: =SUM($J16:V16)*V16 -> 13 | W13: =SUM($J16:W16)*W16 -> 14 | X13: =SUM($J16:X16)*X16 -> 15 | Y13: =SUM($J16:Y16)*Y16 -> 16 | Z13: =SUM($J16:Z16)*Z16 -> 17 | AA13: =SUM($J16:AA16)*AA16 -> 18 | AB13: =SUM($J16:AB16)*AB16 -> 19 | AC13: =SUM($J16:AC16)*AC16 -> 20 | AD13: =SUM($J16:AD16)*AD16 -> 21 | AE13: =SUM($J16:AE16)*AE16 -> 22 | AF13: =SUM($J16:AF16)*AF16 -> 23 | AG13: =SUM($J16:AG16)*AG16 -> 24 | AH13: =SUM($J16:AH16)*AH16 -> 25 | AI13: =SUM($J16:AI16)*AI16 -> 26 | AJ13: =SUM($J16:AJ16)*AJ16 -> 27 | AK13: =SUM($J16:AK16)*AK16 -> 28 | AL13: =SUM($J16:AL16)*AL16 -> 29 | AM13: =SUM($J16:AM16)*AM16 -> 30 | AN13: =SUM($J16:AN16)*AN16 -> 31 | AO13: =SUM($J16:AO16)*AO16 -> 32 | AP13: =SUM($J16:AP16)*AP16 -> 33 | AQ13: =SUM($J16:AQ16)*AQ16 -> 34 | AR13: =SUM($J16:AR16)*AR16 -> 35 | AS13: =SUM($J16:AS16)*AS16 -> 36 | AT13: =SUM($J16:AT16)*AT16 -> 37 | AU13: =SUM($J16:AU16)*AU16 -> 38 | AV13: =SUM($J16:AV16)*AV16 -> 39 | AW13: =SUM($J16:AW16)*AW16 -> 40 | AX13: =SUM($J16:AX16)*AX16 -> 41 | AY13: =SUM($J16:AY16)*AY16 -> 42 | AZ13: =SUM($J16:AZ16)*AZ16 -> 43 | BA13: =SUM($J16:BA16)*BA16 -> 44 | BB13: =SUM($J16:BB16)*BB16 -> 45 | BC13: =SUM($J16:BC16)*BC16 -> 46 | BD13: =SUM($J16:BD16)*BD16 -> 47
C14: Year: Operational | D14: Num# | J14: =SUM($J15:J15) -> 0 | K14: =SUM($J15:K15) -> 0 | L14: =SUM($J15:L15) -> 1 | M14: =SUM($J15:M15) -> 1 | N14: =SUM($J15:N15) -> 2 | O14: =SUM($J15:O15) -> 2 | P14: =SUM($J15:P15) -> 3 | Q14: =SUM($J15:Q15) -> 3 | R14: =SUM($J15:R15) -> 4 | S14: =SUM($J15:S15) -> 4 | T14: =SUM($J15:T15) -> 5 | U14: =SUM($J15:U15) -> 5 | V14: =SUM($J15:V15) -> 6 | W14: =SUM($J15:W15) -> 6 | X14: =SUM($J15:X15) -> 7 | Y14: =SUM($J15:Y15) -> 7 | Z14: =SUM($J15:Z15) -> 8 | AA14: =SUM($J15:AA15) -> 8 | AB14: =SUM($J15:AB15) -> 9 | AC14: =SUM($J15:AC15) -> 9 | AD14: =SUM($J15:AD15) -> 10 | AE14: =SUM($J15:AE15) -> 10 | AF14: =SUM($J15:AF15) -> 11 | AG14: =SUM($J15:AG15) -> 11 | AH14: =SUM($J15:AH15) -> 12 | AI14: =SUM($J15:AI15) -> 12 | AJ14: =SUM($J15:AJ15) -> 13 | AK14: =SUM($J15:AK15) -> 13 | AL14: =SUM($J15:AL15) -> 14 | AM14: =SUM($J15:AM15) -> 14 | AN14: =SUM($J15:AN15) -> 15 | AO14: =SUM($J15:AO15) -> 15 | AP14: =SUM($J15:AP15) -> 15 | AQ14: =SUM($J15:AQ15) -> 15 | AR14: =SUM($J15:AR15) -> 15 | AS14: =SUM($J15:AS15) -> 15 | AT14: =SUM($J15:AT15) -> 15 | AU14: =SUM($J15:AU15) -> 15 | AV14: =SUM($J15:AV15) -> 15 | AW14: =SUM($J15:AW15) -> 15 | AX14: =SUM($J15:AX15) -> 15 | AY14: =SUM($J15:AY15) -> 15 | AZ14: =SUM($J15:AZ15) -> 15 | BA14: =SUM($J15:BA15) -> 15 | BB14: =SUM($J15:BB15) -> 15 | BC14: =SUM($J15:BC15) -> 15 | BD14: =SUM($J15:BD15) -> 15
